Workbook

Sheet 1
A1: الاجمالى | C1: =SUBTOTAL(9,Table9[الاسمنت المستخدم بالمتر المكعب]) -> 19136.5 | D1: =SUBTOTAL(9,Table9[قيمة الاسمنت المستخدم بالمتر المكعب]) -> 10041300 | E1: =SUBTOTAL(9,Table9[[المبالغ المدفوعة ]]) -> 3880000 | F1: =SUBTOTAL(9,Table9[الاسمنت المستخدم بالطن]) -> 6881.8 | G1: =SUBTOTAL(9,Table9[الاسمنت المستلم بالطن]) -> 6093.89 | H1: =SUBTOTAL(9,Table9[الرصيد بالطن]) -> 787.91 | I1: =SUBTOTAL(9,Table9[الرصيد النقدى]) -> 6161300 | J1: =IF($H$1+$I$1=0,"0",IF($H$1+$I$1>=1,"دائن",IF($H$1+$I$1<=-1,"مدين"))) -> دائن | M1: سعر المتر المكعب للخرسانة بالمحطات
A2: اسم المحطة | B2: الوحدة | C2: الاسمنت المستخدم بالمتر المكعب | D2: قيمة الاسمنت المستخدم بالمتر المكعب | E2: المبالغ المدفوعة | F2: الاسمنت المستخدم بالطن | G2: الاسمنت المستلم بالطن | H2: الرصيد بالطن | I2: الرصيد النقدى | J2: الموقف | K2: بيان الاعمال الجديدة بالقيمة | M2: 2022/08/01 | N2: 2022/11/01 | O2: 2023/05/23
A3: الشركة الهندسية للمشروعات | B3: طن | C3: =SUMIF(Table8[اسم المحطه],Table9[[#This Row],[اسم المحطة]],Table8[الكميه بالمتر المكعب]) -> 11996 | D3: =SUMIF(Table8[اسم المحطه],Table9[[#This Row],[اسم المحطة]],Table8[الاجمالى قيمة]) -> 6446960 | E3: =SUM('[2]كشف حساب'!$N47) -> 3880000 | F3: =SUMIF(Table8[اسم المحطه],Table9[[#This Row],[اسم المحطة]],Table8[كمية الاسمنت المستخدم بالطن]) -> 4270.14 | G3: =SUMIF(Table10[محطة الأستلام],Table9[[#This Row],[اسم المحطة]],Table10[صافى الوزن]) -> 3984.6 | H3: =Table9[[#This Row],[الاسمنت المستخدم بالطن]]-Table9[[#This Row],[الاسمنت المستلم بالطن]] -> 285.54 | I3: =Table9[[#This Row],[قيمة الاسمنت المستخدم بالمتر المكعب]]-Table9[[#This Row],[المبالغ المدفوعة ]] -> 2566960 | J3: =IF(Table9[[#This Row],[الرصيد بالطن]]+Table9[[#This Row],[الرصيد النقدى]]=0,"صفر",IF(Table9[[#This Row],[الرصيد بالطن]]+Table9[[#This Row],[الرصيد النقدى]]>=1,"دائن",IF(Table9[[#This Row],[الرصيد بالطن]]+Table9[[#This Row],[الرصيد النقدى]]<=-1,"مدين"))) -> دائن | K3: =IF(Table9[[#This Row],[قيمة الاسمنت المستخدم بالمتر المكعب]]-'[2]كشف حساب'!$F$47>=1,"اعمال جديدة",0) -> اعمال جديدة | L3: =Table9[[#This Row],[قيمة الاسمنت المستخدم بالمتر المكعب]]-'[2]كشف حساب'!$F$47 -> 313800 | M3: 480 | N3: 520 | O3: 600
A4: ابكس للخرسانة الجاهزة | B4: طن | C4: =SUMIF(Table8[اسم المحطه],Table9[[#This Row],[اسم المحطة]],Table8[الكميه بالمتر المكعب]) -> 849 | D4: =SUMIF(Table8[اسم المحطه],Table9[[#This Row],[اسم المحطة]],Table8[الاجمالى قيمة]) -> 410960 | E4: =SUM('[2]كشف حساب'!$N48) -> 0 | F4: =SUMIF(Table8[اسم المحطه],Table9[[#This Row],[اسم المحطة]],Table8[كمية الاسمنت المستخدم بالطن]) -> 221.93 | G4: =SUMIF(Table10[محطة الأستلام],Table9[[#This Row],[اسم المحطة]],Table10[صافى الوزن]) -> 126.64 | H4: =Table9[[#This Row],[الاسمنت المستخدم بالطن]]-Table9[[#This Row],[الاسمنت المستلم بالطن]] -> 95.29 | I4: =Table9[[#This Row],[قيمة الاسمنت المستخدم بالمتر المكعب]]-Table9[[#This Row],[المبالغ المدفوعة ]] -> 410960 | J4: =IF(Table9[[#This Row],[الرصيد بالطن]]+Table9[[#This Row],[الرصيد النقدى]]=0,"صفر",IF(Table9[[#This Row],[الرصيد بالطن]]+Table9[[#This Row],[الرصيد النقدى]]>=1,"دائن",IF(Table9[[#This Row],[الرصيد بالطن]]+Table9[[#This Row],[الرصيد النقدى]]<=-1,"مدين"))) -> دائن | K4: =IF(Table9[[#This Row],[قيمة الاسمنت المستخدم بالمتر المكعب]]-'[2]كشف حساب'!$F$48>=1,"اعمال جديدة",0) -> 0 | L4: =Table9[[#This Row],[قيمة الاسمنت المستخدم بالمتر المكعب]]-'[2]كشف حساب'!$F$48 -> 0 | M4: 480 | N4: 520 | O4: 580
A5: كابيتال بيلد | B5: طن | C5: =SUMIF(Table8[اسم المحطه],Table9[[#This Row],[اسم المحطة]],Table8[الكميه بالمتر المكعب]) -> 5476.5 | D5: =SUMIF(Table8[اسم المحطه],Table9[[#This Row],[اسم المحطة]],Table8[الاجمالى قيمة]) -> 2759580 | E5: =SUM('[2]كشف حساب'!$N49) -> 0 | F5: =SUMIF(Table8[اسم المحطه],Table9[[#This Row],[اسم المحطة]],Table8[كمية الاسمنت المستخدم بالطن]) -> 2080.03 | G5: =SUMIF(Table10[محطة الأستلام],Table9[[#This Row],[اسم المحطة]],Table10[صافى الوزن]) -> 1740.25 | H5: =Table9[[#This Row],[الاسمنت المستخدم بالطن]]-Table9[[#This Row],[الاسمنت المستلم بالطن]] -> 339.78 | I5: =Table9[[#This Row],[قيمة الاسمنت المستخدم بالمتر المكعب]]-Table9[[#This Row],[المبالغ المدفوعة ]] -> 2759580 | J5: =IF(Table9[[#This Row],[الرصيد بالطن]]+Table9[[#This Row],[الرصيد النقدى]]=0,"صفر",IF(Table9[[#This Row],[الرصيد بالطن]]+Table9[[#This Row],[الرصيد النقدى]]>=1,"دائن",IF(Table9[[#This Row],[الرصيد بالطن]]+Table9[[#This Row],[الرصيد النقدى]]<=-1,"مدين"))) -> دائن | K5: =IF(Table9[[#This Row],[قيمة الاسمنت المستخدم بالمتر المكعب]]-'[2]كشف حساب'!$F$49>=1,"اعمال جديدة",0) -> 0 | L5: =Table9[[#This Row],[قيمة الاسمنت المستخدم بالمتر المكعب]]-'[2]كشف حساب'!$F$49 -> 0 | M5: 480 | N5: 520 | O5: 580
A6: بيتر ميكس | B6: طن | C6: =SUMIF(Table8[اسم المحطه],Table9[[#This Row],[اسم المحطة]],Table8[الكميه بالمتر المكعب]) -> 815 | D6: =SUMIF(Table8[اسم المحطه],Table9[[#This Row],[اسم المحطة]],Table8[الاجمالى قيمة]) -> 423800 | E6: =SUM('[2]كشف حساب'!$N50) -> 0 | F6: =SUMIF(Table8[اسم المحطه],Table9[[#This Row],[اسم المحطة]],Table8[كمية الاسمنت المستخدم بالطن]) -> 309.7 | G6: =SUMIF(Table10[محطة الأستلام],Table9[[#This Row],[اسم المحطة]],Table10[صافى الوزن]) -> 242.4 | H6: =Table9[[#This Row],[الاسمنت المستخدم بالطن]]-Table9[[#This Row],[الاسمنت المستلم بالطن]] -> 67.3 | I6: =Table9[[#This Row],[قيمة الاسمنت المستخدم بالمتر المكعب]]-Table9[[#This Row],[المبالغ المدفوعة ]] -> 423800 | J6: =IF(Table9[[#This Row],[الرصيد بالطن]]+Table9[[#This Row],[الرصيد النقدى]]=0,"صفر",IF(Table9[[#This Row],[الرصيد بالطن]]+Table9[[#This Row],[الرصيد النقدى]]>=1,"دائن",IF(Table9[[#This Row],[الرصيد بالطن]]+Table9[[#This Row],[الرصيد النقدى]]<=-1,"مدين"))) -> دائن | K6: =IF(Table9[[#This Row],[قيمة الاسمنت المستخدم بالمتر المكعب]]-'[2]كشف حساب'!$F$50>=1,"اعمال جديدة",0) -> 0 | L6: =Table9[[#This Row],[قيمة الاسمنت المستخدم بالمتر المكعب]]-'[2]كشف حساب'!$F$50 -> 0 | M6: 480 | N6: 520 | O6: 580
A7: Total | C7: =SUBTOTAL(109,Table9[الاسمنت المستخدم بالمتر المكعب]) -> 19136.5 | D7: =SUBTOTAL(109,Table9[قيمة الاسمنت المستخدم بالمتر المكعب]) -> 10041300 | E7: =SUBTOTAL(109,Table9[[المبالغ المدفوعة ]]) -> 3880000 | F7: =SUBTOTAL(109,Table9[الاسمنت المستخدم بالطن]) -> 6881.8 | G7: =SUBTOTAL(109,Table9[الاسمنت المستلم بالطن]) -> 6093.89 | H7: =SUBTOTAL(109,Table9[الرصيد بالطن]) -> 787.91 | I7: =SUBTOTAL(109,Table9[الرصيد النقدى]) -> 6161300 | J7: =SUBTOTAL(103,Table9[الموقف]) -> 4

Sheet الاسمنت المعبأ (hidden)
A1: الاجمالى | H1: =SUBTOTAL(9,Table106[صافى الوزن]) -> 340 | J1: 2023-03-01 | K1: 2023-03-28 | L1: فارغة | M1: التاريخ | N1: التاريخ
A2: م | B2: التاريخ | C2: المصنع | D2: رقم البوليصة | E2: رقم البون | F2: اذن التحميل | G2: الوحدة | H2: صافى الوزن | I2: السعر | J2: القيمه | K2: ملاحظات | M2: =">="&$J$1 -> >=44986 | N2: ="<="&$K$1 -> <=45013
A3: =ROW()-2 -> 1 | B3: 2023-03-03 | C3: الوطنية بنى سويف | E3: 1609687 | F3: 19799625 | G3: =IF(Table106[[#This Row],[المصنع ]]>=1,"طن","") -> طن | H3: 80 | J3: =Table106[[#This Row],[صافى الوزن]]*Table106[[#This Row],[السعر]] -> 0 | K3: رتبة 52.5
A4: 2 | B4: 2023-06-17 | C4: مصنع السويس | E4: 1002880604 | F4: 1003255113 | G4: =IF(Table106[[#This Row],[المصنع ]]>=1,"طن","") -> طن | H4: 65 | J4: =Table106[[#This Row],[صافى الوزن]]*Table106[[#This Row],[السعر]] -> 0 | K4: رتبة 42.5
A5: 3 | B5: 2023-06-20 | C5: مصنع السويس | E5: 1002882595 | F5: 1003256367 | G5: =IF(Table106[[#This Row],[المصنع ]]>=1,"طن","") -> طن | H5: 65 | J5: =Table106[[#This Row],[صافى الوزن]]*Table106[[#This Row],[السعر]] -> 0 | K5: رتبة 42.5
A6: 4 | B6: 2023-08-06 | C6: مصنع السويس | E6: 1002888543 | F6: 1003279922 | G6: =IF(Table106[[#This Row],[المصنع ]]>=1,"طن","") -> طن | H6: 65 | J6: =Table106[[#This Row],[صافى الوزن]]*Table106[[#This Row],[السعر]] -> 0 | K6: رتبة 42.5
A7: 5 | B7: 2023-08-20 | C7: مصنع السويس | E7: 1002893579 | F7: 1003288442 | G7: =IF(Table106[[#This Row],[المصنع ]]>=1,"طن","") -> طن | H7: 65 | J7: =Table106[[#This Row],[صافى الوزن]]*Table106[[#This Row],[السعر]] -> 0 | K7: رتبة 42.5
A8: 6 | G8: =IF(Table106[[#This Row],[المصنع ]]>=1,"طن","") ->  | J8: =Table106[[#This Row],[صافى الوزن]]*Table106[[#This Row],[السعر]] -> 0
A9: 7 | G9: =IF(Table106[[#This Row],[المصنع ]]>=1,"طن","") ->  | J9: =Table106[[#This Row],[صافى الوزن]]*Table106[[#This Row],[السعر]] -> 0
A10: 8 | G10: =IF(Table106[[#This Row],[المصنع ]]>=1,"طن","") ->  | J10: =Table106[[#This Row],[صافى الوزن]]*Table106[[#This Row],[السعر]] -> 0
A11: 9 | G11: =IF(Table106[[#This Row],[المصنع ]]>=1,"طن","") ->  | J11: =Table106[[#This Row],[صافى الوزن]]*Table106[[#This Row],[السعر]] -> 0
A12: 10 | G12: =IF(Table106[[#This Row],[المصنع ]]>=1,"طن","") ->  | J12: =Table106[[#This Row],[صافى الوزن]]*Table106[[#This Row],[السعر]] -> 0
A13: 11 | G13: =IF(Table106[[#This Row],[المصنع ]]>=1,"طن","") ->  | J13: =Table106[[#This Row],[صافى الوزن]]*Table106[[#This Row],[السعر]] -> 0
A14: 12 | G14: =IF(Table106[[#This Row],[المصنع ]]>=1,"طن","") ->  | J14: =Table106[[#This Row],[صافى الوزن]]*Table106[[#This Row],[السعر]] -> 0
A15: 13 | G15: =IF(Table106[[#This Row],[المصنع ]]>=1,"طن","") ->  | J15: =Table106[[#This Row],[صافى الوزن]]*Table106[[#This Row],[السعر]] -> 0
A16: 14 | G16: =IF(Table106[[#This Row],[المصنع ]]>=1,"طن","") ->  | J16: =Table106[[#This Row],[صافى الوزن]]*Table106[[#This Row],[السعر]] -> 0
A17: 15 | G17: =IF(Table106[[#This Row],[المصنع ]]>=1,"طن","") ->  | J17: =Table106[[#This Row],[صافى الوزن]]*Table106[[#This Row],[السعر]] -> 0
A18: 16 | G18: =IF(Table106[[#This Row],[المصنع ]]>=1,"طن","") ->  | J18: =Table106[[#This Row],[صافى الوزن]]*Table106[[#This Row],[السعر]] -> 0
A19: 17 | G19: =IF(Table106[[#This Row],[المصنع ]]>=1,"طن","") ->  | J19: =Table106[[#This Row],[صافى الوزن]]*Table106[[#This Row],[السعر]] -> 0
A20: 18 | G20: =IF(Table106[[#This Row],[المصنع ]]>=1,"طن","") ->  | J20: =Table106[[#This Row],[صافى الوزن]]*Table106[[#This Row],[السعر]] -> 0
A21: 19 | G21: =IF(Table106[[#This Row],[المصنع ]]>=1,"طن","") ->  | J21: =Table106[[#This Row],[صافى الوزن]]*Table106[[#This Row],[السعر]] -> 0
A22: 20 | G22: =IF(Table106[[#This Row],[المصنع ]]>=1,"طن","") ->  | J22: =Table106[[#This Row],[صافى الوزن]]*Table106[[#This Row],[السعر]] -> 0
A23: 21 | G23: =IF(Table106[[#This Row],[المصنع ]]>=1,"طن","") ->  | J23: =Table106[[#This Row],[صافى الوزن]]*Table106[[#This Row],[السعر]] -> 0
A24: 22 | G24: =IF(Table106[[#This Row],[المصنع ]]>=1,"طن","") ->  | J24: =Table106[[#This Row],[صافى الوزن]]*Table106[[#This Row],[السعر]] -> 0
A25: 23 | G25: =IF(Table106[[#This Row],[المصنع ]]>=1,"طن","") ->  | J25: =Table106[[#This Row],[صافى الوزن]]*Table106[[#This Row],[السعر]] -> 0
A26: 24 | G26: =IF(Table106[[#This Row],[المصنع ]]>=1,"طن","") ->  | J26: =Table106[[#This Row],[صافى الوزن]]*Table106[[#This Row],[السعر]] -> 0
A27: 25 | G27: =IF(Table106[[#This Row],[المصنع ]]>=1,"طن","") ->  | J27: =Table106[[#This Row],[صافى الوزن]]*Table106[[#This Row],[السعر]] -> 0
A28: 26 | G28: =IF(Table106[[#This Row],[المصنع ]]>=1,"طن","") ->  | J28: =Table106[[#This Row],[صافى الوزن]]*Table106[[#This Row],[السعر]] -> 0
A29: 27 | G29: =IF(Table106[[#This Row],[المصنع ]]>=1,"طن","") ->  | J29: =Table106[[#This Row],[صافى الوزن]]*Table106[[#This Row],[السعر]] -> 0
A30: 28 | G30: =IF(Table106[[#This Row],[المصنع ]]>=1,"طن","") ->  | J30: =Table106[[#This Row],[صافى الوزن]]*Table106[[#This Row],[السعر]] -> 0
A31: 29 | G31: =IF(Table106[[#This Row],[المصنع ]]>=1,"طن","") ->  | J31: =Table106[[#This Row],[صافى الوزن]]*Table106[[#This Row],[السعر]] -> 0
A32: 30 | G32: =IF(Table106[[#This Row],[المصنع ]]>=1,"طن","") ->  | J32: =Table106[[#This Row],[صافى الوزن]]*Table106[[#This Row],[السعر]] -> 0
A33: 31 | G33: =IF(Table106[[#This Row],[المصنع ]]>=1,"طن","") ->  | J33: =Table106[[#This Row],[صافى الوزن]]*Table106[[#This Row],[السعر]] -> 0
A34: 32 | G34: =IF(Table106[[#This Row],[المصنع ]]>=1,"طن","") ->  | J34: =Table106[[#This Row],[صافى الوزن]]*Table106[[#This Row],[السعر]] -> 0
A35: =ROW()-2 -> 33 | G35: =IF(Table106[[#This Row],[المصنع ]]>=1,"طن","") ->  | J35: =Table106[[#This Row],[صافى الوزن]]*Table106[[#This Row],[السعر]] -> 0
A36: 34 | G36: =IF(Table106[[#This Row],[المصنع ]]>=1,"طن","") ->  | J36: =Table106[[#This Row],[صافى الوزن]]*Table106[[#This Row],[السعر]] -> 0
A37: 35 | G37: =IF(Table106[[#This Row],[المصنع ]]>=1,"طن","") ->  | J37: =Table106[[#This Row],[صافى الوزن]]*Table106[[#This Row],[السعر]] -> 0
A38: 36 | G38: =IF(Table106[[#This Row],[المصنع ]]>=1,"طن","") ->  | J38: =Table106[[#This Row],[صافى الوزن]]*Table106[[#This Row],[السعر]] -> 0
A39: 37 | G39: =IF(Table106[[#This Row],[المصنع ]]>=1,"طن","") ->  | J39: =Table106[[#This Row],[صافى الوزن]]*Table106[[#This Row],[السعر]] -> 0
A40: 38 | G40: =IF(Table106[[#This Row],[المصنع ]]>=1,"طن","") ->  | J40: =Table106[[#This Row],[صافى الوزن]]*Table106[[#This Row],[السعر]] -> 0
A41: 39 | G41: =IF(Table106[[#This Row],[المصنع ]]>=1,"طن","") ->  | J41: =Table106[[#This Row],[صافى الوزن]]*Table106[[#This Row],[السعر]] -> 0
A42: 40 | G42: =IF(Table106[[#This Row],[المصنع ]]>=1,"طن","") ->  | J42: =Table106[[#This Row],[صافى الوزن]]*Table106[[#This Row],[السعر]] -> 0
A43: 41 | G43: =IF(Table106[[#This Row],[المصنع ]]>=1,"طن","") ->  | J43: =Table106[[#This Row],[صافى الوزن]]*Table106[[#This Row],[السعر]] -> 0
A44: 42 | G44: =IF(Table106[[#This Row],[المصنع ]]>=1,"طن","") ->  | J44: =Table106[[#This Row],[صافى الوزن]]*Table106[[#This Row],[السعر]] -> 0
A45: 43 | G45: =IF(Table106[[#This Row],[المصنع ]]>=1,"طن","") ->  | J45: =Table106[[#This Row],[صافى الوزن]]*Table106[[#This Row],[السعر]] -> 0
A46: 44 | G46: =IF(Table106[[#This Row],[المصنع ]]>=1,"طن","") ->  | J46: =Table106[[#This Row],[صافى الوزن]]*Table106[[#This Row],[السعر]] -> 0
A47: 45 | G47: =IF(Table106[[#This Row],[المصنع ]]>=1,"طن","") ->  | J47: =Table106[[#This Row],[صافى الوزن]]*Table106[[#This Row],[السعر]] -> 0
A48: 46 | G48: =IF(Table106[[#This Row],[المصنع ]]>=1,"طن","") ->  | J48: =Table106[[#This Row],[صافى الوزن]]*Table106[[#This Row],[السعر]] -> 0
A49: 47 | G49: =IF(Table106[[#This Row],[المصنع ]]>=1,"طن","") ->  | J49: =Table106[[#This Row],[صافى الوزن]]*Table106[[#This Row],[السعر]] -> 0
A50: 48 | G50: =IF(Table106[[#This Row],[المصنع ]]>=1,"طن","") ->  | J50: =Table106[[#This Row],[صافى الوزن]]*Table106[[#This Row],[السعر]] -> 0
A51: 49 | G51: =IF(Table106[[#This Row],[المصنع ]]>=1,"طن","") ->  | J51: =Table106[[#This Row],[صافى الوزن]]*Table106[[#This Row],[السعر]] -> 0
A52: 50 | G52: =IF(Table106[[#This Row],[المصنع ]]>=1,"طن","") ->  | J52: =Table106[[#This Row],[صافى الوزن]]*Table106[[#This Row],[السعر]] -> 0
A53: 51 | G53: =IF(Table106[[#This Row],[المصنع ]]>=1,"طن","") ->  | J53: =Table106[[#This Row],[صافى الوزن]]*Table106[[#This Row],[السعر]] -> 0
A54: 52 | G54: =IF(Table106[[#This Row],[المصنع ]]>=1,"طن","") ->  | J54: =Table106[[#This Row],[صافى الوزن]]*Table106[[#This Row],[السعر]] -> 0
A55: 53 | G55: =IF(Table106[[#This Row],[المصنع ]]>=1,"طن","") ->  | J55: =Table106[[#This Row],[صافى الوزن]]*Table106[[#This Row],[السعر]] -> 0
A56: 54 | G56: =IF(Table106[[#This Row],[المصنع ]]>=1,"طن","") ->  | J56: =Table106[[#This Row],[صافى الوزن]]*Table106[[#This Row],[السعر]] -> 0
A57: 55 | G57: =IF(Table106[[#This Row],[المصنع ]]>=1,"طن","") ->  | J57: =Table106[[#This Row],[صافى الوزن]]*Table106[[#This Row],[السعر]] -> 0
A58: 56 | G58: =IF(Table106[[#This Row],[المصنع ]]>=1,"طن","") ->  | J58: =Table106[[#This Row],[صافى الوزن]]*Table106[[#This Row],[السعر]] -> 0
A59: 57 | G59: =IF(Table106[[#This Row],[المصنع ]]>=1,"طن","") ->  | J59: =Table106[[#This Row],[صافى الوزن]]*Table106[[#This Row],[السعر]] -> 0
A60: 58 | G60: =IF(Table106[[#This Row],[المصنع ]]>=1,"طن","") ->  | J60: =Table106[[#This Row],[صافى الوزن]]*Table106[[#This Row],[السعر]] -> 0
A61: 59 | G61: =IF(Table106[[#This Row],[المصنع ]]>=1,"طن","") ->  | J61: =Table106[[#This Row],[صافى الوزن]]*Table106[[#This Row],[السعر]] -> 0
A62: 60 | G62: =IF(Table106[[#This Row],[المصنع ]]>=1,"طن","") ->  | J62: =Table106[[#This Row],[صافى الوزن]]*Table106[[#This Row],[السعر]] -> 0
A63: 61 | G63: =IF(Table106[[#This Row],[المصنع ]]>=1,"طن","") ->  | J63: =Table106[[#This Row],[صافى الوزن]]*Table106[[#This Row],[السعر]] -> 0
A64: 62 | G64: =IF(Table106[[#This Row],[المصنع ]]>=1,"طن","") ->  | J64: =Table106[[#This Row],[صافى الوزن]]*Table106[[#This Row],[السعر]] -> 0
A65: 63 | G65: =IF(Table106[[#This Row],[المصنع ]]>=1,"طن","") ->  | J65: =Table106[[#This Row],[صافى الوزن]]*Table106[[#This Row],[السعر]] -> 0
A66: 64 | G66: =IF(Table106[[#This Row],[المصنع ]]>=1,"طن","") ->  | J66: =Table106[[#This Row],[صافى الوزن]]*Table106[[#This Row],[السعر]] -> 0
A67: =ROW()-2 -> 65 | G67: =IF(Table106[[#This Row],[المصنع ]]>=1,"طن","") ->  | J67: =Table106[[#This Row],[صافى الوزن]]*Table106[[#This Row],[السعر]] -> 0
A68: 66 | G68: =IF(Table106[[#This Row],[المصنع ]]>=1,"طن","") ->  | J68: =Table106[[#This Row],[صافى الوزن]]*Table106[[#This Row],[السعر]] -> 0
A69: 67 | G69: =IF(Table106[[#This Row],[المصنع ]]>=1,"طن","") ->  | J69: =Table106[[#This Row],[صافى الوزن]]*Table106[[#This Row],[السعر]] -> 0
A70: 68 | G70: =IF(Table106[[#This Row],[المصنع ]]>=1,"طن","") ->  | J70: =Table106[[#This Row],[صافى الوزن]]*Table106[[#This Row],[السعر]] -> 0
A71: 69 | G71: =IF(Table106[[#This Row],[المصنع ]]>=1,"طن","") ->  | J71: =Table106[[#This Row],[صافى الوزن]]*Table106[[#This Row],[السعر]] -> 0
A72: 70 | G72: =IF(Table106[[#This Row],[المصنع ]]>=1,"طن","") ->  | J72: =Table106[[#This Row],[صافى الوزن]]*Table106[[#This Row],[السعر]] -> 0
A73: 71 | G73: =IF(Table106[[#This Row],[المصنع ]]>=1,"طن","") ->  | J73: =Table106[[#This Row],[صافى الوزن]]*Table106[[#This Row],[السعر]] -> 0
A74: 72 | G74: =IF(Table106[[#This Row],[المصنع ]]>=1,"طن","") ->  | J74: =Table106[[#This Row],[صافى الوزن]]*Table106[[#This Row],[السعر]] -> 0
A75: 73 | G75: =IF(Table106[[#This Row],[المصنع ]]>=1,"طن","") ->  | J75: =Table106[[#This Row],[صافى الوزن]]*Table106[[#This Row],[السعر]] -> 0
A76: 74 | G76: =IF(Table106[[#This Row],[المصنع ]]>=1,"طن","") ->  | J76: =Table106[[#This Row],[صافى الوزن]]*Table106[[#This Row],[السعر]] -> 0
A77: 75 | G77: =IF(Table106[[#This Row],[المصنع ]]>=1,"طن","") ->  | J77: =Table106[[#This Row],[صافى الوزن]]*Table106[[#This Row],[السعر]] -> 0
A78: 76 | G78: =IF(Table106[[#This Row],[المصنع ]]>=1,"طن","") ->  | J78: =Table106[[#This Row],[صافى الوزن]]*Table106[[#This Row],[السعر]] -> 0
A79: 77 | G79: =IF(Table106[[#This Row],[المصنع ]]>=1,"طن","") ->  | J79: =Table106[[#This Row],[صافى الوزن]]*Table106[[#This Row],[السعر]] -> 0
A80: 78 | G80: =IF(Table106[[#This Row],[المصنع ]]>=1,"طن","") ->  | J80: =Table106[[#This Row],[صافى الوزن]]*Table106[[#This Row],[السعر]] -> 0
A81: 79 | G81: =IF(Table106[[#This Row],[المصنع ]]>=1,"طن","") ->  | J81: =Table106[[#This Row],[صافى الوزن]]*Table106[[#This Row],[السعر]] -> 0
A82: 80 | G82: =IF(Table106[[#This Row],[المصنع ]]>=1,"طن","") ->  | J82: =Table106[[#This Row],[صافى الوزن]]*Table106[[#This Row],[السعر]] -> 0
A83: 81 | G83: =IF(Table106[[#This Row],[المصنع ]]>=1,"طن","") ->  | J83: =Table106[[#This Row],[صافى الوزن]]*Table106[[#This Row],[السعر]] -> 0
A84: 82 | G84: =IF(Table106[[#This Row],[المصنع ]]>=1,"طن","") ->  | J84: =Table106[[#This Row],[صافى الوزن]]*Table106[[#This Row],[السعر]] -> 0
A85: 83 | G85: =IF(Table106[[#This Row],[المصنع ]]>=1,"طن","") ->  | J85: =Table106[[#This Row],[صافى الوزن]]*Table106[[#This Row],[السعر]] -> 0
A86: 84 | G86: =IF(Table106[[#This Row],[المصنع ]]>=1,"طن","") ->  | J86: =Table106[[#This Row],[صافى الوزن]]*Table106[[#This Row],[السعر]] -> 0
A87: 85 | G87: =IF(Table106[[#This Row],[المصنع ]]>=1,"طن","") ->  | J87: =Table106[[#This Row],[صافى الوزن]]*Table106[[#This Row],[السعر]] -> 0
A88: 86 | G88: =IF(Table106[[#This Row],[المصنع ]]>=1,"طن","") ->  | J88: =Table106[[#This Row],[صافى الوزن]]*Table106[[#This Row],[السعر]] -> 0
A89: 87 | G89: =IF(Table106[[#This Row],[المصنع ]]>=1,"طن","") ->  | J89: =Table106[[#This Row],[صافى الوزن]]*Table106[[#This Row],[السعر]] -> 0
A90: 88 | G90: =IF(Table106[[#This Row],[المصنع ]]>=1,"طن","") ->  | J90: =Table106[[#This Row],[صافى الوزن]]*Table106[[#This Row],[السعر]] -> 0
A91: 89 | G91: =IF(Table106[[#This Row],[المصنع ]]>=1,"طن","") ->  | J91: =Table106[[#This Row],[صافى الوزن]]*Table106[[#This Row],[السعر]] -> 0
A92: 90 | G92: =IF(Table106[[#This Row],[المصنع ]]>=1,"طن","") ->  | J92: =Table106[[#This Row],[صافى الوزن]]*Table106[[#This Row],[السعر]] -> 0
A93: 91 | G93: =IF(Table106[[#This Row],[المصنع ]]>=1,"طن","") ->  | J93: =Table106[[#This Row],[صافى الوزن]]*Table106[[#This Row],[السعر]] -> 0
A94: 92 | G94: =IF(Table106[[#This Row],[المصنع ]]>=1,"طن","") ->  | J94: =Table106[[#This Row],[صافى الوزن]]*Table106[[#This Row],[السعر]] -> 0
A95: 93 | G95: =IF(Table106[[#This Row],[المصنع ]]>=1,"طن","") ->  | J95: =Table106[[#This Row],[صافى الوزن]]*Table106[[#This Row],[السعر]] -> 0
A96: 94 | G96: =IF(Table106[[#This Row],[المصنع ]]>=1,"طن","") ->  | J96: =Table106[[#This Row],[صافى الوزن]]*Table106[[#This Row],[السعر]] -> 0
A97: 95 | G97: =IF(Table106[[#This Row],[المصنع ]]>=1,"طن","") ->  | J97: =Table106[[#This Row],[صافى الوزن]]*Table106[[#This Row],[السعر]] -> 0
A98: 96 | G98: =IF(Table106[[#This Row],[المصنع ]]>=1,"طن","") ->  | J98: =Table106[[#This Row],[صافى الوزن]]*Table106[[#This Row],[السعر]] -> 0
A99: 97 | G99: =IF(Table106[[#This Row],[المصنع ]]>=1,"طن","") ->  | J99: =Table106[[#This Row],[صافى الوزن]]*Table106[[#This Row],[السعر]] -> 0
A100: 98 | G100: =IF(Table106[[#This Row],[المصنع ]]>=1,"طن","") ->  | J100: =Table106[[#This Row],[صافى الوزن]]*Table106[[#This Row],[السعر]] -> 0
A101: 99 | G101: =IF(Table106[[#This Row],[المصنع ]]>=1,"طن","") ->  | J101: =Table106[[#This Row],[صافى الوزن]]*Table106[[#This Row],[السعر]] -> 0
A102: 100 | G102: =IF(Table106[[#This Row],[المصنع ]]>=1,"طن","") ->  | J102: =Table106[[#This Row],[صافى الوزن]]*Table106[[#This Row],[السعر]] -> 0
A103: 101 | G103: =IF(Table106[[#This Row],[المصنع ]]>=1,"طن","") ->  | J103: =Table106[[#This Row],[صافى الوزن]]*Table106[[#This Row],[السعر]] -> 0
A104: 102 | G104: =IF(Table106[[#This Row],[المصنع ]]>=1,"طن","") ->  | J104: =Table106[[#This Row],[صافى الوزن]]*Table106[[#This Row],[السعر]] -> 0
A105: 103 | G105: =IF(Table106[[#This Row],[المصنع ]]>=1,"طن","") ->  | J105: =Table106[[#This Row],[صافى الوزن]]*Table106[[#This Row],[السعر]] -> 0
A106: 104 | G106: =IF(Table106[[#This Row],[المصنع ]]>=1,"طن","") ->  | J106: =Table106[[#This Row],[صافى الوزن]]*Table106[[#This Row],[السعر]] -> 0
A107: 105 | G107: =IF(Table106[[#This Row],[المصنع ]]>=1,"طن","") ->  | J107: =Table106[[#This Row],[صافى الوزن]]*Table106[[#This Row],[السعر]] -> 0
A108: 106 | G108: =IF(Table106[[#This Row],[المصنع ]]>=1,"طن","") ->  | J108: =Table106[[#This Row],[صافى الوزن]]*Table106[[#This Row],[السعر]] -> 0
A109: 107 | G109: =IF(Table106[[#This Row],[المصنع ]]>=1,"طن","") ->  | J109: =Table106[[#This Row],[صافى الوزن]]*Table106[[#This Row],[السعر]] -> 0
A110: 108 | G110: =IF(Table106[[#This Row],[المصنع ]]>=1,"طن","") ->  | J110: =Table106[[#This Row],[صافى الوزن]]*Table106[[#This Row],[السعر]] -> 0
A111: 109 | G111: =IF(Table106[[#This Row],[المصنع ]]>=1,"طن","") ->  | J111: =Table106[[#This Row],[صافى الوزن]]*Table106[[#This Row],[السعر]] -> 0
A112: 110 | G112: =IF(Table106[[#This Row],[المصنع ]]>=1,"طن","") ->  | J112: =Table106[[#This Row],[صافى الوزن]]*Table106[[#This Row],[السعر]] -> 0
A113: 111 | G113: =IF(Table106[[#This Row],[المصنع ]]>=1,"طن","") ->  | J113: =Table106[[#This Row],[صافى الوزن]]*Table106[[#This Row],[السعر]] -> 0
A114: 112 | G114: =IF(Table106[[#This Row],[المصنع ]]>=1,"طن","") ->  | J114: =Table106[[#This Row],[صافى الوزن]]*Table106[[#This Row],[السعر]] -> 0
A115: 113 | G115: =IF(Table106[[#This Row],[المصنع ]]>=1,"طن","") ->  | J115: =Table106[[#This Row],[صافى الوزن]]*Table106[[#This Row],[السعر]] -> 0
A116: 114 | G116: =IF(Table106[[#This Row],[المصنع ]]>=1,"طن","") ->  | J116: =Table106[[#This Row],[صافى الوزن]]*Table106[[#This Row],[السعر]] -> 0
A117: 115 | G117: =IF(Table106[[#This Row],[المصنع ]]>=1,"طن","") ->  | J117: =Table106[[#This Row],[صافى الوزن]]*Table106[[#This Row],[السعر]] -> 0
A118: 116 | G118: =IF(Table106[[#This Row],[المصنع ]]>=1,"طن","") ->  | J118: =Table106[[#This Row],[صافى الوزن]]*Table106[[#This Row],[السعر]] -> 0
A119: 117 | G119: =IF(Table106[[#This Row],[المصنع ]]>=1,"طن","") ->  | J119: =Table106[[#This Row],[صافى الوزن]]*Table106[[#This Row],[السعر]] -> 0
A120: 118 | G120: =IF(Table106[[#This Row],[المصنع ]]>=1,"طن","") ->  | J120: =Table106[[#This Row],[صافى الوزن]]*Table106[[#This Row],[السعر]] -> 0
A121: 119 | G121: =IF(Table106[[#This Row],[المصنع ]]>=1,"طن","") ->  | J121: =Table106[[#This Row],[صافى الوزن]]*Table106[[#This Row],[السعر]] -> 0
A122: 120 | G122: =IF(Table106[[#This Row],[المصنع ]]>=1,"طن","") ->  | J122: =Table106[[#This Row],[صافى الوزن]]*Table106[[#This Row],[السعر]] -> 0
A123: 121 | G123: =IF(Table106[[#This Row],[المصنع ]]>=1,"طن","") ->  | J123: =Table106[[#This Row],[صافى الوزن]]*Table106[[#This Row],[السعر]] -> 0
A124: 122 | G124: =IF(Table106[[#This Row],[المصنع ]]>=1,"طن","") ->  | J124: =Table106[[#This Row],[صافى الوزن]]*Table106[[#This Row],[السعر]] -> 0
A125: 123 | G125: =IF(Table106[[#This Row],[المصنع ]]>=1,"طن","") ->  | J125: =Table106[[#This Row],[صافى الوزن]]*Table106[[#This Row],[السعر]] -> 0
A126: 124 | G126: =IF(Table106[[#This Row],[المصنع ]]>=1,"طن","") ->  | J126: =Table106[[#This Row],[صافى الوزن]]*Table106[[#This Row],[السعر]] -> 0
A127: 125 | G127: =IF(Table106[[#This Row],[المصنع ]]>=1,"طن","") ->  | J127: =Table106[[#This Row],[صافى الوزن]]*Table106[[#This Row],[السعر]] -> 0
A128: 126 | G128: =IF(Table106[[#This Row],[المصنع ]]>=1,"طن","") ->  | J128: =Table106[[#This Row],[صافى الوزن]]*Table106[[#This Row],[السعر]] -> 0
A129: 127 | G129: =IF(Table106[[#This Row],[المصنع ]]>=1,"طن","") ->  | J129: =Table106[[#This Row],[صافى الوزن]]*Table106[[#This Row],[السعر]] -> 0
A130: 128 | G130: =IF(Table106[[#This Row],[المصنع ]]>=1,"طن","") ->  | J130: =Table106[[#This Row],[صافى الوزن]]*Table106[[#This Row],[السعر]] -> 0
A131: =ROW()-2 -> 129 | G131: =IF(Table106[[#This Row],[المصنع ]]>=1,"طن","") ->  | J131: =Table106[[#This Row],[صافى الوزن]]*Table106[[#This Row],[السعر]] -> 0
A132: 130 | G132: =IF(Table106[[#This Row],[المصنع ]]>=1,"طن","") ->  | J132: =Table106[[#This Row],[صافى الوزن]]*Table106[[#This Row],[السعر]] -> 0
A133: 131 | G133: =IF(Table106[[#This Row],[المصنع ]]>=1,"طن","") ->  | J133: =Table106[[#This Row],[صافى الوزن]]*Table106[[#This Row],[السعر]] -> 0
A134: 132 | G134: =IF(Table106[[#This Row],[المصنع ]]>=1,"طن","") ->  | J134: =Table106[[#This Row],[صافى الوزن]]*Table106[[#This Row],[السعر]] -> 0
A135: 133 | G135: =IF(Table106[[#This Row],[المصنع ]]>=1,"طن","") ->  | J135: =Table106[[#This Row],[صافى الوزن]]*Table106[[#This Row],[السعر]] -> 0
A136: 134 | G136: =IF(Table106[[#This Row],[المصنع ]]>=1,"طن","") ->  | J136: =Table106[[#This Row],[صافى الوزن]]*Table106[[#This Row],[السعر]] -> 0
A137: 135 | G137: =IF(Table106[[#This Row],[المصنع ]]>=1,"طن","") ->  | J137: =Table106[[#This Row],[صافى الوزن]]*Table106[[#This Row],[السعر]] -> 0
A138: 136 | G138: =IF(Table106[[#This Row],[المصنع ]]>=1,"طن","") ->  | J138: =Table106[[#This Row],[صافى الوزن]]*Table106[[#This Row],[السعر]] -> 0
A139: 137 | G139: =IF(Table106[[#This Row],[المصنع ]]>=1,"طن","") ->  | J139: =Table106[[#This Row],[صافى الوزن]]*Table106[[#This Row],[السعر]] -> 0
A140: 138 | G140: =IF(Table106[[#This Row],[المصنع ]]>=1,"طن","") ->  | J140: =Table106[[#This Row],[صافى الوزن]]*Table106[[#This Row],[السعر]] -> 0
A141: 139 | G141: =IF(Table106[[#This Row],[المصنع ]]>=1,"طن","") ->  | J141: =Table106[[#This Row],[صافى الوزن]]*Table106[[#This Row],[السعر]] -> 0
A142: 140 | G142: =IF(Table106[[#This Row],[المصنع ]]>=1,"طن","") ->  | J142: =Table106[[#This Row],[صافى الوزن]]*Table106[[#This Row],[السعر]] -> 0
A143: 141 | G143: =IF(Table106[[#This Row],[المصنع ]]>=1,"طن","") ->  | J143: =Table106[[#This Row],[صافى الوزن]]*Table106[[#This Row],[السعر]] -> 0
A144: 142 | G144: =IF(Table106[[#This Row],[المصنع ]]>=1,"طن","") ->  | J144: =Table106[[#This Row],[صافى الوزن]]*Table106[[#This Row],[السعر]] -> 0
A145: 143 | G145: =IF(Table106[[#This Row],[المصنع ]]>=1,"طن","") ->  | J145: =Table106[[#This Row],[صافى الوزن]]*Table106[[#This Row],[السعر]] -> 0
A146: 144 | G146: =IF(Table106[[#This Row],[المصنع ]]>=1,"طن","") ->  | J146: =Table106[[#This Row],[صافى الوزن]]*Table106[[#This Row],[السعر]] -> 0
A147: 145 | G147: =IF(Table106[[#This Row],[المصنع ]]>=1,"طن","") ->  | J147: =Table106[[#This Row],[صافى الوزن]]*Table106[[#This Row],[السعر]] -> 0
A148: 146 | G148: =IF(Table106[[#This Row],[المصنع ]]>=1,"طن","") ->  | J148: =Table106[[#This Row],[صافى الوزن]]*Table106[[#This Row],[السعر]] -> 0
A149: 147 | G149: =IF(Table106[[#This Row],[المصنع ]]>=1,"طن","") ->  | J149: =Table106[[#This Row],[صافى الوزن]]*Table106[[#This Row],[السعر]] -> 0
A150: 148 | G150: =IF(Table106[[#This Row],[المصنع ]]>=1,"طن","") ->  | J150: =Table106[[#This Row],[صافى الوزن]]*Table106[[#This Row],[السعر]] -> 0
A151: 149 | G151: =IF(Table106[[#This Row],[المصنع ]]>=1,"طن","") ->  | J151: =Table106[[#This Row],[صافى الوزن]]*Table106[[#This Row],[السعر]] -> 0
A152: 150 | G152: =IF(Table106[[#This Row],[المصنع ]]>=1,"طن","") ->  | J152: =Table106[[#This Row],[صافى الوزن]]*Table106[[#This Row],[السعر]] -> 0
A153: 151 | G153: =IF(Table106[[#This Row],[المصنع ]]>=1,"طن","") ->  | J153: =Table106[[#This Row],[صافى الوزن]]*Table106[[#This Row],[السعر]] -> 0
A154: 152 | G154: =IF(Table106[[#This Row],[المصنع ]]>=1,"طن","") ->  | J154: =Table106[[#This Row],[صافى الوزن]]*Table106[[#This Row],[السعر]] -> 0
A155: 153 | G155: =IF(Table106[[#This Row],[المصنع ]]>=1,"طن","") ->  | J155: =Table106[[#This Row],[صافى الوزن]]*Table106[[#This Row],[السعر]] -> 0
A156: 154 | G156: =IF(Table106[[#This Row],[المصنع ]]>=1,"طن","") ->  | J156: =Table106[[#This Row],[صافى الوزن]]*Table106[[#This Row],[السعر]] -> 0
A157: 155 | G157: =IF(Table106[[#This Row],[المصنع ]]>=1,"طن","") ->  | J157: =Table106[[#This Row],[صافى الوزن]]*Table106[[#This Row],[السعر]] -> 0
A158: 156 | G158: =IF(Table106[[#This Row],[المصنع ]]>=1,"طن","") ->  | J158: =Table106[[#This Row],[صافى الوزن]]*Table106[[#This Row],[السعر]] -> 0
A159: 157 | G159: =IF(Table106[[#This Row],[المصنع ]]>=1,"طن","") ->  | J159: =Table106[[#This Row],[صافى الوزن]]*Table106[[#This Row],[السعر]] -> 0
A160: 158 | G160: =IF(Table106[[#This Row],[المصنع ]]>=1,"طن","") ->  | J160: =Table106[[#This Row],[صافى الوزن]]*Table106[[#This Row],[السعر]] -> 0
A161: 159 | G161: =IF(Table106[[#This Row],[المصنع ]]>=1,"طن","") ->  | J161: =Table106[[#This Row],[صافى الوزن]]*Table106[[#This Row],[السعر]] -> 0
A162: 160 | G162: =IF(Table106[[#This Row],[المصنع ]]>=1,"طن","") ->  | J162: =Table106[[#This Row],[صافى الوزن]]*Table106[[#This Row],[السعر]] -> 0
A163: 161 | G163: =IF(Table106[[#This Row],[المصنع ]]>=1,"طن","") ->  | J163: =Table106[[#This Row],[صافى الوزن]]*Table106[[#This Row],[السعر]] -> 0
A164: 162 | G164: =IF(Table106[[#This Row],[المصنع ]]>=1,"طن","") ->  | J164: =Table106[[#This Row],[صافى الوزن]]*Table106[[#This Row],[السعر]] -> 0
A165: 163 | G165: =IF(Table106[[#This Row],[المصنع ]]>=1,"طن","") ->  | J165: =Table106[[#This Row],[صافى الوزن]]*Table106[[#This Row],[السعر]] -> 0
A166: 164 | G166: =IF(Table106[[#This Row],[المصنع ]]>=1,"طن","") ->  | J166: =Table106[[#This Row],[صافى الوزن]]*Table106[[#This Row],[السعر]] -> 0
A167: 165 | G167: =IF(Table106[[#This Row],[المصنع ]]>=1,"طن","") ->  | J167: =Table106[[#This Row],[صافى الوزن]]*Table106[[#This Row],[السعر]] -> 0
A168: 166 | G168: =IF(Table106[[#This Row],[المصنع ]]>=1,"طن","") ->  | J168: =Table106[[#This Row],[صافى الوزن]]*Table106[[#This Row],[السعر]] -> 0
A169: 167 | G169: =IF(Table106[[#This Row],[المصنع ]]>=1,"طن","") ->  | J169: =Table106[[#This Row],[صافى الوزن]]*Table106[[#This Row],[السعر]] -> 0
A170: 168 | G170: =IF(Table106[[#This Row],[المصنع ]]>=1,"طن","") ->  | J170: =Table106[[#This Row],[صافى الوزن]]*Table106[[#This Row],[السعر]] -> 0
A171: 169 | G171: =IF(Table106[[#This Row],[المصنع ]]>=1,"طن","") ->  | J171: =Table106[[#This Row],[صافى الوزن]]*Table106[[#This Row],[السعر]] -> 0
A172: 170 | G172: =IF(Table106[[#This Row],[المصنع ]]>=1,"طن","") ->  | J172: =Table106[[#This Row],[صافى الوزن]]*Table106[[#This Row],[السعر]] -> 0
A173: 171 | G173: =IF(Table106[[#This Row],[المصنع ]]>=1,"طن","") ->  | J173: =Table106[[#This Row],[صافى الوزن]]*Table106[[#This Row],[السعر]] -> 0
A174: 172 | G174: =IF(Table106[[#This Row],[المصنع ]]>=1,"طن","") ->  | J174: =Table106[[#This Row],[صافى الوزن]]*Table106[[#This Row],[السعر]] -> 0
A175: 173 | G175: =IF(Table106[[#This Row],[المصنع ]]>=1,"طن","") ->  | J175: =Table106[[#This Row],[صافى الوزن]]*Table106[[#This Row],[السعر]] -> 0
A176: 174 | G176: =IF(Table106[[#This Row],[المصنع ]]>=1,"طن","") ->  | J176: =Table106[[#This Row],[صافى الوزن]]*Table106[[#This Row],[السعر]] -> 0
A177: 175 | G177: =IF(Table106[[#This Row],[المصنع ]]>=1,"طن","") ->  | J177: =Table106[[#This Row],[صافى الوزن]]*Table106[[#This Row],[السعر]] -> 0
A178: 176 | G178: =IF(Table106[[#This Row],[المصنع ]]>=1,"طن","") ->  | J178: =Table106[[#This Row],[صافى الوزن]]*Table106[[#This Row],[السعر]] -> 0
A179: 177 | G179: =IF(Table106[[#This Row],[المصنع ]]>=1,"طن","") ->  | J179: =Table106[[#This Row],[صافى الوزن]]*Table106[[#This Row],[السعر]] -> 0
A180: 178 | G180: =IF(Table106[[#This Row],[المصنع ]]>=1,"طن","") ->  | J180: =Table106[[#This Row],[صافى الوزن]]*Table106[[#This Row],[السعر]] -> 0
A181: 179 | G181: =IF(Table106[[#This Row],[المصنع ]]>=1,"طن","") ->  | J181: =Table106[[#This Row],[صافى الوزن]]*Table106[[#This Row],[السعر]] -> 0
A182: 180 | G182: =IF(Table106[[#This Row],[المصنع ]]>=1,"طن","") ->  | J182: =Table106[[#This Row],[صافى الوزن]]*Table106[[#This Row],[السعر]] -> 0
A183: 181 | G183: =IF(Table106[[#This Row],[المصنع ]]>=1,"طن","") ->  | J183: =Table106[[#This Row],[صافى الوزن]]*Table106[[#This Row],[السعر]] -> 0
A184: 182 | G184: =IF(Table106[[#This Row],[المصنع ]]>=1,"طن","") ->  | J184: =Table106[[#This Row],[صافى الوزن]]*Table106[[#This Row],[السعر]] -> 0
A185: 183 | G185: =IF(Table106[[#This Row],[المصنع ]]>=1,"طن","") ->  | J185: =Table106[[#This Row],[صافى الوزن]]*Table106[[#This Row],[السعر]] -> 0
A186: 184 | G186: =IF(Table106[[#This Row],[المصنع ]]>=1,"طن","") ->  | J186: =Table106[[#This Row],[صافى الوزن]]*Table106[[#This Row],[السعر]] -> 0
A187: 185 | G187: =IF(Table106[[#This Row],[المصنع ]]>=1,"طن","") ->  | J187: =Table106[[#This Row],[صافى الوزن]]*Table106[[#This Row],[السعر]] -> 0
A188: 186 | G188: =IF(Table106[[#This Row],[المصنع ]]>=1,"طن","") ->  | J188: =Table106[[#This Row],[صافى الوزن]]*Table106[[#This Row],[السعر]] -> 0
A189: 187 | G189: =IF(Table106[[#This Row],[المصنع ]]>=1,"طن","") ->  | J189: =Table106[[#This Row],[صافى الوزن]]*Table106[[#This Row],[السعر]] -> 0
A190: 188 | G190: =IF(Table106[[#This Row],[المصنع ]]>=1,"طن","") ->  | J190: =Table106[[#This Row],[صافى الوزن]]*Table106[[#This Row],[السعر]] -> 0
A191: 189 | G191: =IF(Table106[[#This Row],[المصنع ]]>=1,"طن","") ->  | J191: =Table106[[#This Row],[صافى الوزن]]*Table106[[#This Row],[السعر]] -> 0
A192: 190 | G192: =IF(Table106[[#This Row],[المصنع ]]>=1,"طن","") ->  | J192: =Table106[[#This Row],[صافى الوزن]]*Table106[[#This Row],[السعر]] -> 0
A193: 191 | G193: =IF(Table106[[#This Row],[المصنع ]]>=1,"طن","") ->  | J193: =Table106[[#This Row],[صافى الوزن]]*Table106[[#This Row],[السعر]] -> 0
A194: 192 | G194: =IF(Table106[[#This Row],[المصنع ]]>=1,"طن","") ->  | J194: =Table106[[#This Row],[صافى الوزن]]*Table106[[#This Row],[السعر]] -> 0
A195: =ROW()-2 -> 193 | G195: =IF(Table106[[#This Row],[المصنع ]]>=1,"طن","") ->  | J195: =Table106[[#This Row],[صافى الوزن]]*Table106[[#This Row],[السعر]] -> 0
A196: 194 | G196: =IF(Table106[[#This Row],[المصنع ]]>=1,"طن","") ->  | J196: =Table106[[#This Row],[صافى الوزن]]*Table106[[#This Row],[السعر]] -> 0
A197: 195 | G197: =IF(Table106[[#This Row],[المصنع ]]>=1,"طن","") ->  | J197: =Table106[[#This Row],[صافى الوزن]]*Table106[[#This Row],[السعر]] -> 0
A198: 196 | G198: =IF(Table106[[#This Row],[المصنع ]]>=1,"طن","") ->  | J198: =Table106[[#This Row],[صافى الوزن]]*Table106[[#This Row],[السعر]] -> 0
A199: 197 | G199: =IF(Table106[[#This Row],[المصنع ]]>=1,"طن","") ->  | J199: =Table106[[#This Row],[صافى الوزن]]*Table106[[#This Row],[السعر]] -> 0
A200: 198 | G200: =IF(Table106[[#This Row],[المصنع ]]>=1,"طن","") ->  | J200: =Table106[[#This Row],[صافى الوزن]]*Table106[[#This Row],[السعر]] -> 0
... 811 more rows

Sheet الاسمنت السايب (hidden)
A1: الاجمالى | G1: =IF($H$1>=1,"رصيد المحطة دائن",IF($H$1<=-1,"رصيد المحطة مدين","الرصيد صفر")) -> رصيد المحطة دائن | H1: =SUMIF(Table9[اسم المحطة],$L$1,Table9[الرصيد بالطن]) -> 285.54 | I1: =SUBTOTAL(9,Table10[صافى الوزن]) -> 6093.89 | L1: الشركة الهندسية للمشروعات | M1: 2022-07-01 | N1: 2023-06-30 | O1: فارغة | P1: التاريخ | Q1: التاريخ | R1: =Table10[[#Headers],[محطة الأستلام]] -> محطة الأستلام
A2: م | B2: التاريخ | C2: المصنع | D2: رقم البوليصة | E2: رقم البون | F2: اذن التحميل | G2: محطة الأستلام | H2: الوحدة | I2: صافى الوزن | J2: السعر | K2: القيمه | L2: الرصيد بالطن | M2: الموقف | N2: ملاحظات | P2: =">="&$M$1 -> >=44743 | Q2: ="<="&$N$1 -> <=45107 | R2: =$L$1 -> الشركة الهندسية للمشروعات
A3: =ROW()-2 -> 1 | B3: 2022-08-30 | C3: مصنع السويس | E3: 1002819778 | F3: 1003104418 | G3: الشركة الهندسية للمشروعات | H3: =IFERROR(VLOOKUP(G3,Table9[[اسم المحطة]:[الوحدة]],2,FALSE),"") -> طن | I3: 63.82 | K3: =IF(Table10[[#This Row],[صافى الوزن]]>=1,Table10[[#This Row],[صافى الوزن]]*Table10[[#This Row],[السعر]],0) -> 0 | L3: =SUMIF(Table9[اسم المحطة],Table10[[#This Row],[محطة الأستلام]],Table9[الاسمنت المستخدم بالطن])-SUMIF($G$3:G3,Table10[[#This Row],[محطة الأستلام]],$I$3:I3) -> 4206.32 | M3: =IF(Table10[[#This Row],[الرصيد بالطن]]=0,"0",IF(Table10[[#This Row],[الرصيد بالطن]]>=1,"دائن",IF(Table10[[#This Row],[الرصيد بالطن]]<=-1,"مدين"))) -> دائن | N3: رتبة 42.5
A4: 2 | B4: 2022-08-30 | C4: مصنع السويس | E4: 1002819801 | F4: 1003104316 | G4: الشركة الهندسية للمشروعات | H4: =IFERROR(VLOOKUP(G4,Table9[[اسم المحطة]:[الوحدة]],2,FALSE),"") -> طن | I4: 64.52 | K4: =IF(Table10[[#This Row],[صافى الوزن]]>=1,Table10[[#This Row],[صافى الوزن]]*Table10[[#This Row],[السعر]],0) -> 0 | L4: =SUMIF(Table9[اسم المحطة],Table10[[#This Row],[محطة الأستلام]],Table9[الاسمنت المستخدم بالطن])-SUMIF($G$3:G4,Table10[[#This Row],[محطة الأستلام]],$I$3:I4) -> 4141.8 | M4: =IF(Table10[[#This Row],[الرصيد بالطن]]=0,"0",IF(Table10[[#This Row],[الرصيد بالطن]]>=1,"دائن",IF(Table10[[#This Row],[الرصيد بالطن]]<=-1,"مدين"))) -> دائن | N4: رتبة 42.5
A5: 3 | B5: 2022-09-03 | C5: مصنع السويس | E5: 1002819754 | F5: 1003106434 | G5: ابكس للخرسانة الجاهزة | H5: =IFERROR(VLOOKUP(G5,Table9[[اسم المحطة]:[الوحدة]],2,FALSE),"") -> طن | I5: 62.36 | K5: =IF(Table10[[#This Row],[صافى الوزن]]>=1,Table10[[#This Row],[صافى الوزن]]*Table10[[#This Row],[السعر]],0) -> 0 | L5: =SUMIF(Table9[اسم المحطة],Table10[[#This Row],[محطة الأستلام]],Table9[الاسمنت المستخدم بالطن])-SUMIF($G$3:G5,Table10[[#This Row],[محطة الأستلام]],$I$3:I5) -> 159.57 | M5: =IF(Table10[[#This Row],[الرصيد بالطن]]=0,"0",IF(Table10[[#This Row],[الرصيد بالطن]]>=1,"دائن",IF(Table10[[#This Row],[الرصيد بالطن]]<=-1,"مدين"))) -> دائن | N5: رتبة 42.5
A6: 4 | B6: 2022-09-03 | C6: مصنع السويس | E6: 1002819749 | F6: 1003106422 | G6: ابكس للخرسانة الجاهزة | H6: =IFERROR(VLOOKUP(G6,Table9[[اسم المحطة]:[الوحدة]],2,FALSE),"") -> طن | I6: 64.28 | K6: =IF(Table10[[#This Row],[صافى الوزن]]>=1,Table10[[#This Row],[صافى الوزن]]*Table10[[#This Row],[السعر]],0) -> 0 | L6: =SUMIF(Table9[اسم المحطة],Table10[[#This Row],[محطة الأستلام]],Table9[الاسمنت المستخدم بالطن])-SUMIF($G$3:G6,Table10[[#This Row],[محطة الأستلام]],$I$3:I6) -> 95.29 | M6: =IF(Table10[[#This Row],[الرصيد بالطن]]=0,"0",IF(Table10[[#This Row],[الرصيد بالطن]]>=1,"دائن",IF(Table10[[#This Row],[الرصيد بالطن]]<=-1,"مدين"))) -> دائن | N6: رتبة 42.5
A7: 5 | B7: 2022-09-18 | C7: مصنع حلوان | E7: 3001839516 | F7: 3001848847 | G7: الشركة الهندسية للمشروعات | H7: =IFERROR(VLOOKUP(G7,Table9[[اسم المحطة]:[الوحدة]],2,FALSE),"") -> طن | I7: 60.58 | K7: =IF(Table10[[#This Row],[صافى الوزن]]>=1,Table10[[#This Row],[صافى الوزن]]*Table10[[#This Row],[السعر]],0) -> 0 | L7: =SUMIF(Table9[اسم المحطة],Table10[[#This Row],[محطة الأستلام]],Table9[الاسمنت المستخدم بالطن])-SUMIF($G$3:G7,Table10[[#This Row],[محطة الأستلام]],$I$3:I7) -> 4081.22 | M7: =IF(Table10[[#This Row],[الرصيد بالطن]]=0,"0",IF(Table10[[#This Row],[الرصيد بالطن]]>=1,"دائن",IF(Table10[[#This Row],[الرصيد بالطن]]<=-1,"مدين"))) -> دائن | N7: رتبة 42.5
A8: 6 | B8: 2022-09-18 | C8: مصنع حلوان | E8: 3001839546 | F8: 3001848884 | G8: الشركة الهندسية للمشروعات | H8: =IFERROR(VLOOKUP(G8,Table9[[اسم المحطة]:[الوحدة]],2,FALSE),"") -> طن | I8: 63.08 | K8: =IF(Table10[[#This Row],[صافى الوزن]]>=1,Table10[[#This Row],[صافى الوزن]]*Table10[[#This Row],[السعر]],0) -> 0 | L8: =SUMIF(Table9[اسم المحطة],Table10[[#This Row],[محطة الأستلام]],Table9[الاسمنت المستخدم بالطن])-SUMIF($G$3:G8,Table10[[#This Row],[محطة الأستلام]],$I$3:I8) -> 4018.14 | M8: =IF(Table10[[#This Row],[الرصيد بالطن]]=0,"0",IF(Table10[[#This Row],[الرصيد بالطن]]>=1,"دائن",IF(Table10[[#This Row],[الرصيد بالطن]]<=-1,"مدين"))) -> دائن | N8: رتبة 42.5
A9: 7 | B9: 2022-09-24 | C9: مصنع حلوان | E9: 3001841687 | F9: 3001855225 | G9: الشركة الهندسية للمشروعات | H9: =IFERROR(VLOOKUP(G9,Table9[[اسم المحطة]:[الوحدة]],2,FALSE),"") -> طن | I9: 60.48 | K9: =IF(Table10[[#This Row],[صافى الوزن]]>=1,Table10[[#This Row],[صافى الوزن]]*Table10[[#This Row],[السعر]],0) -> 0 | L9: =SUMIF(Table9[اسم المحطة],Table10[[#This Row],[محطة الأستلام]],Table9[الاسمنت المستخدم بالطن])-SUMIF($G$3:G9,Table10[[#This Row],[محطة الأستلام]],$I$3:I9) -> 3957.66 | M9: =IF(Table10[[#This Row],[الرصيد بالطن]]=0,"0",IF(Table10[[#This Row],[الرصيد بالطن]]>=1,"دائن",IF(Table10[[#This Row],[الرصيد بالطن]]<=-1,"مدين"))) -> دائن | N9: رتبة 42.5
A10: 8 | B10: 2022-09-24 | C10: مصنع حلوان | E10: 3001841692 | F10: 3001855231 | G10: الشركة الهندسية للمشروعات | H10: =IFERROR(VLOOKUP(G10,Table9[[اسم المحطة]:[الوحدة]],2,FALSE),"") -> طن | I10: 60.88 | K10: =IF(Table10[[#This Row],[صافى الوزن]]>=1,Table10[[#This Row],[صافى الوزن]]*Table10[[#This Row],[السعر]],0) -> 0 | L10: =SUMIF(Table9[اسم المحطة],Table10[[#This Row],[محطة الأستلام]],Table9[الاسمنت المستخدم بالطن])-SUMIF($G$3:G10,Table10[[#This Row],[محطة الأستلام]],$I$3:I10) -> 3896.78 | M10: =IF(Table10[[#This Row],[الرصيد بالطن]]=0,"0",IF(Table10[[#This Row],[الرصيد بالطن]]>=1,"دائن",IF(Table10[[#This Row],[الرصيد بالطن]]<=-1,"مدين"))) -> دائن | N10: رتبة 42.5
A11: 9 | B11: 2022-09-25 | C11: مصنع حلوان | E11: 3001841697 | F11: 3001855579 | G11: الشركة الهندسية للمشروعات | H11: =IFERROR(VLOOKUP(G11,Table9[[اسم المحطة]:[الوحدة]],2,FALSE),"") -> طن | I11: 60.5 | K11: =IF(Table10[[#This Row],[صافى الوزن]]>=1,Table10[[#This Row],[صافى الوزن]]*Table10[[#This Row],[السعر]],0) -> 0 | L11: =SUMIF(Table9[اسم المحطة],Table10[[#This Row],[محطة الأستلام]],Table9[الاسمنت المستخدم بالطن])-SUMIF($G$3:G11,Table10[[#This Row],[محطة الأستلام]],$I$3:I11) -> 3836.28 | M11: =IF(Table10[[#This Row],[الرصيد بالطن]]=0,"0",IF(Table10[[#This Row],[الرصيد بالطن]]>=1,"دائن",IF(Table10[[#This Row],[الرصيد بالطن]]<=-1,"مدين"))) -> دائن | N11: رتبة 42.5
A12: 10 | B12: 2022-09-25 | C12: مصنع حلوان | E12: 3001841707 | F12: 3001855542 | G12: الشركة الهندسية للمشروعات | H12: =IFERROR(VLOOKUP(G12,Table9[[اسم المحطة]:[الوحدة]],2,FALSE),"") -> طن | I12: 61.46 | K12: =IF(Table10[[#This Row],[صافى الوزن]]>=1,Table10[[#This Row],[صافى الوزن]]*Table10[[#This Row],[السعر]],0) -> 0 | L12: =SUMIF(Table9[اسم المحطة],Table10[[#This Row],[محطة الأستلام]],Table9[الاسمنت المستخدم بالطن])-SUMIF($G$3:G12,Table10[[#This Row],[محطة الأستلام]],$I$3:I12) -> 3774.82 | M12: =IF(Table10[[#This Row],[الرصيد بالطن]]=0,"0",IF(Table10[[#This Row],[الرصيد بالطن]]>=1,"دائن",IF(Table10[[#This Row],[الرصيد بالطن]]<=-1,"مدين"))) -> دائن | N12: رتبة 42.5
A13: 11 | B13: 2022-10-04 | C13: مصنع حلوان | E13: 3001844631 | F13: 3001864095 | G13: الشركة الهندسية للمشروعات | H13: =IFERROR(VLOOKUP(G13,Table9[[اسم المحطة]:[الوحدة]],2,FALSE),"") -> طن | I13: 60.12 | K13: =IF(Table10[[#This Row],[صافى الوزن]]>=1,Table10[[#This Row],[صافى الوزن]]*Table10[[#This Row],[السعر]],0) -> 0 | L13: =SUMIF(Table9[اسم المحطة],Table10[[#This Row],[محطة الأستلام]],Table9[الاسمنت المستخدم بالطن])-SUMIF($G$3:G13,Table10[[#This Row],[محطة الأستلام]],$I$3:I13) -> 3714.7 | M13: =IF(Table10[[#This Row],[الرصيد بالطن]]=0,"0",IF(Table10[[#This Row],[الرصيد بالطن]]>=1,"دائن",IF(Table10[[#This Row],[الرصيد بالطن]]<=-1,"مدين"))) -> دائن | N13: رتبة 42.5
A14: 12 | B14: 2022-10-04 | C14: مصنع حلوان | E14: 3001841712 | F14: 3001864090 | G14: الشركة الهندسية للمشروعات | H14: =IFERROR(VLOOKUP(G14,Table9[[اسم المحطة]:[الوحدة]],2,FALSE),"") -> طن | I14: 60.66 | K14: =IF(Table10[[#This Row],[صافى الوزن]]>=1,Table10[[#This Row],[صافى الوزن]]*Table10[[#This Row],[السعر]],0) -> 0 | L14: =SUMIF(Table9[اسم المحطة],Table10[[#This Row],[محطة الأستلام]],Table9[الاسمنت المستخدم بالطن])-SUMIF($G$3:G14,Table10[[#This Row],[محطة الأستلام]],$I$3:I14) -> 3654.04 | M14: =IF(Table10[[#This Row],[الرصيد بالطن]]=0,"0",IF(Table10[[#This Row],[الرصيد بالطن]]>=1,"دائن",IF(Table10[[#This Row],[الرصيد بالطن]]<=-1,"مدين"))) -> دائن | N14: رتبة 42.5
A15: 13 | B15: 2022-10-05 | C15: مصنع حلوان | E15: 3001841721 | F15: 3001864121 | G15: الشركة الهندسية للمشروعات | H15: =IFERROR(VLOOKUP(G15,Table9[[اسم المحطة]:[الوحدة]],2,FALSE),"") -> طن | I15: 61.32 | K15: =IF(Table10[[#This Row],[صافى الوزن]]>=1,Table10[[#This Row],[صافى الوزن]]*Table10[[#This Row],[السعر]],0) -> 0 | L15: =SUMIF(Table9[اسم المحطة],Table10[[#This Row],[محطة الأستلام]],Table9[الاسمنت المستخدم بالطن])-SUMIF($G$3:G15,Table10[[#This Row],[محطة الأستلام]],$I$3:I15) -> 3592.72 | M15: =IF(Table10[[#This Row],[الرصيد بالطن]]=0,"0",IF(Table10[[#This Row],[الرصيد بالطن]]>=1,"دائن",IF(Table10[[#This Row],[الرصيد بالطن]]<=-1,"مدين"))) -> دائن | N15: رتبة 42.5
A16: 14 | B16: 2022-10-06 | C16: مصنع حلوان | E16: 3001844673 | F16: 3001865255 | G16: الشركة الهندسية للمشروعات | H16: =IFERROR(VLOOKUP(G16,Table9[[اسم المحطة]:[الوحدة]],2,FALSE),"") -> طن | I16: 62.62 | K16: =IF(Table10[[#This Row],[صافى الوزن]]>=1,Table10[[#This Row],[صافى الوزن]]*Table10[[#This Row],[السعر]],0) -> 0 | L16: =SUMIF(Table9[اسم المحطة],Table10[[#This Row],[محطة الأستلام]],Table9[الاسمنت المستخدم بالطن])-SUMIF($G$3:G16,Table10[[#This Row],[محطة الأستلام]],$I$3:I16) -> 3530.1 | M16: =IF(Table10[[#This Row],[الرصيد بالطن]]=0,"0",IF(Table10[[#This Row],[الرصيد بالطن]]>=1,"دائن",IF(Table10[[#This Row],[الرصيد بالطن]]<=-1,"مدين"))) -> دائن | N16: رتبة 42.5
A17: 15 | B17: 2022-10-06 | C17: مصنع حلوان | D17: 137305 | E17: 3001844680 | F17: 3001865257 | G17: الشركة الهندسية للمشروعات | H17: =IFERROR(VLOOKUP(G17,Table9[[اسم المحطة]:[الوحدة]],2,FALSE),"") -> طن | I17: 60.98 | K17: =IF(Table10[[#This Row],[صافى الوزن]]>=1,Table10[[#This Row],[صافى الوزن]]*Table10[[#This Row],[السعر]],0) -> 0 | L17: =SUMIF(Table9[اسم المحطة],Table10[[#This Row],[محطة الأستلام]],Table9[الاسمنت المستخدم بالطن])-SUMIF($G$3:G17,Table10[[#This Row],[محطة الأستلام]],$I$3:I17) -> 3469.12 | M17: =IF(Table10[[#This Row],[الرصيد بالطن]]=0,"0",IF(Table10[[#This Row],[الرصيد بالطن]]>=1,"دائن",IF(Table10[[#This Row],[الرصيد بالطن]]<=-1,"مدين"))) -> دائن | N17: رتبة 42.5
A18: 16 | B18: 2022-10-09 | C18: مصنع حلوان | E18: 3001844641 | F18: 3001867940 | G18: كابيتال بيلد | H18: =IFERROR(VLOOKUP(G18,Table9[[اسم المحطة]:[الوحدة]],2,FALSE),"") -> طن | I18: 61.06 | K18: =IF(Table10[[#This Row],[صافى الوزن]]>=1,Table10[[#This Row],[صافى الوزن]]*Table10[[#This Row],[السعر]],0) -> 0 | L18: =SUMIF(Table9[اسم المحطة],Table10[[#This Row],[محطة الأستلام]],Table9[الاسمنت المستخدم بالطن])-SUMIF($G$3:G18,Table10[[#This Row],[محطة الأستلام]],$I$3:I18) -> 2018.97 | M18: =IF(Table10[[#This Row],[الرصيد بالطن]]=0,"0",IF(Table10[[#This Row],[الرصيد بالطن]]>=1,"دائن",IF(Table10[[#This Row],[الرصيد بالطن]]<=-1,"مدين"))) -> دائن | N18: رتبة 42.5
A19: 17 | B19: 2022-10-09 | C19: مصنع حلوان | E19: 3001844640 | F19: 3001867935 | G19: كابيتال بيلد | H19: =IFERROR(VLOOKUP(G19,Table9[[اسم المحطة]:[الوحدة]],2,FALSE),"") -> طن | I19: 61.68 | K19: =IF(Table10[[#This Row],[صافى الوزن]]>=1,Table10[[#This Row],[صافى الوزن]]*Table10[[#This Row],[السعر]],0) -> 0 | L19: =SUMIF(Table9[اسم المحطة],Table10[[#This Row],[محطة الأستلام]],Table9[الاسمنت المستخدم بالطن])-SUMIF($G$3:G19,Table10[[#This Row],[محطة الأستلام]],$I$3:I19) -> 1957.29 | M19: =IF(Table10[[#This Row],[الرصيد بالطن]]=0,"0",IF(Table10[[#This Row],[الرصيد بالطن]]>=1,"دائن",IF(Table10[[#This Row],[الرصيد بالطن]]<=-1,"مدين"))) -> دائن | N19: رتبة 42.5
A20: 18 | B20: 2022-10-10 | C20: مصنع حلوان | E20: 3001844658 | F20: 3001869110 | G20: كابيتال بيلد | H20: =IFERROR(VLOOKUP(G20,Table9[[اسم المحطة]:[الوحدة]],2,FALSE),"") -> طن | I20: 60.84 | K20: =IF(Table10[[#This Row],[صافى الوزن]]>=1,Table10[[#This Row],[صافى الوزن]]*Table10[[#This Row],[السعر]],0) -> 0 | L20: =SUMIF(Table9[اسم المحطة],Table10[[#This Row],[محطة الأستلام]],Table9[الاسمنت المستخدم بالطن])-SUMIF($G$3:G20,Table10[[#This Row],[محطة الأستلام]],$I$3:I20) -> 1896.45 | M20: =IF(Table10[[#This Row],[الرصيد بالطن]]=0,"0",IF(Table10[[#This Row],[الرصيد بالطن]]>=1,"دائن",IF(Table10[[#This Row],[الرصيد بالطن]]<=-1,"مدين"))) -> دائن | N20: رتبة 42.5
A21: 19 | B21: 2022-10-10 | C21: مصنع حلوان | E21: 3001844653 | F21: 3001869107 | G21: كابيتال بيلد | H21: =IFERROR(VLOOKUP(G21,Table9[[اسم المحطة]:[الوحدة]],2,FALSE),"") -> طن | I21: 61.74 | K21: =IF(Table10[[#This Row],[صافى الوزن]]>=1,Table10[[#This Row],[صافى الوزن]]*Table10[[#This Row],[السعر]],0) -> 0 | L21: =SUMIF(Table9[اسم المحطة],Table10[[#This Row],[محطة الأستلام]],Table9[الاسمنت المستخدم بالطن])-SUMIF($G$3:G21,Table10[[#This Row],[محطة الأستلام]],$I$3:I21) -> 1834.71 | M21: =IF(Table10[[#This Row],[الرصيد بالطن]]=0,"0",IF(Table10[[#This Row],[الرصيد بالطن]]>=1,"دائن",IF(Table10[[#This Row],[الرصيد بالطن]]<=-1,"مدين"))) -> دائن | N21: رتبة 42.5
A22: 20 | B22: 2022-10-16 | C22: مصنع حلوان | E22: 3001846313 | F22: 3001874800 | G22: كابيتال بيلد | H22: =IFERROR(VLOOKUP(G22,Table9[[اسم المحطة]:[الوحدة]],2,FALSE),"") -> طن | I22: 61.7 | K22: =IF(Table10[[#This Row],[صافى الوزن]]>=1,Table10[[#This Row],[صافى الوزن]]*Table10[[#This Row],[السعر]],0) -> 0 | L22: =SUMIF(Table9[اسم المحطة],Table10[[#This Row],[محطة الأستلام]],Table9[الاسمنت المستخدم بالطن])-SUMIF($G$3:G22,Table10[[#This Row],[محطة الأستلام]],$I$3:I22) -> 1773.01 | M22: =IF(Table10[[#This Row],[الرصيد بالطن]]=0,"0",IF(Table10[[#This Row],[الرصيد بالطن]]>=1,"دائن",IF(Table10[[#This Row],[الرصيد بالطن]]<=-1,"مدين"))) -> دائن | N22: رتبة 42.5
A23: 21 | B23: 2022-10-16 | C23: مصنع حلوان | E23: 3001846305 | F23: 3001874572 | G23: كابيتال بيلد | H23: =IFERROR(VLOOKUP(G23,Table9[[اسم المحطة]:[الوحدة]],2,FALSE),"") -> طن | I23: 62.02 | K23: =IF(Table10[[#This Row],[صافى الوزن]]>=1,Table10[[#This Row],[صافى الوزن]]*Table10[[#This Row],[السعر]],0) -> 0 | L23: =SUMIF(Table9[اسم المحطة],Table10[[#This Row],[محطة الأستلام]],Table9[الاسمنت المستخدم بالطن])-SUMIF($G$3:G23,Table10[[#This Row],[محطة الأستلام]],$I$3:I23) -> 1710.99 | M23: =IF(Table10[[#This Row],[الرصيد بالطن]]=0,"0",IF(Table10[[#This Row],[الرصيد بالطن]]>=1,"دائن",IF(Table10[[#This Row],[الرصيد بالطن]]<=-1,"مدين"))) -> دائن | N23: رتبة 42.5
A24: 22 | B24: 2022-10-17 | C24: مصنع حلوان | E24: 3001846312 | F24: 3001874797 | G24: كابيتال بيلد | H24: =IFERROR(VLOOKUP(G24,Table9[[اسم المحطة]:[الوحدة]],2,FALSE),"") -> طن | I24: 63.18 | K24: =IF(Table10[[#This Row],[صافى الوزن]]>=1,Table10[[#This Row],[صافى الوزن]]*Table10[[#This Row],[السعر]],0) -> 0 | L24: =SUMIF(Table9[اسم المحطة],Table10[[#This Row],[محطة الأستلام]],Table9[الاسمنت المستخدم بالطن])-SUMIF($G$3:G24,Table10[[#This Row],[محطة الأستلام]],$I$3:I24) -> 1647.81 | M24: =IF(Table10[[#This Row],[الرصيد بالطن]]=0,"0",IF(Table10[[#This Row],[الرصيد بالطن]]>=1,"دائن",IF(Table10[[#This Row],[الرصيد بالطن]]<=-1,"مدين"))) -> دائن | N24: رتبة 42.5
A25: 23 | B25: 2022-12-12 | C25: مصنع حلوان | E25: 3001856465 | F25: 3001922799 | G25: كابيتال بيلد | H25: =IFERROR(VLOOKUP(G25,Table9[[اسم المحطة]:[الوحدة]],2,FALSE),"") -> طن | I25: 58.56 | K25: =IF(Table10[[#This Row],[صافى الوزن]]>=1,Table10[[#This Row],[صافى الوزن]]*Table10[[#This Row],[السعر]],0) -> 0 | L25: =SUMIF(Table9[اسم المحطة],Table10[[#This Row],[محطة الأستلام]],Table9[الاسمنت المستخدم بالطن])-SUMIF($G$3:G25,Table10[[#This Row],[محطة الأستلام]],$I$3:I25) -> 1589.25 | M25: =IF(Table10[[#This Row],[الرصيد بالطن]]=0,"0",IF(Table10[[#This Row],[الرصيد بالطن]]>=1,"دائن",IF(Table10[[#This Row],[الرصيد بالطن]]<=-1,"مدين"))) -> دائن | N25: رتبة 42.5
A26: 24 | B26: 2022-12-12 | C26: مصنع حلوان | E26: 3001856457 | F26: 3001922666 | G26: كابيتال بيلد | H26: =IFERROR(VLOOKUP(G26,Table9[[اسم المحطة]:[الوحدة]],2,FALSE),"") -> طن | I26: 60.88 | K26: =IF(Table10[[#This Row],[صافى الوزن]]>=1,Table10[[#This Row],[صافى الوزن]]*Table10[[#This Row],[السعر]],0) -> 0 | L26: =SUMIF(Table9[اسم المحطة],Table10[[#This Row],[محطة الأستلام]],Table9[الاسمنت المستخدم بالطن])-SUMIF($G$3:G26,Table10[[#This Row],[محطة الأستلام]],$I$3:I26) -> 1528.37 | M26: =IF(Table10[[#This Row],[الرصيد بالطن]]=0,"0",IF(Table10[[#This Row],[الرصيد بالطن]]>=1,"دائن",IF(Table10[[#This Row],[الرصيد بالطن]]<=-1,"مدين"))) -> دائن | N26: رتبة 42.5
A27: 25 | B27: 2022-12-13 | C27: مصنع حلوان | E27: 3001856472 | F27: 3001923617 | G27: الشركة الهندسية للمشروعات | H27: =IFERROR(VLOOKUP(G27,Table9[[اسم المحطة]:[الوحدة]],2,FALSE),"") -> طن | I27: 62.38 | K27: =IF(Table10[[#This Row],[صافى الوزن]]>=1,Table10[[#This Row],[صافى الوزن]]*Table10[[#This Row],[السعر]],0) -> 0 | L27: =SUMIF(Table9[اسم المحطة],Table10[[#This Row],[محطة الأستلام]],Table9[الاسمنت المستخدم بالطن])-SUMIF($G$3:G27,Table10[[#This Row],[محطة الأستلام]],$I$3:I27) -> 3406.74 | M27: =IF(Table10[[#This Row],[الرصيد بالطن]]=0,"0",IF(Table10[[#This Row],[الرصيد بالطن]]>=1,"دائن",IF(Table10[[#This Row],[الرصيد بالطن]]<=-1,"مدين"))) -> دائن | N27: رتبة 42.5
A28: 26 | B28: 2022-12-17 | C28: مصنع حلوان | E28: 3001858116 | F28: 3001928201 | G28: كابيتال بيلد | H28: =IFERROR(VLOOKUP(G28,Table9[[اسم المحطة]:[الوحدة]],2,FALSE),"") -> طن | I28: 60.04 | K28: =IF(Table10[[#This Row],[صافى الوزن]]>=1,Table10[[#This Row],[صافى الوزن]]*Table10[[#This Row],[السعر]],0) -> 0 | L28: =SUMIF(Table9[اسم المحطة],Table10[[#This Row],[محطة الأستلام]],Table9[الاسمنت المستخدم بالطن])-SUMIF($G$3:G28,Table10[[#This Row],[محطة الأستلام]],$I$3:I28) -> 1468.33 | M28: =IF(Table10[[#This Row],[الرصيد بالطن]]=0,"0",IF(Table10[[#This Row],[الرصيد بالطن]]>=1,"دائن",IF(Table10[[#This Row],[الرصيد بالطن]]<=-1,"مدين"))) -> دائن | N28: رتبة 42.5
A29: 27 | B29: 2022-12-18 | C29: مصنع حلوان | E29: 3001858131 | F29: 3001929304 | G29: كابيتال بيلد | H29: =IFERROR(VLOOKUP(G29,Table9[[اسم المحطة]:[الوحدة]],2,FALSE),"") -> طن | I29: 61.38 | K29: =IF(Table10[[#This Row],[صافى الوزن]]>=1,Table10[[#This Row],[صافى الوزن]]*Table10[[#This Row],[السعر]],0) -> 0 | L29: =SUMIF(Table9[اسم المحطة],Table10[[#This Row],[محطة الأستلام]],Table9[الاسمنت المستخدم بالطن])-SUMIF($G$3:G29,Table10[[#This Row],[محطة الأستلام]],$I$3:I29) -> 1406.95 | M29: =IF(Table10[[#This Row],[الرصيد بالطن]]=0,"0",IF(Table10[[#This Row],[الرصيد بالطن]]>=1,"دائن",IF(Table10[[#This Row],[الرصيد بالطن]]<=-1,"مدين"))) -> دائن | N29: رتبة 42.5
A30: 28 | B30: 2022-12-18 | C30: مصنع حلوان | E30: 3001858117 | F30: 3001928403 | G30: الشركة الهندسية للمشروعات | H30: =IFERROR(VLOOKUP(G30,Table9[[اسم المحطة]:[الوحدة]],2,FALSE),"") -> طن | I30: 61.78 | K30: =IF(Table10[[#This Row],[صافى الوزن]]>=1,Table10[[#This Row],[صافى الوزن]]*Table10[[#This Row],[السعر]],0) -> 0 | L30: =SUMIF(Table9[اسم المحطة],Table10[[#This Row],[محطة الأستلام]],Table9[الاسمنت المستخدم بالطن])-SUMIF($G$3:G30,Table10[[#This Row],[محطة الأستلام]],$I$3:I30) -> 3344.96 | M30: =IF(Table10[[#This Row],[الرصيد بالطن]]=0,"0",IF(Table10[[#This Row],[الرصيد بالطن]]>=1,"دائن",IF(Table10[[#This Row],[الرصيد بالطن]]<=-1,"مدين"))) -> دائن | N30: رتبة 42.5
A31: 29 | B31: 2022-12-19 | C31: مصنع حلوان | E31: 3001858132 | F31: 3001929466 | G31: الشركة الهندسية للمشروعات | H31: =IFERROR(VLOOKUP(G31,Table9[[اسم المحطة]:[الوحدة]],2,FALSE),"") -> طن | I31: 58.2 | K31: =IF(Table10[[#This Row],[صافى الوزن]]>=1,Table10[[#This Row],[صافى الوزن]]*Table10[[#This Row],[السعر]],0) -> 0 | L31: =SUMIF(Table9[اسم المحطة],Table10[[#This Row],[محطة الأستلام]],Table9[الاسمنت المستخدم بالطن])-SUMIF($G$3:G31,Table10[[#This Row],[محطة الأستلام]],$I$3:I31) -> 3286.76 | M31: =IF(Table10[[#This Row],[الرصيد بالطن]]=0,"0",IF(Table10[[#This Row],[الرصيد بالطن]]>=1,"دائن",IF(Table10[[#This Row],[الرصيد بالطن]]<=-1,"مدين"))) -> دائن | N31: رتبة 42.5
A32: 30 | B32: 2022-12-19 | C32: مصنع حلوان | E32: 3001858133 | F32: 3001929596 | G32: الشركة الهندسية للمشروعات | H32: =IFERROR(VLOOKUP(G32,Table9[[اسم المحطة]:[الوحدة]],2,FALSE),"") -> طن | I32: 59.44 | K32: =IF(Table10[[#This Row],[صافى الوزن]]>=1,Table10[[#This Row],[صافى الوزن]]*Table10[[#This Row],[السعر]],0) -> 0 | L32: =SUMIF(Table9[اسم المحطة],Table10[[#This Row],[محطة الأستلام]],Table9[الاسمنت المستخدم بالطن])-SUMIF($G$3:G32,Table10[[#This Row],[محطة الأستلام]],$I$3:I32) -> 3227.32 | M32: =IF(Table10[[#This Row],[الرصيد بالطن]]=0,"0",IF(Table10[[#This Row],[الرصيد بالطن]]>=1,"دائن",IF(Table10[[#This Row],[الرصيد بالطن]]<=-1,"مدين"))) -> دائن | N32: رتبة 42.5
A33: 31 | B33: 2022-12-19 | C33: مصنع حلوان | E33: 3001858135 | F33: 3001929604 | G33: كابيتال بيلد | H33: =IFERROR(VLOOKUP(G33,Table9[[اسم المحطة]:[الوحدة]],2,FALSE),"") -> طن | I33: 60.62 | K33: =IF(Table10[[#This Row],[صافى الوزن]]>=1,Table10[[#This Row],[صافى الوزن]]*Table10[[#This Row],[السعر]],0) -> 0 | L33: =SUMIF(Table9[اسم المحطة],Table10[[#This Row],[محطة الأستلام]],Table9[الاسمنت المستخدم بالطن])-SUMIF($G$3:G33,Table10[[#This Row],[محطة الأستلام]],$I$3:I33) -> 1346.33 | M33: =IF(Table10[[#This Row],[الرصيد بالطن]]=0,"0",IF(Table10[[#This Row],[الرصيد بالطن]]>=1,"دائن",IF(Table10[[#This Row],[الرصيد بالطن]]<=-1,"مدين"))) -> دائن | N33: رتبة 42.5
A34: 32 | B34: 2023-02-11 | C34: مصنع حلوان | E34: 3001869397 | F34: 3001982887 | G34: الشركة الهندسية للمشروعات | H34: =IFERROR(VLOOKUP(G34,Table9[[اسم المحطة]:[الوحدة]],2,FALSE),"") -> طن | I34: 60.34 | K34: =IF(Table10[[#This Row],[صافى الوزن]]>=1,Table10[[#This Row],[صافى الوزن]]*Table10[[#This Row],[السعر]],0) -> 0 | L34: =SUMIF(Table9[اسم المحطة],Table10[[#This Row],[محطة الأستلام]],Table9[الاسمنت المستخدم بالطن])-SUMIF($G$3:G34,Table10[[#This Row],[محطة الأستلام]],$I$3:I34) -> 3166.98 | M34: =IF(Table10[[#This Row],[الرصيد بالطن]]=0,"0",IF(Table10[[#This Row],[الرصيد بالطن]]>=1,"دائن",IF(Table10[[#This Row],[الرصيد بالطن]]<=-1,"مدين"))) -> دائن | N34: رتبة 42.5
A35: 33 | B35: 2023-02-14 | C35: مصنع حلوان | E35: 3001869407 | F35: 3001986141 | G35: الشركة الهندسية للمشروعات | H35: =IFERROR(VLOOKUP(G35,Table9[[اسم المحطة]:[الوحدة]],2,FALSE),"") -> طن | I35: 61.68 | K35: =IF(Table10[[#This Row],[صافى الوزن]]>=1,Table10[[#This Row],[صافى الوزن]]*Table10[[#This Row],[السعر]],0) -> 0 | L35: =SUMIF(Table9[اسم المحطة],Table10[[#This Row],[محطة الأستلام]],Table9[الاسمنت المستخدم بالطن])-SUMIF($G$3:G35,Table10[[#This Row],[محطة الأستلام]],$I$3:I35) -> 3105.3 | M35: =IF(Table10[[#This Row],[الرصيد بالطن]]=0,"0",IF(Table10[[#This Row],[الرصيد بالطن]]>=1,"دائن",IF(Table10[[#This Row],[الرصيد بالطن]]<=-1,"مدين"))) -> دائن | N35: رتبة 42.5
A36: 34 | B36: 2023-02-15 | C36: مصنع حلوان | E36: 3001869444 | F36: 3001987209 | G36: الشركة الهندسية للمشروعات | H36: =IFERROR(VLOOKUP(G36,Table9[[اسم المحطة]:[الوحدة]],2,FALSE),"") -> طن | I36: 56.38 | K36: =IF(Table10[[#This Row],[صافى الوزن]]>=1,Table10[[#This Row],[صافى الوزن]]*Table10[[#This Row],[السعر]],0) -> 0 | L36: =SUMIF(Table9[اسم المحطة],Table10[[#This Row],[محطة الأستلام]],Table9[الاسمنت المستخدم بالطن])-SUMIF($G$3:G36,Table10[[#This Row],[محطة الأستلام]],$I$3:I36) -> 3048.92 | M36: =IF(Table10[[#This Row],[الرصيد بالطن]]=0,"0",IF(Table10[[#This Row],[الرصيد بالطن]]>=1,"دائن",IF(Table10[[#This Row],[الرصيد بالطن]]<=-1,"مدين"))) -> دائن | N36: رتبة 42.5
A37: 35 | B37: 2023-02-15 | C37: مصنع حلوان | E37: 3001869451 | F37: 3001987326 | G37: الشركة الهندسية للمشروعات | H37: =IFERROR(VLOOKUP(G37,Table9[[اسم المحطة]:[الوحدة]],2,FALSE),"") -> طن | I37: 60.52 | K37: =IF(Table10[[#This Row],[صافى الوزن]]>=1,Table10[[#This Row],[صافى الوزن]]*Table10[[#This Row],[السعر]],0) -> 0 | L37: =SUMIF(Table9[اسم المحطة],Table10[[#This Row],[محطة الأستلام]],Table9[الاسمنت المستخدم بالطن])-SUMIF($G$3:G37,Table10[[#This Row],[محطة الأستلام]],$I$3:I37) -> 2988.4 | M37: =IF(Table10[[#This Row],[الرصيد بالطن]]=0,"0",IF(Table10[[#This Row],[الرصيد بالطن]]>=1,"دائن",IF(Table10[[#This Row],[الرصيد بالطن]]<=-1,"مدين"))) -> دائن | N37: رتبة 42.5
A38: 36 | B38: 2023-03-03 | C38: الوطنية بنى سويف | E38: 1610013 | F38: 19799953 | G38: الشركة الهندسية للمشروعات | H38: =IFERROR(VLOOKUP(G38,Table9[[اسم المحطة]:[الوحدة]],2,FALSE),"") -> طن | I38: 51.02 | K38: =IF(Table10[[#This Row],[صافى الوزن]]>=1,Table10[[#This Row],[صافى الوزن]]*Table10[[#This Row],[السعر]],0) -> 0 | L38: =SUMIF(Table9[اسم المحطة],Table10[[#This Row],[محطة الأستلام]],Table9[الاسمنت المستخدم بالطن])-SUMIF($G$3:G38,Table10[[#This Row],[محطة الأستلام]],$I$3:I38) -> 2937.38 | M38: =IF(Table10[[#This Row],[الرصيد بالطن]]=0,"0",IF(Table10[[#This Row],[الرصيد بالطن]]>=1,"دائن",IF(Table10[[#This Row],[الرصيد بالطن]]<=-1,"مدين"))) -> دائن | N38: رتبة 52.5
A39: 37 | B39: 2023-03-03 | C39: الوطنية بنى سويف | E39: 1609875 | F39: 19799813 | G39: الشركة الهندسية للمشروعات | H39: =IFERROR(VLOOKUP(G39,Table9[[اسم المحطة]:[الوحدة]],2,FALSE),"") -> طن | I39: 58.02 | K39: =IF(Table10[[#This Row],[صافى الوزن]]>=1,Table10[[#This Row],[صافى الوزن]]*Table10[[#This Row],[السعر]],0) -> 0 | L39: =SUMIF(Table9[اسم المحطة],Table10[[#This Row],[محطة الأستلام]],Table9[الاسمنت المستخدم بالطن])-SUMIF($G$3:G39,Table10[[#This Row],[محطة الأستلام]],$I$3:I39) -> 2879.36 | M39: =IF(Table10[[#This Row],[الرصيد بالطن]]=0,"0",IF(Table10[[#This Row],[الرصيد بالطن]]>=1,"دائن",IF(Table10[[#This Row],[الرصيد بالطن]]<=-1,"مدين"))) -> دائن | N39: رتبة 52.5
A40: 38 | B40: 2023-03-10 | C40: الوطنية بنى سويف | E40: 1613689 | F40: 19803650 | G40: الشركة الهندسية للمشروعات | H40: =IFERROR(VLOOKUP(G40,Table9[[اسم المحطة]:[الوحدة]],2,FALSE),"") -> طن | I40: 51.26 | K40: =IF(Table10[[#This Row],[صافى الوزن]]>=1,Table10[[#This Row],[صافى الوزن]]*Table10[[#This Row],[السعر]],0) -> 0 | L40: =SUMIF(Table9[اسم المحطة],Table10[[#This Row],[محطة الأستلام]],Table9[الاسمنت المستخدم بالطن])-SUMIF($G$3:G40,Table10[[#This Row],[محطة الأستلام]],$I$3:I40) -> 2828.1 | M40: =IF(Table10[[#This Row],[الرصيد بالطن]]=0,"0",IF(Table10[[#This Row],[الرصيد بالطن]]>=1,"دائن",IF(Table10[[#This Row],[الرصيد بالطن]]<=-1,"مدين"))) -> دائن | N40: رتبة 52.5
A41: 39 | B41: 2023-03-11 | C41: الوطنية بنى سويف | E41: 1613735 | F41: 19803696 | G41: كابيتال بيلد | H41: =IFERROR(VLOOKUP(G41,Table9[[اسم المحطة]:[الوحدة]],2,FALSE),"") -> طن | I41: 56.58 | K41: =IF(Table10[[#This Row],[صافى الوزن]]>=1,Table10[[#This Row],[صافى الوزن]]*Table10[[#This Row],[السعر]],0) -> 0 | L41: =SUMIF(Table9[اسم المحطة],Table10[[#This Row],[محطة الأستلام]],Table9[الاسمنت المستخدم بالطن])-SUMIF($G$3:G41,Table10[[#This Row],[محطة الأستلام]],$I$3:I41) -> 1289.75 | M41: =IF(Table10[[#This Row],[الرصيد بالطن]]=0,"0",IF(Table10[[#This Row],[الرصيد بالطن]]>=1,"دائن",IF(Table10[[#This Row],[الرصيد بالطن]]<=-1,"مدين"))) -> دائن | N41: رتبة 52.5
A42: 40 | B42: 2023-03-17 | C42: الوطنية بنى سويف | E42: 1616960 | F42: 19806926 | G42: الشركة الهندسية للمشروعات | H42: =IFERROR(VLOOKUP(G42,Table9[[اسم المحطة]:[الوحدة]],2,FALSE),"") -> طن | I42: 55.98 | K42: =IF(Table10[[#This Row],[صافى الوزن]]>=1,Table10[[#This Row],[صافى الوزن]]*Table10[[#This Row],[السعر]],0) -> 0 | L42: =SUMIF(Table9[اسم المحطة],Table10[[#This Row],[محطة الأستلام]],Table9[الاسمنت المستخدم بالطن])-SUMIF($G$3:G42,Table10[[#This Row],[محطة الأستلام]],$I$3:I42) -> 2772.12 | M42: =IF(Table10[[#This Row],[الرصيد بالطن]]=0,"0",IF(Table10[[#This Row],[الرصيد بالطن]]>=1,"دائن",IF(Table10[[#This Row],[الرصيد بالطن]]<=-1,"مدين"))) -> دائن | N42: رتبة 52.5
A43: 41 | B43: 2023-03-17 | C43: الوطنية بنى سويف | E43: 1616978 | F43: 19806943 | G43: الشركة الهندسية للمشروعات | H43: =IFERROR(VLOOKUP(G43,Table9[[اسم المحطة]:[الوحدة]],2,FALSE),"") -> طن | I43: 58.42 | K43: =IF(Table10[[#This Row],[صافى الوزن]]>=1,Table10[[#This Row],[صافى الوزن]]*Table10[[#This Row],[السعر]],0) -> 0 | L43: =SUMIF(Table9[اسم المحطة],Table10[[#This Row],[محطة الأستلام]],Table9[الاسمنت المستخدم بالطن])-SUMIF($G$3:G43,Table10[[#This Row],[محطة الأستلام]],$I$3:I43) -> 2713.7 | M43: =IF(Table10[[#This Row],[الرصيد بالطن]]=0,"0",IF(Table10[[#This Row],[الرصيد بالطن]]>=1,"دائن",IF(Table10[[#This Row],[الرصيد بالطن]]<=-1,"مدين"))) -> دائن | N43: رتبة 52.5
A44: 42 | B44: 2023-03-22 | C44: الوطنية بنى سويف | E44: 1619298 | F44: 19809271 | G44: كابيتال بيلد | H44: =IFERROR(VLOOKUP(G44,Table9[[اسم المحطة]:[الوحدة]],2,FALSE),"") -> طن | I44: 62.1 | K44: =IF(Table10[[#This Row],[صافى الوزن]]>=1,Table10[[#This Row],[صافى الوزن]]*Table10[[#This Row],[السعر]],0) -> 0 | L44: =SUMIF(Table9[اسم المحطة],Table10[[#This Row],[محطة الأستلام]],Table9[الاسمنت المستخدم بالطن])-SUMIF($G$3:G44,Table10[[#This Row],[محطة الأستلام]],$I$3:I44) -> 1227.65 | M44: =IF(Table10[[#This Row],[الرصيد بالطن]]=0,"0",IF(Table10[[#This Row],[الرصيد بالطن]]>=1,"دائن",IF(Table10[[#This Row],[الرصيد بالطن]]<=-1,"مدين"))) -> دائن | N44: رتبة 52.5
A45: 43 | B45: 2023-03-25 | C45: الوطنية بنى سويف | E45: 1620270 | F45: 19810249 | G45: كابيتال بيلد | H45: =IFERROR(VLOOKUP(G45,Table9[[اسم المحطة]:[الوحدة]],2,FALSE),"") -> طن | I45: 57.56 | K45: =IF(Table10[[#This Row],[صافى الوزن]]>=1,Table10[[#This Row],[صافى الوزن]]*Table10[[#This Row],[السعر]],0) -> 0 | L45: =SUMIF(Table9[اسم المحطة],Table10[[#This Row],[محطة الأستلام]],Table9[الاسمنت المستخدم بالطن])-SUMIF($G$3:G45,Table10[[#This Row],[محطة الأستلام]],$I$3:I45) -> 1170.09 | M45: =IF(Table10[[#This Row],[الرصيد بالطن]]=0,"0",IF(Table10[[#This Row],[الرصيد بالطن]]>=1,"دائن",IF(Table10[[#This Row],[الرصيد بالطن]]<=-1,"مدين"))) -> دائن | N45: رتبة 52.5
A46: 44 | B46: 2023-04-07 | C46: مصنع حلوان | E46: 3001876915 | F46: 3002037491 | G46: بيتر ميكس | H46: =IFERROR(VLOOKUP(G46,Table9[[اسم المحطة]:[الوحدة]],2,FALSE),"") -> طن | I46: 58.86 | K46: =IF(Table10[[#This Row],[صافى الوزن]]>=1,Table10[[#This Row],[صافى الوزن]]*Table10[[#This Row],[السعر]],0) -> 0 | L46: =SUMIF(Table9[اسم المحطة],Table10[[#This Row],[محطة الأستلام]],Table9[الاسمنت المستخدم بالطن])-SUMIF($G$3:G46,Table10[[#This Row],[محطة الأستلام]],$I$3:I46) -> 250.84 | M46: =IF(Table10[[#This Row],[الرصيد بالطن]]=0,"0",IF(Table10[[#This Row],[الرصيد بالطن]]>=1,"دائن",IF(Table10[[#This Row],[الرصيد بالطن]]<=-1,"مدين"))) -> دائن | N46: رتبة 42.5
A47: 45 | B47: 2023-04-07 | C47: مصنع حلوان | E47: 3001876913 | F47: 3002037454 | G47: الشركة الهندسية للمشروعات | H47: =IFERROR(VLOOKUP(G47,Table9[[اسم المحطة]:[الوحدة]],2,FALSE),"") -> طن | I47: 61.58 | K47: =IF(Table10[[#This Row],[صافى الوزن]]>=1,Table10[[#This Row],[صافى الوزن]]*Table10[[#This Row],[السعر]],0) -> 0 | L47: =SUMIF(Table9[اسم المحطة],Table10[[#This Row],[محطة الأستلام]],Table9[الاسمنت المستخدم بالطن])-SUMIF($G$3:G47,Table10[[#This Row],[محطة الأستلام]],$I$3:I47) -> 2652.12 | M47: =IF(Table10[[#This Row],[الرصيد بالطن]]=0,"0",IF(Table10[[#This Row],[الرصيد بالطن]]>=1,"دائن",IF(Table10[[#This Row],[الرصيد بالطن]]<=-1,"مدين"))) -> دائن | N47: رتبة 42.5
A48: 46 | B48: 2023-04-07 | C48: مصنع حلوان | E48: 3001876893 | F48: 3002037627 | G48: بيتر ميكس | H48: =IFERROR(VLOOKUP(G48,Table9[[اسم المحطة]:[الوحدة]],2,FALSE),"") -> طن | I48: 62.42 | K48: =IF(Table10[[#This Row],[صافى الوزن]]>=1,Table10[[#This Row],[صافى الوزن]]*Table10[[#This Row],[السعر]],0) -> 0 | L48: =SUMIF(Table9[اسم المحطة],Table10[[#This Row],[محطة الأستلام]],Table9[الاسمنت المستخدم بالطن])-SUMIF($G$3:G48,Table10[[#This Row],[محطة الأستلام]],$I$3:I48) -> 188.42 | M48: =IF(Table10[[#This Row],[الرصيد بالطن]]=0,"0",IF(Table10[[#This Row],[الرصيد بالطن]]>=1,"دائن",IF(Table10[[#This Row],[الرصيد بالطن]]<=-1,"مدين"))) -> دائن | N48: رتبة 42.5
A49: 47 | B49: 2023-04-12 | C49: الوطنية بنى سويف | E49: 1627999 | F49: 19818027 | G49: الشركة الهندسية للمشروعات | H49: =IFERROR(VLOOKUP(G49,Table9[[اسم المحطة]:[الوحدة]],2,FALSE),"") -> طن | I49: 49.92 | K49: =IF(Table10[[#This Row],[صافى الوزن]]>=1,Table10[[#This Row],[صافى الوزن]]*Table10[[#This Row],[السعر]],0) -> 0 | L49: =SUMIF(Table9[اسم المحطة],Table10[[#This Row],[محطة الأستلام]],Table9[الاسمنت المستخدم بالطن])-SUMIF($G$3:G49,Table10[[#This Row],[محطة الأستلام]],$I$3:I49) -> 2602.2 | M49: =IF(Table10[[#This Row],[الرصيد بالطن]]=0,"0",IF(Table10[[#This Row],[الرصيد بالطن]]>=1,"دائن",IF(Table10[[#This Row],[الرصيد بالطن]]<=-1,"مدين"))) -> دائن | N49: رتبة 52.5
A50: 48 | B50: 2023-04-12 | C50: الوطنية بنى سويف | E50: بدون | F50: 21274 | G50: الشركة الهندسية للمشروعات | H50: =IFERROR(VLOOKUP(G50,Table9[[اسم المحطة]:[الوحدة]],2,FALSE),"") -> طن | I50: 49.96 | K50: =IF(Table10[[#This Row],[صافى الوزن]]>=1,Table10[[#This Row],[صافى الوزن]]*Table10[[#This Row],[السعر]],0) -> 0 | L50: =SUMIF(Table9[اسم المحطة],Table10[[#This Row],[محطة الأستلام]],Table9[الاسمنت المستخدم بالطن])-SUMIF($G$3:G50,Table10[[#This Row],[محطة الأستلام]],$I$3:I50) -> 2552.24 | M50: =IF(Table10[[#This Row],[الرصيد بالطن]]=0,"0",IF(Table10[[#This Row],[الرصيد بالطن]]>=1,"دائن",IF(Table10[[#This Row],[الرصيد بالطن]]<=-1,"مدين"))) -> دائن | N50: رتبة 52.5
A51: 49 | B51: 2023-04-12 | C51: الوطنية بنى سويف | E51: بدون | F51: 21275 | G51: الشركة الهندسية للمشروعات | H51: =IFERROR(VLOOKUP(G51,Table9[[اسم المحطة]:[الوحدة]],2,FALSE),"") -> طن | I51: 50.28 | K51: =IF(Table10[[#This Row],[صافى الوزن]]>=1,Table10[[#This Row],[صافى الوزن]]*Table10[[#This Row],[السعر]],0) -> 0 | L51: =SUMIF(Table9[اسم المحطة],Table10[[#This Row],[محطة الأستلام]],Table9[الاسمنت المستخدم بالطن])-SUMIF($G$3:G51,Table10[[#This Row],[محطة الأستلام]],$I$3:I51) -> 2501.96 | M51: =IF(Table10[[#This Row],[الرصيد بالطن]]=0,"0",IF(Table10[[#This Row],[الرصيد بالطن]]>=1,"دائن",IF(Table10[[#This Row],[الرصيد بالطن]]<=-1,"مدين"))) -> دائن | N51: رتبة 52.5
A52: 50 | B52: 2023-04-12 | C52: الوطنية بنى سويف | E52: بدون | F52: 21265 | G52: الشركة الهندسية للمشروعات | H52: =IFERROR(VLOOKUP(G52,Table9[[اسم المحطة]:[الوحدة]],2,FALSE),"") -> طن | I52: 57.14 | K52: =IF(Table10[[#This Row],[صافى الوزن]]>=1,Table10[[#This Row],[صافى الوزن]]*Table10[[#This Row],[السعر]],0) -> 0 | L52: =SUMIF(Table9[اسم المحطة],Table10[[#This Row],[محطة الأستلام]],Table9[الاسمنت المستخدم بالطن])-SUMIF($G$3:G52,Table10[[#This Row],[محطة الأستلام]],$I$3:I52) -> 2444.82 | M52: =IF(Table10[[#This Row],[الرصيد بالطن]]=0,"0",IF(Table10[[#This Row],[الرصيد بالطن]]>=1,"دائن",IF(Table10[[#This Row],[الرصيد بالطن]]<=-1,"مدين"))) -> دائن | N52: رتبة 52.5
A53: 51 | B53: 2023-04-12 | C53: الوطنية بنى سويف | E53: 1628085 | F53: 19818113 | G53: الشركة الهندسية للمشروعات | H53: =IFERROR(VLOOKUP(G53,Table9[[اسم المحطة]:[الوحدة]],2,FALSE),"") -> طن | I53: 58.52 | K53: =IF(Table10[[#This Row],[صافى الوزن]]>=1,Table10[[#This Row],[صافى الوزن]]*Table10[[#This Row],[السعر]],0) -> 0 | L53: =SUMIF(Table9[اسم المحطة],Table10[[#This Row],[محطة الأستلام]],Table9[الاسمنت المستخدم بالطن])-SUMIF($G$3:G53,Table10[[#This Row],[محطة الأستلام]],$I$3:I53) -> 2386.3 | M53: =IF(Table10[[#This Row],[الرصيد بالطن]]=0,"0",IF(Table10[[#This Row],[الرصيد بالطن]]>=1,"دائن",IF(Table10[[#This Row],[الرصيد بالطن]]<=-1,"مدين"))) -> دائن | N53: رتبة 52.5
A54: 52 | B54: 2023-04-13 | C54: الوطنية بنى سويف | E54: 1628320 | F54: 19818346 | G54: الشركة الهندسية للمشروعات | H54: =IFERROR(VLOOKUP(G54,Table9[[اسم المحطة]:[الوحدة]],2,FALSE),"") -> طن | I54: 57.24 | K54: =IF(Table10[[#This Row],[صافى الوزن]]>=1,Table10[[#This Row],[صافى الوزن]]*Table10[[#This Row],[السعر]],0) -> 0 | L54: =SUMIF(Table9[اسم المحطة],Table10[[#This Row],[محطة الأستلام]],Table9[الاسمنت المستخدم بالطن])-SUMIF($G$3:G54,Table10[[#This Row],[محطة الأستلام]],$I$3:I54) -> 2329.06 | M54: =IF(Table10[[#This Row],[الرصيد بالطن]]=0,"0",IF(Table10[[#This Row],[الرصيد بالطن]]>=1,"دائن",IF(Table10[[#This Row],[الرصيد بالطن]]<=-1,"مدين"))) -> دائن | N54: رتبة 52.5
A55: 53 | B55: 2023-05-03 | C55: الوطنية بنى سويف | E55: 1633571 | F55: 19823656 | G55: الشركة الهندسية للمشروعات | H55: =IFERROR(VLOOKUP(G55,Table9[[اسم المحطة]:[الوحدة]],2,FALSE),"") -> طن | I55: 59.6 | K55: =IF(Table10[[#This Row],[صافى الوزن]]>=1,Table10[[#This Row],[صافى الوزن]]*Table10[[#This Row],[السعر]],0) -> 0 | L55: =SUMIF(Table9[اسم المحطة],Table10[[#This Row],[محطة الأستلام]],Table9[الاسمنت المستخدم بالطن])-SUMIF($G$3:G55,Table10[[#This Row],[محطة الأستلام]],$I$3:I55) -> 2269.46 | M55: =IF(Table10[[#This Row],[الرصيد بالطن]]=0,"0",IF(Table10[[#This Row],[الرصيد بالطن]]>=1,"دائن",IF(Table10[[#This Row],[الرصيد بالطن]]<=-1,"مدين"))) -> دائن | N55: رتبة 52.5
A56: 54 | B56: 2023-05-04 | C56: الوطنية بنى سويف | E56: 1633748 | F56: 19823833 | G56: الشركة الهندسية للمشروعات | H56: =IFERROR(VLOOKUP(G56,Table9[[اسم المحطة]:[الوحدة]],2,FALSE),"") -> طن | I56: 51.7 | K56: =IF(Table10[[#This Row],[صافى الوزن]]>=1,Table10[[#This Row],[صافى الوزن]]*Table10[[#This Row],[السعر]],0) -> 0 | L56: =SUMIF(Table9[اسم المحطة],Table10[[#This Row],[محطة الأستلام]],Table9[الاسمنت المستخدم بالطن])-SUMIF($G$3:G56,Table10[[#This Row],[محطة الأستلام]],$I$3:I56) -> 2217.76 | M56: =IF(Table10[[#This Row],[الرصيد بالطن]]=0,"0",IF(Table10[[#This Row],[الرصيد بالطن]]>=1,"دائن",IF(Table10[[#This Row],[الرصيد بالطن]]<=-1,"مدين"))) -> دائن | N56: رتبة 52.5
A57: 55 | B57: 2023-05-16 | C57: الوطنية بنى سويف | E57: 1638769 | F57: 19828915 | G57: كابيتال بيلد | H57: =IFERROR(VLOOKUP(G57,Table9[[اسم المحطة]:[الوحدة]],2,FALSE),"") -> طن | I57: 50.26 | K57: =IF(Table10[[#This Row],[صافى الوزن]]>=1,Table10[[#This Row],[صافى الوزن]]*Table10[[#This Row],[السعر]],0) -> 0 | L57: =SUMIF(Table9[اسم المحطة],Table10[[#This Row],[محطة الأستلام]],Table9[الاسمنت المستخدم بالطن])-SUMIF($G$3:G57,Table10[[#This Row],[محطة الأستلام]],$I$3:I57) -> 1119.83 | M57: =IF(Table10[[#This Row],[الرصيد بالطن]]=0,"0",IF(Table10[[#This Row],[الرصيد بالطن]]>=1,"دائن",IF(Table10[[#This Row],[الرصيد بالطن]]<=-1,"مدين"))) -> دائن | N57: رتبة 52.5
A58: 56 | B58: 2023-05-16 | C58: الوطنية بنى سويف | E58: 1638772 | F58: 19828918 | G58: كابيتال بيلد | H58: =IFERROR(VLOOKUP(G58,Table9[[اسم المحطة]:[الوحدة]],2,FALSE),"") -> طن | I58: 63.28 | K58: =IF(Table10[[#This Row],[صافى الوزن]]>=1,Table10[[#This Row],[صافى الوزن]]*Table10[[#This Row],[السعر]],0) -> 0 | L58: =SUMIF(Table9[اسم المحطة],Table10[[#This Row],[محطة الأستلام]],Table9[الاسمنت المستخدم بالطن])-SUMIF($G$3:G58,Table10[[#This Row],[محطة الأستلام]],$I$3:I58) -> 1056.55 | M58: =IF(Table10[[#This Row],[الرصيد بالطن]]=0,"0",IF(Table10[[#This Row],[الرصيد بالطن]]>=1,"دائن",IF(Table10[[#This Row],[الرصيد بالطن]]<=-1,"مدين"))) -> دائن | N58: رتبة 52.5
A59: 57 | B59: 2023-05-22 | C59: مصنع حلوان | E59: 3001881852 | F59: 3002080378 | G59: كابيتال بيلد | H59: =IFERROR(VLOOKUP(G59,Table9[[اسم المحطة]:[الوحدة]],2,FALSE),"") -> طن | I59: 60.52 | K59: =IF(Table10[[#This Row],[صافى الوزن]]>=1,Table10[[#This Row],[صافى الوزن]]*Table10[[#This Row],[السعر]],0) -> 0 | L59: =SUMIF(Table9[اسم المحطة],Table10[[#This Row],[محطة الأستلام]],Table9[الاسمنت المستخدم بالطن])-SUMIF($G$3:G59,Table10[[#This Row],[محطة الأستلام]],$I$3:I59) -> 996.03 | M59: =IF(Table10[[#This Row],[الرصيد بالطن]]=0,"0",IF(Table10[[#This Row],[الرصيد بالطن]]>=1,"دائن",IF(Table10[[#This Row],[الرصيد بالطن]]<=-1,"مدين"))) -> دائن | N59: رتبة 42.5
A60: 58 | B60: 2023-05-23 | C60: مصنع حلوان | E60: 3001881863 | F60: 3002080568 | G60: الشركة الهندسية للمشروعات | H60: =IFERROR(VLOOKUP(G60,Table9[[اسم المحطة]:[الوحدة]],2,FALSE),"") -> طن | I60: 59.74 | K60: =IF(Table10[[#This Row],[صافى الوزن]]>=1,Table10[[#This Row],[صافى الوزن]]*Table10[[#This Row],[السعر]],0) -> 0 | L60: =SUMIF(Table9[اسم المحطة],Table10[[#This Row],[محطة الأستلام]],Table9[الاسمنت المستخدم بالطن])-SUMIF($G$3:G60,Table10[[#This Row],[محطة الأستلام]],$I$3:I60) -> 2158.02 | M60: =IF(Table10[[#This Row],[الرصيد بالطن]]=0,"0",IF(Table10[[#This Row],[الرصيد بالطن]]>=1,"دائن",IF(Table10[[#This Row],[الرصيد بالطن]]<=-1,"مدين"))) -> دائن | N60: رتبة 42.5
A61: 59 | B61: 2023-05-23 | C61: مصنع حلوان | E61: 3001881866 | F61: 3002080741 | G61: الشركة الهندسية للمشروعات | H61: =IFERROR(VLOOKUP(G61,Table9[[اسم المحطة]:[الوحدة]],2,FALSE),"") -> طن | I61: 60.38 | K61: =IF(Table10[[#This Row],[صافى الوزن]]>=1,Table10[[#This Row],[صافى الوزن]]*Table10[[#This Row],[السعر]],0) -> 0 | L61: =SUMIF(Table9[اسم المحطة],Table10[[#This Row],[محطة الأستلام]],Table9[الاسمنت المستخدم بالطن])-SUMIF($G$3:G61,Table10[[#This Row],[محطة الأستلام]],$I$3:I61) -> 2097.64 | M61: =IF(Table10[[#This Row],[الرصيد بالطن]]=0,"0",IF(Table10[[#This Row],[الرصيد بالطن]]>=1,"دائن",IF(Table10[[#This Row],[الرصيد بالطن]]<=-1,"مدين"))) -> دائن | N61: رتبة 42.5
A62: 60 | B62: 2023-05-29 | C62: مصنع حلوان | E62: 3001881900 | F62: بدون | G62: الشركة الهندسية للمشروعات | H62: =IFERROR(VLOOKUP(G62,Table9[[اسم المحطة]:[الوحدة]],2,FALSE),"") -> طن | I62: 60.58 | K62: =IF(Table10[[#This Row],[صافى الوزن]]>=1,Table10[[#This Row],[صافى الوزن]]*Table10[[#This Row],[السعر]],0) -> 0 | L62: =SUMIF(Table9[اسم المحطة],Table10[[#This Row],[محطة الأستلام]],Table9[الاسمنت المستخدم بالطن])-SUMIF($G$3:G62,Table10[[#This Row],[محطة الأستلام]],$I$3:I62) -> 2037.06 | M62: =IF(Table10[[#This Row],[الرصيد بالطن]]=0,"0",IF(Table10[[#This Row],[الرصيد بالطن]]>=1,"دائن",IF(Table10[[#This Row],[الرصيد بالطن]]<=-1,"مدين"))) -> دائن | N62: رتبة 42.5
A63: 61 | B63: 2023-05-29 | C63: مصنع حلوان | E63: 3001881901 | F63: بدون | G63: كابيتال بيلد | H63: =IFERROR(VLOOKUP(G63,Table9[[اسم المحطة]:[الوحدة]],2,FALSE),"") -> طن | I63: 60.86 | K63: =IF(Table10[[#This Row],[صافى الوزن]]>=1,Table10[[#This Row],[صافى الوزن]]*Table10[[#This Row],[السعر]],0) -> 0 | L63: =SUMIF(Table9[اسم المحطة],Table10[[#This Row],[محطة الأستلام]],Table9[الاسمنت المستخدم بالطن])-SUMIF($G$3:G63,Table10[[#This Row],[محطة الأستلام]],$I$3:I63) -> 935.17 | M63: =IF(Table10[[#This Row],[الرصيد بالطن]]=0,"0",IF(Table10[[#This Row],[الرصيد بالطن]]>=1,"دائن",IF(Table10[[#This Row],[الرصيد بالطن]]<=-1,"مدين"))) -> دائن | N63: رتبة 42.5
A64: 62 | B64: 2023-06-04 | C64: مصنع حلوان | E64: 3001881943 | F64: بدون | G64: كابيتال بيلد | H64: =IFERROR(VLOOKUP(G64,Table9[[اسم المحطة]:[الوحدة]],2,FALSE),"") -> طن | I64: 58.18 | K64: =IF(Table10[[#This Row],[صافى الوزن]]>=1,Table10[[#This Row],[صافى الوزن]]*Table10[[#This Row],[السعر]],0) -> 0 | L64: =SUMIF(Table9[اسم المحطة],Table10[[#This Row],[محطة الأستلام]],Table9[الاسمنت المستخدم بالطن])-SUMIF($G$3:G64,Table10[[#This Row],[محطة الأستلام]],$I$3:I64) -> 876.99 | M64: =IF(Table10[[#This Row],[الرصيد بالطن]]=0,"0",IF(Table10[[#This Row],[الرصيد بالطن]]>=1,"دائن",IF(Table10[[#This Row],[الرصيد بالطن]]<=-1,"مدين"))) -> دائن | N64: رتبة 42.5
A65: 63 | B65: 2023-06-04 | C65: مصنع حلوان | E65: 3001881949 | F65: بدون | G65: الشركة الهندسية للمشروعات | H65: =IFERROR(VLOOKUP(G65,Table9[[اسم المحطة]:[الوحدة]],2,FALSE),"") -> طن | I65: 59.9 | K65: =IF(Table10[[#This Row],[صافى الوزن]]>=1,Table10[[#This Row],[صافى الوزن]]*Table10[[#This Row],[السعر]],0) -> 0 | L65: =SUMIF(Table9[اسم المحطة],Table10[[#This Row],[محطة الأستلام]],Table9[الاسمنت المستخدم بالطن])-SUMIF($G$3:G65,Table10[[#This Row],[محطة الأستلام]],$I$3:I65) -> 1977.16 | M65: =IF(Table10[[#This Row],[الرصيد بالطن]]=0,"0",IF(Table10[[#This Row],[الرصيد بالطن]]>=1,"دائن",IF(Table10[[#This Row],[الرصيد بالطن]]<=-1,"مدين"))) -> دائن | N65: رتبة 42.5
A66: 64 | B66: 2023-06-10 | C66: مصنع حلوان | E66: 3001881967 | F66: بدون | G66: الشركة الهندسية للمشروعات | H66: =IFERROR(VLOOKUP(G66,Table9[[اسم المحطة]:[الوحدة]],2,FALSE),"") -> طن | I66: 56.34 | K66: =IF(Table10[[#This Row],[صافى الوزن]]>=1,Table10[[#This Row],[صافى الوزن]]*Table10[[#This Row],[السعر]],0) -> 0 | L66: =SUMIF(Table9[اسم المحطة],Table10[[#This Row],[محطة الأستلام]],Table9[الاسمنت المستخدم بالطن])-SUMIF($G$3:G66,Table10[[#This Row],[محطة الأستلام]],$I$3:I66) -> 1920.82 | M66: =IF(Table10[[#This Row],[الرصيد بالطن]]=0,"0",IF(Table10[[#This Row],[الرصيد بالطن]]>=1,"دائن",IF(Table10[[#This Row],[الرصيد بالطن]]<=-1,"مدين"))) -> دائن | N66: رتبة 42.5
A67: =ROW()-2 -> 65 | B67: 2023-06-10 | C67: مصنع حلوان | E67: 3001881969 | F67: بدون | G67: الشركة الهندسية للمشروعات | H67: =IFERROR(VLOOKUP(G67,Table9[[اسم المحطة]:[الوحدة]],2,FALSE),"") -> طن | I67: 57.84 | K67: =IF(Table10[[#This Row],[صافى الوزن]]>=1,Table10[[#This Row],[صافى الوزن]]*Table10[[#This Row],[السعر]],0) -> 0 | L67: =SUMIF(Table9[اسم المحطة],Table10[[#This Row],[محطة الأستلام]],Table9[الاسمنت المستخدم بالطن])-SUMIF($G$3:G67,Table10[[#This Row],[محطة الأستلام]],$I$3:I67) -> 1862.98 | M67: =IF(Table10[[#This Row],[الرصيد بالطن]]=0,"0",IF(Table10[[#This Row],[الرصيد بالطن]]>=1,"دائن",IF(Table10[[#This Row],[الرصيد بالطن]]<=-1,"مدين"))) -> دائن | N67: رتبة 42.5
A68: 66 | B68: 2023-06-10 | C68: مصنع حلوان | E68: 300188197 | F68: بدون | G68: كابيتال بيلد | H68: =IFERROR(VLOOKUP(G68,Table9[[اسم المحطة]:[الوحدة]],2,FALSE),"") -> طن | I68: 59.14 | K68: =IF(Table10[[#This Row],[صافى الوزن]]>=1,Table10[[#This Row],[صافى الوزن]]*Table10[[#This Row],[السعر]],0) -> 0 | L68: =SUMIF(Table9[اسم المحطة],Table10[[#This Row],[محطة الأستلام]],Table9[الاسمنت المستخدم بالطن])-SUMIF($G$3:G68,Table10[[#This Row],[محطة الأستلام]],$I$3:I68) -> 817.85 | M68: =IF(Table10[[#This Row],[الرصيد بالطن]]=0,"0",IF(Table10[[#This Row],[الرصيد بالطن]]>=1,"دائن",IF(Table10[[#This Row],[الرصيد بالطن]]<=-1,"مدين"))) -> دائن | N68: رتبة 42.5
A69: 67 | B69: 2023-06-10 | C69: مصنع حلوان | E69: 3001881968 | F69: بدون | G69: الشركة الهندسية للمشروعات | H69: =IFERROR(VLOOKUP(G69,Table9[[اسم المحطة]:[الوحدة]],2,FALSE),"") -> طن | I69: 59.32 | K69: =IF(Table10[[#This Row],[صافى الوزن]]>=1,Table10[[#This Row],[صافى الوزن]]*Table10[[#This Row],[السعر]],0) -> 0 | L69: =SUMIF(Table9[اسم المحطة],Table10[[#This Row],[محطة الأستلام]],Table9[الاسمنت المستخدم بالطن])-SUMIF($G$3:G69,Table10[[#This Row],[محطة الأستلام]],$I$3:I69) -> 1803.66 | M69: =IF(Table10[[#This Row],[الرصيد بالطن]]=0,"0",IF(Table10[[#This Row],[الرصيد بالطن]]>=1,"دائن",IF(Table10[[#This Row],[الرصيد بالطن]]<=-1,"مدين"))) -> دائن | N69: رتبة 42.5
A70: 68 | B70: 2023-06-10 | C70: مصنع حلوان | E70: 3001881975 | F70: بدون | G70: كابيتال بيلد | H70: =IFERROR(VLOOKUP(G70,Table9[[اسم المحطة]:[الوحدة]],2,FALSE),"") -> طن | I70: 60.28 | K70: =IF(Table10[[#This Row],[صافى الوزن]]>=1,Table10[[#This Row],[صافى الوزن]]*Table10[[#This Row],[السعر]],0) -> 0 | L70: =SUMIF(Table9[اسم المحطة],Table10[[#This Row],[محطة الأستلام]],Table9[الاسمنت المستخدم بالطن])-SUMIF($G$3:G70,Table10[[#This Row],[محطة الأستلام]],$I$3:I70) -> 757.57 | M70: =IF(Table10[[#This Row],[الرصيد بالطن]]=0,"0",IF(Table10[[#This Row],[الرصيد بالطن]]>=1,"دائن",IF(Table10[[#This Row],[الرصيد بالطن]]<=-1,"مدين"))) -> دائن | N70: رتبة 42.5
A71: 69 | B71: 2023-06-12 | C71: مصنع حلوان | E71: 3001885923 | F71: بدون | G71: الشركة الهندسية للمشروعات | H71: =IFERROR(VLOOKUP(G71,Table9[[اسم المحطة]:[الوحدة]],2,FALSE),"") -> طن | I71: 56.8 | K71: =IF(Table10[[#This Row],[صافى الوزن]]>=1,Table10[[#This Row],[صافى الوزن]]*Table10[[#This Row],[السعر]],0) -> 0 | L71: =SUMIF(Table9[اسم المحطة],Table10[[#This Row],[محطة الأستلام]],Table9[الاسمنت المستخدم بالطن])-SUMIF($G$3:G71,Table10[[#This Row],[محطة الأستلام]],$I$3:I71) -> 1746.86 | M71: =IF(Table10[[#This Row],[الرصيد بالطن]]=0,"0",IF(Table10[[#This Row],[الرصيد بالطن]]>=1,"دائن",IF(Table10[[#This Row],[الرصيد بالطن]]<=-1,"مدين"))) -> دائن | N71: رتبة 42.5
A72: 70 | B72: 2023-06-12 | C72: مصنع حلوان | E72: 3001885921 | F72: بدون | G72: الشركة الهندسية للمشروعات | H72: =IFERROR(VLOOKUP(G72,Table9[[اسم المحطة]:[الوحدة]],2,FALSE),"") -> طن | I72: 59.16 | K72: =IF(Table10[[#This Row],[صافى الوزن]]>=1,Table10[[#This Row],[صافى الوزن]]*Table10[[#This Row],[السعر]],0) -> 0 | L72: =SUMIF(Table9[اسم المحطة],Table10[[#This Row],[محطة الأستلام]],Table9[الاسمنت المستخدم بالطن])-SUMIF($G$3:G72,Table10[[#This Row],[محطة الأستلام]],$I$3:I72) -> 1687.7 | M72: =IF(Table10[[#This Row],[الرصيد بالطن]]=0,"0",IF(Table10[[#This Row],[الرصيد بالطن]]>=1,"دائن",IF(Table10[[#This Row],[الرصيد بالطن]]<=-1,"مدين"))) -> دائن | N72: رتبة 42.5
A73: 71 | B73: 2023-06-16 | C73: مصنع حلوان | E73: 3001884646 | F73: 3002099596 | G73: الشركة الهندسية للمشروعات | H73: =IFERROR(VLOOKUP(G73,Table9[[اسم المحطة]:[الوحدة]],2,FALSE),"") -> طن | I73: 59.56 | K73: =IF(Table10[[#This Row],[صافى الوزن]]>=1,Table10[[#This Row],[صافى الوزن]]*Table10[[#This Row],[السعر]],0) -> 0 | L73: =SUMIF(Table9[اسم المحطة],Table10[[#This Row],[محطة الأستلام]],Table9[الاسمنت المستخدم بالطن])-SUMIF($G$3:G73,Table10[[#This Row],[محطة الأستلام]],$I$3:I73) -> 1628.14 | M73: =IF(Table10[[#This Row],[الرصيد بالطن]]=0,"0",IF(Table10[[#This Row],[الرصيد بالطن]]>=1,"دائن",IF(Table10[[#This Row],[الرصيد بالطن]]<=-1,"مدين"))) -> دائن | N73: رتبة 42.5
A74: 72 | B74: 2023-06-16 | C74: مصنع حلوان | E74: 3001884647 | F74: 3002099614 | G74: الشركة الهندسية للمشروعات | H74: =IFERROR(VLOOKUP(G74,Table9[[اسم المحطة]:[الوحدة]],2,FALSE),"") -> طن | I74: 59.86 | K74: =IF(Table10[[#This Row],[صافى الوزن]]>=1,Table10[[#This Row],[صافى الوزن]]*Table10[[#This Row],[السعر]],0) -> 0 | L74: =SUMIF(Table9[اسم المحطة],Table10[[#This Row],[محطة الأستلام]],Table9[الاسمنت المستخدم بالطن])-SUMIF($G$3:G74,Table10[[#This Row],[محطة الأستلام]],$I$3:I74) -> 1568.28 | M74: =IF(Table10[[#This Row],[الرصيد بالطن]]=0,"0",IF(Table10[[#This Row],[الرصيد بالطن]]>=1,"دائن",IF(Table10[[#This Row],[الرصيد بالطن]]<=-1,"مدين"))) -> دائن | N74: رتبة 42.5
A75: 73 | B75: 2023-06-17 | C75: مصنع حلوان | E75: 3001884668 | F75: 3002101553 | G75: الشركة الهندسية للمشروعات | H75: =IFERROR(VLOOKUP(G75,Table9[[اسم المحطة]:[الوحدة]],2,FALSE),"") -> طن | I75: 58.84 | K75: =IF(Table10[[#This Row],[صافى الوزن]]>=1,Table10[[#This Row],[صافى الوزن]]*Table10[[#This Row],[السعر]],0) -> 0 | L75: =SUMIF(Table9[اسم المحطة],Table10[[#This Row],[محطة الأستلام]],Table9[الاسمنت المستخدم بالطن])-SUMIF($G$3:G75,Table10[[#This Row],[محطة الأستلام]],$I$3:I75) -> 1509.44 | M75: =IF(Table10[[#This Row],[الرصيد بالطن]]=0,"0",IF(Table10[[#This Row],[الرصيد بالطن]]>=1,"دائن",IF(Table10[[#This Row],[الرصيد بالطن]]<=-1,"مدين"))) -> دائن | N75: رتبة 42.5
A76: 74 | B76: 2023-06-18 | C76: مصنع حلوان | E76: 3001884666 | F76: 3002101360 | G76: كابيتال بيلد | H76: =IFERROR(VLOOKUP(G76,Table9[[اسم المحطة]:[الوحدة]],2,FALSE),"") -> طن | I76: 57.78 | K76: =IF(Table10[[#This Row],[صافى الوزن]]>=1,Table10[[#This Row],[صافى الوزن]]*Table10[[#This Row],[السعر]],0) -> 0 | L76: =SUMIF(Table9[اسم المحطة],Table10[[#This Row],[محطة الأستلام]],Table9[الاسمنت المستخدم بالطن])-SUMIF($G$3:G76,Table10[[#This Row],[محطة الأستلام]],$I$3:I76) -> 699.79 | M76: =IF(Table10[[#This Row],[الرصيد بالطن]]=0,"0",IF(Table10[[#This Row],[الرصيد بالطن]]>=1,"دائن",IF(Table10[[#This Row],[الرصيد بالطن]]<=-1,"مدين"))) -> دائن | N76: رتبة 42.5
A77: 75 | B77: 2023-06-21 | C77: مصنع حلوان | E77: 3001884694 | F77: 3002105512 | G77: كابيتال بيلد | H77: =IFERROR(VLOOKUP(G77,Table9[[اسم المحطة]:[الوحدة]],2,FALSE),"") -> طن | I77: 57.08 | K77: =IF(Table10[[#This Row],[صافى الوزن]]>=1,Table10[[#This Row],[صافى الوزن]]*Table10[[#This Row],[السعر]],0) -> 0 | L77: =SUMIF(Table9[اسم المحطة],Table10[[#This Row],[محطة الأستلام]],Table9[الاسمنت المستخدم بالطن])-SUMIF($G$3:G77,Table10[[#This Row],[محطة الأستلام]],$I$3:I77) -> 642.71 | M77: =IF(Table10[[#This Row],[الرصيد بالطن]]=0,"0",IF(Table10[[#This Row],[الرصيد بالطن]]>=1,"دائن",IF(Table10[[#This Row],[الرصيد بالطن]]<=-1,"مدين"))) -> دائن | N77: رتبة 42.5
A78: 76 | B78: 2023-06-21 | C78: مصنع حلوان | E78: 3001884693 | F78: 3002105417 | G78: كابيتال بيلد | H78: =IFERROR(VLOOKUP(G78,Table9[[اسم المحطة]:[الوحدة]],2,FALSE),"") -> طن | I78: 58.86 | K78: =IF(Table10[[#This Row],[صافى الوزن]]>=1,Table10[[#This Row],[صافى الوزن]]*Table10[[#This Row],[السعر]],0) -> 0 | L78: =SUMIF(Table9[اسم المحطة],Table10[[#This Row],[محطة الأستلام]],Table9[الاسمنت المستخدم بالطن])-SUMIF($G$3:G78,Table10[[#This Row],[محطة الأستلام]],$I$3:I78) -> 583.85 | M78: =IF(Table10[[#This Row],[الرصيد بالطن]]=0,"0",IF(Table10[[#This Row],[الرصيد بالطن]]>=1,"دائن",IF(Table10[[#This Row],[الرصيد بالطن]]<=-1,"مدين"))) -> دائن | N78: رتبة 42.5
A79: 77 | B79: 2023-06-23 | C79: مصنع حلوان | E79: 3001884720 | F79: 3002108200 | G79: الشركة الهندسية للمشروعات | H79: =IFERROR(VLOOKUP(G79,Table9[[اسم المحطة]:[الوحدة]],2,FALSE),"") -> طن | I79: 57.62 | K79: =IF(Table10[[#This Row],[صافى الوزن]]>=1,Table10[[#This Row],[صافى الوزن]]*Table10[[#This Row],[السعر]],0) -> 0 | L79: =SUMIF(Table9[اسم المحطة],Table10[[#This Row],[محطة الأستلام]],Table9[الاسمنت المستخدم بالطن])-SUMIF($G$3:G79,Table10[[#This Row],[محطة الأستلام]],$I$3:I79) -> 1451.82 | M79: =IF(Table10[[#This Row],[الرصيد بالطن]]=0,"0",IF(Table10[[#This Row],[الرصيد بالطن]]>=1,"دائن",IF(Table10[[#This Row],[الرصيد بالطن]]<=-1,"مدين"))) -> دائن | N79: رتبة 42.5
A80: 78 | B80: 2023-06-23 | C80: مصنع حلوان | E80: 3001884722 | F80: 3002108184 | G80: الشركة الهندسية للمشروعات | H80: =IFERROR(VLOOKUP(G80,Table9[[اسم المحطة]:[الوحدة]],2,FALSE),"") -> طن | I80: 60.26 | K80: =IF(Table10[[#This Row],[صافى الوزن]]>=1,Table10[[#This Row],[صافى الوزن]]*Table10[[#This Row],[السعر]],0) -> 0 | L80: =SUMIF(Table9[اسم المحطة],Table10[[#This Row],[محطة الأستلام]],Table9[الاسمنت المستخدم بالطن])-SUMIF($G$3:G80,Table10[[#This Row],[محطة الأستلام]],$I$3:I80) -> 1391.56 | M80: =IF(Table10[[#This Row],[الرصيد بالطن]]=0,"0",IF(Table10[[#This Row],[الرصيد بالطن]]>=1,"دائن",IF(Table10[[#This Row],[الرصيد بالطن]]<=-1,"مدين"))) -> دائن | N80: رتبة 42.5
A81: 79 | B81: 2023-06-25 | C81: مصنع حلوان | E81: 3001884749 | F81: 3002111256 | G81: الشركة الهندسية للمشروعات | H81: =IFERROR(VLOOKUP(G81,Table9[[اسم المحطة]:[الوحدة]],2,FALSE),"") -> طن | I81: 58.26 | K81: =IF(Table10[[#This Row],[صافى الوزن]]>=1,Table10[[#This Row],[صافى الوزن]]*Table10[[#This Row],[السعر]],0) -> 0 | L81: =SUMIF(Table9[اسم المحطة],Table10[[#This Row],[محطة الأستلام]],Table9[الاسمنت المستخدم بالطن])-SUMIF($G$3:G81,Table10[[#This Row],[محطة الأستلام]],$I$3:I81) -> 1333.3 | M81: =IF(Table10[[#This Row],[الرصيد بالطن]]=0,"0",IF(Table10[[#This Row],[الرصيد بالطن]]>=1,"دائن",IF(Table10[[#This Row],[الرصيد بالطن]]<=-1,"مدين"))) -> دائن | N81: رتبة 42.5
A82: 80 | B82: 2023-06-26 | C82: مصنع حلوان | E82: 3001884757 | F82: 3002111329 | G82: كابيتال بيلد | H82: =IFERROR(VLOOKUP(G82,Table9[[اسم المحطة]:[الوحدة]],2,FALSE),"") -> طن | I82: 59.42 | K82: =IF(Table10[[#This Row],[صافى الوزن]]>=1,Table10[[#This Row],[صافى الوزن]]*Table10[[#This Row],[السعر]],0) -> 0 | L82: =SUMIF(Table9[اسم المحطة],Table10[[#This Row],[محطة الأستلام]],Table9[الاسمنت المستخدم بالطن])-SUMIF($G$3:G82,Table10[[#This Row],[محطة الأستلام]],$I$3:I82) -> 524.43 | M82: =IF(Table10[[#This Row],[الرصيد بالطن]]=0,"0",IF(Table10[[#This Row],[الرصيد بالطن]]>=1,"دائن",IF(Table10[[#This Row],[الرصيد بالطن]]<=-1,"مدين"))) -> دائن | N82: رتبة 42.5
A83: 81 | B83: 2023-07-10 | C83: مصنع حلوان | E83: 3001884776 | F83: 3002124676 | G83: الشركة الهندسية للمشروعات | H83: =IFERROR(VLOOKUP(G83,Table9[[اسم المحطة]:[الوحدة]],2,FALSE),"") -> طن | I83: 59.52 | K83: =IF(Table10[[#This Row],[صافى الوزن]]>=1,Table10[[#This Row],[صافى الوزن]]*Table10[[#This Row],[السعر]],0) -> 0 | L83: =SUMIF(Table9[اسم المحطة],Table10[[#This Row],[محطة الأستلام]],Table9[الاسمنت المستخدم بالطن])-SUMIF($G$3:G83,Table10[[#This Row],[محطة الأستلام]],$I$3:I83) -> 1273.78 | M83: =IF(Table10[[#This Row],[الرصيد بالطن]]=0,"0",IF(Table10[[#This Row],[الرصيد بالطن]]>=1,"دائن",IF(Table10[[#This Row],[الرصيد بالطن]]<=-1,"مدين"))) -> دائن | N83: رتبة 42.5
A84: 82 | B84: 2023-07-10 | C84: مصنع حلوان | E84: 3001884777 | F84: 3002124411 | G84: كابيتال بيلد | H84: =IFERROR(VLOOKUP(G84,Table9[[اسم المحطة]:[الوحدة]],2,FALSE),"") -> طن | I84: 59.72 | K84: =IF(Table10[[#This Row],[صافى الوزن]]>=1,Table10[[#This Row],[صافى الوزن]]*Table10[[#This Row],[السعر]],0) -> 0 | L84: =SUMIF(Table9[اسم المحطة],Table10[[#This Row],[محطة الأستلام]],Table9[الاسمنت المستخدم بالطن])-SUMIF($G$3:G84,Table10[[#This Row],[محطة الأستلام]],$I$3:I84) -> 464.71 | M84: =IF(Table10[[#This Row],[الرصيد بالطن]]=0,"0",IF(Table10[[#This Row],[الرصيد بالطن]]>=1,"دائن",IF(Table10[[#This Row],[الرصيد بالطن]]<=-1,"مدين"))) -> دائن | N84: رتبة 42.5
A85: 83 | B85: 2023-07-10 | C85: مصنع حلوان | E85: 3001884775 | F85: 3002124675 | G85: بيتر ميكس | H85: =IFERROR(VLOOKUP(G85,Table9[[اسم المحطة]:[الوحدة]],2,FALSE),"") -> طن | I85: 60.4 | K85: =IF(Table10[[#This Row],[صافى الوزن]]>=1,Table10[[#This Row],[صافى الوزن]]*Table10[[#This Row],[السعر]],0) -> 0 | L85: =SUMIF(Table9[اسم المحطة],Table10[[#This Row],[محطة الأستلام]],Table9[الاسمنت المستخدم بالطن])-SUMIF($G$3:G85,Table10[[#This Row],[محطة الأستلام]],$I$3:I85) -> 128.02 | M85: =IF(Table10[[#This Row],[الرصيد بالطن]]=0,"0",IF(Table10[[#This Row],[الرصيد بالطن]]>=1,"دائن",IF(Table10[[#This Row],[الرصيد بالطن]]<=-1,"مدين"))) -> دائن | N85: رتبة 42.5
A86: 84 | B86: 2023-07-10 | C86: مصنع حلوان | E86: 3001884778 | F86: 3002124521 | G86: الشركة الهندسية للمشروعات | H86: =IFERROR(VLOOKUP(G86,Table9[[اسم المحطة]:[الوحدة]],2,FALSE),"") -> طن | I86: 60.48 | K86: =IF(Table10[[#This Row],[صافى الوزن]]>=1,Table10[[#This Row],[صافى الوزن]]*Table10[[#This Row],[السعر]],0) -> 0 | L86: =SUMIF(Table9[اسم المحطة],Table10[[#This Row],[محطة الأستلام]],Table9[الاسمنت المستخدم بالطن])-SUMIF($G$3:G86,Table10[[#This Row],[محطة الأستلام]],$I$3:I86) -> 1213.3 | M86: =IF(Table10[[#This Row],[الرصيد بالطن]]=0,"0",IF(Table10[[#This Row],[الرصيد بالطن]]>=1,"دائن",IF(Table10[[#This Row],[الرصيد بالطن]]<=-1,"مدين"))) -> دائن | N86: رتبة 42.5
A87: 85 | B87: 2023-07-12 | C87: مصنع حلوان | E87: 3001884783 | F87: 3002126267 | G87: الشركة الهندسية للمشروعات | H87: =IFERROR(VLOOKUP(G87,Table9[[اسم المحطة]:[الوحدة]],2,FALSE),"") -> طن | I87: 60.24 | K87: =IF(Table10[[#This Row],[صافى الوزن]]>=1,Table10[[#This Row],[صافى الوزن]]*Table10[[#This Row],[السعر]],0) -> 0 | L87: =SUMIF(Table9[اسم المحطة],Table10[[#This Row],[محطة الأستلام]],Table9[الاسمنت المستخدم بالطن])-SUMIF($G$3:G87,Table10[[#This Row],[محطة الأستلام]],$I$3:I87) -> 1153.06 | M87: =IF(Table10[[#This Row],[الرصيد بالطن]]=0,"0",IF(Table10[[#This Row],[الرصيد بالطن]]>=1,"دائن",IF(Table10[[#This Row],[الرصيد بالطن]]<=-1,"مدين"))) -> دائن | N87: رتبة 42.5
A88: 86 | B88: 2023-07-12 | C88: مصنع حلوان | E88: 3001884784 | F88: 3002126253 | G88: الشركة الهندسية للمشروعات | H88: =IFERROR(VLOOKUP(G88,Table9[[اسم المحطة]:[الوحدة]],2,FALSE),"") -> طن | I88: 60.58 | K88: =IF(Table10[[#This Row],[صافى الوزن]]>=1,Table10[[#This Row],[صافى الوزن]]*Table10[[#This Row],[السعر]],0) -> 0 | L88: =SUMIF(Table9[اسم المحطة],Table10[[#This Row],[محطة الأستلام]],Table9[الاسمنت المستخدم بالطن])-SUMIF($G$3:G88,Table10[[#This Row],[محطة الأستلام]],$I$3:I88) -> 1092.48 | M88: =IF(Table10[[#This Row],[الرصيد بالطن]]=0,"0",IF(Table10[[#This Row],[الرصيد بالطن]]>=1,"دائن",IF(Table10[[#This Row],[الرصيد بالطن]]<=-1,"مدين"))) -> دائن | N88: رتبة 42.5
A89: 87 | B89: 2023-07-12 | C89: مصنع حلوان | E89: 3001884785 | F89: 3002126247 | G89: بيتر ميكس | H89: =IFERROR(VLOOKUP(G89,Table9[[اسم المحطة]:[الوحدة]],2,FALSE),"") -> طن | I89: 60.72 | K89: =IF(Table10[[#This Row],[صافى الوزن]]>=1,Table10[[#This Row],[صافى الوزن]]*Table10[[#This Row],[السعر]],0) -> 0 | L89: =SUMIF(Table9[اسم المحطة],Table10[[#This Row],[محطة الأستلام]],Table9[الاسمنت المستخدم بالطن])-SUMIF($G$3:G89,Table10[[#This Row],[محطة الأستلام]],$I$3:I89) -> 67.3 | M89: =IF(Table10[[#This Row],[الرصيد بالطن]]=0,"0",IF(Table10[[#This Row],[الرصيد بالطن]]>=1,"دائن",IF(Table10[[#This Row],[الرصيد بالطن]]<=-1,"مدين"))) -> دائن | N89: رتبة 42.5
A90: 88 | B90: 2023-07-12 | C90: مصنع حلوان | E90: 3001884788 | F90: 3002126250 | G90: الشركة الهندسية للمشروعات | H90: =IFERROR(VLOOKUP(G90,Table9[[اسم المحطة]:[الوحدة]],2,FALSE),"") -> طن | I90: 63.32 | K90: =IF(Table10[[#This Row],[صافى الوزن]]>=1,Table10[[#This Row],[صافى الوزن]]*Table10[[#This Row],[السعر]],0) -> 0 | L90: =SUMIF(Table9[اسم المحطة],Table10[[#This Row],[محطة الأستلام]],Table9[الاسمنت المستخدم بالطن])-SUMIF($G$3:G90,Table10[[#This Row],[محطة الأستلام]],$I$3:I90) -> 1029.16 | M90: =IF(Table10[[#This Row],[الرصيد بالطن]]=0,"0",IF(Table10[[#This Row],[الرصيد بالطن]]>=1,"دائن",IF(Table10[[#This Row],[الرصيد بالطن]]<=-1,"مدين"))) -> دائن | N90: رتبة 42.5
A91: 89 | B91: 2023-08-02 | C91: مصنع حلوان | E91: 3001884882 | F91: 3002145228 | G91: كابيتال بيلد | H91: =IFERROR(VLOOKUP(G91,Table9[[اسم المحطة]:[الوحدة]],2,FALSE),"") -> طن | I91: 62.21 | K91: =IF(Table10[[#This Row],[صافى الوزن]]>=1,Table10[[#This Row],[صافى الوزن]]*Table10[[#This Row],[السعر]],0) -> 0 | L91: =SUMIF(Table9[اسم المحطة],Table10[[#This Row],[محطة الأستلام]],Table9[الاسمنت المستخدم بالطن])-SUMIF($G$3:G91,Table10[[#This Row],[محطة الأستلام]],$I$3:I91) -> 402.5 | M91: =IF(Table10[[#This Row],[الرصيد بالطن]]=0,"0",IF(Table10[[#This Row],[الرصيد بالطن]]>=1,"دائن",IF(Table10[[#This Row],[الرصيد بالطن]]<=-1,"مدين"))) -> دائن | N91: رتبة 42.5
A92: 90 | B92: 2023-08-02 | C92: مصنع حلوان | E92: 3001884881 | F92: 3002145209 | G92: الشركة الهندسية للمشروعات | H92: =IFERROR(VLOOKUP(G92,Table9[[اسم المحطة]:[الوحدة]],2,FALSE),"") -> طن | I92: 62.86 | K92: =IF(Table10[[#This Row],[صافى الوزن]]>=1,Table10[[#This Row],[صافى الوزن]]*Table10[[#This Row],[السعر]],0) -> 0 | L92: =SUMIF(Table9[اسم المحطة],Table10[[#This Row],[محطة الأستلام]],Table9[الاسمنت المستخدم بالطن])-SUMIF($G$3:G92,Table10[[#This Row],[محطة الأستلام]],$I$3:I92) -> 966.3 | M92: =IF(Table10[[#This Row],[الرصيد بالطن]]=0,"0",IF(Table10[[#This Row],[الرصيد بالطن]]>=1,"دائن",IF(Table10[[#This Row],[الرصيد بالطن]]<=-1,"مدين"))) -> دائن | N92: رتبة 42.5
A93: 91 | B93: 2023-08-02 | C93: مصنع حلوان | E93: 3001884879 | F93: 3002145202 | G93: الشركة الهندسية للمشروعات | H93: =IFERROR(VLOOKUP(G93,Table9[[اسم المحطة]:[الوحدة]],2,FALSE),"") -> طن | I93: 62.9 | K93: =IF(Table10[[#This Row],[صافى الوزن]]>=1,Table10[[#This Row],[صافى الوزن]]*Table10[[#This Row],[السعر]],0) -> 0 | L93: =SUMIF(Table9[اسم المحطة],Table10[[#This Row],[محطة الأستلام]],Table9[الاسمنت المستخدم بالطن])-SUMIF($G$3:G93,Table10[[#This Row],[محطة الأستلام]],$I$3:I93) -> 903.4 | M93: =IF(Table10[[#This Row],[الرصيد بالطن]]=0,"0",IF(Table10[[#This Row],[الرصيد بالطن]]>=1,"دائن",IF(Table10[[#This Row],[الرصيد بالطن]]<=-1,"مدين"))) -> دائن | N93: رتبة 42.5
A94: 92 | B94: 2023-08-02 | C94: مصنع حلوان | E94: 3001884885 | F94: 3002145261 | G94: الشركة الهندسية للمشروعات | H94: =IFERROR(VLOOKUP(G94,Table9[[اسم المحطة]:[الوحدة]],2,FALSE),"") -> طن | I94: 63.8 | K94: =IF(Table10[[#This Row],[صافى الوزن]]>=1,Table10[[#This Row],[صافى الوزن]]*Table10[[#This Row],[السعر]],0) -> 0 | L94: =SUMIF(Table9[اسم المحطة],Table10[[#This Row],[محطة الأستلام]],Table9[الاسمنت المستخدم بالطن])-SUMIF($G$3:G94,Table10[[#This Row],[محطة الأستلام]],$I$3:I94) -> 839.6 | M94: =IF(Table10[[#This Row],[الرصيد بالطن]]=0,"0",IF(Table10[[#This Row],[الرصيد بالطن]]>=1,"دائن",IF(Table10[[#This Row],[الرصيد بالطن]]<=-1,"مدين"))) -> دائن | N94: رتبة 42.5
A95: 93 | B95: 2023-08-03 | C95: مصنع حلوان | E95: 3001884888 | F95: 3002145541 | G95: الشركة الهندسية للمشروعات | H95: =IFERROR(VLOOKUP(G95,Table9[[اسم المحطة]:[الوحدة]],2,FALSE),"") -> طن | I95: 62.82 | K95: =IF(Table10[[#This Row],[صافى الوزن]]>=1,Table10[[#This Row],[صافى الوزن]]*Table10[[#This Row],[السعر]],0) -> 0 | L95: =SUMIF(Table9[اسم المحطة],Table10[[#This Row],[محطة الأستلام]],Table9[الاسمنت المستخدم بالطن])-SUMIF($G$3:G95,Table10[[#This Row],[محطة الأستلام]],$I$3:I95) -> 776.78 | M95: =IF(Table10[[#This Row],[الرصيد بالطن]]=0,"0",IF(Table10[[#This Row],[الرصيد بالطن]]>=1,"دائن",IF(Table10[[#This Row],[الرصيد بالطن]]<=-1,"مدين"))) -> دائن | N95: رتبة 42.5
A96: 94 | B96: 2023-08-09 | C96: مصنع حلوان | E96: 3001884909 | F96: 3002152542 | G96: الشركة الهندسية للمشروعات | H96: =IFERROR(VLOOKUP(G96,Table9[[اسم المحطة]:[الوحدة]],2,FALSE),"") -> طن | I96: 62.06 | K96: =IF(Table10[[#This Row],[صافى الوزن]]>=1,Table10[[#This Row],[صافى الوزن]]*Table10[[#This Row],[السعر]],0) -> 0 | L96: =SUMIF(Table9[اسم المحطة],Table10[[#This Row],[محطة الأستلام]],Table9[الاسمنت المستخدم بالطن])-SUMIF($G$3:G96,Table10[[#This Row],[محطة الأستلام]],$I$3:I96) -> 714.72 | M96: =IF(Table10[[#This Row],[الرصيد بالطن]]=0,"0",IF(Table10[[#This Row],[الرصيد بالطن]]>=1,"دائن",IF(Table10[[#This Row],[الرصيد بالطن]]<=-1,"مدين"))) -> دائن | N96: رتبة 42.5
A97: 95 | B97: 2023-08-09 | C97: مصنع حلوان | E97: 3001884914 | F97: 3002152479 | G97: الشركة الهندسية للمشروعات | H97: =IFERROR(VLOOKUP(G97,Table9[[اسم المحطة]:[الوحدة]],2,FALSE),"") -> طن | I97: 62.18 | K97: =IF(Table10[[#This Row],[صافى الوزن]]>=1,Table10[[#This Row],[صافى الوزن]]*Table10[[#This Row],[السعر]],0) -> 0 | L97: =SUMIF(Table9[اسم المحطة],Table10[[#This Row],[محطة الأستلام]],Table9[الاسمنت المستخدم بالطن])-SUMIF($G$3:G97,Table10[[#This Row],[محطة الأستلام]],$I$3:I97) -> 652.54 | M97: =IF(Table10[[#This Row],[الرصيد بالطن]]=0,"0",IF(Table10[[#This Row],[الرصيد بالطن]]>=1,"دائن",IF(Table10[[#This Row],[الرصيد بالطن]]<=-1,"مدين"))) -> دائن | N97: رتبة 42.5
A98: 96 | B98: 2023-08-09 | C98: مصنع حلوان | E98: 3001884913 | F98: 3002152473 | G98: كابيتال بيلد | H98: =IFERROR(VLOOKUP(G98,Table9[[اسم المحطة]:[الوحدة]],2,FALSE),"") -> طن | I98: 62.72 | K98: =IF(Table10[[#This Row],[صافى الوزن]]>=1,Table10[[#This Row],[صافى الوزن]]*Table10[[#This Row],[السعر]],0) -> 0 | L98: =SUMIF(Table9[اسم المحطة],Table10[[#This Row],[محطة الأستلام]],Table9[الاسمنت المستخدم بالطن])-SUMIF($G$3:G98,Table10[[#This Row],[محطة الأستلام]],$I$3:I98) -> 339.78 | M98: =IF(Table10[[#This Row],[الرصيد بالطن]]=0,"0",IF(Table10[[#This Row],[الرصيد بالطن]]>=1,"دائن",IF(Table10[[#This Row],[الرصيد بالطن]]<=-1,"مدين"))) -> دائن | N98: رتبة 42.5
A99: 97 | B99: 2023-08-09 | C99: مصنع حلوان | E99: 3001884908 | F99: 3002152549 | G99: الشركة الهندسية للمشروعات | H99: =IFERROR(VLOOKUP(G99,Table9[[اسم المحطة]:[الوحدة]],2,FALSE),"") -> طن | I99: 63.06 | K99: =IF(Table10[[#This Row],[صافى الوزن]]>=1,Table10[[#This Row],[صافى الوزن]]*Table10[[#This Row],[السعر]],0) -> 0 | L99: =SUMIF(Table9[اسم المحطة],Table10[[#This Row],[محطة الأستلام]],Table9[الاسمنت المستخدم بالطن])-SUMIF($G$3:G99,Table10[[#This Row],[محطة الأستلام]],$I$3:I99) -> 589.48 | M99: =IF(Table10[[#This Row],[الرصيد بالطن]]=0,"0",IF(Table10[[#This Row],[الرصيد بالطن]]>=1,"دائن",IF(Table10[[#This Row],[الرصيد بالطن]]<=-1,"مدين"))) -> دائن | N99: رتبة 42.5
A100: 98 | B100: 2023-08-11 | C100: مصنع حلوان | E100: 3001884920 | F100: 3002154161 | G100: الشركة الهندسية للمشروعات | H100: =IFERROR(VLOOKUP(G100,Table9[[اسم المحطة]:[الوحدة]],2,FALSE),"") -> طن | I100: 63.26 | K100: =IF(Table10[[#This Row],[صافى الوزن]]>=1,Table10[[#This Row],[صافى الوزن]]*Table10[[#This Row],[السعر]],0) -> 0 | L100: =SUMIF(Table9[اسم المحطة],Table10[[#This Row],[محطة الأستلام]],Table9[الاسمنت المستخدم بالطن])-SUMIF($G$3:G100,Table10[[#This Row],[محطة الأستلام]],$I$3:I100) -> 526.22 | M100: =IF(Table10[[#This Row],[الرصيد بالطن]]=0,"0",IF(Table10[[#This Row],[الرصيد بالطن]]>=1,"دائن",IF(Table10[[#This Row],[الرصيد بالطن]]<=-1,"مدين"))) -> دائن | N100: رتبة 42.5
A101: 99 | B101: 2023-08-12 | C101: مصنع حلوان | E101: 3001884921 | F101: 3002154159 | G101: الشركة الهندسية للمشروعات | H101: =IFERROR(VLOOKUP(G101,Table9[[اسم المحطة]:[الوحدة]],2,FALSE),"") -> طن | I101: 63.46 | K101: =IF(Table10[[#This Row],[صافى الوزن]]>=1,Table10[[#This Row],[صافى الوزن]]*Table10[[#This Row],[السعر]],0) -> 0 | L101: =SUMIF(Table9[اسم المحطة],Table10[[#This Row],[محطة الأستلام]],Table9[الاسمنت المستخدم بالطن])-SUMIF($G$3:G101,Table10[[#This Row],[محطة الأستلام]],$I$3:I101) -> 462.76 | M101: =IF(Table10[[#This Row],[الرصيد بالطن]]=0,"0",IF(Table10[[#This Row],[الرصيد بالطن]]>=1,"دائن",IF(Table10[[#This Row],[الرصيد بالطن]]<=-1,"مدين"))) -> دائن | N101: رتبة 42.5
A102: 100 | B102: 2023-08-21 | C102: مصنع السويس | E102: 1002896361 | F102: 1003289303 | G102: الشركة الهندسية للمشروعات | H102: =IFERROR(VLOOKUP(G102,Table9[[اسم المحطة]:[الوحدة]],2,FALSE),"") -> طن | I102: 60.04 | K102: =IF(Table10[[#This Row],[صافى الوزن]]>=1,Table10[[#This Row],[صافى الوزن]]*Table10[[#This Row],[السعر]],0) -> 0 | L102: =SUMIF(Table9[اسم المحطة],Table10[[#This Row],[محطة الأستلام]],Table9[الاسمنت المستخدم بالطن])-SUMIF($G$3:G102,Table10[[#This Row],[محطة الأستلام]],$I$3:I102) -> 402.72 | M102: =IF(Table10[[#This Row],[الرصيد بالطن]]=0,"0",IF(Table10[[#This Row],[الرصيد بالطن]]>=1,"دائن",IF(Table10[[#This Row],[الرصيد بالطن]]<=-1,"مدين"))) -> دائن | N102: رتبة 42.5
A103: 101 | B103: 2023-08-22 | C103: مصنع السويس | E103: 1002896363 | F103: 1003289425 | G103: الشركة الهندسية للمشروعات | H103: =IFERROR(VLOOKUP(G103,Table9[[اسم المحطة]:[الوحدة]],2,FALSE),"") -> طن | I103: 59.6 | K103: =IF(Table10[[#This Row],[صافى الوزن]]>=1,Table10[[#This Row],[صافى الوزن]]*Table10[[#This Row],[السعر]],0) -> 0 | L103: =SUMIF(Table9[اسم المحطة],Table10[[#This Row],[محطة الأستلام]],Table9[الاسمنت المستخدم بالطن])-SUMIF($G$3:G103,Table10[[#This Row],[محطة الأستلام]],$I$3:I103) -> 343.12 | M103: =IF(Table10[[#This Row],[الرصيد بالطن]]=0,"0",IF(Table10[[#This Row],[الرصيد بالطن]]>=1,"دائن",IF(Table10[[#This Row],[الرصيد بالطن]]<=-1,"مدين"))) -> دائن | N103: رتبة 42.5
A104: 102 | B104: 2023-08-23 | C104: مصنع السويس | E104: 1002896379 | F104: 1003290055 | G104: الشركة الهندسية للمشروعات | H104: =IFERROR(VLOOKUP(G104,Table9[[اسم المحطة]:[الوحدة]],2,FALSE),"") -> طن | I104: 57.58 | K104: =IF(Table10[[#This Row],[صافى الوزن]]>=1,Table10[[#This Row],[صافى الوزن]]*Table10[[#This Row],[السعر]],0) -> 0 | L104: =SUMIF(Table9[اسم المحطة],Table10[[#This Row],[محطة الأستلام]],Table9[الاسمنت المستخدم بالطن])-SUMIF($G$3:G104,Table10[[#This Row],[محطة الأستلام]],$I$3:I104) -> 285.54 | M104: =IF(Table10[[#This Row],[الرصيد بالطن]]=0,"0",IF(Table10[[#This Row],[الرصيد بالطن]]>=1,"دائن",IF(Table10[[#This Row],[الرصيد بالطن]]<=-1,"مدين"))) -> دائن | N104: رتبة 42.5
A105: 103 | H105: =IFERROR(VLOOKUP(G105,Table9[[اسم المحطة]:[الوحدة]],2,FALSE),"") ->  | K105: =IF(Table10[[#This Row],[صافى الوزن]]>=1,Table10[[#This Row],[صافى الوزن]]*Table10[[#This Row],[السعر]],0) -> 0 | L105: =SUMIF(Table9[اسم المحطة],Table10[[#This Row],[محطة الأستلام]],Table9[الاسمنت المستخدم بالطن])-SUMIF($G$3:G105,Table10[[#This Row],[محطة الأستلام]],$I$3:I105) -> 0 | M105: =IF(Table10[[#This Row],[الرصيد بالطن]]=0,"0",IF(Table10[[#This Row],[الرصيد بالطن]]>=1,"دائن",IF(Table10[[#This Row],[الرصيد بالطن]]<=-1,"مدين"))) -> 0
A106: 104 | H106: =IFERROR(VLOOKUP(G106,Table9[[اسم المحطة]:[الوحدة]],2,FALSE),"") ->  | K106: =IF(Table10[[#This Row],[صافى الوزن]]>=1,Table10[[#This Row],[صافى الوزن]]*Table10[[#This Row],[السعر]],0) -> 0 | L106: =SUMIF(Table9[اسم المحطة],Table10[[#This Row],[محطة الأستلام]],Table9[الاسمنت المستخدم بالطن])-SUMIF($G$3:G106,Table10[[#This Row],[محطة الأستلام]],$I$3:I106) -> 0 | M106: =IF(Table10[[#This Row],[الرصيد بالطن]]=0,"0",IF(Table10[[#This Row],[الرصيد بالطن]]>=1,"دائن",IF(Table10[[#This Row],[الرصيد بالطن]]<=-1,"مدين"))) -> 0
A107: 105 | H107: =IFERROR(VLOOKUP(G107,Table9[[اسم المحطة]:[الوحدة]],2,FALSE),"") ->  | K107: =IF(Table10[[#This Row],[صافى الوزن]]>=1,Table10[[#This Row],[صافى الوزن]]*Table10[[#This Row],[السعر]],0) -> 0 | L107: =SUMIF(Table9[اسم المحطة],Table10[[#This Row],[محطة الأستلام]],Table9[الاسمنت المستخدم بالطن])-SUMIF($G$3:G107,Table10[[#This Row],[محطة الأستلام]],$I$3:I107) -> 0 | M107: =IF(Table10[[#This Row],[الرصيد بالطن]]=0,"0",IF(Table10[[#This Row],[الرصيد بالطن]]>=1,"دائن",IF(Table10[[#This Row],[الرصيد بالطن]]<=-1,"مدين"))) -> 0
A108: 106 | H108: =IFERROR(VLOOKUP(G108,Table9[[اسم المحطة]:[الوحدة]],2,FALSE),"") ->  | K108: =IF(Table10[[#This Row],[صافى الوزن]]>=1,Table10[[#This Row],[صافى الوزن]]*Table10[[#This Row],[السعر]],0) -> 0 | L108: =SUMIF(Table9[اسم المحطة],Table10[[#This Row],[محطة الأستلام]],Table9[الاسمنت المستخدم بالطن])-SUMIF($G$3:G108,Table10[[#This Row],[محطة الأستلام]],$I$3:I108) -> 0 | M108: =IF(Table10[[#This Row],[الرصيد بالطن]]=0,"0",IF(Table10[[#This Row],[الرصيد بالطن]]>=1,"دائن",IF(Table10[[#This Row],[الرصيد بالطن]]<=-1,"مدين"))) -> 0
A109: 107 | H109: =IFERROR(VLOOKUP(G109,Table9[[اسم المحطة]:[الوحدة]],2,FALSE),"") ->  | K109: =IF(Table10[[#This Row],[صافى الوزن]]>=1,Table10[[#This Row],[صافى الوزن]]*Table10[[#This Row],[السعر]],0) -> 0 | L109: =SUMIF(Table9[اسم المحطة],Table10[[#This Row],[محطة الأستلام]],Table9[الاسمنت المستخدم بالطن])-SUMIF($G$3:G109,Table10[[#This Row],[محطة الأستلام]],$I$3:I109) -> 0 | M109: =IF(Table10[[#This Row],[الرصيد بالطن]]=0,"0",IF(Table10[[#This Row],[الرصيد بالطن]]>=1,"دائن",IF(Table10[[#This Row],[الرصيد بالطن]]<=-1,"مدين"))) -> 0
A110: 108 | H110: =IFERROR(VLOOKUP(G110,Table9[[اسم المحطة]:[الوحدة]],2,FALSE),"") ->  | K110: =IF(Table10[[#This Row],[صافى الوزن]]>=1,Table10[[#This Row],[صافى الوزن]]*Table10[[#This Row],[السعر]],0) -> 0 | L110: =SUMIF(Table9[اسم المحطة],Table10[[#This Row],[محطة الأستلام]],Table9[الاسمنت المستخدم بالطن])-SUMIF($G$3:G110,Table10[[#This Row],[محطة الأستلام]],$I$3:I110) -> 0 | M110: =IF(Table10[[#This Row],[الرصيد بالطن]]=0,"0",IF(Table10[[#This Row],[الرصيد بالطن]]>=1,"دائن",IF(Table10[[#This Row],[الرصيد بالطن]]<=-1,"مدين"))) -> 0
A111: 109 | H111: =IFERROR(VLOOKUP(G111,Table9[[اسم المحطة]:[الوحدة]],2,FALSE),"") ->  | K111: =IF(Table10[[#This Row],[صافى الوزن]]>=1,Table10[[#This Row],[صافى الوزن]]*Table10[[#This Row],[السعر]],0) -> 0 | L111: =SUMIF(Table9[اسم المحطة],Table10[[#This Row],[محطة الأستلام]],Table9[الاسمنت المستخدم بالطن])-SUMIF($G$3:G111,Table10[[#This Row],[محطة الأستلام]],$I$3:I111) -> 0 | M111: =IF(Table10[[#This Row],[الرصيد بالطن]]=0,"0",IF(Table10[[#This Row],[الرصيد بالطن]]>=1,"دائن",IF(Table10[[#This Row],[الرصيد بالطن]]<=-1,"مدين"))) -> 0
A112: 110 | H112: =IFERROR(VLOOKUP(G112,Table9[[اسم المحطة]:[الوحدة]],2,FALSE),"") ->  | K112: =IF(Table10[[#This Row],[صافى الوزن]]>=1,Table10[[#This Row],[صافى الوزن]]*Table10[[#This Row],[السعر]],0) -> 0 | L112: =SUMIF(Table9[اسم المحطة],Table10[[#This Row],[محطة الأستلام]],Table9[الاسمنت المستخدم بالطن])-SUMIF($G$3:G112,Table10[[#This Row],[محطة الأستلام]],$I$3:I112) -> 0 | M112: =IF(Table10[[#This Row],[الرصيد بالطن]]=0,"0",IF(Table10[[#This Row],[الرصيد بالطن]]>=1,"دائن",IF(Table10[[#This Row],[الرصيد بالطن]]<=-1,"مدين"))) -> 0
A113: 111 | H113: =IFERROR(VLOOKUP(G113,Table9[[اسم المحطة]:[الوحدة]],2,FALSE),"") ->  | K113: =IF(Table10[[#This Row],[صافى الوزن]]>=1,Table10[[#This Row],[صافى الوزن]]*Table10[[#This Row],[السعر]],0) -> 0 | L113: =SUMIF(Table9[اسم المحطة],Table10[[#This Row],[محطة الأستلام]],Table9[الاسمنت المستخدم بالطن])-SUMIF($G$3:G113,Table10[[#This Row],[محطة الأستلام]],$I$3:I113) -> 0 | M113: =IF(Table10[[#This Row],[الرصيد بالطن]]=0,"0",IF(Table10[[#This Row],[الرصيد بالطن]]>=1,"دائن",IF(Table10[[#This Row],[الرصيد بالطن]]<=-1,"مدين"))) -> 0
A114: 112 | H114: =IFERROR(VLOOKUP(G114,Table9[[اسم المحطة]:[الوحدة]],2,FALSE),"") ->  | K114: =IF(Table10[[#This Row],[صافى الوزن]]>=1,Table10[[#This Row],[صافى الوزن]]*Table10[[#This Row],[السعر]],0) -> 0 | L114: =SUMIF(Table9[اسم المحطة],Table10[[#This Row],[محطة الأستلام]],Table9[الاسمنت المستخدم بالطن])-SUMIF($G$3:G114,Table10[[#This Row],[محطة الأستلام]],$I$3:I114) -> 0 | M114: =IF(Table10[[#This Row],[الرصيد بالطن]]=0,"0",IF(Table10[[#This Row],[الرصيد بالطن]]>=1,"دائن",IF(Table10[[#This Row],[الرصيد بالطن]]<=-1,"مدين"))) -> 0
A115: 113 | H115: =IFERROR(VLOOKUP(G115,Table9[[اسم المحطة]:[الوحدة]],2,FALSE),"") ->  | K115: =IF(Table10[[#This Row],[صافى الوزن]]>=1,Table10[[#This Row],[صافى الوزن]]*Table10[[#This Row],[السعر]],0) -> 0 | L115: =SUMIF(Table9[اسم المحطة],Table10[[#This Row],[محطة الأستلام]],Table9[الاسمنت المستخدم بالطن])-SUMIF($G$3:G115,Table10[[#This Row],[محطة الأستلام]],$I$3:I115) -> 0 | M115: =IF(Table10[[#This Row],[الرصيد بالطن]]=0,"0",IF(Table10[[#This Row],[الرصيد بالطن]]>=1,"دائن",IF(Table10[[#This Row],[الرصيد بالطن]]<=-1,"مدين"))) -> 0
A116: 114 | H116: =IFERROR(VLOOKUP(G116,Table9[[اسم المحطة]:[الوحدة]],2,FALSE),"") ->  | K116: =IF(Table10[[#This Row],[صافى الوزن]]>=1,Table10[[#This Row],[صافى الوزن]]*Table10[[#This Row],[السعر]],0) -> 0 | L116: =SUMIF(Table9[اسم المحطة],Table10[[#This Row],[محطة الأستلام]],Table9[الاسمنت المستخدم بالطن])-SUMIF($G$3:G116,Table10[[#This Row],[محطة الأستلام]],$I$3:I116) -> 0 | M116: =IF(Table10[[#This Row],[الرصيد بالطن]]=0,"0",IF(Table10[[#This Row],[الرصيد بالطن]]>=1,"دائن",IF(Table10[[#This Row],[الرصيد بالطن]]<=-1,"مدين"))) -> 0
A117: 115 | H117: =IFERROR(VLOOKUP(G117,Table9[[اسم المحطة]:[الوحدة]],2,FALSE),"") ->  | K117: =IF(Table10[[#This Row],[صافى الوزن]]>=1,Table10[[#This Row],[صافى الوزن]]*Table10[[#This Row],[السعر]],0) -> 0 | L117: =SUMIF(Table9[اسم المحطة],Table10[[#This Row],[محطة الأستلام]],Table9[الاسمنت المستخدم بالطن])-SUMIF($G$3:G117,Table10[[#This Row],[محطة الأستلام]],$I$3:I117) -> 0 | M117: =IF(Table10[[#This Row],[الرصيد بالطن]]=0,"0",IF(Table10[[#This Row],[الرصيد بالطن]]>=1,"دائن",IF(Table10[[#This Row],[الرصيد بالطن]]<=-1,"مدين"))) -> 0
A118: 116 | H118: =IFERROR(VLOOKUP(G118,Table9[[اسم المحطة]:[الوحدة]],2,FALSE),"") ->  | K118: =IF(Table10[[#This Row],[صافى الوزن]]>=1,Table10[[#This Row],[صافى الوزن]]*Table10[[#This Row],[السعر]],0) -> 0 | L118: =SUMIF(Table9[اسم المحطة],Table10[[#This Row],[محطة الأستلام]],Table9[الاسمنت المستخدم بالطن])-SUMIF($G$3:G118,Table10[[#This Row],[محطة الأستلام]],$I$3:I118) -> 0 | M118: =IF(Table10[[#This Row],[الرصيد بالطن]]=0,"0",IF(Table10[[#This Row],[الرصيد بالطن]]>=1,"دائن",IF(Table10[[#This Row],[الرصيد بالطن]]<=-1,"مدين"))) -> 0
A119: 117 | H119: =IFERROR(VLOOKUP(G119,Table9[[اسم المحطة]:[الوحدة]],2,FALSE),"") ->  | K119: =IF(Table10[[#This Row],[صافى الوزن]]>=1,Table10[[#This Row],[صافى الوزن]]*Table10[[#This Row],[السعر]],0) -> 0 | L119: =SUMIF(Table9[اسم المحطة],Table10[[#This Row],[محطة الأستلام]],Table9[الاسمنت المستخدم بالطن])-SUMIF($G$3:G119,Table10[[#This Row],[محطة الأستلام]],$I$3:I119) -> 0 | M119: =IF(Table10[[#This Row],[الرصيد بالطن]]=0,"0",IF(Table10[[#This Row],[الرصيد بالطن]]>=1,"دائن",IF(Table10[[#This Row],[الرصيد بالطن]]<=-1,"مدين"))) -> 0
A120: 118 | H120: =IFERROR(VLOOKUP(G120,Table9[[اسم المحطة]:[الوحدة]],2,FALSE),"") ->  | K120: =IF(Table10[[#This Row],[صافى الوزن]]>=1,Table10[[#This Row],[صافى الوزن]]*Table10[[#This Row],[السعر]],0) -> 0 | L120: =SUMIF(Table9[اسم المحطة],Table10[[#This Row],[محطة الأستلام]],Table9[الاسمنت المستخدم بالطن])-SUMIF($G$3:G120,Table10[[#This Row],[محطة الأستلام]],$I$3:I120) -> 0 | M120: =IF(Table10[[#This Row],[الرصيد بالطن]]=0,"0",IF(Table10[[#This Row],[الرصيد بالطن]]>=1,"دائن",IF(Table10[[#This Row],[الرصيد بالطن]]<=-1,"مدين"))) -> 0
A121: 119 | H121: =IFERROR(VLOOKUP(G121,Table9[[اسم المحطة]:[الوحدة]],2,FALSE),"") ->  | K121: =IF(Table10[[#This Row],[صافى الوزن]]>=1,Table10[[#This Row],[صافى الوزن]]*Table10[[#This Row],[السعر]],0) -> 0 | L121: =SUMIF(Table9[اسم المحطة],Table10[[#This Row],[محطة الأستلام]],Table9[الاسمنت المستخدم بالطن])-SUMIF($G$3:G121,Table10[[#This Row],[محطة الأستلام]],$I$3:I121) -> 0 | M121: =IF(Table10[[#This Row],[الرصيد بالطن]]=0,"0",IF(Table10[[#This Row],[الرصيد بالطن]]>=1,"دائن",IF(Table10[[#This Row],[الرصيد بالطن]]<=-1,"مدين"))) -> 0
A122: 120 | H122: =IFERROR(VLOOKUP(G122,Table9[[اسم المحطة]:[الوحدة]],2,FALSE),"") ->  | K122: =IF(Table10[[#This Row],[صافى الوزن]]>=1,Table10[[#This Row],[صافى الوزن]]*Table10[[#This Row],[السعر]],0) -> 0 | L122: =SUMIF(Table9[اسم المحطة],Table10[[#This Row],[محطة الأستلام]],Table9[الاسمنت المستخدم بالطن])-SUMIF($G$3:G122,Table10[[#This Row],[محطة الأستلام]],$I$3:I122) -> 0 | M122: =IF(Table10[[#This Row],[الرصيد بالطن]]=0,"0",IF(Table10[[#This Row],[الرصيد بالطن]]>=1,"دائن",IF(Table10[[#This Row],[الرصيد بالطن]]<=-1,"مدين"))) -> 0
A123: 121 | H123: =IFERROR(VLOOKUP(G123,Table9[[اسم المحطة]:[الوحدة]],2,FALSE),"") ->  | K123: =IF(Table10[[#This Row],[صافى الوزن]]>=1,Table10[[#This Row],[صافى الوزن]]*Table10[[#This Row],[السعر]],0) -> 0 | L123: =SUMIF(Table9[اسم المحطة],Table10[[#This Row],[محطة الأستلام]],Table9[الاسمنت المستخدم بالطن])-SUMIF($G$3:G123,Table10[[#This Row],[محطة الأستلام]],$I$3:I123) -> 0 | M123: =IF(Table10[[#This Row],[الرصيد بالطن]]=0,"0",IF(Table10[[#This Row],[الرصيد بالطن]]>=1,"دائن",IF(Table10[[#This Row],[الرصيد بالطن]]<=-1,"مدين"))) -> 0
A124: 122 | H124: =IFERROR(VLOOKUP(G124,Table9[[اسم المحطة]:[الوحدة]],2,FALSE),"") ->  | K124: =IF(Table10[[#This Row],[صافى الوزن]]>=1,Table10[[#This Row],[صافى الوزن]]*Table10[[#This Row],[السعر]],0) -> 0 | L124: =SUMIF(Table9[اسم المحطة],Table10[[#This Row],[محطة الأستلام]],Table9[الاسمنت المستخدم بالطن])-SUMIF($G$3:G124,Table10[[#This Row],[محطة الأستلام]],$I$3:I124) -> 0 | M124: =IF(Table10[[#This Row],[الرصيد بالطن]]=0,"0",IF(Table10[[#This Row],[الرصيد بالطن]]>=1,"دائن",IF(Table10[[#This Row],[الرصيد بالطن]]<=-1,"مدين"))) -> 0
A125: 123 | H125: =IFERROR(VLOOKUP(G125,Table9[[اسم المحطة]:[الوحدة]],2,FALSE),"") ->  | K125: =IF(Table10[[#This Row],[صافى الوزن]]>=1,Table10[[#This Row],[صافى الوزن]]*Table10[[#This Row],[السعر]],0) -> 0 | L125: =SUMIF(Table9[اسم المحطة],Table10[[#This Row],[محطة الأستلام]],Table9[الاسمنت المستخدم بالطن])-SUMIF($G$3:G125,Table10[[#This Row],[محطة الأستلام]],$I$3:I125) -> 0 | M125: =IF(Table10[[#This Row],[الرصيد بالطن]]=0,"0",IF(Table10[[#This Row],[الرصيد بالطن]]>=1,"دائن",IF(Table10[[#This Row],[الرصيد بالطن]]<=-1,"مدين"))) -> 0
A126: 124 | H126: =IFERROR(VLOOKUP(G126,Table9[[اسم المحطة]:[الوحدة]],2,FALSE),"") ->  | K126: =IF(Table10[[#This Row],[صافى الوزن]]>=1,Table10[[#This Row],[صافى الوزن]]*Table10[[#This Row],[السعر]],0) -> 0 | L126: =SUMIF(Table9[اسم المحطة],Table10[[#This Row],[محطة الأستلام]],Table9[الاسمنت المستخدم بالطن])-SUMIF($G$3:G126,Table10[[#This Row],[محطة الأستلام]],$I$3:I126) -> 0 | M126: =IF(Table10[[#This Row],[الرصيد بالطن]]=0,"0",IF(Table10[[#This Row],[الرصيد بالطن]]>=1,"دائن",IF(Table10[[#This Row],[الرصيد بالطن]]<=-1,"مدين"))) -> 0
A127: 125 | H127: =IFERROR(VLOOKUP(G127,Table9[[اسم المحطة]:[الوحدة]],2,FALSE),"") ->  | K127: =IF(Table10[[#This Row],[صافى الوزن]]>=1,Table10[[#This Row],[صافى الوزن]]*Table10[[#This Row],[السعر]],0) -> 0 | L127: =SUMIF(Table9[اسم المحطة],Table10[[#This Row],[محطة الأستلام]],Table9[الاسمنت المستخدم بالطن])-SUMIF($G$3:G127,Table10[[#This Row],[محطة الأستلام]],$I$3:I127) -> 0 | M127: =IF(Table10[[#This Row],[الرصيد بالطن]]=0,"0",IF(Table10[[#This Row],[الرصيد بالطن]]>=1,"دائن",IF(Table10[[#This Row],[الرصيد بالطن]]<=-1,"مدين"))) -> 0
A128: 126 | H128: =IFERROR(VLOOKUP(G128,Table9[[اسم المحطة]:[الوحدة]],2,FALSE),"") ->  | K128: =IF(Table10[[#This Row],[صافى الوزن]]>=1,Table10[[#This Row],[صافى الوزن]]*Table10[[#This Row],[السعر]],0) -> 0 | L128: =SUMIF(Table9[اسم المحطة],Table10[[#This Row],[محطة الأستلام]],Table9[الاسمنت المستخدم بالطن])-SUMIF($G$3:G128,Table10[[#This Row],[محطة الأستلام]],$I$3:I128) -> 0 | M128: =IF(Table10[[#This Row],[الرصيد بالطن]]=0,"0",IF(Table10[[#This Row],[الرصيد بالطن]]>=1,"دائن",IF(Table10[[#This Row],[الرصيد بالطن]]<=-1,"مدين"))) -> 0
A129: 127 | H129: =IFERROR(VLOOKUP(G129,Table9[[اسم المحطة]:[الوحدة]],2,FALSE),"") ->  | K129: =IF(Table10[[#This Row],[صافى الوزن]]>=1,Table10[[#This Row],[صافى الوزن]]*Table10[[#This Row],[السعر]],0) -> 0 | L129: =SUMIF(Table9[اسم المحطة],Table10[[#This Row],[محطة الأستلام]],Table9[الاسمنت المستخدم بالطن])-SUMIF($G$3:G129,Table10[[#This Row],[محطة الأستلام]],$I$3:I129) -> 0 | M129: =IF(Table10[[#This Row],[الرصيد بالطن]]=0,"0",IF(Table10[[#This Row],[الرصيد بالطن]]>=1,"دائن",IF(Table10[[#This Row],[الرصيد بالطن]]<=-1,"مدين"))) -> 0
A130: 128 | H130: =IFERROR(VLOOKUP(G130,Table9[[اسم المحطة]:[الوحدة]],2,FALSE),"") ->  | K130: =IF(Table10[[#This Row],[صافى الوزن]]>=1,Table10[[#This Row],[صافى الوزن]]*Table10[[#This Row],[السعر]],0) -> 0 | L130: =SUMIF(Table9[اسم المحطة],Table10[[#This Row],[محطة الأستلام]],Table9[الاسمنت المستخدم بالطن])-SUMIF($G$3:G130,Table10[[#This Row],[محطة الأستلام]],$I$3:I130) -> 0 | M130: =IF(Table10[[#This Row],[الرصيد بالطن]]=0,"0",IF(Table10[[#This Row],[الرصيد بالطن]]>=1,"دائن",IF(Table10[[#This Row],[الرصيد بالطن]]<=-1,"مدين"))) -> 0
A131: =ROW()-2 -> 129 | H131: =IFERROR(VLOOKUP(G131,Table9[[اسم المحطة]:[الوحدة]],2,FALSE),"") ->  | K131: =IF(Table10[[#This Row],[صافى الوزن]]>=1,Table10[[#This Row],[صافى الوزن]]*Table10[[#This Row],[السعر]],0) -> 0 | L131: =SUMIF(Table9[اسم المحطة],Table10[[#This Row],[محطة الأستلام]],Table9[الاسمنت المستخدم بالطن])-SUMIF($G$3:G131,Table10[[#This Row],[محطة الأستلام]],$I$3:I131) -> 0 | M131: =IF(Table10[[#This Row],[الرصيد بالطن]]=0,"0",IF(Table10[[#This Row],[الرصيد بالطن]]>=1,"دائن",IF(Table10[[#This Row],[الرصيد بالطن]]<=-1,"مدين"))) -> 0
A132: 130 | H132: =IFERROR(VLOOKUP(G132,Table9[[اسم المحطة]:[الوحدة]],2,FALSE),"") ->  | K132: =IF(Table10[[#This Row],[صافى الوزن]]>=1,Table10[[#This Row],[صافى الوزن]]*Table10[[#This Row],[السعر]],0) -> 0 | L132: =SUMIF(Table9[اسم المحطة],Table10[[#This Row],[محطة الأستلام]],Table9[الاسمنت المستخدم بالطن])-SUMIF($G$3:G132,Table10[[#This Row],[محطة الأستلام]],$I$3:I132) -> 0 | M132: =IF(Table10[[#This Row],[الرصيد بالطن]]=0,"0",IF(Table10[[#This Row],[الرصيد بالطن]]>=1,"دائن",IF(Table10[[#This Row],[الرصيد بالطن]]<=-1,"مدين"))) -> 0
A133: 131 | H133: =IFERROR(VLOOKUP(G133,Table9[[اسم المحطة]:[الوحدة]],2,FALSE),"") ->  | K133: =IF(Table10[[#This Row],[صافى الوزن]]>=1,Table10[[#This Row],[صافى الوزن]]*Table10[[#This Row],[السعر]],0) -> 0 | L133: =SUMIF(Table9[اسم المحطة],Table10[[#This Row],[محطة الأستلام]],Table9[الاسمنت المستخدم بالطن])-SUMIF($G$3:G133,Table10[[#This Row],[محطة الأستلام]],$I$3:I133) -> 0 | M133: =IF(Table10[[#This Row],[الرصيد بالطن]]=0,"0",IF(Table10[[#This Row],[الرصيد بالطن]]>=1,"دائن",IF(Table10[[#This Row],[الرصيد بالطن]]<=-1,"مدين"))) -> 0
A134: 132 | H134: =IFERROR(VLOOKUP(G134,Table9[[اسم المحطة]:[الوحدة]],2,FALSE),"") ->  | K134: =IF(Table10[[#This Row],[صافى الوزن]]>=1,Table10[[#This Row],[صافى الوزن]]*Table10[[#This Row],[السعر]],0) -> 0 | L134: =SUMIF(Table9[اسم المحطة],Table10[[#This Row],[محطة الأستلام]],Table9[الاسمنت المستخدم بالطن])-SUMIF($G$3:G134,Table10[[#This Row],[محطة الأستلام]],$I$3:I134) -> 0 | M134: =IF(Table10[[#This Row],[الرصيد بالطن]]=0,"0",IF(Table10[[#This Row],[الرصيد بالطن]]>=1,"دائن",IF(Table10[[#This Row],[الرصيد بالطن]]<=-1,"مدين"))) -> 0
A135: 133 | H135: =IFERROR(VLOOKUP(G135,Table9[[اسم المحطة]:[الوحدة]],2,FALSE),"") ->  | K135: =IF(Table10[[#This Row],[صافى الوزن]]>=1,Table10[[#This Row],[صافى الوزن]]*Table10[[#This Row],[السعر]],0) -> 0 | L135: =SUMIF(Table9[اسم المحطة],Table10[[#This Row],[محطة الأستلام]],Table9[الاسمنت المستخدم بالطن])-SUMIF($G$3:G135,Table10[[#This Row],[محطة الأستلام]],$I$3:I135) -> 0 | M135: =IF(Table10[[#This Row],[الرصيد بالطن]]=0,"0",IF(Table10[[#This Row],[الرصيد بالطن]]>=1,"دائن",IF(Table10[[#This Row],[الرصيد بالطن]]<=-1,"مدين"))) -> 0
A136: 134 | H136: =IFERROR(VLOOKUP(G136,Table9[[اسم المحطة]:[الوحدة]],2,FALSE),"") ->  | K136: =IF(Table10[[#This Row],[صافى الوزن]]>=1,Table10[[#This Row],[صافى الوزن]]*Table10[[#This Row],[السعر]],0) -> 0 | L136: =SUMIF(Table9[اسم المحطة],Table10[[#This Row],[محطة الأستلام]],Table9[الاسمنت المستخدم بالطن])-SUMIF($G$3:G136,Table10[[#This Row],[محطة الأستلام]],$I$3:I136) -> 0 | M136: =IF(Table10[[#This Row],[الرصيد بالطن]]=0,"0",IF(Table10[[#This Row],[الرصيد بالطن]]>=1,"دائن",IF(Table10[[#This Row],[الرصيد بالطن]]<=-1,"مدين"))) -> 0
A137: 135 | H137: =IFERROR(VLOOKUP(G137,Table9[[اسم المحطة]:[الوحدة]],2,FALSE),"") ->  | K137: =IF(Table10[[#This Row],[صافى الوزن]]>=1,Table10[[#This Row],[صافى الوزن]]*Table10[[#This Row],[السعر]],0) -> 0 | L137: =SUMIF(Table9[اسم المحطة],Table10[[#This Row],[محطة الأستلام]],Table9[الاسمنت المستخدم بالطن])-SUMIF($G$3:G137,Table10[[#This Row],[محطة الأستلام]],$I$3:I137) -> 0 | M137: =IF(Table10[[#This Row],[الرصيد بالطن]]=0,"0",IF(Table10[[#This Row],[الرصيد بالطن]]>=1,"دائن",IF(Table10[[#This Row],[الرصيد بالطن]]<=-1,"مدين"))) -> 0
A138: 136 | H138: =IFERROR(VLOOKUP(G138,Table9[[اسم المحطة]:[الوحدة]],2,FALSE),"") ->  | K138: =IF(Table10[[#This Row],[صافى الوزن]]>=1,Table10[[#This Row],[صافى الوزن]]*Table10[[#This Row],[السعر]],0) -> 0 | L138: =SUMIF(Table9[اسم المحطة],Table10[[#This Row],[محطة الأستلام]],Table9[الاسمنت المستخدم بالطن])-SUMIF($G$3:G138,Table10[[#This Row],[محطة الأستلام]],$I$3:I138) -> 0 | M138: =IF(Table10[[#This Row],[الرصيد بالطن]]=0,"0",IF(Table10[[#This Row],[الرصيد بالطن]]>=1,"دائن",IF(Table10[[#This Row],[الرصيد بالطن]]<=-1,"مدين"))) -> 0
A139: 137 | H139: =IFERROR(VLOOKUP(G139,Table9[[اسم المحطة]:[الوحدة]],2,FALSE),"") ->  | K139: =IF(Table10[[#This Row],[صافى الوزن]]>=1,Table10[[#This Row],[صافى الوزن]]*Table10[[#This Row],[السعر]],0) -> 0 | L139: =SUMIF(Table9[اسم المحطة],Table10[[#This Row],[محطة الأستلام]],Table9[الاسمنت المستخدم بالطن])-SUMIF($G$3:G139,Table10[[#This Row],[محطة الأستلام]],$I$3:I139) -> 0 | M139: =IF(Table10[[#This Row],[الرصيد بالطن]]=0,"0",IF(Table10[[#This Row],[الرصيد بالطن]]>=1,"دائن",IF(Table10[[#This Row],[الرصيد بالطن]]<=-1,"مدين"))) -> 0
A140: 138 | H140: =IFERROR(VLOOKUP(G140,Table9[[اسم المحطة]:[الوحدة]],2,FALSE),"") ->  | K140: =IF(Table10[[#This Row],[صافى الوزن]]>=1,Table10[[#This Row],[صافى الوزن]]*Table10[[#This Row],[السعر]],0) -> 0 | L140: =SUMIF(Table9[اسم المحطة],Table10[[#This Row],[محطة الأستلام]],Table9[الاسمنت المستخدم بالطن])-SUMIF($G$3:G140,Table10[[#This Row],[محطة الأستلام]],$I$3:I140) -> 0 | M140: =IF(Table10[[#This Row],[الرصيد بالطن]]=0,"0",IF(Table10[[#This Row],[الرصيد بالطن]]>=1,"دائن",IF(Table10[[#This Row],[الرصيد بالطن]]<=-1,"مدين"))) -> 0
A141: 139 | H141: =IFERROR(VLOOKUP(G141,Table9[[اسم المحطة]:[الوحدة]],2,FALSE),"") ->  | K141: =IF(Table10[[#This Row],[صافى الوزن]]>=1,Table10[[#This Row],[صافى الوزن]]*Table10[[#This Row],[السعر]],0) -> 0 | L141: =SUMIF(Table9[اسم المحطة],Table10[[#This Row],[محطة الأستلام]],Table9[الاسمنت المستخدم بالطن])-SUMIF($G$3:G141,Table10[[#This Row],[محطة الأستلام]],$I$3:I141) -> 0 | M141: =IF(Table10[[#This Row],[الرصيد بالطن]]=0,"0",IF(Table10[[#This Row],[الرصيد بالطن]]>=1,"دائن",IF(Table10[[#This Row],[الرصيد بالطن]]<=-1,"مدين"))) -> 0
A142: 140 | H142: =IFERROR(VLOOKUP(G142,Table9[[اسم المحطة]:[الوحدة]],2,FALSE),"") ->  | K142: =IF(Table10[[#This Row],[صافى الوزن]]>=1,Table10[[#This Row],[صافى الوزن]]*Table10[[#This Row],[السعر]],0) -> 0 | L142: =SUMIF(Table9[اسم المحطة],Table10[[#This Row],[محطة الأستلام]],Table9[الاسمنت المستخدم بالطن])-SUMIF($G$3:G142,Table10[[#This Row],[محطة الأستلام]],$I$3:I142) -> 0 | M142: =IF(Table10[[#This Row],[الرصيد بالطن]]=0,"0",IF(Table10[[#This Row],[الرصيد بالطن]]>=1,"دائن",IF(Table10[[#This Row],[الرصيد بالطن]]<=-1,"مدين"))) -> 0
A143: 141 | H143: =IFERROR(VLOOKUP(G143,Table9[[اسم المحطة]:[الوحدة]],2,FALSE),"") ->  | K143: =IF(Table10[[#This Row],[صافى الوزن]]>=1,Table10[[#This Row],[صافى الوزن]]*Table10[[#This Row],[السعر]],0) -> 0 | L143: =SUMIF(Table9[اسم المحطة],Table10[[#This Row],[محطة الأستلام]],Table9[الاسمنت المستخدم بالطن])-SUMIF($G$3:G143,Table10[[#This Row],[محطة الأستلام]],$I$3:I143) -> 0 | M143: =IF(Table10[[#This Row],[الرصيد بالطن]]=0,"0",IF(Table10[[#This Row],[الرصيد بالطن]]>=1,"دائن",IF(Table10[[#This Row],[الرصيد بالطن]]<=-1,"مدين"))) -> 0
A144: 142 | H144: =IFERROR(VLOOKUP(G144,Table9[[اسم المحطة]:[الوحدة]],2,FALSE),"") ->  | K144: =IF(Table10[[#This Row],[صافى الوزن]]>=1,Table10[[#This Row],[صافى الوزن]]*Table10[[#This Row],[السعر]],0) -> 0 | L144: =SUMIF(Table9[اسم المحطة],Table10[[#This Row],[محطة الأستلام]],Table9[الاسمنت المستخدم بالطن])-SUMIF($G$3:G144,Table10[[#This Row],[محطة الأستلام]],$I$3:I144) -> 0 | M144: =IF(Table10[[#This Row],[الرصيد بالطن]]=0,"0",IF(Table10[[#This Row],[الرصيد بالطن]]>=1,"دائن",IF(Table10[[#This Row],[الرصيد بالطن]]<=-1,"مدين"))) -> 0
A145: 143 | H145: =IFERROR(VLOOKUP(G145,Table9[[اسم المحطة]:[الوحدة]],2,FALSE),"") ->  | K145: =IF(Table10[[#This Row],[صافى الوزن]]>=1,Table10[[#This Row],[صافى الوزن]]*Table10[[#This Row],[السعر]],0) -> 0 | L145: =SUMIF(Table9[اسم المحطة],Table10[[#This Row],[محطة الأستلام]],Table9[الاسمنت المستخدم بالطن])-SUMIF($G$3:G145,Table10[[#This Row],[محطة الأستلام]],$I$3:I145) -> 0 | M145: =IF(Table10[[#This Row],[الرصيد بالطن]]=0,"0",IF(Table10[[#This Row],[الرصيد بالطن]]>=1,"دائن",IF(Table10[[#This Row],[الرصيد بالطن]]<=-1,"مدين"))) -> 0
A146: 144 | H146: =IFERROR(VLOOKUP(G146,Table9[[اسم المحطة]:[الوحدة]],2,FALSE),"") ->  | K146: =IF(Table10[[#This Row],[صافى الوزن]]>=1,Table10[[#This Row],[صافى الوزن]]*Table10[[#This Row],[السعر]],0) -> 0 | L146: =SUMIF(Table9[اسم المحطة],Table10[[#This Row],[محطة الأستلام]],Table9[الاسمنت المستخدم بالطن])-SUMIF($G$3:G146,Table10[[#This Row],[محطة الأستلام]],$I$3:I146) -> 0 | M146: =IF(Table10[[#This Row],[الرصيد بالطن]]=0,"0",IF(Table10[[#This Row],[الرصيد بالطن]]>=1,"دائن",IF(Table10[[#This Row],[الرصيد بالطن]]<=-1,"مدين"))) -> 0
A147: 145 | H147: =IFERROR(VLOOKUP(G147,Table9[[اسم المحطة]:[الوحدة]],2,FALSE),"") ->  | K147: =IF(Table10[[#This Row],[صافى الوزن]]>=1,Table10[[#This Row],[صافى الوزن]]*Table10[[#This Row],[السعر]],0) -> 0 | L147: =SUMIF(Table9[اسم المحطة],Table10[[#This Row],[محطة الأستلام]],Table9[الاسمنت المستخدم بالطن])-SUMIF($G$3:G147,Table10[[#This Row],[محطة الأستلام]],$I$3:I147) -> 0 | M147: =IF(Table10[[#This Row],[الرصيد بالطن]]=0,"0",IF(Table10[[#This Row],[الرصيد بالطن]]>=1,"دائن",IF(Table10[[#This Row],[الرصيد بالطن]]<=-1,"مدين"))) -> 0
A148: 146 | H148: =IFERROR(VLOOKUP(G148,Table9[[اسم المحطة]:[الوحدة]],2,FALSE),"") ->  | K148: =IF(Table10[[#This Row],[صافى الوزن]]>=1,Table10[[#This Row],[صافى الوزن]]*Table10[[#This Row],[السعر]],0) -> 0 | L148: =SUMIF(Table9[اسم المحطة],Table10[[#This Row],[محطة الأستلام]],Table9[الاسمنت المستخدم بالطن])-SUMIF($G$3:G148,Table10[[#This Row],[محطة الأستلام]],$I$3:I148) -> 0 | M148: =IF(Table10[[#This Row],[الرصيد بالطن]]=0,"0",IF(Table10[[#This Row],[الرصيد بالطن]]>=1,"دائن",IF(Table10[[#This Row],[الرصيد بالطن]]<=-1,"مدين"))) -> 0
A149: 147 | H149: =IFERROR(VLOOKUP(G149,Table9[[اسم المحطة]:[الوحدة]],2,FALSE),"") ->  | K149: =IF(Table10[[#This Row],[صافى الوزن]]>=1,Table10[[#This Row],[صافى الوزن]]*Table10[[#This Row],[السعر]],0) -> 0 | L149: =SUMIF(Table9[اسم المحطة],Table10[[#This Row],[محطة الأستلام]],Table9[الاسمنت المستخدم بالطن])-SUMIF($G$3:G149,Table10[[#This Row],[محطة الأستلام]],$I$3:I149) -> 0 | M149: =IF(Table10[[#This Row],[الرصيد بالطن]]=0,"0",IF(Table10[[#This Row],[الرصيد بالطن]]>=1,"دائن",IF(Table10[[#This Row],[الرصيد بالطن]]<=-1,"مدين"))) -> 0
A150: 148 | H150: =IFERROR(VLOOKUP(G150,Table9[[اسم المحطة]:[الوحدة]],2,FALSE),"") ->  | K150: =IF(Table10[[#This Row],[صافى الوزن]]>=1,Table10[[#This Row],[صافى الوزن]]*Table10[[#This Row],[السعر]],0) -> 0 | L150: =SUMIF(Table9[اسم المحطة],Table10[[#This Row],[محطة الأستلام]],Table9[الاسمنت المستخدم بالطن])-SUMIF($G$3:G150,Table10[[#This Row],[محطة الأستلام]],$I$3:I150) -> 0 | M150: =IF(Table10[[#This Row],[الرصيد بالطن]]=0,"0",IF(Table10[[#This Row],[الرصيد بالطن]]>=1,"دائن",IF(Table10[[#This Row],[الرصيد بالطن]]<=-1,"مدين"))) -> 0
A151: 149 | H151: =IFERROR(VLOOKUP(G151,Table9[[اسم المحطة]:[الوحدة]],2,FALSE),"") ->  | K151: =IF(Table10[[#This Row],[صافى الوزن]]>=1,Table10[[#This Row],[صافى الوزن]]*Table10[[#This Row],[السعر]],0) -> 0 | L151: =SUMIF(Table9[اسم المحطة],Table10[[#This Row],[محطة الأستلام]],Table9[الاسمنت المستخدم بالطن])-SUMIF($G$3:G151,Table10[[#This Row],[محطة الأستلام]],$I$3:I151) -> 0 | M151: =IF(Table10[[#This Row],[الرصيد بالطن]]=0,"0",IF(Table10[[#This Row],[الرصيد بالطن]]>=1,"دائن",IF(Table10[[#This Row],[الرصيد بالطن]]<=-1,"مدين"))) -> 0
A152: 150 | H152: =IFERROR(VLOOKUP(G152,Table9[[اسم المحطة]:[الوحدة]],2,FALSE),"") ->  | K152: =IF(Table10[[#This Row],[صافى الوزن]]>=1,Table10[[#This Row],[صافى الوزن]]*Table10[[#This Row],[السعر]],0) -> 0 | L152: =SUMIF(Table9[اسم المحطة],Table10[[#This Row],[محطة الأستلام]],Table9[الاسمنت المستخدم بالطن])-SUMIF($G$3:G152,Table10[[#This Row],[محطة الأستلام]],$I$3:I152) -> 0 | M152: =IF(Table10[[#This Row],[الرصيد بالطن]]=0,"0",IF(Table10[[#This Row],[الرصيد بالطن]]>=1,"دائن",IF(Table10[[#This Row],[الرصيد بالطن]]<=-1,"مدين"))) -> 0
A153: 151 | H153: =IFERROR(VLOOKUP(G153,Table9[[اسم المحطة]:[الوحدة]],2,FALSE),"") ->  | K153: =IF(Table10[[#This Row],[صافى الوزن]]>=1,Table10[[#This Row],[صافى الوزن]]*Table10[[#This Row],[السعر]],0) -> 0 | L153: =SUMIF(Table9[اسم المحطة],Table10[[#This Row],[محطة الأستلام]],Table9[الاسمنت المستخدم بالطن])-SUMIF($G$3:G153,Table10[[#This Row],[محطة الأستلام]],$I$3:I153) -> 0 | M153: =IF(Table10[[#This Row],[الرصيد بالطن]]=0,"0",IF(Table10[[#This Row],[الرصيد بالطن]]>=1,"دائن",IF(Table10[[#This Row],[الرصيد بالطن]]<=-1,"مدين"))) -> 0
A154: 152 | H154: =IFERROR(VLOOKUP(G154,Table9[[اسم المحطة]:[الوحدة]],2,FALSE),"") ->  | K154: =IF(Table10[[#This Row],[صافى الوزن]]>=1,Table10[[#This Row],[صافى الوزن]]*Table10[[#This Row],[السعر]],0) -> 0 | L154: =SUMIF(Table9[اسم المحطة],Table10[[#This Row],[محطة الأستلام]],Table9[الاسمنت المستخدم بالطن])-SUMIF($G$3:G154,Table10[[#This Row],[محطة الأستلام]],$I$3:I154) -> 0 | M154: =IF(Table10[[#This Row],[الرصيد بالطن]]=0,"0",IF(Table10[[#This Row],[الرصيد بالطن]]>=1,"دائن",IF(Table10[[#This Row],[الرصيد بالطن]]<=-1,"مدين"))) -> 0
A155: 153 | H155: =IFERROR(VLOOKUP(G155,Table9[[اسم المحطة]:[الوحدة]],2,FALSE),"") ->  | K155: =IF(Table10[[#This Row],[صافى الوزن]]>=1,Table10[[#This Row],[صافى الوزن]]*Table10[[#This Row],[السعر]],0) -> 0 | L155: =SUMIF(Table9[اسم المحطة],Table10[[#This Row],[محطة الأستلام]],Table9[الاسمنت المستخدم بالطن])-SUMIF($G$3:G155,Table10[[#This Row],[محطة الأستلام]],$I$3:I155) -> 0 | M155: =IF(Table10[[#This Row],[الرصيد بالطن]]=0,"0",IF(Table10[[#This Row],[الرصيد بالطن]]>=1,"دائن",IF(Table10[[#This Row],[الرصيد بالطن]]<=-1,"مدين"))) -> 0
A156: 154 | H156: =IFERROR(VLOOKUP(G156,Table9[[اسم المحطة]:[الوحدة]],2,FALSE),"") ->  | K156: =IF(Table10[[#This Row],[صافى الوزن]]>=1,Table10[[#This Row],[صافى الوزن]]*Table10[[#This Row],[السعر]],0) -> 0 | L156: =SUMIF(Table9[اسم المحطة],Table10[[#This Row],[محطة الأستلام]],Table9[الاسمنت المستخدم بالطن])-SUMIF($G$3:G156,Table10[[#This Row],[محطة الأستلام]],$I$3:I156) -> 0 | M156: =IF(Table10[[#This Row],[الرصيد بالطن]]=0,"0",IF(Table10[[#This Row],[الرصيد بالطن]]>=1,"دائن",IF(Table10[[#This Row],[الرصيد بالطن]]<=-1,"مدين"))) -> 0
A157: 155 | H157: =IFERROR(VLOOKUP(G157,Table9[[اسم المحطة]:[الوحدة]],2,FALSE),"") ->  | K157: =IF(Table10[[#This Row],[صافى الوزن]]>=1,Table10[[#This Row],[صافى الوزن]]*Table10[[#This Row],[السعر]],0) -> 0 | L157: =SUMIF(Table9[اسم المحطة],Table10[[#This Row],[محطة الأستلام]],Table9[الاسمنت المستخدم بالطن])-SUMIF($G$3:G157,Table10[[#This Row],[محطة الأستلام]],$I$3:I157) -> 0 | M157: =IF(Table10[[#This Row],[الرصيد بالطن]]=0,"0",IF(Table10[[#This Row],[الرصيد بالطن]]>=1,"دائن",IF(Table10[[#This Row],[الرصيد بالطن]]<=-1,"مدين"))) -> 0
A158: 156 | H158: =IFERROR(VLOOKUP(G158,Table9[[اسم المحطة]:[الوحدة]],2,FALSE),"") ->  | K158: =IF(Table10[[#This Row],[صافى الوزن]]>=1,Table10[[#This Row],[صافى الوزن]]*Table10[[#This Row],[السعر]],0) -> 0 | L158: =SUMIF(Table9[اسم المحطة],Table10[[#This Row],[محطة الأستلام]],Table9[الاسمنت المستخدم بالطن])-SUMIF($G$3:G158,Table10[[#This Row],[محطة الأستلام]],$I$3:I158) -> 0 | M158: =IF(Table10[[#This Row],[الرصيد بالطن]]=0,"0",IF(Table10[[#This Row],[الرصيد بالطن]]>=1,"دائن",IF(Table10[[#This Row],[الرصيد بالطن]]<=-1,"مدين"))) -> 0
A159: 157 | H159: =IFERROR(VLOOKUP(G159,Table9[[اسم المحطة]:[الوحدة]],2,FALSE),"") ->  | K159: =IF(Table10[[#This Row],[صافى الوزن]]>=1,Table10[[#This Row],[صافى الوزن]]*Table10[[#This Row],[السعر]],0) -> 0 | L159: =SUMIF(Table9[اسم المحطة],Table10[[#This Row],[محطة الأستلام]],Table9[الاسمنت المستخدم بالطن])-SUMIF($G$3:G159,Table10[[#This Row],[محطة الأستلام]],$I$3:I159) -> 0 | M159: =IF(Table10[[#This Row],[الرصيد بالطن]]=0,"0",IF(Table10[[#This Row],[الرصيد بالطن]]>=1,"دائن",IF(Table10[[#This Row],[الرصيد بالطن]]<=-1,"مدين"))) -> 0
A160: 158 | H160: =IFERROR(VLOOKUP(G160,Table9[[اسم المحطة]:[الوحدة]],2,FALSE),"") ->  | K160: =IF(Table10[[#This Row],[صافى الوزن]]>=1,Table10[[#This Row],[صافى الوزن]]*Table10[[#This Row],[السعر]],0) -> 0 | L160: =SUMIF(Table9[اسم المحطة],Table10[[#This Row],[محطة الأستلام]],Table9[الاسمنت المستخدم بالطن])-SUMIF($G$3:G160,Table10[[#This Row],[محطة الأستلام]],$I$3:I160) -> 0 | M160: =IF(Table10[[#This Row],[الرصيد بالطن]]=0,"0",IF(Table10[[#This Row],[الرصيد بالطن]]>=1,"دائن",IF(Table10[[#This Row],[الرصيد بالطن]]<=-1,"مدين"))) -> 0
A161: 159 | H161: =IFERROR(VLOOKUP(G161,Table9[[اسم المحطة]:[الوحدة]],2,FALSE),"") ->  | K161: =IF(Table10[[#This Row],[صافى الوزن]]>=1,Table10[[#This Row],[صافى الوزن]]*Table10[[#This Row],[السعر]],0) -> 0 | L161: =SUMIF(Table9[اسم المحطة],Table10[[#This Row],[محطة الأستلام]],Table9[الاسمنت المستخدم بالطن])-SUMIF($G$3:G161,Table10[[#This Row],[محطة الأستلام]],$I$3:I161) -> 0 | M161: =IF(Table10[[#This Row],[الرصيد بالطن]]=0,"0",IF(Table10[[#This Row],[الرصيد بالطن]]>=1,"دائن",IF(Table10[[#This Row],[الرصيد بالطن]]<=-1,"مدين"))) -> 0
A162: 160 | H162: =IFERROR(VLOOKUP(G162,Table9[[اسم المحطة]:[الوحدة]],2,FALSE),"") ->  | K162: =IF(Table10[[#This Row],[صافى الوزن]]>=1,Table10[[#This Row],[صافى الوزن]]*Table10[[#This Row],[السعر]],0) -> 0 | L162: =SUMIF(Table9[اسم المحطة],Table10[[#This Row],[محطة الأستلام]],Table9[الاسمنت المستخدم بالطن])-SUMIF($G$3:G162,Table10[[#This Row],[محطة الأستلام]],$I$3:I162) -> 0 | M162: =IF(Table10[[#This Row],[الرصيد بالطن]]=0,"0",IF(Table10[[#This Row],[الرصيد بالطن]]>=1,"دائن",IF(Table10[[#This Row],[الرصيد بالطن]]<=-1,"مدين"))) -> 0
A163: 161 | H163: =IFERROR(VLOOKUP(G163,Table9[[اسم المحطة]:[الوحدة]],2,FALSE),"") ->  | K163: =IF(Table10[[#This Row],[صافى الوزن]]>=1,Table10[[#This Row],[صافى الوزن]]*Table10[[#This Row],[السعر]],0) -> 0 | L163: =SUMIF(Table9[اسم المحطة],Table10[[#This Row],[محطة الأستلام]],Table9[الاسمنت المستخدم بالطن])-SUMIF($G$3:G163,Table10[[#This Row],[محطة الأستلام]],$I$3:I163) -> 0 | M163: =IF(Table10[[#This Row],[الرصيد بالطن]]=0,"0",IF(Table10[[#This Row],[الرصيد بالطن]]>=1,"دائن",IF(Table10[[#This Row],[الرصيد بالطن]]<=-1,"مدين"))) -> 0
A164: 162 | H164: =IFERROR(VLOOKUP(G164,Table9[[اسم المحطة]:[الوحدة]],2,FALSE),"") ->  | K164: =IF(Table10[[#This Row],[صافى الوزن]]>=1,Table10[[#This Row],[صافى الوزن]]*Table10[[#This Row],[السعر]],0) -> 0 | L164: =SUMIF(Table9[اسم المحطة],Table10[[#This Row],[محطة الأستلام]],Table9[الاسمنت المستخدم بالطن])-SUMIF($G$3:G164,Table10[[#This Row],[محطة الأستلام]],$I$3:I164) -> 0 | M164: =IF(Table10[[#This Row],[الرصيد بالطن]]=0,"0",IF(Table10[[#This Row],[الرصيد بالطن]]>=1,"دائن",IF(Table10[[#This Row],[الرصيد بالطن]]<=-1,"مدين"))) -> 0
A165: 163 | H165: =IFERROR(VLOOKUP(G165,Table9[[اسم المحطة]:[الوحدة]],2,FALSE),"") ->  | K165: =IF(Table10[[#This Row],[صافى الوزن]]>=1,Table10[[#This Row],[صافى الوزن]]*Table10[[#This Row],[السعر]],0) -> 0 | L165: =SUMIF(Table9[اسم المحطة],Table10[[#This Row],[محطة الأستلام]],Table9[الاسمنت المستخدم بالطن])-SUMIF($G$3:G165,Table10[[#This Row],[محطة الأستلام]],$I$3:I165) -> 0 | M165: =IF(Table10[[#This Row],[الرصيد بالطن]]=0,"0",IF(Table10[[#This Row],[الرصيد بالطن]]>=1,"دائن",IF(Table10[[#This Row],[الرصيد بالطن]]<=-1,"مدين"))) -> 0
A166: 164 | H166: =IFERROR(VLOOKUP(G166,Table9[[اسم المحطة]:[الوحدة]],2,FALSE),"") ->  | K166: =IF(Table10[[#This Row],[صافى الوزن]]>=1,Table10[[#This Row],[صافى الوزن]]*Table10[[#This Row],[السعر]],0) -> 0 | L166: =SUMIF(Table9[اسم المحطة],Table10[[#This Row],[محطة الأستلام]],Table9[الاسمنت المستخدم بالطن])-SUMIF($G$3:G166,Table10[[#This Row],[محطة الأستلام]],$I$3:I166) -> 0 | M166: =IF(Table10[[#This Row],[الرصيد بالطن]]=0,"0",IF(Table10[[#This Row],[الرصيد بالطن]]>=1,"دائن",IF(Table10[[#This Row],[الرصيد بالطن]]<=-1,"مدين"))) -> 0
A167: 165 | H167: =IFERROR(VLOOKUP(G167,Table9[[اسم المحطة]:[الوحدة]],2,FALSE),"") ->  | K167: =IF(Table10[[#This Row],[صافى الوزن]]>=1,Table10[[#This Row],[صافى الوزن]]*Table10[[#This Row],[السعر]],0) -> 0 | L167: =SUMIF(Table9[اسم المحطة],Table10[[#This Row],[محطة الأستلام]],Table9[الاسمنت المستخدم بالطن])-SUMIF($G$3:G167,Table10[[#This Row],[محطة الأستلام]],$I$3:I167) -> 0 | M167: =IF(Table10[[#This Row],[الرصيد بالطن]]=0,"0",IF(Table10[[#This Row],[الرصيد بالطن]]>=1,"دائن",IF(Table10[[#This Row],[الرصيد بالطن]]<=-1,"مدين"))) -> 0
A168: 166 | H168: =IFERROR(VLOOKUP(G168,Table9[[اسم المحطة]:[الوحدة]],2,FALSE),"") ->  | K168: =IF(Table10[[#This Row],[صافى الوزن]]>=1,Table10[[#This Row],[صافى الوزن]]*Table10[[#This Row],[السعر]],0) -> 0 | L168: =SUMIF(Table9[اسم المحطة],Table10[[#This Row],[محطة الأستلام]],Table9[الاسمنت المستخدم بالطن])-SUMIF($G$3:G168,Table10[[#This Row],[محطة الأستلام]],$I$3:I168) -> 0 | M168: =IF(Table10[[#This Row],[الرصيد بالطن]]=0,"0",IF(Table10[[#This Row],[الرصيد بالطن]]>=1,"دائن",IF(Table10[[#This Row],[الرصيد بالطن]]<=-1,"مدين"))) -> 0
A169: 167 | H169: =IFERROR(VLOOKUP(G169,Table9[[اسم المحطة]:[الوحدة]],2,FALSE),"") ->  | K169: =IF(Table10[[#This Row],[صافى الوزن]]>=1,Table10[[#This Row],[صافى الوزن]]*Table10[[#This Row],[السعر]],0) -> 0 | L169: =SUMIF(Table9[اسم المحطة],Table10[[#This Row],[محطة الأستلام]],Table9[الاسمنت المستخدم بالطن])-SUMIF($G$3:G169,Table10[[#This Row],[محطة الأستلام]],$I$3:I169) -> 0 | M169: =IF(Table10[[#This Row],[الرصيد بالطن]]=0,"0",IF(Table10[[#This Row],[الرصيد بالطن]]>=1,"دائن",IF(Table10[[#This Row],[الرصيد بالطن]]<=-1,"مدين"))) -> 0
A170: 168 | H170: =IFERROR(VLOOKUP(G170,Table9[[اسم المحطة]:[الوحدة]],2,FALSE),"") ->  | K170: =IF(Table10[[#This Row],[صافى الوزن]]>=1,Table10[[#This Row],[صافى الوزن]]*Table10[[#This Row],[السعر]],0) -> 0 | L170: =SUMIF(Table9[اسم المحطة],Table10[[#This Row],[محطة الأستلام]],Table9[الاسمنت المستخدم بالطن])-SUMIF($G$3:G170,Table10[[#This Row],[محطة الأستلام]],$I$3:I170) -> 0 | M170: =IF(Table10[[#This Row],[الرصيد بالطن]]=0,"0",IF(Table10[[#This Row],[الرصيد بالطن]]>=1,"دائن",IF(Table10[[#This Row],[الرصيد بالطن]]<=-1,"مدين"))) -> 0
A171: 169 | H171: =IFERROR(VLOOKUP(G171,Table9[[اسم المحطة]:[الوحدة]],2,FALSE),"") ->  | K171: =IF(Table10[[#This Row],[صافى الوزن]]>=1,Table10[[#This Row],[صافى الوزن]]*Table10[[#This Row],[السعر]],0) -> 0 | L171: =SUMIF(Table9[اسم المحطة],Table10[[#This Row],[محطة الأستلام]],Table9[الاسمنت المستخدم بالطن])-SUMIF($G$3:G171,Table10[[#This Row],[محطة الأستلام]],$I$3:I171) -> 0 | M171: =IF(Table10[[#This Row],[الرصيد بالطن]]=0,"0",IF(Table10[[#This Row],[الرصيد بالطن]]>=1,"دائن",IF(Table10[[#This Row],[الرصيد بالطن]]<=-1,"مدين"))) -> 0
A172: 170 | H172: =IFERROR(VLOOKUP(G172,Table9[[اسم المحطة]:[الوحدة]],2,FALSE),"") ->  | K172: =IF(Table10[[#This Row],[صافى الوزن]]>=1,Table10[[#This Row],[صافى الوزن]]*Table10[[#This Row],[السعر]],0) -> 0 | L172: =SUMIF(Table9[اسم المحطة],Table10[[#This Row],[محطة الأستلام]],Table9[الاسمنت المستخدم بالطن])-SUMIF($G$3:G172,Table10[[#This Row],[محطة الأستلام]],$I$3:I172) -> 0 | M172: =IF(Table10[[#This Row],[الرصيد بالطن]]=0,"0",IF(Table10[[#This Row],[الرصيد بالطن]]>=1,"دائن",IF(Table10[[#This Row],[الرصيد بالطن]]<=-1,"مدين"))) -> 0
A173: 171 | H173: =IFERROR(VLOOKUP(G173,Table9[[اسم المحطة]:[الوحدة]],2,FALSE),"") ->  | K173: =IF(Table10[[#This Row],[صافى الوزن]]>=1,Table10[[#This Row],[صافى الوزن]]*Table10[[#This Row],[السعر]],0) -> 0 | L173: =SUMIF(Table9[اسم المحطة],Table10[[#This Row],[محطة الأستلام]],Table9[الاسمنت المستخدم بالطن])-SUMIF($G$3:G173,Table10[[#This Row],[محطة الأستلام]],$I$3:I173) -> 0 | M173: =IF(Table10[[#This Row],[الرصيد بالطن]]=0,"0",IF(Table10[[#This Row],[الرصيد بالطن]]>=1,"دائن",IF(Table10[[#This Row],[الرصيد بالطن]]<=-1,"مدين"))) -> 0
A174: 172 | H174: =IFERROR(VLOOKUP(G174,Table9[[اسم المحطة]:[الوحدة]],2,FALSE),"") ->  | K174: =IF(Table10[[#This Row],[صافى الوزن]]>=1,Table10[[#This Row],[صافى الوزن]]*Table10[[#This Row],[السعر]],0) -> 0 | L174: =SUMIF(Table9[اسم المحطة],Table10[[#This Row],[محطة الأستلام]],Table9[الاسمنت المستخدم بالطن])-SUMIF($G$3:G174,Table10[[#This Row],[محطة الأستلام]],$I$3:I174) -> 0 | M174: =IF(Table10[[#This Row],[الرصيد بالطن]]=0,"0",IF(Table10[[#This Row],[الرصيد بالطن]]>=1,"دائن",IF(Table10[[#This Row],[الرصيد بالطن]]<=-1,"مدين"))) -> 0
A175: 173 | H175: =IFERROR(VLOOKUP(G175,Table9[[اسم المحطة]:[الوحدة]],2,FALSE),"") ->  | K175: =IF(Table10[[#This Row],[صافى الوزن]]>=1,Table10[[#This Row],[صافى الوزن]]*Table10[[#This Row],[السعر]],0) -> 0 | L175: =SUMIF(Table9[اسم المحطة],Table10[[#This Row],[محطة الأستلام]],Table9[الاسمنت المستخدم بالطن])-SUMIF($G$3:G175,Table10[[#This Row],[محطة الأستلام]],$I$3:I175) -> 0 | M175: =IF(Table10[[#This Row],[الرصيد بالطن]]=0,"0",IF(Table10[[#This Row],[الرصيد بالطن]]>=1,"دائن",IF(Table10[[#This Row],[الرصيد بالطن]]<=-1,"مدين"))) -> 0
A176: 174 | H176: =IFERROR(VLOOKUP(G176,Table9[[اسم المحطة]:[الوحدة]],2,FALSE),"") ->  | K176: =IF(Table10[[#This Row],[صافى الوزن]]>=1,Table10[[#This Row],[صافى الوزن]]*Table10[[#This Row],[السعر]],0) -> 0 | L176: =SUMIF(Table9[اسم المحطة],Table10[[#This Row],[محطة الأستلام]],Table9[الاسمنت المستخدم بالطن])-SUMIF($G$3:G176,Table10[[#This Row],[محطة الأستلام]],$I$3:I176) -> 0 | M176: =IF(Table10[[#This Row],[الرصيد بالطن]]=0,"0",IF(Table10[[#This Row],[الرصيد بالطن]]>=1,"دائن",IF(Table10[[#This Row],[الرصيد بالطن]]<=-1,"مدين"))) -> 0
A177: 175 | H177: =IFERROR(VLOOKUP(G177,Table9[[اسم المحطة]:[الوحدة]],2,FALSE),"") ->  | K177: =IF(Table10[[#This Row],[صافى الوزن]]>=1,Table10[[#This Row],[صافى الوزن]]*Table10[[#This Row],[السعر]],0) -> 0 | L177: =SUMIF(Table9[اسم المحطة],Table10[[#This Row],[محطة الأستلام]],Table9[الاسمنت المستخدم بالطن])-SUMIF($G$3:G177,Table10[[#This Row],[محطة الأستلام]],$I$3:I177) -> 0 | M177: =IF(Table10[[#This Row],[الرصيد بالطن]]=0,"0",IF(Table10[[#This Row],[الرصيد بالطن]]>=1,"دائن",IF(Table10[[#This Row],[الرصيد بالطن]]<=-1,"مدين"))) -> 0
A178: 176 | H178: =IFERROR(VLOOKUP(G178,Table9[[اسم المحطة]:[الوحدة]],2,FALSE),"") ->  | K178: =IF(Table10[[#This Row],[صافى الوزن]]>=1,Table10[[#This Row],[صافى الوزن]]*Table10[[#This Row],[السعر]],0) -> 0 | L178: =SUMIF(Table9[اسم المحطة],Table10[[#This Row],[محطة الأستلام]],Table9[الاسمنت المستخدم بالطن])-SUMIF($G$3:G178,Table10[[#This Row],[محطة الأستلام]],$I$3:I178) -> 0 | M178: =IF(Table10[[#This Row],[الرصيد بالطن]]=0,"0",IF(Table10[[#This Row],[الرصيد بالطن]]>=1,"دائن",IF(Table10[[#This Row],[الرصيد بالطن]]<=-1,"مدين"))) -> 0
A179: 177 | H179: =IFERROR(VLOOKUP(G179,Table9[[اسم المحطة]:[الوحدة]],2,FALSE),"") ->  | K179: =IF(Table10[[#This Row],[صافى الوزن]]>=1,Table10[[#This Row],[صافى الوزن]]*Table10[[#This Row],[السعر]],0) -> 0 | L179: =SUMIF(Table9[اسم المحطة],Table10[[#This Row],[محطة الأستلام]],Table9[الاسمنت المستخدم بالطن])-SUMIF($G$3:G179,Table10[[#This Row],[محطة الأستلام]],$I$3:I179) -> 0 | M179: =IF(Table10[[#This Row],[الرصيد بالطن]]=0,"0",IF(Table10[[#This Row],[الرصيد بالطن]]>=1,"دائن",IF(Table10[[#This Row],[الرصيد بالطن]]<=-1,"مدين"))) -> 0
A180: 178 | H180: =IFERROR(VLOOKUP(G180,Table9[[اسم المحطة]:[الوحدة]],2,FALSE),"") ->  | K180: =IF(Table10[[#This Row],[صافى الوزن]]>=1,Table10[[#This Row],[صافى الوزن]]*Table10[[#This Row],[السعر]],0) -> 0 | L180: =SUMIF(Table9[اسم المحطة],Table10[[#This Row],[محطة الأستلام]],Table9[الاسمنت المستخدم بالطن])-SUMIF($G$3:G180,Table10[[#This Row],[محطة الأستلام]],$I$3:I180) -> 0 | M180: =IF(Table10[[#This Row],[الرصيد بالطن]]=0,"0",IF(Table10[[#This Row],[الرصيد بالطن]]>=1,"دائن",IF(Table10[[#This Row],[الرصيد بالطن]]<=-1,"مدين"))) -> 0
A181: 179 | H181: =IFERROR(VLOOKUP(G181,Table9[[اسم المحطة]:[الوحدة]],2,FALSE),"") ->  | K181: =IF(Table10[[#This Row],[صافى الوزن]]>=1,Table10[[#This Row],[صافى الوزن]]*Table10[[#This Row],[السعر]],0) -> 0 | L181: =SUMIF(Table9[اسم المحطة],Table10[[#This Row],[محطة الأستلام]],Table9[الاسمنت المستخدم بالطن])-SUMIF($G$3:G181,Table10[[#This Row],[محطة الأستلام]],$I$3:I181) -> 0 | M181: =IF(Table10[[#This Row],[الرصيد بالطن]]=0,"0",IF(Table10[[#This Row],[الرصيد بالطن]]>=1,"دائن",IF(Table10[[#This Row],[الرصيد بالطن]]<=-1,"مدين"))) -> 0
A182: 180 | H182: =IFERROR(VLOOKUP(G182,Table9[[اسم المحطة]:[الوحدة]],2,FALSE),"") ->  | K182: =IF(Table10[[#This Row],[صافى الوزن]]>=1,Table10[[#This Row],[صافى الوزن]]*Table10[[#This Row],[السعر]],0) -> 0 | L182: =SUMIF(Table9[اسم المحطة],Table10[[#This Row],[محطة الأستلام]],Table9[الاسمنت المستخدم بالطن])-SUMIF($G$3:G182,Table10[[#This Row],[محطة الأستلام]],$I$3:I182) -> 0 | M182: =IF(Table10[[#This Row],[الرصيد بالطن]]=0,"0",IF(Table10[[#This Row],[الرصيد بالطن]]>=1,"دائن",IF(Table10[[#This Row],[الرصيد بالطن]]<=-1,"مدين"))) -> 0
A183: 181 | H183: =IFERROR(VLOOKUP(G183,Table9[[اسم المحطة]:[الوحدة]],2,FALSE),"") ->  | K183: =IF(Table10[[#This Row],[صافى الوزن]]>=1,Table10[[#This Row],[صافى الوزن]]*Table10[[#This Row],[السعر]],0) -> 0 | L183: =SUMIF(Table9[اسم المحطة],Table10[[#This Row],[محطة الأستلام]],Table9[الاسمنت المستخدم بالطن])-SUMIF($G$3:G183,Table10[[#This Row],[محطة الأستلام]],$I$3:I183) -> 0 | M183: =IF(Table10[[#This Row],[الرصيد بالطن]]=0,"0",IF(Table10[[#This Row],[الرصيد بالطن]]>=1,"دائن",IF(Table10[[#This Row],[الرصيد بالطن]]<=-1,"مدين"))) -> 0
A184: 182 | H184: =IFERROR(VLOOKUP(G184,Table9[[اسم المحطة]:[الوحدة]],2,FALSE),"") ->  | K184: =IF(Table10[[#This Row],[صافى الوزن]]>=1,Table10[[#This Row],[صافى الوزن]]*Table10[[#This Row],[السعر]],0) -> 0 | L184: =SUMIF(Table9[اسم المحطة],Table10[[#This Row],[محطة الأستلام]],Table9[الاسمنت المستخدم بالطن])-SUMIF($G$3:G184,Table10[[#This Row],[محطة الأستلام]],$I$3:I184) -> 0 | M184: =IF(Table10[[#This Row],[الرصيد بالطن]]=0,"0",IF(Table10[[#This Row],[الرصيد بالطن]]>=1,"دائن",IF(Table10[[#This Row],[الرصيد بالطن]]<=-1,"مدين"))) -> 0
A185: 183 | H185: =IFERROR(VLOOKUP(G185,Table9[[اسم المحطة]:[الوحدة]],2,FALSE),"") ->  | K185: =IF(Table10[[#This Row],[صافى الوزن]]>=1,Table10[[#This Row],[صافى الوزن]]*Table10[[#This Row],[السعر]],0) -> 0 | L185: =SUMIF(Table9[اسم المحطة],Table10[[#This Row],[محطة الأستلام]],Table9[الاسمنت المستخدم بالطن])-SUMIF($G$3:G185,Table10[[#This Row],[محطة الأستلام]],$I$3:I185) -> 0 | M185: =IF(Table10[[#This Row],[الرصيد بالطن]]=0,"0",IF(Table10[[#This Row],[الرصيد بالطن]]>=1,"دائن",IF(Table10[[#This Row],[الرصيد بالطن]]<=-1,"مدين"))) -> 0
A186: 184 | H186: =IFERROR(VLOOKUP(G186,Table9[[اسم المحطة]:[الوحدة]],2,FALSE),"") ->  | K186: =IF(Table10[[#This Row],[صافى الوزن]]>=1,Table10[[#This Row],[صافى الوزن]]*Table10[[#This Row],[السعر]],0) -> 0 | L186: =SUMIF(Table9[اسم المحطة],Table10[[#This Row],[محطة الأستلام]],Table9[الاسمنت المستخدم بالطن])-SUMIF($G$3:G186,Table10[[#This Row],[محطة الأستلام]],$I$3:I186) -> 0 | M186: =IF(Table10[[#This Row],[الرصيد بالطن]]=0,"0",IF(Table10[[#This Row],[الرصيد بالطن]]>=1,"دائن",IF(Table10[[#This Row],[الرصيد بالطن]]<=-1,"مدين"))) -> 0
A187: 185 | H187: =IFERROR(VLOOKUP(G187,Table9[[اسم المحطة]:[الوحدة]],2,FALSE),"") ->  | K187: =IF(Table10[[#This Row],[صافى الوزن]]>=1,Table10[[#This Row],[صافى الوزن]]*Table10[[#This Row],[السعر]],0) -> 0 | L187: =SUMIF(Table9[اسم المحطة],Table10[[#This Row],[محطة الأستلام]],Table9[الاسمنت المستخدم بالطن])-SUMIF($G$3:G187,Table10[[#This Row],[محطة الأستلام]],$I$3:I187) -> 0 | M187: =IF(Table10[[#This Row],[الرصيد بالطن]]=0,"0",IF(Table10[[#This Row],[الرصيد بالطن]]>=1,"دائن",IF(Table10[[#This Row],[الرصيد بالطن]]<=-1,"مدين"))) -> 0
A188: 186 | H188: =IFERROR(VLOOKUP(G188,Table9[[اسم المحطة]:[الوحدة]],2,FALSE),"") ->  | K188: =IF(Table10[[#This Row],[صافى الوزن]]>=1,Table10[[#This Row],[صافى الوزن]]*Table10[[#This Row],[السعر]],0) -> 0 | L188: =SUMIF(Table9[اسم المحطة],Table10[[#This Row],[محطة الأستلام]],Table9[الاسمنت المستخدم بالطن])-SUMIF($G$3:G188,Table10[[#This Row],[محطة الأستلام]],$I$3:I188) -> 0 | M188: =IF(Table10[[#This Row],[الرصيد بالطن]]=0,"0",IF(Table10[[#This Row],[الرصيد بالطن]]>=1,"دائن",IF(Table10[[#This Row],[الرصيد بالطن]]<=-1,"مدين"))) -> 0
A189: 187 | H189: =IFERROR(VLOOKUP(G189,Table9[[اسم المحطة]:[الوحدة]],2,FALSE),"") ->  | K189: =IF(Table10[[#This Row],[صافى الوزن]]>=1,Table10[[#This Row],[صافى الوزن]]*Table10[[#This Row],[السعر]],0) -> 0 | L189: =SUMIF(Table9[اسم المحطة],Table10[[#This Row],[محطة الأستلام]],Table9[الاسمنت المستخدم بالطن])-SUMIF($G$3:G189,Table10[[#This Row],[محطة الأستلام]],$I$3:I189) -> 0 | M189: =IF(Table10[[#This Row],[الرصيد بالطن]]=0,"0",IF(Table10[[#This Row],[الرصيد بالطن]]>=1,"دائن",IF(Table10[[#This Row],[الرصيد بالطن]]<=-1,"مدين"))) -> 0
A190: 188 | H190: =IFERROR(VLOOKUP(G190,Table9[[اسم المحطة]:[الوحدة]],2,FALSE),"") ->  | K190: =IF(Table10[[#This Row],[صافى الوزن]]>=1,Table10[[#This Row],[صافى الوزن]]*Table10[[#This Row],[السعر]],0) -> 0 | L190: =SUMIF(Table9[اسم المحطة],Table10[[#This Row],[محطة الأستلام]],Table9[الاسمنت المستخدم بالطن])-SUMIF($G$3:G190,Table10[[#This Row],[محطة الأستلام]],$I$3:I190) -> 0 | M190: =IF(Table10[[#This Row],[الرصيد بالطن]]=0,"0",IF(Table10[[#This Row],[الرصيد بالطن]]>=1,"دائن",IF(Table10[[#This Row],[الرصيد بالطن]]<=-1,"مدين"))) -> 0
A191: 189 | H191: =IFERROR(VLOOKUP(G191,Table9[[اسم المحطة]:[الوحدة]],2,FALSE),"") ->  | K191: =IF(Table10[[#This Row],[صافى الوزن]]>=1,Table10[[#This Row],[صافى الوزن]]*Table10[[#This Row],[السعر]],0) -> 0 | L191: =SUMIF(Table9[اسم المحطة],Table10[[#This Row],[محطة الأستلام]],Table9[الاسمنت المستخدم بالطن])-SUMIF($G$3:G191,Table10[[#This Row],[محطة الأستلام]],$I$3:I191) -> 0 | M191: =IF(Table10[[#This Row],[الرصيد بالطن]]=0,"0",IF(Table10[[#This Row],[الرصيد بالطن]]>=1,"دائن",IF(Table10[[#This Row],[الرصيد بالطن]]<=-1,"مدين"))) -> 0
A192: 190 | H192: =IFERROR(VLOOKUP(G192,Table9[[اسم المحطة]:[الوحدة]],2,FALSE),"") ->  | K192: =IF(Table10[[#This Row],[صافى الوزن]]>=1,Table10[[#This Row],[صافى الوزن]]*Table10[[#This Row],[السعر]],0) -> 0 | L192: =SUMIF(Table9[اسم المحطة],Table10[[#This Row],[محطة الأستلام]],Table9[الاسمنت المستخدم بالطن])-SUMIF($G$3:G192,Table10[[#This Row],[محطة الأستلام]],$I$3:I192) -> 0 | M192: =IF(Table10[[#This Row],[الرصيد بالطن]]=0,"0",IF(Table10[[#This Row],[الرصيد بالطن]]>=1,"دائن",IF(Table10[[#This Row],[الرصيد بالطن]]<=-1,"مدين"))) -> 0
A193: 191 | H193: =IFERROR(VLOOKUP(G193,Table9[[اسم المحطة]:[الوحدة]],2,FALSE),"") ->  | K193: =IF(Table10[[#This Row],[صافى الوزن]]>=1,Table10[[#This Row],[صافى الوزن]]*Table10[[#This Row],[السعر]],0) -> 0 | L193: =SUMIF(Table9[اسم المحطة],Table10[[#This Row],[محطة الأستلام]],Table9[الاسمنت المستخدم بالطن])-SUMIF($G$3:G193,Table10[[#This Row],[محطة الأستلام]],$I$3:I193) -> 0 | M193: =IF(Table10[[#This Row],[الرصيد بالطن]]=0,"0",IF(Table10[[#This Row],[الرصيد بالطن]]>=1,"دائن",IF(Table10[[#This Row],[الرصيد بالطن]]<=-1,"مدين"))) -> 0
A194: 192 | H194: =IFERROR(VLOOKUP(G194,Table9[[اسم المحطة]:[الوحدة]],2,FALSE),"") ->  | K194: =IF(Table10[[#This Row],[صافى الوزن]]>=1,Table10[[#This Row],[صافى الوزن]]*Table10[[#This Row],[السعر]],0) -> 0 | L194: =SUMIF(Table9[اسم المحطة],Table10[[#This Row],[محطة الأستلام]],Table9[الاسمنت المستخدم بالطن])-SUMIF($G$3:G194,Table10[[#This Row],[محطة الأستلام]],$I$3:I194) -> 0 | M194: =IF(Table10[[#This Row],[الرصيد بالطن]]=0,"0",IF(Table10[[#This Row],[الرصيد بالطن]]>=1,"دائن",IF(Table10[[#This Row],[الرصيد بالطن]]<=-1,"مدين"))) -> 0
A195: =ROW()-2 -> 193 | H195: =IFERROR(VLOOKUP(G195,Table9[[اسم المحطة]:[الوحدة]],2,FALSE),"") ->  | K195: =IF(Table10[[#This Row],[صافى الوزن]]>=1,Table10[[#This Row],[صافى الوزن]]*Table10[[#This Row],[السعر]],0) -> 0 | L195: =SUMIF(Table9[اسم المحطة],Table10[[#This Row],[محطة الأستلام]],Table9[الاسمنت المستخدم بالطن])-SUMIF($G$3:G195,Table10[[#This Row],[محطة الأستلام]],$I$3:I195) -> 0 | M195: =IF(Table10[[#This Row],[الرصيد بالطن]]=0,"0",IF(Table10[[#This Row],[الرصيد بالطن]]>=1,"دائن",IF(Table10[[#This Row],[الرصيد بالطن]]<=-1,"مدين"))) -> 0
A196: 194 | H196: =IFERROR(VLOOKUP(G196,Table9[[اسم المحطة]:[الوحدة]],2,FALSE),"") ->  | K196: =IF(Table10[[#This Row],[صافى الوزن]]>=1,Table10[[#This Row],[صافى الوزن]]*Table10[[#This Row],[السعر]],0) -> 0 | L196: =SUMIF(Table9[اسم المحطة],Table10[[#This Row],[محطة الأستلام]],Table9[الاسمنت المستخدم بالطن])-SUMIF($G$3:G196,Table10[[#This Row],[محطة الأستلام]],$I$3:I196) -> 0 | M196: =IF(Table10[[#This Row],[الرصيد بالطن]]=0,"0",IF(Table10[[#This Row],[الرصيد بالطن]]>=1,"دائن",IF(Table10[[#This Row],[الرصيد بالطن]]<=-1,"مدين"))) -> 0
A197: 195 | H197: =IFERROR(VLOOKUP(G197,Table9[[اسم المحطة]:[الوحدة]],2,FALSE),"") ->  | K197: =IF(Table10[[#This Row],[صافى الوزن]]>=1,Table10[[#This Row],[صافى الوزن]]*Table10[[#This Row],[السعر]],0) -> 0 | L197: =SUMIF(Table9[اسم المحطة],Table10[[#This Row],[محطة الأستلام]],Table9[الاسمنت المستخدم بالطن])-SUMIF($G$3:G197,Table10[[#This Row],[محطة الأستلام]],$I$3:I197) -> 0 | M197: =IF(Table10[[#This Row],[الرصيد بالطن]]=0,"0",IF(Table10[[#This Row],[الرصيد بالطن]]>=1,"دائن",IF(Table10[[#This Row],[الرصيد بالطن]]<=-1,"مدين"))) -> 0
A198: 196 | H198: =IFERROR(VLOOKUP(G198,Table9[[اسم المحطة]:[الوحدة]],2,FALSE),"") ->  | K198: =IF(Table10[[#This Row],[صافى الوزن]]>=1,Table10[[#This Row],[صافى الوزن]]*Table10[[#This Row],[السعر]],0) -> 0 | L198: =SUMIF(Table9[اسم المحطة],Table10[[#This Row],[محطة الأستلام]],Table9[الاسمنت المستخدم بالطن])-SUMIF($G$3:G198,Table10[[#This Row],[محطة الأستلام]],$I$3:I198) -> 0 | M198: =IF(Table10[[#This Row],[الرصيد بالطن]]=0,"0",IF(Table10[[#This Row],[الرصيد بالطن]]>=1,"دائن",IF(Table10[[#This Row],[الرصيد بالطن]]<=-1,"مدين"))) -> 0
A199: 197 | H199: =IFERROR(VLOOKUP(G199,Table9[[اسم المحطة]:[الوحدة]],2,FALSE),"") ->  | K199: =IF(Table10[[#This Row],[صافى الوزن]]>=1,Table10[[#This Row],[صافى الوزن]]*Table10[[#This Row],[السعر]],0) -> 0 | L199: =SUMIF(Table9[اسم المحطة],Table10[[#This Row],[محطة الأستلام]],Table9[الاسمنت المستخدم بالطن])-SUMIF($G$3:G199,Table10[[#This Row],[محطة الأستلام]],$I$3:I199) -> 0 | M199: =IF(Table10[[#This Row],[الرصيد بالطن]]=0,"0",IF(Table10[[#This Row],[الرصيد بالطن]]>=1,"دائن",IF(Table10[[#This Row],[الرصيد بالطن]]<=-1,"مدين"))) -> 0
A200: 198 | H200: =IFERROR(VLOOKUP(G200,Table9[[اسم المحطة]:[الوحدة]],2,FALSE),"") ->  | K200: =IF(Table10[[#This Row],[صافى الوزن]]>=1,Table10[[#This Row],[صافى الوزن]]*Table10[[#This Row],[السعر]],0) -> 0 | L200: =SUMIF(Table9[اسم المحطة],Table10[[#This Row],[محطة الأستلام]],Table9[الاسمنت المستخدم بالطن])-SUMIF($G$3:G200,Table10[[#This Row],[محطة الأستلام]],$I$3:I200) -> 0 | M200: =IF(Table10[[#This Row],[الرصيد بالطن]]=0,"0",IF(Table10[[#This Row],[الرصيد بالطن]]>=1,"دائن",IF(Table10[[#This Row],[الرصيد بالطن]]<=-1,"مدين"))) -> 0
... 812 more rows

Sheet 2
A1: الاجمالى | C1: =IF($D$1>=1,"رصيد المحطة دائن",IF($D$1<=-1,"رصيد المحطة مدين","الرصيد صفر")) -> رصيد المحطة دائن | D1: =SUMIF(Table9[اسم المحطة],$J$1,Table9[الرصيد بالطن]) -> 285.54 | E1: =SUBTOTAL(9,Table8[الكميه بالمتر المكعب]) -> 19136.5 | F1: =SUBTOTAL(9,Table8[كمية الاسمنت المستخدم بالطن]) -> 6881.8 | J1: الشركة الهندسية للمشروعات | K1: 2023-07-01 | L1: 2023-08-31 | M1: فارغة | N1: التاريخ | O1: التاريخ | P1: =Table8[[#Headers],[اسم المحطه]] -> اسم المحطه | Q1: سى1 | R1: سى2 | S1: سى3 | T1: سى4 | U1: اى1 | V1: اى2 | W1: دى1 | X1: دى2 | Y1: عادية
A2: م | B2: التاريخ | C2: اسم المحطه | D2: محتوى الاسمنت (كجم/م3) | E2: الكميه بالمتر المكعب | F2: كمية الاسمنت المستخدم بالطن | G2: بند العقد | H2: الاجمالى قيمة | I2: الرصيد بالطن | J2: الموقف | K2: عمارة | L2: ملاحظات | N2: =">="&$K$1 -> >=45108 | O2: ="<="&$L$1 -> <=45169 | P2: =$J$1 -> الشركة الهندسية للمشروعات
A3: =ROW()-2 -> 1 | B3: 2022-08-30 | C3: الشركة الهندسية للمشروعات | D3: 250 | E3: 340 | F3: =Table8[[#This Row],[الكميه بالمتر المكعب]]*Table8[[#This Row],[محتوى الاسمنت (كجم/م3)]]/1000 -> 85 | G3: =SUMIF(Table9[اسم المحطة],Table8[[#This Row],[اسم المحطه]],Table13[2022/08/01]) -> 480 | H3: =Table8[[#This Row],[الكميه بالمتر المكعب]]*Table8[[#This Row],[بند العقد]] -> 163200 | I3: =SUMIF($C$3:C3,Table8[[#This Row],[اسم المحطه]],$F$3:F3)-SUMIF(Table9[اسم المحطة],Table8[[#This Row],[اسم المحطه]],Table9[الاسمنت المستلم بالطن]) -> -3899.6 | J3: =IF(Table8[[#This Row],[الرصيد بالطن]]=0,"0",IF(Table8[[#This Row],[الرصيد بالطن]]>=0.01,"دائن",IF(Table8[[#This Row],[الرصيد بالطن]]<=-0.01,"مدين"))) -> مدين | K3: اى1 | L3: عادية اى 1
A4: 2 | B4: 2022-09-03 | C4: ابكس للخرسانة الجاهزة | D4: 200 | E4: 30 | F4: =Table8[[#This Row],[الكميه بالمتر المكعب]]*Table8[[#This Row],[محتوى الاسمنت (كجم/م3)]]/1000 -> 6 | G4: =SUMIF(Table9[اسم المحطة],Table8[[#This Row],[اسم المحطه]],Table13[2022/08/01]) -> 480 | H4: =Table8[[#This Row],[الكميه بالمتر المكعب]]*Table8[[#This Row],[بند العقد]] -> 14400 | I4: =SUMIF($C$3:C4,Table8[[#This Row],[اسم المحطه]],$F$3:F4)-SUMIF(Table9[اسم المحطة],Table8[[#This Row],[اسم المحطه]],Table9[الاسمنت المستلم بالطن]) -> -120.64 | J4: =IF(Table8[[#This Row],[الرصيد بالطن]]=0,"0",IF(Table8[[#This Row],[الرصيد بالطن]]>=0.01,"دائن",IF(Table8[[#This Row],[الرصيد بالطن]]<=-0.01,"مدين"))) -> مدين | K4: عادية | L4: فرشة سكن احمد غنيم
A5: 3 | B5: 2022-09-05 | C5: ابكس للخرسانة الجاهزة | D5: 250 | E5: 363 | F5: =Table8[[#This Row],[الكميه بالمتر المكعب]]*Table8[[#This Row],[محتوى الاسمنت (كجم/م3)]]/1000 -> 90.75 | G5: =SUMIF(Table9[اسم المحطة],Table8[[#This Row],[اسم المحطه]],Table13[2022/08/01]) -> 480 | H5: =Table8[[#This Row],[الكميه بالمتر المكعب]]*Table8[[#This Row],[بند العقد]] -> 174240 | I5: =SUMIF($C$3:C5,Table8[[#This Row],[اسم المحطه]],$F$3:F5)-SUMIF(Table9[اسم المحطة],Table8[[#This Row],[اسم المحطه]],Table9[الاسمنت المستلم بالطن]) -> -29.89 | J5: =IF(Table8[[#This Row],[الرصيد بالطن]]=0,"0",IF(Table8[[#This Row],[الرصيد بالطن]]>=0.01,"دائن",IF(Table8[[#This Row],[الرصيد بالطن]]<=-0.01,"مدين"))) -> مدين | K5: سى4 | L5: عادية سى 4 | P5: SUMIFS(data[رصيد اول المدة];data[اسم المقاول];استعلام!$A$2;data[مركز تكلفة];استعلام!$E$2;data[التاريخ];">="&$A$4;data[التاريخ];"<="&$C$4)
A6: 4 | B6: 2022-09-06 | C6: ابكس للخرسانة الجاهزة | D6: 250 | E6: 370 | F6: =Table8[[#This Row],[الكميه بالمتر المكعب]]*Table8[[#This Row],[محتوى الاسمنت (كجم/م3)]]/1000 -> 92.5 | G6: =SUMIF(Table9[اسم المحطة],Table8[[#This Row],[اسم المحطه]],Table13[2022/08/01]) -> 480 | H6: =Table8[[#This Row],[الكميه بالمتر المكعب]]*Table8[[#This Row],[بند العقد]] -> 177600 | I6: =SUMIF($C$3:C6,Table8[[#This Row],[اسم المحطه]],$F$3:F6)-SUMIF(Table9[اسم المحطة],Table8[[#This Row],[اسم المحطه]],Table9[الاسمنت المستلم بالطن]) -> 62.61 | J6: =IF(Table8[[#This Row],[الرصيد بالطن]]=0,"0",IF(Table8[[#This Row],[الرصيد بالطن]]>=0.01,"دائن",IF(Table8[[#This Row],[الرصيد بالطن]]<=-0.01,"مدين"))) -> دائن | K6: سى3 | L6: عادية سى 3
A7: 5 | B7: 2022-09-13 | C7: الشركة الهندسية للمشروعات | D7: 250 | E7: 280 | F7: =Table8[[#This Row],[الكميه بالمتر المكعب]]*Table8[[#This Row],[محتوى الاسمنت (كجم/م3)]]/1000 -> 70 | G7: =SUMIF(Table9[اسم المحطة],Table8[[#This Row],[اسم المحطه]],Table13[2022/08/01]) -> 480 | H7: =Table8[[#This Row],[الكميه بالمتر المكعب]]*Table8[[#This Row],[بند العقد]] -> 134400 | I7: =SUMIF($C$3:C7,Table8[[#This Row],[اسم المحطه]],$F$3:F7)-SUMIF(Table9[اسم المحطة],Table8[[#This Row],[اسم المحطه]],Table9[الاسمنت المستلم بالطن]) -> -3829.6 | J7: =IF(Table8[[#This Row],[الرصيد بالطن]]=0,"0",IF(Table8[[#This Row],[الرصيد بالطن]]>=0.01,"دائن",IF(Table8[[#This Row],[الرصيد بالطن]]<=-0.01,"مدين"))) -> مدين | K7: دى2 | L7: عادية دى 2
A8: 6 | B8: 2022-09-13 | C8: الشركة الهندسية للمشروعات | D8: 250 | E8: 90 | F8: =Table8[[#This Row],[الكميه بالمتر المكعب]]*Table8[[#This Row],[محتوى الاسمنت (كجم/م3)]]/1000 -> 22.5 | G8: =SUMIF(Table9[اسم المحطة],Table8[[#This Row],[اسم المحطه]],Table13[2022/08/01]) -> 480 | H8: =Table8[[#This Row],[الكميه بالمتر المكعب]]*Table8[[#This Row],[بند العقد]] -> 43200 | I8: =SUMIF($C$3:C8,Table8[[#This Row],[اسم المحطه]],$F$3:F8)-SUMIF(Table9[اسم المحطة],Table8[[#This Row],[اسم المحطه]],Table9[الاسمنت المستلم بالطن]) -> -3807.1 | J8: =IF(Table8[[#This Row],[الرصيد بالطن]]=0,"0",IF(Table8[[#This Row],[الرصيد بالطن]]>=0.01,"دائن",IF(Table8[[#This Row],[الرصيد بالطن]]<=-0.01,"مدين"))) -> مدين | K8: دى2 | L8: عادية دى2
A9: 7 | B9: 2022-09-22 | C9: الشركة الهندسية للمشروعات | D9: 250 | E9: 533 | F9: =Table8[[#This Row],[الكميه بالمتر المكعب]]*Table8[[#This Row],[محتوى الاسمنت (كجم/م3)]]/1000 -> 133.25 | G9: =SUMIF(Table9[اسم المحطة],Table8[[#This Row],[اسم المحطه]],Table13[2022/08/01]) -> 480 | H9: =Table8[[#This Row],[الكميه بالمتر المكعب]]*Table8[[#This Row],[بند العقد]] -> 255840 | I9: =SUMIF($C$3:C9,Table8[[#This Row],[اسم المحطه]],$F$3:F9)-SUMIF(Table9[اسم المحطة],Table8[[#This Row],[اسم المحطه]],Table9[الاسمنت المستلم بالطن]) -> -3673.85 | J9: =IF(Table8[[#This Row],[الرصيد بالطن]]=0,"0",IF(Table8[[#This Row],[الرصيد بالطن]]>=0.01,"دائن",IF(Table8[[#This Row],[الرصيد بالطن]]<=-0.01,"مدين"))) -> مدين | K9: سى2 | L9: عادية سى 2
A10: 8 | B10: 2022-09-22 | C10: الشركة الهندسية للمشروعات | D10: 250 | E10: 229 | F10: =Table8[[#This Row],[الكميه بالمتر المكعب]]*Table8[[#This Row],[محتوى الاسمنت (كجم/م3)]]/1000 -> 57.25 | G10: =SUMIF(Table9[اسم المحطة],Table8[[#This Row],[اسم المحطه]],Table13[2022/08/01]) -> 480 | H10: =Table8[[#This Row],[الكميه بالمتر المكعب]]*Table8[[#This Row],[بند العقد]] -> 109920 | I10: =SUMIF($C$3:C10,Table8[[#This Row],[اسم المحطه]],$F$3:F10)-SUMIF(Table9[اسم المحطة],Table8[[#This Row],[اسم المحطه]],Table9[الاسمنت المستلم بالطن]) -> -3616.6 | J10: =IF(Table8[[#This Row],[الرصيد بالطن]]=0,"0",IF(Table8[[#This Row],[الرصيد بالطن]]>=0.01,"دائن",IF(Table8[[#This Row],[الرصيد بالطن]]<=-0.01,"مدين"))) -> مدين | K10: دى1 | L10: عادية دى 1
A11: 9 | B11: 2022-09-27 | C11: الشركة الهندسية للمشروعات | D11: 380 | E11: 278 | F11: =Table8[[#This Row],[الكميه بالمتر المكعب]]*Table8[[#This Row],[محتوى الاسمنت (كجم/م3)]]/1000 -> 105.64 | G11: =SUMIF(Table9[اسم المحطة],Table8[[#This Row],[اسم المحطه]],Table13[2022/08/01]) -> 480 | H11: =Table8[[#This Row],[الكميه بالمتر المكعب]]*Table8[[#This Row],[بند العقد]] -> 133440 | I11: =SUMIF($C$3:C11,Table8[[#This Row],[اسم المحطه]],$F$3:F11)-SUMIF(Table9[اسم المحطة],Table8[[#This Row],[اسم المحطه]],Table9[الاسمنت المستلم بالطن]) -> -3510.96 | J11: =IF(Table8[[#This Row],[الرصيد بالطن]]=0,"0",IF(Table8[[#This Row],[الرصيد بالطن]]>=0.01,"دائن",IF(Table8[[#This Row],[الرصيد بالطن]]<=-0.01,"مدين"))) -> مدين | K11: سى4 | L11: مسلحة سى 4
A12: 10 | B12: 2022-09-27 | C12: الشركة الهندسية للمشروعات | D12: 380 | E12: 299 | F12: =Table8[[#This Row],[الكميه بالمتر المكعب]]*Table8[[#This Row],[محتوى الاسمنت (كجم/م3)]]/1000 -> 113.62 | G12: =SUMIF(Table9[اسم المحطة],Table8[[#This Row],[اسم المحطه]],Table13[2022/08/01]) -> 480 | H12: =Table8[[#This Row],[الكميه بالمتر المكعب]]*Table8[[#This Row],[بند العقد]] -> 143520 | I12: =SUMIF($C$3:C12,Table8[[#This Row],[اسم المحطه]],$F$3:F12)-SUMIF(Table9[اسم المحطة],Table8[[#This Row],[اسم المحطه]],Table9[الاسمنت المستلم بالطن]) -> -3397.34 | J12: =IF(Table8[[#This Row],[الرصيد بالطن]]=0,"0",IF(Table8[[#This Row],[الرصيد بالطن]]>=0.01,"دائن",IF(Table8[[#This Row],[الرصيد بالطن]]<=-0.01,"مدين"))) -> مدين | K12: سى4 | L12: مسلحة سى 4
A13: 11 | B13: 2022-09-29 | C13: الشركة الهندسية للمشروعات | D13: 250 | E13: 267 | F13: =Table8[[#This Row],[الكميه بالمتر المكعب]]*Table8[[#This Row],[محتوى الاسمنت (كجم/م3)]]/1000 -> 66.75 | G13: =SUMIF(Table9[اسم المحطة],Table8[[#This Row],[اسم المحطه]],Table13[2022/08/01]) -> 480 | H13: =Table8[[#This Row],[الكميه بالمتر المكعب]]*Table8[[#This Row],[بند العقد]] -> 128160 | I13: =SUMIF($C$3:C13,Table8[[#This Row],[اسم المحطه]],$F$3:F13)-SUMIF(Table9[اسم المحطة],Table8[[#This Row],[اسم المحطه]],Table9[الاسمنت المستلم بالطن]) -> -3330.59 | J13: =IF(Table8[[#This Row],[الرصيد بالطن]]=0,"0",IF(Table8[[#This Row],[الرصيد بالطن]]>=0.01,"دائن",IF(Table8[[#This Row],[الرصيد بالطن]]<=-0.01,"مدين"))) -> مدين | K13: سى1 | L13: عادية سى 1
A14: 12 | B14: 2022-09-29 | C14: الشركة الهندسية للمشروعات | D14: 250 | E14: 90 | F14: =Table8[[#This Row],[الكميه بالمتر المكعب]]*Table8[[#This Row],[محتوى الاسمنت (كجم/م3)]]/1000 -> 22.5 | G14: =SUMIF(Table9[اسم المحطة],Table8[[#This Row],[اسم المحطه]],Table13[2022/08/01]) -> 480 | H14: =Table8[[#This Row],[الكميه بالمتر المكعب]]*Table8[[#This Row],[بند العقد]] -> 43200 | I14: =SUMIF($C$3:C14,Table8[[#This Row],[اسم المحطه]],$F$3:F14)-SUMIF(Table9[اسم المحطة],Table8[[#This Row],[اسم المحطه]],Table9[الاسمنت المستلم بالطن]) -> -3308.09 | J14: =IF(Table8[[#This Row],[الرصيد بالطن]]=0,"0",IF(Table8[[#This Row],[الرصيد بالطن]]>=0.01,"دائن",IF(Table8[[#This Row],[الرصيد بالطن]]<=-0.01,"مدين"))) -> مدين | K14: سى1 | L14: عادية سى 1
A15: 13 | B15: 2022-10-06 | C15: الشركة الهندسية للمشروعات | D15: 380 | E15: 220 | F15: =Table8[[#This Row],[الكميه بالمتر المكعب]]*Table8[[#This Row],[محتوى الاسمنت (كجم/م3)]]/1000 -> 83.6 | G15: =SUMIF(Table9[اسم المحطة],Table8[[#This Row],[اسم المحطه]],Table13[2022/08/01]) -> 480 | H15: =Table8[[#This Row],[الكميه بالمتر المكعب]]*Table8[[#This Row],[بند العقد]] -> 105600 | I15: =SUMIF($C$3:C15,Table8[[#This Row],[اسم المحطه]],$F$3:F15)-SUMIF(Table9[اسم المحطة],Table8[[#This Row],[اسم المحطه]],Table9[الاسمنت المستلم بالطن]) -> -3224.49 | J15: =IF(Table8[[#This Row],[الرصيد بالطن]]=0,"0",IF(Table8[[#This Row],[الرصيد بالطن]]>=0.01,"دائن",IF(Table8[[#This Row],[الرصيد بالطن]]<=-0.01,"مدين"))) -> مدين | K15: دى2 | L15: قواعد مسلحة دى 2
A16: 14 | B16: 2022-10-09 | C16: الشركة الهندسية للمشروعات | D16: 250 | E16: 380 | F16: =Table8[[#This Row],[الكميه بالمتر المكعب]]*Table8[[#This Row],[محتوى الاسمنت (كجم/م3)]]/1000 -> 95 | G16: =SUMIF(Table9[اسم المحطة],Table8[[#This Row],[اسم المحطه]],Table13[2022/08/01]) -> 480 | H16: =Table8[[#This Row],[الكميه بالمتر المكعب]]*Table8[[#This Row],[بند العقد]] -> 182400 | I16: =SUMIF($C$3:C16,Table8[[#This Row],[اسم المحطه]],$F$3:F16)-SUMIF(Table9[اسم المحطة],Table8[[#This Row],[اسم المحطه]],Table9[الاسمنت المستلم بالطن]) -> -3129.49 | J16: =IF(Table8[[#This Row],[الرصيد بالطن]]=0,"0",IF(Table8[[#This Row],[الرصيد بالطن]]>=0.01,"دائن",IF(Table8[[#This Row],[الرصيد بالطن]]<=-0.01,"مدين"))) -> مدين | K16: اى2 | L16: عادية اى 2
A17: 15 | B17: 2022-10-10 | C17: كابيتال بيلد | D17: 380 | E17: 254 | F17: =Table8[[#This Row],[الكميه بالمتر المكعب]]*Table8[[#This Row],[محتوى الاسمنت (كجم/م3)]]/1000 -> 96.52 | G17: =SUMIF(Table9[اسم المحطة],Table8[[#This Row],[اسم المحطه]],Table13[2022/08/01]) -> 480 | H17: =Table8[[#This Row],[الكميه بالمتر المكعب]]*Table8[[#This Row],[بند العقد]] -> 121920 | I17: =SUMIF($C$3:C17,Table8[[#This Row],[اسم المحطه]],$F$3:F17)-SUMIF(Table9[اسم المحطة],Table8[[#This Row],[اسم المحطه]],Table9[الاسمنت المستلم بالطن]) -> -1643.73 | J17: =IF(Table8[[#This Row],[الرصيد بالطن]]=0,"0",IF(Table8[[#This Row],[الرصيد بالطن]]>=0.01,"دائن",IF(Table8[[#This Row],[الرصيد بالطن]]<=-0.01,"مدين"))) -> مدين | K17: سى3 | L17: قواعد مسلحة سى 3
A18: 16 | B18: 2022-10-10 | C18: كابيتال بيلد | D18: 380 | E18: 257 | F18: =Table8[[#This Row],[الكميه بالمتر المكعب]]*Table8[[#This Row],[محتوى الاسمنت (كجم/م3)]]/1000 -> 97.66 | G18: =SUMIF(Table9[اسم المحطة],Table8[[#This Row],[اسم المحطه]],Table13[2022/08/01]) -> 480 | H18: =Table8[[#This Row],[الكميه بالمتر المكعب]]*Table8[[#This Row],[بند العقد]] -> 123360 | I18: =SUMIF($C$3:C18,Table8[[#This Row],[اسم المحطه]],$F$3:F18)-SUMIF(Table9[اسم المحطة],Table8[[#This Row],[اسم المحطه]],Table9[الاسمنت المستلم بالطن]) -> -1546.07 | J18: =IF(Table8[[#This Row],[الرصيد بالطن]]=0,"0",IF(Table8[[#This Row],[الرصيد بالطن]]>=0.01,"دائن",IF(Table8[[#This Row],[الرصيد بالطن]]<=-0.01,"مدين"))) -> مدين | K18: سى2 | L18: قواعد مسلحة سى 2
A19: 17 | B19: 2022-10-10 | C19: كابيتال بيلد | D19: 250 | E19: 5 | F19: =Table8[[#This Row],[الكميه بالمتر المكعب]]*Table8[[#This Row],[محتوى الاسمنت (كجم/م3)]]/1000 -> 1.25 | G19: =SUMIF(Table9[اسم المحطة],Table8[[#This Row],[اسم المحطه]],Table13[2022/08/01]) -> 480 | H19: =Table8[[#This Row],[الكميه بالمتر المكعب]]*Table8[[#This Row],[بند العقد]] -> 2400 | I19: =SUMIF($C$3:C19,Table8[[#This Row],[اسم المحطه]],$F$3:F19)-SUMIF(Table9[اسم المحطة],Table8[[#This Row],[اسم المحطه]],Table9[الاسمنت المستلم بالطن]) -> -1544.82 | J19: =IF(Table8[[#This Row],[الرصيد بالطن]]=0,"0",IF(Table8[[#This Row],[الرصيد بالطن]]>=0.01,"دائن",IF(Table8[[#This Row],[الرصيد بالطن]]<=-0.01,"مدين"))) -> مدين | K19: عادية | L19: فرشة نظافة
A20: 18 | B20: 2022-10-16 | C20: كابيتال بيلد | D20: 380 | E20: 294 | F20: =Table8[[#This Row],[الكميه بالمتر المكعب]]*Table8[[#This Row],[محتوى الاسمنت (كجم/م3)]]/1000 -> 111.72 | G20: =SUMIF(Table9[اسم المحطة],Table8[[#This Row],[اسم المحطه]],Table13[2022/08/01]) -> 480 | H20: =Table8[[#This Row],[الكميه بالمتر المكعب]]*Table8[[#This Row],[بند العقد]] -> 141120 | I20: =SUMIF($C$3:C20,Table8[[#This Row],[اسم المحطه]],$F$3:F20)-SUMIF(Table9[اسم المحطة],Table8[[#This Row],[اسم المحطه]],Table9[الاسمنت المستلم بالطن]) -> -1433.1 | J20: =IF(Table8[[#This Row],[الرصيد بالطن]]=0,"0",IF(Table8[[#This Row],[الرصيد بالطن]]>=0.01,"دائن",IF(Table8[[#This Row],[الرصيد بالطن]]<=-0.01,"مدين"))) -> مدين | K20: سى3 | L20: قواعد مسلحة سى 3
A21: 19 | B21: 2022-10-16 | C21: كابيتال بيلد | D21: 380 | E21: 81 | F21: =Table8[[#This Row],[الكميه بالمتر المكعب]]*Table8[[#This Row],[محتوى الاسمنت (كجم/م3)]]/1000 -> 30.78 | G21: =SUMIF(Table9[اسم المحطة],Table8[[#This Row],[اسم المحطه]],Table13[2022/08/01]) -> 480 | H21: =Table8[[#This Row],[الكميه بالمتر المكعب]]*Table8[[#This Row],[بند العقد]] -> 38880 | I21: =SUMIF($C$3:C21,Table8[[#This Row],[اسم المحطه]],$F$3:F21)-SUMIF(Table9[اسم المحطة],Table8[[#This Row],[اسم المحطه]],Table9[الاسمنت المستلم بالطن]) -> -1402.32 | J21: =IF(Table8[[#This Row],[الرصيد بالطن]]=0,"0",IF(Table8[[#This Row],[الرصيد بالطن]]>=0.01,"دائن",IF(Table8[[#This Row],[الرصيد بالطن]]<=-0.01,"مدين"))) -> مدين | K21: سى2 | L21: قواعد مسلحة سى 2
A22: 20 | B22: 2022-10-20 | C22: كابيتال بيلد | D22: 380 | E22: 389 | F22: =Table8[[#This Row],[الكميه بالمتر المكعب]]*Table8[[#This Row],[محتوى الاسمنت (كجم/م3)]]/1000 -> 147.82 | G22: =SUMIF(Table9[اسم المحطة],Table8[[#This Row],[اسم المحطه]],Table13[2022/08/01]) -> 480 | H22: =Table8[[#This Row],[الكميه بالمتر المكعب]]*Table8[[#This Row],[بند العقد]] -> 186720 | I22: =SUMIF($C$3:C22,Table8[[#This Row],[اسم المحطه]],$F$3:F22)-SUMIF(Table9[اسم المحطة],Table8[[#This Row],[اسم المحطه]],Table9[الاسمنت المستلم بالطن]) -> -1254.5 | J22: =IF(Table8[[#This Row],[الرصيد بالطن]]=0,"0",IF(Table8[[#This Row],[الرصيد بالطن]]>=0.01,"دائن",IF(Table8[[#This Row],[الرصيد بالطن]]<=-0.01,"مدين"))) -> مدين | K22: سى2 | L22: قواعد مسلحة سى 2
A23: 21 | B23: 2022-10-22 | C23: كابيتال بيلد | D23: 380 | E23: 140 | F23: =Table8[[#This Row],[الكميه بالمتر المكعب]]*Table8[[#This Row],[محتوى الاسمنت (كجم/م3)]]/1000 -> 53.2 | G23: =SUMIF(Table9[اسم المحطة],Table8[[#This Row],[اسم المحطه]],Table13[2022/08/01]) -> 480 | H23: =Table8[[#This Row],[الكميه بالمتر المكعب]]*Table8[[#This Row],[بند العقد]] -> 67200 | I23: =SUMIF($C$3:C23,Table8[[#This Row],[اسم المحطه]],$F$3:F23)-SUMIF(Table9[اسم المحطة],Table8[[#This Row],[اسم المحطه]],Table9[الاسمنت المستلم بالطن]) -> -1201.3 | J23: =IF(Table8[[#This Row],[الرصيد بالطن]]=0,"0",IF(Table8[[#This Row],[الرصيد بالطن]]>=0.01,"دائن",IF(Table8[[#This Row],[الرصيد بالطن]]<=-0.01,"مدين"))) -> مدين | K23: سى3 | L23: قواعد مسلحة سى 3
A24: 22 | B24: 2022-10-24 | C24: كابيتال بيلد | D24: 380 | E24: 124 | F24: =Table8[[#This Row],[الكميه بالمتر المكعب]]*Table8[[#This Row],[محتوى الاسمنت (كجم/م3)]]/1000 -> 47.12 | G24: =SUMIF(Table9[اسم المحطة],Table8[[#This Row],[اسم المحطه]],Table13[2022/08/01]) -> 480 | H24: =Table8[[#This Row],[الكميه بالمتر المكعب]]*Table8[[#This Row],[بند العقد]] -> 59520 | I24: =SUMIF($C$3:C24,Table8[[#This Row],[اسم المحطه]],$F$3:F24)-SUMIF(Table9[اسم المحطة],Table8[[#This Row],[اسم المحطه]],Table9[الاسمنت المستلم بالطن]) -> -1154.18 | J24: =IF(Table8[[#This Row],[الرصيد بالطن]]=0,"0",IF(Table8[[#This Row],[الرصيد بالطن]]>=0.01,"دائن",IF(Table8[[#This Row],[الرصيد بالطن]]<=-0.01,"مدين"))) -> مدين | K24: سى1 | L24: قواعد مسلحة سى 1
A25: 23 | B25: 2022-10-26 | C25: كابيتال بيلد | D25: 380 | E25: 105 | F25: =Table8[[#This Row],[الكميه بالمتر المكعب]]*Table8[[#This Row],[محتوى الاسمنت (كجم/م3)]]/1000 -> 39.9 | G25: =SUMIF(Table9[اسم المحطة],Table8[[#This Row],[اسم المحطه]],Table13[2022/08/01]) -> 480 | H25: =Table8[[#This Row],[الكميه بالمتر المكعب]]*Table8[[#This Row],[بند العقد]] -> 50400 | I25: =SUMIF($C$3:C25,Table8[[#This Row],[اسم المحطه]],$F$3:F25)-SUMIF(Table9[اسم المحطة],Table8[[#This Row],[اسم المحطه]],Table9[الاسمنت المستلم بالطن]) -> -1114.28 | J25: =IF(Table8[[#This Row],[الرصيد بالطن]]=0,"0",IF(Table8[[#This Row],[الرصيد بالطن]]>=0.01,"دائن",IF(Table8[[#This Row],[الرصيد بالطن]]<=-0.01,"مدين"))) -> مدين | K25: سى4 | L25: سقف ارضى سى 4
A26: 24 | B26: 2022-10-30 | C26: كابيتال بيلد | D26: 380 | E26: 556 | F26: =Table8[[#This Row],[الكميه بالمتر المكعب]]*Table8[[#This Row],[محتوى الاسمنت (كجم/م3)]]/1000 -> 211.28 | G26: =SUMIF(Table9[اسم المحطة],Table8[[#This Row],[اسم المحطه]],Table13[2022/08/01]) -> 480 | H26: =Table8[[#This Row],[الكميه بالمتر المكعب]]*Table8[[#This Row],[بند العقد]] -> 266880 | I26: =SUMIF($C$3:C26,Table8[[#This Row],[اسم المحطه]],$F$3:F26)-SUMIF(Table9[اسم المحطة],Table8[[#This Row],[اسم المحطه]],Table9[الاسمنت المستلم بالطن]) -> -903 | J26: =IF(Table8[[#This Row],[الرصيد بالطن]]=0,"0",IF(Table8[[#This Row],[الرصيد بالطن]]>=0.01,"دائن",IF(Table8[[#This Row],[الرصيد بالطن]]<=-0.01,"مدين"))) -> مدين | K26: سى1 | L26: قواعد مسلحة سى 1 سى 2 ودى 2
A27: 25 | B27: 2022-11-01 | C27: كابيتال بيلد | D27: 380 | E27: 52 | F27: =Table8[[#This Row],[الكميه بالمتر المكعب]]*Table8[[#This Row],[محتوى الاسمنت (كجم/م3)]]/1000 -> 19.76 | G27: =SUMIF(Table9[اسم المحطة],Table8[[#This Row],[اسم المحطه]],Table13[2022/11/01]) -> 520 | H27: =Table8[[#This Row],[الكميه بالمتر المكعب]]*Table8[[#This Row],[بند العقد]] -> 27040 | I27: =SUMIF($C$3:C27,Table8[[#This Row],[اسم المحطه]],$F$3:F27)-SUMIF(Table9[اسم المحطة],Table8[[#This Row],[اسم المحطه]],Table9[الاسمنت المستلم بالطن]) -> -883.24 | J27: =IF(Table8[[#This Row],[الرصيد بالطن]]=0,"0",IF(Table8[[#This Row],[الرصيد بالطن]]>=0.01,"دائن",IF(Table8[[#This Row],[الرصيد بالطن]]<=-0.01,"مدين"))) -> مدين | K27: سى3 | L27: فواصل سى 3
A28: 26 | B28: 2022-11-03 | C28: ابكس للخرسانة الجاهزة | D28: 380 | E28: 50 | F28: =Table8[[#This Row],[الكميه بالمتر المكعب]]*Table8[[#This Row],[محتوى الاسمنت (كجم/م3)]]/1000 -> 19 | G28: =SUMIF(Table9[اسم المحطة],Table8[[#This Row],[اسم المحطه]],Table13[2022/11/01]) -> 520 | H28: =Table8[[#This Row],[الكميه بالمتر المكعب]]*Table8[[#This Row],[بند العقد]] -> 26000 | I28: =SUMIF($C$3:C28,Table8[[#This Row],[اسم المحطه]],$F$3:F28)-SUMIF(Table9[اسم المحطة],Table8[[#This Row],[اسم المحطه]],Table9[الاسمنت المستلم بالطن]) -> 81.61 | J28: =IF(Table8[[#This Row],[الرصيد بالطن]]=0,"0",IF(Table8[[#This Row],[الرصيد بالطن]]>=0.01,"دائن",IF(Table8[[#This Row],[الرصيد بالطن]]<=-0.01,"مدين"))) -> دائن | K28: سى3 | L28: نصف اعمدة سى 3
A29: 27 | B29: 2022-11-03 | C29: كابيتال بيلد | D29: 380 | E29: 121 | F29: =Table8[[#This Row],[الكميه بالمتر المكعب]]*Table8[[#This Row],[محتوى الاسمنت (كجم/م3)]]/1000 -> 45.98 | G29: =SUMIF(Table9[اسم المحطة],Table8[[#This Row],[اسم المحطه]],Table13[2022/11/01]) -> 520 | H29: =Table8[[#This Row],[الكميه بالمتر المكعب]]*Table8[[#This Row],[بند العقد]] -> 62920 | I29: =SUMIF($C$3:C29,Table8[[#This Row],[اسم المحطه]],$F$3:F29)-SUMIF(Table9[اسم المحطة],Table8[[#This Row],[اسم المحطه]],Table9[الاسمنت المستلم بالطن]) -> -837.26 | J29: =IF(Table8[[#This Row],[الرصيد بالطن]]=0,"0",IF(Table8[[#This Row],[الرصيد بالطن]]>=0.01,"دائن",IF(Table8[[#This Row],[الرصيد بالطن]]<=-0.01,"مدين"))) -> مدين | K29: سى4 | L29: نصف سقف سى 4
A30: 28 | B30: 2022-11-05 | C30: ابكس للخرسانة الجاهزة | D30: 380 | E30: 36 | F30: =Table8[[#This Row],[الكميه بالمتر المكعب]]*Table8[[#This Row],[محتوى الاسمنت (كجم/م3)]]/1000 -> 13.68 | G30: =SUMIF(Table9[اسم المحطة],Table8[[#This Row],[اسم المحطه]],Table13[2022/11/01]) -> 520 | H30: =Table8[[#This Row],[الكميه بالمتر المكعب]]*Table8[[#This Row],[بند العقد]] -> 18720 | I30: =SUMIF($C$3:C30,Table8[[#This Row],[اسم المحطه]],$F$3:F30)-SUMIF(Table9[اسم المحطة],Table8[[#This Row],[اسم المحطه]],Table9[الاسمنت المستلم بالطن]) -> 95.29 | J30: =IF(Table8[[#This Row],[الرصيد بالطن]]=0,"0",IF(Table8[[#This Row],[الرصيد بالطن]]>=0.01,"دائن",IF(Table8[[#This Row],[الرصيد بالطن]]<=-0.01,"مدين"))) -> دائن | K30: سى4 | L30: نصف اعمدة سى 4
A31: 29 | B31: 2022-11-07 | C31: كابيتال بيلد | D31: 380 | E31: 347 | F31: =Table8[[#This Row],[الكميه بالمتر المكعب]]*Table8[[#This Row],[محتوى الاسمنت (كجم/م3)]]/1000 -> 131.86 | G31: =SUMIF(Table9[اسم المحطة],Table8[[#This Row],[اسم المحطه]],Table13[2022/11/01]) -> 520 | H31: =Table8[[#This Row],[الكميه بالمتر المكعب]]*Table8[[#This Row],[بند العقد]] -> 180440 | I31: =SUMIF($C$3:C31,Table8[[#This Row],[اسم المحطه]],$F$3:F31)-SUMIF(Table9[اسم المحطة],Table8[[#This Row],[اسم المحطه]],Table9[الاسمنت المستلم بالطن]) -> -705.4 | J31: =IF(Table8[[#This Row],[الرصيد بالطن]]=0,"0",IF(Table8[[#This Row],[الرصيد بالطن]]>=0.01,"دائن",IF(Table8[[#This Row],[الرصيد بالطن]]<=-0.01,"مدين"))) -> مدين | K31: اى1 | L31: قواعد مسلحة اى 1
A32: 30 | B32: 2022-11-08 | C32: كابيتال بيلد | D32: 380 | E32: 339 | F32: =Table8[[#This Row],[الكميه بالمتر المكعب]]*Table8[[#This Row],[محتوى الاسمنت (كجم/م3)]]/1000 -> 128.82 | G32: =SUMIF(Table9[اسم المحطة],Table8[[#This Row],[اسم المحطه]],Table13[2022/11/01]) -> 520 | H32: =Table8[[#This Row],[الكميه بالمتر المكعب]]*Table8[[#This Row],[بند العقد]] -> 176280 | I32: =SUMIF($C$3:C32,Table8[[#This Row],[اسم المحطه]],$F$3:F32)-SUMIF(Table9[اسم المحطة],Table8[[#This Row],[اسم المحطه]],Table9[الاسمنت المستلم بالطن]) -> -576.58 | J32: =IF(Table8[[#This Row],[الرصيد بالطن]]=0,"0",IF(Table8[[#This Row],[الرصيد بالطن]]>=0.01,"دائن",IF(Table8[[#This Row],[الرصيد بالطن]]<=-0.01,"مدين"))) -> مدين | K32: دى1 | L32: مسلحة دى 1
A33: 31 | B33: 2022-11-09 | C33: كابيتال بيلد | D33: 380 | E33: 63 | F33: =Table8[[#This Row],[الكميه بالمتر المكعب]]*Table8[[#This Row],[محتوى الاسمنت (كجم/م3)]]/1000 -> 23.94 | G33: =SUMIF(Table9[اسم المحطة],Table8[[#This Row],[اسم المحطه]],Table13[2022/11/01]) -> 520 | H33: =Table8[[#This Row],[الكميه بالمتر المكعب]]*Table8[[#This Row],[بند العقد]] -> 32760 | I33: =SUMIF($C$3:C33,Table8[[#This Row],[اسم المحطه]],$F$3:F33)-SUMIF(Table9[اسم المحطة],Table8[[#This Row],[اسم المحطه]],Table9[الاسمنت المستلم بالطن]) -> -552.64 | J33: =IF(Table8[[#This Row],[الرصيد بالطن]]=0,"0",IF(Table8[[#This Row],[الرصيد بالطن]]>=0.01,"دائن",IF(Table8[[#This Row],[الرصيد بالطن]]<=-0.01,"مدين"))) -> مدين | K33: سى3 | L33: مسلحة سى 3
A34: 32 | B34: 2022-11-15 | C34: كابيتال بيلد | D34: 380 | E34: 226 | F34: =Table8[[#This Row],[الكميه بالمتر المكعب]]*Table8[[#This Row],[محتوى الاسمنت (كجم/م3)]]/1000 -> 85.88 | G34: =SUMIF(Table9[اسم المحطة],Table8[[#This Row],[اسم المحطه]],Table13[2022/11/01]) -> 520 | H34: =Table8[[#This Row],[الكميه بالمتر المكعب]]*Table8[[#This Row],[بند العقد]] -> 117520 | I34: =SUMIF($C$3:C34,Table8[[#This Row],[اسم المحطه]],$F$3:F34)-SUMIF(Table9[اسم المحطة],Table8[[#This Row],[اسم المحطه]],Table9[الاسمنت المستلم بالطن]) -> -466.76 | J34: =IF(Table8[[#This Row],[الرصيد بالطن]]=0,"0",IF(Table8[[#This Row],[الرصيد بالطن]]>=0.01,"دائن",IF(Table8[[#This Row],[الرصيد بالطن]]<=-0.01,"مدين"))) -> مدين | K34: سى3 | L34: سقف سى 3 ودى 2
A35: 33 | B35: 2022-11-21 | C35: كابيتال بيلد | D35: 380 | E35: 103 | F35: =Table8[[#This Row],[الكميه بالمتر المكعب]]*Table8[[#This Row],[محتوى الاسمنت (كجم/م3)]]/1000 -> 39.14 | G35: =SUMIF(Table9[اسم المحطة],Table8[[#This Row],[اسم المحطه]],Table13[2022/11/01]) -> 520 | H35: =Table8[[#This Row],[الكميه بالمتر المكعب]]*Table8[[#This Row],[بند العقد]] -> 53560 | I35: =SUMIF($C$3:C35,Table8[[#This Row],[اسم المحطه]],$F$3:F35)-SUMIF(Table9[اسم المحطة],Table8[[#This Row],[اسم المحطه]],Table9[الاسمنت المستلم بالطن]) -> -427.62 | J35: =IF(Table8[[#This Row],[الرصيد بالطن]]=0,"0",IF(Table8[[#This Row],[الرصيد بالطن]]>=0.01,"دائن",IF(Table8[[#This Row],[الرصيد بالطن]]<=-0.01,"مدين"))) -> مدين | K35: سى4 | L35: سقف الاول
A36: 34 | B36: 2022-11-21 | C36: الشركة الهندسية للمشروعات | D36: 380 | E36: 280 | F36: =Table8[[#This Row],[الكميه بالمتر المكعب]]*Table8[[#This Row],[محتوى الاسمنت (كجم/م3)]]/1000 -> 106.4 | G36: =SUMIF(Table9[اسم المحطة],Table8[[#This Row],[اسم المحطه]],Table13[2022/11/01]) -> 520 | H36: =Table8[[#This Row],[الكميه بالمتر المكعب]]*Table8[[#This Row],[بند العقد]] -> 145600 | I36: =SUMIF($C$3:C36,Table8[[#This Row],[اسم المحطه]],$F$3:F36)-SUMIF(Table9[اسم المحطة],Table8[[#This Row],[اسم المحطه]],Table9[الاسمنت المستلم بالطن]) -> -3023.09 | J36: =IF(Table8[[#This Row],[الرصيد بالطن]]=0,"0",IF(Table8[[#This Row],[الرصيد بالطن]]>=0.01,"دائن",IF(Table8[[#This Row],[الرصيد بالطن]]<=-0.01,"مدين"))) -> مدين | K36: سى2 | L36: مسلحة سى 2 ودى 1
A37: 35 | B37: 2022-11-22 | C37: كابيتال بيلد | D37: 380 | E37: 35.5 | F37: =Table8[[#This Row],[الكميه بالمتر المكعب]]*Table8[[#This Row],[محتوى الاسمنت (كجم/م3)]]/1000 -> 13.49 | G37: =SUMIF(Table9[اسم المحطة],Table8[[#This Row],[اسم المحطه]],Table13[2022/11/01]) -> 520 | H37: =Table8[[#This Row],[الكميه بالمتر المكعب]]*Table8[[#This Row],[بند العقد]] -> 18460 | I37: =SUMIF($C$3:C37,Table8[[#This Row],[اسم المحطه]],$F$3:F37)-SUMIF(Table9[اسم المحطة],Table8[[#This Row],[اسم المحطه]],Table9[الاسمنت المستلم بالطن]) -> -414.13 | J37: =IF(Table8[[#This Row],[الرصيد بالطن]]=0,"0",IF(Table8[[#This Row],[الرصيد بالطن]]>=0.01,"دائن",IF(Table8[[#This Row],[الرصيد بالطن]]<=-0.01,"مدين"))) -> مدين | K37: سى4 | L37: اعمدة الاول فاصل 1
A38: 36 | B38: 2022-11-22 | C38: الشركة الهندسية للمشروعات | D38: 380 | E38: 474 | F38: =Table8[[#This Row],[الكميه بالمتر المكعب]]*Table8[[#This Row],[محتوى الاسمنت (كجم/م3)]]/1000 -> 180.12 | G38: =SUMIF(Table9[اسم المحطة],Table8[[#This Row],[اسم المحطه]],Table13[2022/11/01]) -> 520 | H38: =Table8[[#This Row],[الكميه بالمتر المكعب]]*Table8[[#This Row],[بند العقد]] -> 246480 | I38: =SUMIF($C$3:C38,Table8[[#This Row],[اسم المحطه]],$F$3:F38)-SUMIF(Table9[اسم المحطة],Table8[[#This Row],[اسم المحطه]],Table9[الاسمنت المستلم بالطن]) -> -2842.97 | J38: =IF(Table8[[#This Row],[الرصيد بالطن]]=0,"0",IF(Table8[[#This Row],[الرصيد بالطن]]>=0.01,"دائن",IF(Table8[[#This Row],[الرصيد بالطن]]<=-0.01,"مدين"))) -> مدين | K38: سى3 | L38: سقف سى 3 ولبشة اى 2
A39: 37 | B39: 2022-11-26 | C39: كابيتال بيلد | D39: 380 | E39: 181 | F39: =Table8[[#This Row],[الكميه بالمتر المكعب]]*Table8[[#This Row],[محتوى الاسمنت (كجم/م3)]]/1000 -> 68.78 | G39: =SUMIF(Table9[اسم المحطة],Table8[[#This Row],[اسم المحطه]],Table13[2022/11/01]) -> 520 | H39: =Table8[[#This Row],[الكميه بالمتر المكعب]]*Table8[[#This Row],[بند العقد]] -> 94120 | I39: =SUMIF($C$3:C39,Table8[[#This Row],[اسم المحطه]],$F$3:F39)-SUMIF(Table9[اسم المحطة],Table8[[#This Row],[اسم المحطه]],Table9[الاسمنت المستلم بالطن]) -> -345.35 | J39: =IF(Table8[[#This Row],[الرصيد بالطن]]=0,"0",IF(Table8[[#This Row],[الرصيد بالطن]]>=0.01,"دائن",IF(Table8[[#This Row],[الرصيد بالطن]]<=-0.01,"مدين"))) -> مدين | K39: دى1 | L39: سملات دى 1 وسى 2
A40: 38 | B40: 2022-11-28 | C40: كابيتال بيلد | D40: 380 | E40: 103 | F40: =Table8[[#This Row],[الكميه بالمتر المكعب]]*Table8[[#This Row],[محتوى الاسمنت (كجم/م3)]]/1000 -> 39.14 | G40: =SUMIF(Table9[اسم المحطة],Table8[[#This Row],[اسم المحطه]],Table13[2022/11/01]) -> 520 | H40: =Table8[[#This Row],[الكميه بالمتر المكعب]]*Table8[[#This Row],[بند العقد]] -> 53560 | I40: =SUMIF($C$3:C40,Table8[[#This Row],[اسم المحطه]],$F$3:F40)-SUMIF(Table9[اسم المحطة],Table8[[#This Row],[اسم المحطه]],Table9[الاسمنت المستلم بالطن]) -> -306.21 | J40: =IF(Table8[[#This Row],[الرصيد بالطن]]=0,"0",IF(Table8[[#This Row],[الرصيد بالطن]]>=0.01,"دائن",IF(Table8[[#This Row],[الرصيد بالطن]]<=-0.01,"مدين"))) -> مدين | K40: اى1 | L40: فاصل 1 اى 1قواعد شريطية ا
A41: 39 | B41: 2022-11-30 | C41: كابيتال بيلد | D41: 380 | E41: 100 | F41: =Table8[[#This Row],[الكميه بالمتر المكعب]]*Table8[[#This Row],[محتوى الاسمنت (كجم/م3)]]/1000 -> 38 | G41: =SUMIF(Table9[اسم المحطة],Table8[[#This Row],[اسم المحطه]],Table13[2022/11/01]) -> 520 | H41: =Table8[[#This Row],[الكميه بالمتر المكعب]]*Table8[[#This Row],[بند العقد]] -> 52000 | I41: =SUMIF($C$3:C41,Table8[[#This Row],[اسم المحطه]],$F$3:F41)-SUMIF(Table9[اسم المحطة],Table8[[#This Row],[اسم المحطه]],Table9[الاسمنت المستلم بالطن]) -> -268.21 | J41: =IF(Table8[[#This Row],[الرصيد بالطن]]=0,"0",IF(Table8[[#This Row],[الرصيد بالطن]]>=0.01,"دائن",IF(Table8[[#This Row],[الرصيد بالطن]]<=-0.01,"مدين"))) -> مدين | K41: اى2 | L41: سملات فاصل 1 اى 2
A42: 40 | B42: 2022-12-03 | C42: كابيتال بيلد | D42: 380 | E42: 85 | F42: =Table8[[#This Row],[الكميه بالمتر المكعب]]*Table8[[#This Row],[محتوى الاسمنت (كجم/م3)]]/1000 -> 32.3 | G42: =SUMIF(Table9[اسم المحطة],Table8[[#This Row],[اسم المحطه]],Table13[2022/11/01]) -> 520 | H42: =Table8[[#This Row],[الكميه بالمتر المكعب]]*Table8[[#This Row],[بند العقد]] -> 44200 | I42: =SUMIF($C$3:C42,Table8[[#This Row],[اسم المحطه]],$F$3:F42)-SUMIF(Table9[اسم المحطة],Table8[[#This Row],[اسم المحطه]],Table9[الاسمنت المستلم بالطن]) -> -235.91 | J42: =IF(Table8[[#This Row],[الرصيد بالطن]]=0,"0",IF(Table8[[#This Row],[الرصيد بالطن]]>=0.01,"دائن",IF(Table8[[#This Row],[الرصيد بالطن]]<=-0.01,"مدين"))) -> مدين | K42: اى1 | L42: لبشة اى 1 فاصل 2
A43: 41 | B43: 2022-12-04 | C43: كابيتال بيلد | D43: 380 | E43: 87 | F43: =Table8[[#This Row],[الكميه بالمتر المكعب]]*Table8[[#This Row],[محتوى الاسمنت (كجم/م3)]]/1000 -> 33.06 | G43: =SUMIF(Table9[اسم المحطة],Table8[[#This Row],[اسم المحطه]],Table13[2022/11/01]) -> 520 | H43: =Table8[[#This Row],[الكميه بالمتر المكعب]]*Table8[[#This Row],[بند العقد]] -> 45240 | I43: =SUMIF($C$3:C43,Table8[[#This Row],[اسم المحطه]],$F$3:F43)-SUMIF(Table9[اسم المحطة],Table8[[#This Row],[اسم المحطه]],Table9[الاسمنت المستلم بالطن]) -> -202.85 | J43: =IF(Table8[[#This Row],[الرصيد بالطن]]=0,"0",IF(Table8[[#This Row],[الرصيد بالطن]]>=0.01,"دائن",IF(Table8[[#This Row],[الرصيد بالطن]]<=-0.01,"مدين"))) -> مدين | K43: اى2 | L43: سملات فاصل 2 اى 2
A44: 42 | B44: 2022-12-14 | C44: كابيتال بيلد | D44: 380 | E44: 199 | F44: =Table8[[#This Row],[الكميه بالمتر المكعب]]*Table8[[#This Row],[محتوى الاسمنت (كجم/م3)]]/1000 -> 75.62 | G44: =SUMIF(Table9[اسم المحطة],Table8[[#This Row],[اسم المحطه]],Table13[2022/11/01]) -> 520 | H44: =Table8[[#This Row],[الكميه بالمتر المكعب]]*Table8[[#This Row],[بند العقد]] -> 103480 | I44: =SUMIF($C$3:C44,Table8[[#This Row],[اسم المحطه]],$F$3:F44)-SUMIF(Table9[اسم المحطة],Table8[[#This Row],[اسم المحطه]],Table9[الاسمنت المستلم بالطن]) -> -127.23 | J44: =IF(Table8[[#This Row],[الرصيد بالطن]]=0,"0",IF(Table8[[#This Row],[الرصيد بالطن]]>=0.01,"دائن",IF(Table8[[#This Row],[الرصيد بالطن]]<=-0.01,"مدين"))) -> مدين | K44: دى2 | L44: 103 دى 2 فاصل 2 و96 سى 1 فاصل 1
A45: 43 | B45: 2022-12-27 | C45: كابيتال بيلد | D45: 380 | E45: 33 | F45: =Table8[[#This Row],[الكميه بالمتر المكعب]]*Table8[[#This Row],[محتوى الاسمنت (كجم/م3)]]/1000 -> 12.54 | G45: =SUMIF(Table9[اسم المحطة],Table8[[#This Row],[اسم المحطه]],Table13[2022/11/01]) -> 520 | H45: =Table8[[#This Row],[الكميه بالمتر المكعب]]*Table8[[#This Row],[بند العقد]] -> 17160 | I45: =SUMIF($C$3:C45,Table8[[#This Row],[اسم المحطه]],$F$3:F45)-SUMIF(Table9[اسم المحطة],Table8[[#This Row],[اسم المحطه]],Table9[الاسمنت المستلم بالطن]) -> -114.69 | J45: =IF(Table8[[#This Row],[الرصيد بالطن]]=0,"0",IF(Table8[[#This Row],[الرصيد بالطن]]>=0.01,"دائن",IF(Table8[[#This Row],[الرصيد بالطن]]<=-0.01,"مدين"))) -> مدين | K45: سى4 | L45: اعمدة الثانى فاصل 1
A46: 44 | B46: 2023-01-03 | C46: كابيتال بيلد | D46: 380 | E46: 102 | F46: =Table8[[#This Row],[الكميه بالمتر المكعب]]*Table8[[#This Row],[محتوى الاسمنت (كجم/م3)]]/1000 -> 38.76 | G46: =SUMIF(Table9[اسم المحطة],Table8[[#This Row],[اسم المحطه]],Table13[2022/11/01]) -> 520 | H46: =Table8[[#This Row],[الكميه بالمتر المكعب]]*Table8[[#This Row],[بند العقد]] -> 53040 | I46: =SUMIF($C$3:C46,Table8[[#This Row],[اسم المحطه]],$F$3:F46)-SUMIF(Table9[اسم المحطة],Table8[[#This Row],[اسم المحطه]],Table9[الاسمنت المستلم بالطن]) -> -75.93 | J46: =IF(Table8[[#This Row],[الرصيد بالطن]]=0,"0",IF(Table8[[#This Row],[الرصيد بالطن]]>=0.01,"دائن",IF(Table8[[#This Row],[الرصيد بالطن]]<=-0.01,"مدين"))) -> مدين | K46: سى3 | L46: اعمدة سى 3+سى1+دى 2 دور اول
A47: 45 | B47: 2023-01-08 | C47: كابيتال بيلد | D47: 380 | E47: 131 | F47: =Table8[[#This Row],[الكميه بالمتر المكعب]]*Table8[[#This Row],[محتوى الاسمنت (كجم/م3)]]/1000 -> 49.78 | G47: =SUMIF(Table9[اسم المحطة],Table8[[#This Row],[اسم المحطه]],Table13[2022/11/01]) -> 520 | H47: =Table8[[#This Row],[الكميه بالمتر المكعب]]*Table8[[#This Row],[بند العقد]] -> 68120 | I47: =SUMIF($C$3:C47,Table8[[#This Row],[اسم المحطه]],$F$3:F47)-SUMIF(Table9[اسم المحطة],Table8[[#This Row],[اسم المحطه]],Table9[الاسمنت المستلم بالطن]) -> -26.15 | J47: =IF(Table8[[#This Row],[الرصيد بالطن]]=0,"0",IF(Table8[[#This Row],[الرصيد بالطن]]>=0.01,"دائن",IF(Table8[[#This Row],[الرصيد بالطن]]<=-0.01,"مدين"))) -> مدين | K47: سى4 | L47: سقف الاول فاصل 2
A48: 46 | B48: 2023-01-09 | C48: كابيتال بيلد | D48: 380 | E48: 102 | F48: =Table8[[#This Row],[الكميه بالمتر المكعب]]*Table8[[#This Row],[محتوى الاسمنت (كجم/م3)]]/1000 -> 38.76 | G48: =SUMIF(Table9[اسم المحطة],Table8[[#This Row],[اسم المحطه]],Table13[2022/11/01]) -> 520 | H48: =Table8[[#This Row],[الكميه بالمتر المكعب]]*Table8[[#This Row],[بند العقد]] -> 53040 | I48: =SUMIF($C$3:C48,Table8[[#This Row],[اسم المحطه]],$F$3:F48)-SUMIF(Table9[اسم المحطة],Table8[[#This Row],[اسم المحطه]],Table9[الاسمنت المستلم بالطن]) -> 12.61 | J48: =IF(Table8[[#This Row],[الرصيد بالطن]]=0,"0",IF(Table8[[#This Row],[الرصيد بالطن]]>=0.01,"دائن",IF(Table8[[#This Row],[الرصيد بالطن]]<=-0.01,"مدين"))) -> دائن | K48: سى2 | L48: صب اعمدة الدور الارضى سى 2
A49: 47 | B49: 2023-01-11 | C49: كابيتال بيلد | D49: 380 | E49: 36 | F49: =Table8[[#This Row],[الكميه بالمتر المكعب]]*Table8[[#This Row],[محتوى الاسمنت (كجم/م3)]]/1000 -> 13.68 | G49: =SUMIF(Table9[اسم المحطة],Table8[[#This Row],[اسم المحطه]],Table13[2022/11/01]) -> 520 | H49: =Table8[[#This Row],[الكميه بالمتر المكعب]]*Table8[[#This Row],[بند العقد]] -> 18720 | I49: =SUMIF($C$3:C49,Table8[[#This Row],[اسم المحطه]],$F$3:F49)-SUMIF(Table9[اسم المحطة],Table8[[#This Row],[اسم المحطه]],Table9[الاسمنت المستلم بالطن]) -> 26.29 | J49: =IF(Table8[[#This Row],[الرصيد بالطن]]=0,"0",IF(Table8[[#This Row],[الرصيد بالطن]]>=0.01,"دائن",IF(Table8[[#This Row],[الرصيد بالطن]]<=-0.01,"مدين"))) -> دائن | K49: سى3 | L49: اعمدة الاول فاصل 2
A50: 48 | B50: 2023-01-12 | C50: كابيتال بيلد | D50: 380 | E50: 18 | F50: =Table8[[#This Row],[الكميه بالمتر المكعب]]*Table8[[#This Row],[محتوى الاسمنت (كجم/م3)]]/1000 -> 6.84 | G50: =SUMIF(Table9[اسم المحطة],Table8[[#This Row],[اسم المحطه]],Table13[2022/11/01]) -> 520 | H50: =Table8[[#This Row],[الكميه بالمتر المكعب]]*Table8[[#This Row],[بند العقد]] -> 9360 | I50: =SUMIF($C$3:C50,Table8[[#This Row],[اسم المحطه]],$F$3:F50)-SUMIF(Table9[اسم المحطة],Table8[[#This Row],[اسم المحطه]],Table9[الاسمنت المستلم بالطن]) -> 33.13 | J50: =IF(Table8[[#This Row],[الرصيد بالطن]]=0,"0",IF(Table8[[#This Row],[الرصيد بالطن]]>=0.01,"دائن",IF(Table8[[#This Row],[الرصيد بالطن]]<=-0.01,"مدين"))) -> دائن | K50: دى2 | L50: اعمدة الاول فاصل 2
A51: 49 | B51: 2023-01-12 | C51: كابيتال بيلد | D51: 380 | E51: 18 | F51: =Table8[[#This Row],[الكميه بالمتر المكعب]]*Table8[[#This Row],[محتوى الاسمنت (كجم/م3)]]/1000 -> 6.84 | G51: =SUMIF(Table9[اسم المحطة],Table8[[#This Row],[اسم المحطه]],Table13[2022/11/01]) -> 520 | H51: =Table8[[#This Row],[الكميه بالمتر المكعب]]*Table8[[#This Row],[بند العقد]] -> 9360 | I51: =SUMIF($C$3:C51,Table8[[#This Row],[اسم المحطه]],$F$3:F51)-SUMIF(Table9[اسم المحطة],Table8[[#This Row],[اسم المحطه]],Table9[الاسمنت المستلم بالطن]) -> 39.97 | J51: =IF(Table8[[#This Row],[الرصيد بالطن]]=0,"0",IF(Table8[[#This Row],[الرصيد بالطن]]>=0.01,"دائن",IF(Table8[[#This Row],[الرصيد بالطن]]<=-0.01,"مدين"))) -> دائن | K51: دى1 | L51: اعمدة الارضى فاصل 1
A52: 50 | B52: 2023-01-19 | C52: كابيتال بيلد | D52: 380 | E52: 106 | F52: =Table8[[#This Row],[الكميه بالمتر المكعب]]*Table8[[#This Row],[محتوى الاسمنت (كجم/م3)]]/1000 -> 40.28 | G52: =SUMIF(Table9[اسم المحطة],Table8[[#This Row],[اسم المحطه]],Table13[2022/11/01]) -> 520 | H52: =Table8[[#This Row],[الكميه بالمتر المكعب]]*Table8[[#This Row],[بند العقد]] -> 55120 | I52: =SUMIF($C$3:C52,Table8[[#This Row],[اسم المحطه]],$F$3:F52)-SUMIF(Table9[اسم المحطة],Table8[[#This Row],[اسم المحطه]],Table9[الاسمنت المستلم بالطن]) -> 80.25 | J52: =IF(Table8[[#This Row],[الرصيد بالطن]]=0,"0",IF(Table8[[#This Row],[الرصيد بالطن]]>=0.01,"دائن",IF(Table8[[#This Row],[الرصيد بالطن]]<=-0.01,"مدين"))) -> دائن | K52: سى3 | L52: سقف الاول فاصل 1
A53: 51 | B53: 2023-01-19 | C53: الشركة الهندسية للمشروعات | D53: 380 | E53: 102 | F53: =Table8[[#This Row],[الكميه بالمتر المكعب]]*Table8[[#This Row],[محتوى الاسمنت (كجم/م3)]]/1000 -> 38.76 | G53: =SUMIF(Table9[اسم المحطة],Table8[[#This Row],[اسم المحطه]],Table13[2022/11/01]) -> 520 | H53: =Table8[[#This Row],[الكميه بالمتر المكعب]]*Table8[[#This Row],[بند العقد]] -> 53040 | I53: =SUMIF($C$3:C53,Table8[[#This Row],[اسم المحطه]],$F$3:F53)-SUMIF(Table9[اسم المحطة],Table8[[#This Row],[اسم المحطه]],Table9[الاسمنت المستلم بالطن]) -> -2804.21 | J53: =IF(Table8[[#This Row],[الرصيد بالطن]]=0,"0",IF(Table8[[#This Row],[الرصيد بالطن]]>=0.01,"دائن",IF(Table8[[#This Row],[الرصيد بالطن]]<=-0.01,"مدين"))) -> مدين | K53: سى4 | L53: سقف الاول
A54: 52 | B54: 2023-01-19 | C54: الشركة الهندسية للمشروعات | D54: 380 | E54: 57 | F54: =Table8[[#This Row],[الكميه بالمتر المكعب]]*Table8[[#This Row],[محتوى الاسمنت (كجم/م3)]]/1000 -> 21.66 | G54: =SUMIF(Table9[اسم المحطة],Table8[[#This Row],[اسم المحطه]],Table13[2022/11/01]) -> 520 | H54: =Table8[[#This Row],[الكميه بالمتر المكعب]]*Table8[[#This Row],[بند العقد]] -> 29640 | I54: =SUMIF($C$3:C54,Table8[[#This Row],[اسم المحطه]],$F$3:F54)-SUMIF(Table9[اسم المحطة],Table8[[#This Row],[اسم المحطه]],Table9[الاسمنت المستلم بالطن]) -> -2782.55 | J54: =IF(Table8[[#This Row],[الرصيد بالطن]]=0,"0",IF(Table8[[#This Row],[الرصيد بالطن]]>=0.01,"دائن",IF(Table8[[#This Row],[الرصيد بالطن]]<=-0.01,"مدين"))) -> مدين | K54: اى2 | L54: اعمدة الارضى
A55: 53 | B55: 2023-01-19 | C55: الشركة الهندسية للمشروعات | D55: 380 | E55: 90 | F55: =Table8[[#This Row],[الكميه بالمتر المكعب]]*Table8[[#This Row],[محتوى الاسمنت (كجم/م3)]]/1000 -> 34.2 | G55: =SUMIF(Table9[اسم المحطة],Table8[[#This Row],[اسم المحطه]],Table13[2022/11/01]) -> 520 | H55: =Table8[[#This Row],[الكميه بالمتر المكعب]]*Table8[[#This Row],[بند العقد]] -> 46800 | I55: =SUMIF($C$3:C55,Table8[[#This Row],[اسم المحطه]],$F$3:F55)-SUMIF(Table9[اسم المحطة],Table8[[#This Row],[اسم المحطه]],Table9[الاسمنت المستلم بالطن]) -> -2748.35 | J55: =IF(Table8[[#This Row],[الرصيد بالطن]]=0,"0",IF(Table8[[#This Row],[الرصيد بالطن]]>=0.01,"دائن",IF(Table8[[#This Row],[الرصيد بالطن]]<=-0.01,"مدين"))) -> مدين | K55: دى1 | L55: اعمدة الارضى
A56: 54 | B56: 2023-01-20 | C56: الشركة الهندسية للمشروعات | D56: 380 | E56: 31 | F56: =Table8[[#This Row],[الكميه بالمتر المكعب]]*Table8[[#This Row],[محتوى الاسمنت (كجم/م3)]]/1000 -> 11.78 | G56: =SUMIF(Table9[اسم المحطة],Table8[[#This Row],[اسم المحطه]],Table13[2022/11/01]) -> 520 | H56: =Table8[[#This Row],[الكميه بالمتر المكعب]]*Table8[[#This Row],[بند العقد]] -> 16120 | I56: =SUMIF($C$3:C56,Table8[[#This Row],[اسم المحطه]],$F$3:F56)-SUMIF(Table9[اسم المحطة],Table8[[#This Row],[اسم المحطه]],Table9[الاسمنت المستلم بالطن]) -> -2736.57 | J56: =IF(Table8[[#This Row],[الرصيد بالطن]]=0,"0",IF(Table8[[#This Row],[الرصيد بالطن]]>=0.01,"دائن",IF(Table8[[#This Row],[الرصيد بالطن]]<=-0.01,"مدين"))) -> مدين | K56: سى4 | L56: اعمدة الاول فاصل 2
A57: 55 | B57: 2023-01-21 | C57: الشركة الهندسية للمشروعات | D57: 380 | E57: 133 | F57: =Table8[[#This Row],[الكميه بالمتر المكعب]]*Table8[[#This Row],[محتوى الاسمنت (كجم/م3)]]/1000 -> 50.54 | G57: =SUMIF(Table9[اسم المحطة],Table8[[#This Row],[اسم المحطه]],Table13[2022/11/01]) -> 520 | H57: =Table8[[#This Row],[الكميه بالمتر المكعب]]*Table8[[#This Row],[بند العقد]] -> 69160 | I57: =SUMIF($C$3:C57,Table8[[#This Row],[اسم المحطه]],$F$3:F57)-SUMIF(Table9[اسم المحطة],Table8[[#This Row],[اسم المحطه]],Table9[الاسمنت المستلم بالطن]) -> -2686.03 | J57: =IF(Table8[[#This Row],[الرصيد بالطن]]=0,"0",IF(Table8[[#This Row],[الرصيد بالطن]]>=0.01,"دائن",IF(Table8[[#This Row],[الرصيد بالطن]]<=-0.01,"مدين"))) -> مدين | K57: سى1 | L57: سقف الارضى
A58: 56 | B58: 2023-01-21 | C58: كابيتال بيلد | D58: 380 | E58: 56 | F58: =Table8[[#This Row],[الكميه بالمتر المكعب]]*Table8[[#This Row],[محتوى الاسمنت (كجم/م3)]]/1000 -> 21.28 | G58: =SUMIF(Table9[اسم المحطة],Table8[[#This Row],[اسم المحطه]],Table13[2022/11/01]) -> 520 | H58: =Table8[[#This Row],[الكميه بالمتر المكعب]]*Table8[[#This Row],[بند العقد]] -> 29120 | I58: =SUMIF($C$3:C58,Table8[[#This Row],[اسم المحطه]],$F$3:F58)-SUMIF(Table9[اسم المحطة],Table8[[#This Row],[اسم المحطه]],Table9[الاسمنت المستلم بالطن]) -> 101.53 | J58: =IF(Table8[[#This Row],[الرصيد بالطن]]=0,"0",IF(Table8[[#This Row],[الرصيد بالطن]]>=0.01,"دائن",IF(Table8[[#This Row],[الرصيد بالطن]]<=-0.01,"مدين"))) -> دائن | K58: اى1 | L58: اعمدة الارضى فاصل 2
A59: 57 | B59: 2023-01-21 | C59: كابيتال بيلد | D59: 380 | E59: 48 | F59: =Table8[[#This Row],[الكميه بالمتر المكعب]]*Table8[[#This Row],[محتوى الاسمنت (كجم/م3)]]/1000 -> 18.24 | G59: =SUMIF(Table9[اسم المحطة],Table8[[#This Row],[اسم المحطه]],Table13[2022/11/01]) -> 520 | H59: =Table8[[#This Row],[الكميه بالمتر المكعب]]*Table8[[#This Row],[بند العقد]] -> 24960 | I59: =SUMIF($C$3:C59,Table8[[#This Row],[اسم المحطه]],$F$3:F59)-SUMIF(Table9[اسم المحطة],Table8[[#This Row],[اسم المحطه]],Table9[الاسمنت المستلم بالطن]) -> 119.77 | J59: =IF(Table8[[#This Row],[الرصيد بالطن]]=0,"0",IF(Table8[[#This Row],[الرصيد بالطن]]>=0.01,"دائن",IF(Table8[[#This Row],[الرصيد بالطن]]<=-0.01,"مدين"))) -> دائن | K59: اى2 | L59: اعمدة الارضى فاصل 3
A60: 58 | B60: 2023-01-23 | C60: كابيتال بيلد | D60: 380 | E60: 100 | F60: =Table8[[#This Row],[الكميه بالمتر المكعب]]*Table8[[#This Row],[محتوى الاسمنت (كجم/م3)]]/1000 -> 38 | G60: =SUMIF(Table9[اسم المحطة],Table8[[#This Row],[اسم المحطه]],Table13[2022/11/01]) -> 520 | H60: =Table8[[#This Row],[الكميه بالمتر المكعب]]*Table8[[#This Row],[بند العقد]] -> 52000 | I60: =SUMIF($C$3:C60,Table8[[#This Row],[اسم المحطه]],$F$3:F60)-SUMIF(Table9[اسم المحطة],Table8[[#This Row],[اسم المحطه]],Table9[الاسمنت المستلم بالطن]) -> 157.77 | J60: =IF(Table8[[#This Row],[الرصيد بالطن]]=0,"0",IF(Table8[[#This Row],[الرصيد بالطن]]>=0.01,"دائن",IF(Table8[[#This Row],[الرصيد بالطن]]<=-0.01,"مدين"))) -> دائن | K60: سى2 | L60: سقف الارضى فاصل 1
A61: 59 | B61: 2023-01-24 | C61: الشركة الهندسية للمشروعات | D61: 380 | E61: 125 | F61: =Table8[[#This Row],[الكميه بالمتر المكعب]]*Table8[[#This Row],[محتوى الاسمنت (كجم/م3)]]/1000 -> 47.5 | G61: =SUMIF(Table9[اسم المحطة],Table8[[#This Row],[اسم المحطه]],Table13[2022/11/01]) -> 520 | H61: =Table8[[#This Row],[الكميه بالمتر المكعب]]*Table8[[#This Row],[بند العقد]] -> 65000 | I61: =SUMIF($C$3:C61,Table8[[#This Row],[اسم المحطه]],$F$3:F61)-SUMIF(Table9[اسم المحطة],Table8[[#This Row],[اسم المحطه]],Table9[الاسمنت المستلم بالطن]) -> -2638.53 | J61: =IF(Table8[[#This Row],[الرصيد بالطن]]=0,"0",IF(Table8[[#This Row],[الرصيد بالطن]]>=0.01,"دائن",IF(Table8[[#This Row],[الرصيد بالطن]]<=-0.01,"مدين"))) -> مدين | K61: دى2 | L61: سقف فاصل 1
A62: 60 | B62: 2023-01-25 | C62: كابيتال بيلد | D62: 380 | E62: 32 | F62: =Table8[[#This Row],[الكميه بالمتر المكعب]]*Table8[[#This Row],[محتوى الاسمنت (كجم/م3)]]/1000 -> 12.16 | G62: =SUMIF(Table9[اسم المحطة],Table8[[#This Row],[اسم المحطه]],Table13[2022/11/01]) -> 520 | H62: =Table8[[#This Row],[الكميه بالمتر المكعب]]*Table8[[#This Row],[بند العقد]] -> 16640 | I62: =SUMIF($C$3:C62,Table8[[#This Row],[اسم المحطه]],$F$3:F62)-SUMIF(Table9[اسم المحطة],Table8[[#This Row],[اسم المحطه]],Table9[الاسمنت المستلم بالطن]) -> 169.93 | J62: =IF(Table8[[#This Row],[الرصيد بالطن]]=0,"0",IF(Table8[[#This Row],[الرصيد بالطن]]>=0.01,"دائن",IF(Table8[[#This Row],[الرصيد بالطن]]<=-0.01,"مدين"))) -> دائن | K62: سى3 | L62: اعمدة الثانى
A63: 61 | B63: 2023-01-25 | C63: كابيتال بيلد | D63: 380 | E63: 31 | F63: =Table8[[#This Row],[الكميه بالمتر المكعب]]*Table8[[#This Row],[محتوى الاسمنت (كجم/م3)]]/1000 -> 11.78 | G63: =SUMIF(Table9[اسم المحطة],Table8[[#This Row],[اسم المحطه]],Table13[2022/11/01]) -> 520 | H63: =Table8[[#This Row],[الكميه بالمتر المكعب]]*Table8[[#This Row],[بند العقد]] -> 16120 | I63: =SUMIF($C$3:C63,Table8[[#This Row],[اسم المحطه]],$F$3:F63)-SUMIF(Table9[اسم المحطة],Table8[[#This Row],[اسم المحطه]],Table9[الاسمنت المستلم بالطن]) -> 181.71 | J63: =IF(Table8[[#This Row],[الرصيد بالطن]]=0,"0",IF(Table8[[#This Row],[الرصيد بالطن]]>=0.01,"دائن",IF(Table8[[#This Row],[الرصيد بالطن]]<=-0.01,"مدين"))) -> دائن | K63: سى4 | L63: اعمدة الثانى
A64: 62 | B64: 2023-01-25 | C64: الشركة الهندسية للمشروعات | D64: 380 | E64: 56 | F64: =Table8[[#This Row],[الكميه بالمتر المكعب]]*Table8[[#This Row],[محتوى الاسمنت (كجم/م3)]]/1000 -> 21.28 | G64: =SUMIF(Table9[اسم المحطة],Table8[[#This Row],[اسم المحطه]],Table13[2022/11/01]) -> 520 | H64: =Table8[[#This Row],[الكميه بالمتر المكعب]]*Table8[[#This Row],[بند العقد]] -> 29120 | I64: =SUMIF($C$3:C64,Table8[[#This Row],[اسم المحطه]],$F$3:F64)-SUMIF(Table9[اسم المحطة],Table8[[#This Row],[اسم المحطه]],Table9[الاسمنت المستلم بالطن]) -> -2617.25 | J64: =IF(Table8[[#This Row],[الرصيد بالطن]]=0,"0",IF(Table8[[#This Row],[الرصيد بالطن]]>=0.01,"دائن",IF(Table8[[#This Row],[الرصيد بالطن]]<=-0.01,"مدين"))) -> مدين | K64: اى1 | L64: اعمدة الدور الارضى كامل
A65: 63 | B65: 2023-01-26 | C65: الشركة الهندسية للمشروعات | D65: 380 | E65: 124 | F65: =Table8[[#This Row],[الكميه بالمتر المكعب]]*Table8[[#This Row],[محتوى الاسمنت (كجم/م3)]]/1000 -> 47.12 | G65: =SUMIF(Table9[اسم المحطة],Table8[[#This Row],[اسم المحطه]],Table13[2022/11/01]) -> 520 | H65: =Table8[[#This Row],[الكميه بالمتر المكعب]]*Table8[[#This Row],[بند العقد]] -> 64480 | I65: =SUMIF($C$3:C65,Table8[[#This Row],[اسم المحطه]],$F$3:F65)-SUMIF(Table9[اسم المحطة],Table8[[#This Row],[اسم المحطه]],Table9[الاسمنت المستلم بالطن]) -> -2570.13 | J65: =IF(Table8[[#This Row],[الرصيد بالطن]]=0,"0",IF(Table8[[#This Row],[الرصيد بالطن]]>=0.01,"دائن",IF(Table8[[#This Row],[الرصيد بالطن]]<=-0.01,"مدين"))) -> مدين | K65: سى2 | L65: سقف
A66: 64 | B66: 2023-01-28 | C66: الشركة الهندسية للمشروعات | D66: 380 | E66: 116 | F66: =Table8[[#This Row],[الكميه بالمتر المكعب]]*Table8[[#This Row],[محتوى الاسمنت (كجم/م3)]]/1000 -> 44.08 | G66: =SUMIF(Table9[اسم المحطة],Table8[[#This Row],[اسم المحطه]],Table13[2022/11/01]) -> 520 | H66: =Table8[[#This Row],[الكميه بالمتر المكعب]]*Table8[[#This Row],[بند العقد]] -> 60320 | I66: =SUMIF($C$3:C66,Table8[[#This Row],[اسم المحطه]],$F$3:F66)-SUMIF(Table9[اسم المحطة],Table8[[#This Row],[اسم المحطه]],Table9[الاسمنت المستلم بالطن]) -> -2526.05 | J66: =IF(Table8[[#This Row],[الرصيد بالطن]]=0,"0",IF(Table8[[#This Row],[الرصيد بالطن]]>=0.01,"دائن",IF(Table8[[#This Row],[الرصيد بالطن]]<=-0.01,"مدين"))) -> مدين | K66: دى2 | L66: سقف اول فاصل 2
A67: =ROW()-2 -> 65 | B67: 2023-01-28 | C67: كابيتال بيلد | D67: 380 | E67: 128 | F67: =Table8[[#This Row],[الكميه بالمتر المكعب]]*Table8[[#This Row],[محتوى الاسمنت (كجم/م3)]]/1000 -> 48.64 | G67: =SUMIF(Table9[اسم المحطة],Table8[[#This Row],[اسم المحطه]],Table13[2022/11/01]) -> 520 | H67: =Table8[[#This Row],[الكميه بالمتر المكعب]]*Table8[[#This Row],[بند العقد]] -> 66560 | I67: =SUMIF($C$3:C67,Table8[[#This Row],[اسم المحطه]],$F$3:F67)-SUMIF(Table9[اسم المحطة],Table8[[#This Row],[اسم المحطه]],Table9[الاسمنت المستلم بالطن]) -> 230.35 | J67: =IF(Table8[[#This Row],[الرصيد بالطن]]=0,"0",IF(Table8[[#This Row],[الرصيد بالطن]]>=0.01,"دائن",IF(Table8[[#This Row],[الرصيد بالطن]]<=-0.01,"مدين"))) -> دائن | K67: سى3 | L67: سقف اول فاصل 2
A68: 66 | B68: 2023-01-29 | C68: كابيتال بيلد | D68: 380 | E68: 33 | F68: =Table8[[#This Row],[الكميه بالمتر المكعب]]*Table8[[#This Row],[محتوى الاسمنت (كجم/م3)]]/1000 -> 12.54 | G68: =SUMIF(Table9[اسم المحطة],Table8[[#This Row],[اسم المحطه]],Table13[2022/11/01]) -> 520 | H68: =Table8[[#This Row],[الكميه بالمتر المكعب]]*Table8[[#This Row],[بند العقد]] -> 17160 | I68: =SUMIF($C$3:C68,Table8[[#This Row],[اسم المحطه]],$F$3:F68)-SUMIF(Table9[اسم المحطة],Table8[[#This Row],[اسم المحطه]],Table9[الاسمنت المستلم بالطن]) -> 242.89 | J68: =IF(Table8[[#This Row],[الرصيد بالطن]]=0,"0",IF(Table8[[#This Row],[الرصيد بالطن]]>=0.01,"دائن",IF(Table8[[#This Row],[الرصيد بالطن]]<=-0.01,"مدين"))) -> دائن | K68: سى2 | L68: اعمدة الاول فاصل 1
A69: 67 | B69: 2023-01-30 | C69: الشركة الهندسية للمشروعات | D69: 380 | E69: 127 | F69: =Table8[[#This Row],[الكميه بالمتر المكعب]]*Table8[[#This Row],[محتوى الاسمنت (كجم/م3)]]/1000 -> 48.26 | G69: =SUMIF(Table9[اسم المحطة],Table8[[#This Row],[اسم المحطه]],Table13[2022/11/01]) -> 520 | H69: =Table8[[#This Row],[الكميه بالمتر المكعب]]*Table8[[#This Row],[بند العقد]] -> 66040 | I69: =SUMIF($C$3:C69,Table8[[#This Row],[اسم المحطه]],$F$3:F69)-SUMIF(Table9[اسم المحطة],Table8[[#This Row],[اسم المحطه]],Table9[الاسمنت المستلم بالطن]) -> -2477.79 | J69: =IF(Table8[[#This Row],[الرصيد بالطن]]=0,"0",IF(Table8[[#This Row],[الرصيد بالطن]]>=0.01,"دائن",IF(Table8[[#This Row],[الرصيد بالطن]]<=-0.01,"مدين"))) -> مدين | K69: سى4 | L69: سقف الثانى فاصل 2
A70: 68 | B70: 2023-01-30 | C70: الشركة الهندسية للمشروعات | D70: 380 | E70: 33 | F70: =Table8[[#This Row],[الكميه بالمتر المكعب]]*Table8[[#This Row],[محتوى الاسمنت (كجم/م3)]]/1000 -> 12.54 | G70: =SUMIF(Table9[اسم المحطة],Table8[[#This Row],[اسم المحطه]],Table13[2022/11/01]) -> 520 | H70: =Table8[[#This Row],[الكميه بالمتر المكعب]]*Table8[[#This Row],[بند العقد]] -> 17160 | I70: =SUMIF($C$3:C70,Table8[[#This Row],[اسم المحطه]],$F$3:F70)-SUMIF(Table9[اسم المحطة],Table8[[#This Row],[اسم المحطه]],Table9[الاسمنت المستلم بالطن]) -> -2465.25 | J70: =IF(Table8[[#This Row],[الرصيد بالطن]]=0,"0",IF(Table8[[#This Row],[الرصيد بالطن]]>=0.01,"دائن",IF(Table8[[#This Row],[الرصيد بالطن]]<=-0.01,"مدين"))) -> مدين | K70: دى2 | L70: اعمدة الثانى فاصل 1
A71: 69 | B71: 2023-01-31 | C71: كابيتال بيلد | D71: 380 | E71: 35 | F71: =Table8[[#This Row],[الكميه بالمتر المكعب]]*Table8[[#This Row],[محتوى الاسمنت (كجم/م3)]]/1000 -> 13.3 | G71: =SUMIF(Table9[اسم المحطة],Table8[[#This Row],[اسم المحطه]],Table13[2022/11/01]) -> 520 | H71: =Table8[[#This Row],[الكميه بالمتر المكعب]]*Table8[[#This Row],[بند العقد]] -> 18200 | I71: =SUMIF($C$3:C71,Table8[[#This Row],[اسم المحطه]],$F$3:F71)-SUMIF(Table9[اسم المحطة],Table8[[#This Row],[اسم المحطه]],Table9[الاسمنت المستلم بالطن]) -> 256.19 | J71: =IF(Table8[[#This Row],[الرصيد بالطن]]=0,"0",IF(Table8[[#This Row],[الرصيد بالطن]]>=0.01,"دائن",IF(Table8[[#This Row],[الرصيد بالطن]]<=-0.01,"مدين"))) -> دائن | K71: سى2 | L71: اعمدة الاول فاصل 2
A72: 70 | B72: 2023-02-01 | C72: الشركة الهندسية للمشروعات | D72: 380 | E72: 120 | F72: =Table8[[#This Row],[الكميه بالمتر المكعب]]*Table8[[#This Row],[محتوى الاسمنت (كجم/م3)]]/1000 -> 45.6 | G72: =SUMIF(Table9[اسم المحطة],Table8[[#This Row],[اسم المحطه]],Table13[2022/11/01]) -> 520 | H72: =Table8[[#This Row],[الكميه بالمتر المكعب]]*Table8[[#This Row],[بند العقد]] -> 62400 | I72: =SUMIF($C$3:C72,Table8[[#This Row],[اسم المحطه]],$F$3:F72)-SUMIF(Table9[اسم المحطة],Table8[[#This Row],[اسم المحطه]],Table9[الاسمنت المستلم بالطن]) -> -2419.65 | J72: =IF(Table8[[#This Row],[الرصيد بالطن]]=0,"0",IF(Table8[[#This Row],[الرصيد بالطن]]>=0.01,"دائن",IF(Table8[[#This Row],[الرصيد بالطن]]<=-0.01,"مدين"))) -> مدين | K72: دى1 | L72: سقف الارضى فاصل 1
A73: 71 | B73: 2023-02-02 | C73: كابيتال بيلد | D73: 250 | E73: 3 | F73: =Table8[[#This Row],[الكميه بالمتر المكعب]]*Table8[[#This Row],[محتوى الاسمنت (كجم/م3)]]/1000 -> 0.75 | G73: =SUMIF(Table9[اسم المحطة],Table8[[#This Row],[اسم المحطه]],Table13[2022/11/01]) -> 520 | H73: =Table8[[#This Row],[الكميه بالمتر المكعب]]*Table8[[#This Row],[بند العقد]] -> 1560 | I73: =SUMIF($C$3:C73,Table8[[#This Row],[اسم المحطه]],$F$3:F73)-SUMIF(Table9[اسم المحطة],Table8[[#This Row],[اسم المحطه]],Table9[الاسمنت المستلم بالطن]) -> 256.94 | J73: =IF(Table8[[#This Row],[الرصيد بالطن]]=0,"0",IF(Table8[[#This Row],[الرصيد بالطن]]>=0.01,"دائن",IF(Table8[[#This Row],[الرصيد بالطن]]<=-0.01,"مدين"))) -> دائن | K73: عادية | L73: قاعدة اليافطة
A74: 72 | B74: 2023-02-02 | C74: كابيتال بيلد | D74: 380 | E74: 34 | F74: =Table8[[#This Row],[الكميه بالمتر المكعب]]*Table8[[#This Row],[محتوى الاسمنت (كجم/م3)]]/1000 -> 12.92 | G74: =SUMIF(Table9[اسم المحطة],Table8[[#This Row],[اسم المحطه]],Table13[2022/11/01]) -> 520 | H74: =Table8[[#This Row],[الكميه بالمتر المكعب]]*Table8[[#This Row],[بند العقد]] -> 17680 | I74: =SUMIF($C$3:C74,Table8[[#This Row],[اسم المحطه]],$F$3:F74)-SUMIF(Table9[اسم المحطة],Table8[[#This Row],[اسم المحطه]],Table9[الاسمنت المستلم بالطن]) -> 269.86 | J74: =IF(Table8[[#This Row],[الرصيد بالطن]]=0,"0",IF(Table8[[#This Row],[الرصيد بالطن]]>=0.01,"دائن",IF(Table8[[#This Row],[الرصيد بالطن]]<=-0.01,"مدين"))) -> دائن | K74: دى2 | L74: اعمدة الثانى
A75: 73 | B75: 2023-02-04 | C75: الشركة الهندسية للمشروعات | D75: 380 | E75: 117 | F75: =Table8[[#This Row],[الكميه بالمتر المكعب]]*Table8[[#This Row],[محتوى الاسمنت (كجم/م3)]]/1000 -> 44.46 | G75: =SUMIF(Table9[اسم المحطة],Table8[[#This Row],[اسم المحطه]],Table13[2022/11/01]) -> 520 | H75: =Table8[[#This Row],[الكميه بالمتر المكعب]]*Table8[[#This Row],[بند العقد]] -> 60840 | I75: =SUMIF($C$3:C75,Table8[[#This Row],[اسم المحطه]],$F$3:F75)-SUMIF(Table9[اسم المحطة],Table8[[#This Row],[اسم المحطه]],Table9[الاسمنت المستلم بالطن]) -> -2375.19 | J75: =IF(Table8[[#This Row],[الرصيد بالطن]]=0,"0",IF(Table8[[#This Row],[الرصيد بالطن]]>=0.01,"دائن",IF(Table8[[#This Row],[الرصيد بالطن]]<=-0.01,"مدين"))) -> مدين | K75: اى2 | L75: سقف الدور الارضى فاصل 1
A76: 74 | B76: 2023-02-06 | C76: الشركة الهندسية للمشروعات | D76: 380 | E76: 102 | F76: =Table8[[#This Row],[الكميه بالمتر المكعب]]*Table8[[#This Row],[محتوى الاسمنت (كجم/م3)]]/1000 -> 38.76 | G76: =SUMIF(Table9[اسم المحطة],Table8[[#This Row],[اسم المحطه]],Table13[2022/11/01]) -> 520 | H76: =Table8[[#This Row],[الكميه بالمتر المكعب]]*Table8[[#This Row],[بند العقد]] -> 53040 | I76: =SUMIF($C$3:C76,Table8[[#This Row],[اسم المحطه]],$F$3:F76)-SUMIF(Table9[اسم المحطة],Table8[[#This Row],[اسم المحطه]],Table9[الاسمنت المستلم بالطن]) -> -2336.43 | J76: =IF(Table8[[#This Row],[الرصيد بالطن]]=0,"0",IF(Table8[[#This Row],[الرصيد بالطن]]>=0.01,"دائن",IF(Table8[[#This Row],[الرصيد بالطن]]<=-0.01,"مدين"))) -> مدين | K76: سى4 | L76: سقف الثالث فاصل 1
A77: 75 | B77: 2023-02-06 | C77: الشركة الهندسية للمشروعات | D77: 380 | E77: 36 | F77: =Table8[[#This Row],[الكميه بالمتر المكعب]]*Table8[[#This Row],[محتوى الاسمنت (كجم/م3)]]/1000 -> 13.68 | G77: =SUMIF(Table9[اسم المحطة],Table8[[#This Row],[اسم المحطه]],Table13[2022/11/01]) -> 520 | H77: =Table8[[#This Row],[الكميه بالمتر المكعب]]*Table8[[#This Row],[بند العقد]] -> 18720 | I77: =SUMIF($C$3:C77,Table8[[#This Row],[اسم المحطه]],$F$3:F77)-SUMIF(Table9[اسم المحطة],Table8[[#This Row],[اسم المحطه]],Table9[الاسمنت المستلم بالطن]) -> -2322.75 | J77: =IF(Table8[[#This Row],[الرصيد بالطن]]=0,"0",IF(Table8[[#This Row],[الرصيد بالطن]]>=0.01,"دائن",IF(Table8[[#This Row],[الرصيد بالطن]]<=-0.01,"مدين"))) -> مدين | K77: سى3 | L77: اعمدة الثانى فاصل 2
A78: 76 | B78: 2023-02-08 | C78: الشركة الهندسية للمشروعات | D78: 380 | E78: 102 | F78: =Table8[[#This Row],[الكميه بالمتر المكعب]]*Table8[[#This Row],[محتوى الاسمنت (كجم/م3)]]/1000 -> 38.76 | G78: =SUMIF(Table9[اسم المحطة],Table8[[#This Row],[اسم المحطه]],Table13[2022/11/01]) -> 520 | H78: =Table8[[#This Row],[الكميه بالمتر المكعب]]*Table8[[#This Row],[بند العقد]] -> 53040 | I78: =SUMIF($C$3:C78,Table8[[#This Row],[اسم المحطه]],$F$3:F78)-SUMIF(Table9[اسم المحطة],Table8[[#This Row],[اسم المحطه]],Table9[الاسمنت المستلم بالطن]) -> -2283.99 | J78: =IF(Table8[[#This Row],[الرصيد بالطن]]=0,"0",IF(Table8[[#This Row],[الرصيد بالطن]]>=0.01,"دائن",IF(Table8[[#This Row],[الرصيد بالطن]]<=-0.01,"مدين"))) -> مدين | K78: سى3 | L78: سقف الثانى فاصل 1
A79: 77 | B79: 2023-02-08 | C79: الشركة الهندسية للمشروعات | D79: 380 | E79: 32 | F79: =Table8[[#This Row],[الكميه بالمتر المكعب]]*Table8[[#This Row],[محتوى الاسمنت (كجم/م3)]]/1000 -> 12.16 | G79: =SUMIF(Table9[اسم المحطة],Table8[[#This Row],[اسم المحطه]],Table13[2022/11/01]) -> 520 | H79: =Table8[[#This Row],[الكميه بالمتر المكعب]]*Table8[[#This Row],[بند العقد]] -> 16640 | I79: =SUMIF($C$3:C79,Table8[[#This Row],[اسم المحطه]],$F$3:F79)-SUMIF(Table9[اسم المحطة],Table8[[#This Row],[اسم المحطه]],Table9[الاسمنت المستلم بالطن]) -> -2271.83 | J79: =IF(Table8[[#This Row],[الرصيد بالطن]]=0,"0",IF(Table8[[#This Row],[الرصيد بالطن]]>=0.01,"دائن",IF(Table8[[#This Row],[الرصيد بالطن]]<=-0.01,"مدين"))) -> مدين | K79: دى1 | L79: اعمدة دور اول فاصل 2
A80: 78 | B80: 2023-02-09 | C80: الشركة الهندسية للمشروعات | D80: 380 | E80: 110 | F80: =Table8[[#This Row],[الكميه بالمتر المكعب]]*Table8[[#This Row],[محتوى الاسمنت (كجم/م3)]]/1000 -> 41.8 | G80: =SUMIF(Table9[اسم المحطة],Table8[[#This Row],[اسم المحطه]],Table13[2022/11/01]) -> 520 | H80: =Table8[[#This Row],[الكميه بالمتر المكعب]]*Table8[[#This Row],[بند العقد]] -> 57200 | I80: =SUMIF($C$3:C80,Table8[[#This Row],[اسم المحطه]],$F$3:F80)-SUMIF(Table9[اسم المحطة],Table8[[#This Row],[اسم المحطه]],Table9[الاسمنت المستلم بالطن]) -> -2230.03 | J80: =IF(Table8[[#This Row],[الرصيد بالطن]]=0,"0",IF(Table8[[#This Row],[الرصيد بالطن]]>=0.01,"دائن",IF(Table8[[#This Row],[الرصيد بالطن]]<=-0.01,"مدين"))) -> مدين | K80: سى2 | L80: سقف الاول فاصل 1
A81: 79 | B81: 2023-02-09 | C81: الشركة الهندسية للمشروعات | D81: 380 | E81: 40 | F81: =Table8[[#This Row],[الكميه بالمتر المكعب]]*Table8[[#This Row],[محتوى الاسمنت (كجم/م3)]]/1000 -> 15.2 | G81: =SUMIF(Table9[اسم المحطة],Table8[[#This Row],[اسم المحطه]],Table13[2022/11/01]) -> 520 | H81: =Table8[[#This Row],[الكميه بالمتر المكعب]]*Table8[[#This Row],[بند العقد]] -> 20800 | I81: =SUMIF($C$3:C81,Table8[[#This Row],[اسم المحطه]],$F$3:F81)-SUMIF(Table9[اسم المحطة],Table8[[#This Row],[اسم المحطه]],Table9[الاسمنت المستلم بالطن]) -> -2214.83 | J81: =IF(Table8[[#This Row],[الرصيد بالطن]]=0,"0",IF(Table8[[#This Row],[الرصيد بالطن]]>=0.01,"دائن",IF(Table8[[#This Row],[الرصيد بالطن]]<=-0.01,"مدين"))) -> مدين | K81: سى4 | L81: اعمدة الثالث فاصل 2
A82: 80 | B82: 2023-02-11 | C82: الشركة الهندسية للمشروعات | D82: 380 | E82: 30 | F82: =Table8[[#This Row],[الكميه بالمتر المكعب]]*Table8[[#This Row],[محتوى الاسمنت (كجم/م3)]]/1000 -> 11.4 | G82: =SUMIF(Table9[اسم المحطة],Table8[[#This Row],[اسم المحطه]],Table13[2022/11/01]) -> 520 | H82: =Table8[[#This Row],[الكميه بالمتر المكعب]]*Table8[[#This Row],[بند العقد]] -> 15600 | I82: =SUMIF($C$3:C82,Table8[[#This Row],[اسم المحطه]],$F$3:F82)-SUMIF(Table9[اسم المحطة],Table8[[#This Row],[اسم المحطه]],Table9[الاسمنت المستلم بالطن]) -> -2203.43 | J82: =IF(Table8[[#This Row],[الرصيد بالطن]]=0,"0",IF(Table8[[#This Row],[الرصيد بالطن]]>=0.01,"دائن",IF(Table8[[#This Row],[الرصيد بالطن]]<=-0.01,"مدين"))) -> مدين | K82: سى4 | L82: اعمدة الرابع فاصل 1
A83: 81 | B83: 2023-02-11 | C83: الشركة الهندسية للمشروعات | D83: 250 | E83: 3 | F83: =Table8[[#This Row],[الكميه بالمتر المكعب]]*Table8[[#This Row],[محتوى الاسمنت (كجم/م3)]]/1000 -> 0.75 | G83: =SUMIF(Table9[اسم المحطة],Table8[[#This Row],[اسم المحطه]],Table13[2022/11/01]) -> 520 | H83: =Table8[[#This Row],[الكميه بالمتر المكعب]]*Table8[[#This Row],[بند العقد]] -> 1560 | I83: =SUMIF($C$3:C83,Table8[[#This Row],[اسم المحطه]],$F$3:F83)-SUMIF(Table9[اسم المحطة],Table8[[#This Row],[اسم المحطه]],Table9[الاسمنت المستلم بالطن]) -> -2202.68 | J83: =IF(Table8[[#This Row],[الرصيد بالطن]]=0,"0",IF(Table8[[#This Row],[الرصيد بالطن]]>=0.01,"دائن",IF(Table8[[#This Row],[الرصيد بالطن]]<=-0.01,"مدين"))) -> مدين | K83: عادية | L83: ارضية بيارة احمد غنيم
A84: 82 | B84: 2023-02-14 | C84: بيتر ميكس | D84: 380 | E84: 110 | F84: =Table8[[#This Row],[الكميه بالمتر المكعب]]*Table8[[#This Row],[محتوى الاسمنت (كجم/م3)]]/1000 -> 41.8 | G84: =SUMIF(Table9[اسم المحطة],Table8[[#This Row],[اسم المحطه]],Table13[2022/11/01]) -> 520 | H84: =Table8[[#This Row],[الكميه بالمتر المكعب]]*Table8[[#This Row],[بند العقد]] -> 57200 | I84: =SUMIF($C$3:C84,Table8[[#This Row],[اسم المحطه]],$F$3:F84)-SUMIF(Table9[اسم المحطة],Table8[[#This Row],[اسم المحطه]],Table9[الاسمنت المستلم بالطن]) -> -200.6 | J84: =IF(Table8[[#This Row],[الرصيد بالطن]]=0,"0",IF(Table8[[#This Row],[الرصيد بالطن]]>=0.01,"دائن",IF(Table8[[#This Row],[الرصيد بالطن]]<=-0.01,"مدين"))) -> مدين | K84: سى1 | L84: سقف الاول فاصل 1
A85: 83 | B85: 2023-02-14 | C85: بيتر ميكس | D85: 380 | E85: 30 | F85: =Table8[[#This Row],[الكميه بالمتر المكعب]]*Table8[[#This Row],[محتوى الاسمنت (كجم/م3)]]/1000 -> 11.4 | G85: =SUMIF(Table9[اسم المحطة],Table8[[#This Row],[اسم المحطه]],Table13[2022/11/01]) -> 520 | H85: =Table8[[#This Row],[الكميه بالمتر المكعب]]*Table8[[#This Row],[بند العقد]] -> 15600 | I85: =SUMIF($C$3:C85,Table8[[#This Row],[اسم المحطه]],$F$3:F85)-SUMIF(Table9[اسم المحطة],Table8[[#This Row],[اسم المحطه]],Table9[الاسمنت المستلم بالطن]) -> -189.2 | J85: =IF(Table8[[#This Row],[الرصيد بالطن]]=0,"0",IF(Table8[[#This Row],[الرصيد بالطن]]>=0.01,"دائن",IF(Table8[[#This Row],[الرصيد بالطن]]<=-0.01,"مدين"))) -> مدين | K85: سى1 | L85: اعمدة الاول فاصل 2
A86: 84 | B86: 2023-02-14 | C86: بيتر ميكس | D86: 380 | E86: 108 | F86: =Table8[[#This Row],[الكميه بالمتر المكعب]]*Table8[[#This Row],[محتوى الاسمنت (كجم/م3)]]/1000 -> 41.04 | G86: =SUMIF(Table9[اسم المحطة],Table8[[#This Row],[اسم المحطه]],Table13[2022/11/01]) -> 520 | H86: =Table8[[#This Row],[الكميه بالمتر المكعب]]*Table8[[#This Row],[بند العقد]] -> 56160 | I86: =SUMIF($C$3:C86,Table8[[#This Row],[اسم المحطه]],$F$3:F86)-SUMIF(Table9[اسم المحطة],Table8[[#This Row],[اسم المحطه]],Table9[الاسمنت المستلم بالطن]) -> -148.16 | J86: =IF(Table8[[#This Row],[الرصيد بالطن]]=0,"0",IF(Table8[[#This Row],[الرصيد بالطن]]>=0.01,"دائن",IF(Table8[[#This Row],[الرصيد بالطن]]<=-0.01,"مدين"))) -> مدين | K86: اى1 | L86: سقف الارضى فاصل 1
A87: 85 | B87: 2023-02-14 | C87: الشركة الهندسية للمشروعات | D87: 380 | E87: 125 | F87: =Table8[[#This Row],[الكميه بالمتر المكعب]]*Table8[[#This Row],[محتوى الاسمنت (كجم/م3)]]/1000 -> 47.5 | G87: =SUMIF(Table9[اسم المحطة],Table8[[#This Row],[اسم المحطه]],Table13[2022/11/01]) -> 520 | H87: =Table8[[#This Row],[الكميه بالمتر المكعب]]*Table8[[#This Row],[بند العقد]] -> 65000 | I87: =SUMIF($C$3:C87,Table8[[#This Row],[اسم المحطه]],$F$3:F87)-SUMIF(Table9[اسم المحطة],Table8[[#This Row],[اسم المحطه]],Table9[الاسمنت المستلم بالطن]) -> -2155.18 | J87: =IF(Table8[[#This Row],[الرصيد بالطن]]=0,"0",IF(Table8[[#This Row],[الرصيد بالطن]]>=0.01,"دائن",IF(Table8[[#This Row],[الرصيد بالطن]]<=-0.01,"مدين"))) -> مدين | K87: سى2 | L87: سقف الاول فاصل 1
A88: 86 | B88: 2023-02-14 | C88: الشركة الهندسية للمشروعات | D88: 380 | E88: 39 | F88: =Table8[[#This Row],[الكميه بالمتر المكعب]]*Table8[[#This Row],[محتوى الاسمنت (كجم/م3)]]/1000 -> 14.82 | G88: =SUMIF(Table9[اسم المحطة],Table8[[#This Row],[اسم المحطه]],Table13[2022/11/01]) -> 520 | H88: =Table8[[#This Row],[الكميه بالمتر المكعب]]*Table8[[#This Row],[بند العقد]] -> 20280 | I88: =SUMIF($C$3:C88,Table8[[#This Row],[اسم المحطه]],$F$3:F88)-SUMIF(Table9[اسم المحطة],Table8[[#This Row],[اسم المحطه]],Table9[الاسمنت المستلم بالطن]) -> -2140.36 | J88: =IF(Table8[[#This Row],[الرصيد بالطن]]=0,"0",IF(Table8[[#This Row],[الرصيد بالطن]]>=0.01,"دائن",IF(Table8[[#This Row],[الرصيد بالطن]]<=-0.01,"مدين"))) -> مدين | K88: سى3 | L88: اعمدة الثالث فاصل 1
A89: 87 | B89: 2023-02-15 | C89: الشركة الهندسية للمشروعات | D89: 380 | E89: 130 | F89: =Table8[[#This Row],[الكميه بالمتر المكعب]]*Table8[[#This Row],[محتوى الاسمنت (كجم/م3)]]/1000 -> 49.4 | G89: =SUMIF(Table9[اسم المحطة],Table8[[#This Row],[اسم المحطه]],Table13[2022/11/01]) -> 520 | H89: =Table8[[#This Row],[الكميه بالمتر المكعب]]*Table8[[#This Row],[بند العقد]] -> 67600 | I89: =SUMIF($C$3:C89,Table8[[#This Row],[اسم المحطه]],$F$3:F89)-SUMIF(Table9[اسم المحطة],Table8[[#This Row],[اسم المحطه]],Table9[الاسمنت المستلم بالطن]) -> -2090.96 | J89: =IF(Table8[[#This Row],[الرصيد بالطن]]=0,"0",IF(Table8[[#This Row],[الرصيد بالطن]]>=0.01,"دائن",IF(Table8[[#This Row],[الرصيد بالطن]]<=-0.01,"مدين"))) -> مدين | K89: دى2 | L89: سقف الثانى فاصل 1
A90: 88 | B90: 2023-02-18 | C90: الشركة الهندسية للمشروعات | D90: 380 | E90: 39 | F90: =Table8[[#This Row],[الكميه بالمتر المكعب]]*Table8[[#This Row],[محتوى الاسمنت (كجم/م3)]]/1000 -> 14.82 | G90: =SUMIF(Table9[اسم المحطة],Table8[[#This Row],[اسم المحطه]],Table13[2022/11/01]) -> 520 | H90: =Table8[[#This Row],[الكميه بالمتر المكعب]]*Table8[[#This Row],[بند العقد]] -> 20280 | I90: =SUMIF($C$3:C90,Table8[[#This Row],[اسم المحطه]],$F$3:F90)-SUMIF(Table9[اسم المحطة],Table8[[#This Row],[اسم المحطه]],Table9[الاسمنت المستلم بالطن]) -> -2076.14 | J90: =IF(Table8[[#This Row],[الرصيد بالطن]]=0,"0",IF(Table8[[#This Row],[الرصيد بالطن]]>=0.01,"دائن",IF(Table8[[#This Row],[الرصيد بالطن]]<=-0.01,"مدين"))) -> مدين | K90: سى2 | L90: اعمدة الثانى فاصل 1
A91: 89 | B91: 2023-02-18 | C91: الشركة الهندسية للمشروعات | D91: 380 | E91: 130 | F91: =Table8[[#This Row],[الكميه بالمتر المكعب]]*Table8[[#This Row],[محتوى الاسمنت (كجم/م3)]]/1000 -> 49.4 | G91: =SUMIF(Table9[اسم المحطة],Table8[[#This Row],[اسم المحطه]],Table13[2022/11/01]) -> 520 | H91: =Table8[[#This Row],[الكميه بالمتر المكعب]]*Table8[[#This Row],[بند العقد]] -> 67600 | I91: =SUMIF($C$3:C91,Table8[[#This Row],[اسم المحطه]],$F$3:F91)-SUMIF(Table9[اسم المحطة],Table8[[#This Row],[اسم المحطه]],Table9[الاسمنت المستلم بالطن]) -> -2026.74 | J91: =IF(Table8[[#This Row],[الرصيد بالطن]]=0,"0",IF(Table8[[#This Row],[الرصيد بالطن]]>=0.01,"دائن",IF(Table8[[#This Row],[الرصيد بالطن]]<=-0.01,"مدين"))) -> مدين | K91: دى2 | L91: سقف الثانى فاصل 2
A92: 90 | B92: 2023-02-18 | C92: الشركة الهندسية للمشروعات | D92: 380 | E92: 101 | F92: =Table8[[#This Row],[الكميه بالمتر المكعب]]*Table8[[#This Row],[محتوى الاسمنت (كجم/م3)]]/1000 -> 38.38 | G92: =SUMIF(Table9[اسم المحطة],Table8[[#This Row],[اسم المحطه]],Table13[2022/11/01]) -> 520 | H92: =Table8[[#This Row],[الكميه بالمتر المكعب]]*Table8[[#This Row],[بند العقد]] -> 52520 | I92: =SUMIF($C$3:C92,Table8[[#This Row],[اسم المحطه]],$F$3:F92)-SUMIF(Table9[اسم المحطة],Table8[[#This Row],[اسم المحطه]],Table9[الاسمنت المستلم بالطن]) -> -1988.36 | J92: =IF(Table8[[#This Row],[الرصيد بالطن]]=0,"0",IF(Table8[[#This Row],[الرصيد بالطن]]>=0.01,"دائن",IF(Table8[[#This Row],[الرصيد بالطن]]<=-0.01,"مدين"))) -> مدين | K92: سى3 | L92: سقف الثانى فاصل 2
A93: 91 | B93: 2023-02-20 | C93: الشركة الهندسية للمشروعات | D93: 380 | E93: 125 | F93: =Table8[[#This Row],[الكميه بالمتر المكعب]]*Table8[[#This Row],[محتوى الاسمنت (كجم/م3)]]/1000 -> 47.5 | G93: =SUMIF(Table9[اسم المحطة],Table8[[#This Row],[اسم المحطه]],Table13[2022/11/01]) -> 520 | H93: =Table8[[#This Row],[الكميه بالمتر المكعب]]*Table8[[#This Row],[بند العقد]] -> 65000 | I93: =SUMIF($C$3:C93,Table8[[#This Row],[اسم المحطه]],$F$3:F93)-SUMIF(Table9[اسم المحطة],Table8[[#This Row],[اسم المحطه]],Table9[الاسمنت المستلم بالطن]) -> -1940.86 | J93: =IF(Table8[[#This Row],[الرصيد بالطن]]=0,"0",IF(Table8[[#This Row],[الرصيد بالطن]]>=0.01,"دائن",IF(Table8[[#This Row],[الرصيد بالطن]]<=-0.01,"مدين"))) -> مدين | K93: سى4 | L93: سقف الثالث فاصل 2
A94: 92 | B94: 2023-02-20 | C94: الشركة الهندسية للمشروعات | D94: 380 | E94: 35 | F94: =Table8[[#This Row],[الكميه بالمتر المكعب]]*Table8[[#This Row],[محتوى الاسمنت (كجم/م3)]]/1000 -> 13.3 | G94: =SUMIF(Table9[اسم المحطة],Table8[[#This Row],[اسم المحطه]],Table13[2022/11/01]) -> 520 | H94: =Table8[[#This Row],[الكميه بالمتر المكعب]]*Table8[[#This Row],[بند العقد]] -> 18200 | I94: =SUMIF($C$3:C94,Table8[[#This Row],[اسم المحطه]],$F$3:F94)-SUMIF(Table9[اسم المحطة],Table8[[#This Row],[اسم المحطه]],Table9[الاسمنت المستلم بالطن]) -> -1927.56 | J94: =IF(Table8[[#This Row],[الرصيد بالطن]]=0,"0",IF(Table8[[#This Row],[الرصيد بالطن]]>=0.01,"دائن",IF(Table8[[#This Row],[الرصيد بالطن]]<=-0.01,"مدين"))) -> مدين | K94: اى2 | L94: اعمدة اول فاصل 2
A95: 93 | B95: 2023-02-20 | C95: الشركة الهندسية للمشروعات | D95: 380 | E95: 35 | F95: =Table8[[#This Row],[الكميه بالمتر المكعب]]*Table8[[#This Row],[محتوى الاسمنت (كجم/م3)]]/1000 -> 13.3 | G95: =SUMIF(Table9[اسم المحطة],Table8[[#This Row],[اسم المحطه]],Table13[2022/11/01]) -> 520 | H95: =Table8[[#This Row],[الكميه بالمتر المكعب]]*Table8[[#This Row],[بند العقد]] -> 18200 | I95: =SUMIF($C$3:C95,Table8[[#This Row],[اسم المحطه]],$F$3:F95)-SUMIF(Table9[اسم المحطة],Table8[[#This Row],[اسم المحطه]],Table9[الاسمنت المستلم بالطن]) -> -1914.26 | J95: =IF(Table8[[#This Row],[الرصيد بالطن]]=0,"0",IF(Table8[[#This Row],[الرصيد بالطن]]>=0.01,"دائن",IF(Table8[[#This Row],[الرصيد بالطن]]<=-0.01,"مدين"))) -> مدين | K95: سى2 | L95: اعمدة الثانى فاصل 2
A96: 94 | B96: 2023-02-20 | C96: الشركة الهندسية للمشروعات | D96: 380 | E96: 35 | F96: =Table8[[#This Row],[الكميه بالمتر المكعب]]*Table8[[#This Row],[محتوى الاسمنت (كجم/م3)]]/1000 -> 13.3 | G96: =SUMIF(Table9[اسم المحطة],Table8[[#This Row],[اسم المحطه]],Table13[2022/11/01]) -> 520 | H96: =Table8[[#This Row],[الكميه بالمتر المكعب]]*Table8[[#This Row],[بند العقد]] -> 18200 | I96: =SUMIF($C$3:C96,Table8[[#This Row],[اسم المحطه]],$F$3:F96)-SUMIF(Table9[اسم المحطة],Table8[[#This Row],[اسم المحطه]],Table9[الاسمنت المستلم بالطن]) -> -1900.96 | J96: =IF(Table8[[#This Row],[الرصيد بالطن]]=0,"0",IF(Table8[[#This Row],[الرصيد بالطن]]>=0.01,"دائن",IF(Table8[[#This Row],[الرصيد بالطن]]<=-0.01,"مدين"))) -> مدين | K96: دى2 | L96: اعمدة الثالث فاصل 2
A97: 95 | B97: 2023-02-23 | C97: بيتر ميكس | D97: 380 | E97: 127 | F97: =Table8[[#This Row],[الكميه بالمتر المكعب]]*Table8[[#This Row],[محتوى الاسمنت (كجم/م3)]]/1000 -> 48.26 | G97: =SUMIF(Table9[اسم المحطة],Table8[[#This Row],[اسم المحطه]],Table13[2022/11/01]) -> 520 | H97: =Table8[[#This Row],[الكميه بالمتر المكعب]]*Table8[[#This Row],[بند العقد]] -> 66040 | I97: =SUMIF($C$3:C97,Table8[[#This Row],[اسم المحطه]],$F$3:F97)-SUMIF(Table9[اسم المحطة],Table8[[#This Row],[اسم المحطه]],Table9[الاسمنت المستلم بالطن]) -> -99.9 | J97: =IF(Table8[[#This Row],[الرصيد بالطن]]=0,"0",IF(Table8[[#This Row],[الرصيد بالطن]]>=0.01,"دائن",IF(Table8[[#This Row],[الرصيد بالطن]]<=-0.01,"مدين"))) -> مدين | K97: دى1 | L97: سقف الارضى فاصل 1
A98: 96 | B98: 2023-02-23 | C98: بيتر ميكس | D98: 380 | E98: 105 | F98: =Table8[[#This Row],[الكميه بالمتر المكعب]]*Table8[[#This Row],[محتوى الاسمنت (كجم/م3)]]/1000 -> 39.9 | G98: =SUMIF(Table9[اسم المحطة],Table8[[#This Row],[اسم المحطه]],Table13[2022/11/01]) -> 520 | H98: =Table8[[#This Row],[الكميه بالمتر المكعب]]*Table8[[#This Row],[بند العقد]] -> 54600 | I98: =SUMIF($C$3:C98,Table8[[#This Row],[اسم المحطه]],$F$3:F98)-SUMIF(Table9[اسم المحطة],Table8[[#This Row],[اسم المحطه]],Table9[الاسمنت المستلم بالطن]) -> -60 | J98: =IF(Table8[[#This Row],[الرصيد بالطن]]=0,"0",IF(Table8[[#This Row],[الرصيد بالطن]]>=0.01,"دائن",IF(Table8[[#This Row],[الرصيد بالطن]]<=-0.01,"مدين"))) -> مدين | K98: سى3 | L98: سقف الثالث فاصل 1
A99: 97 | B99: 2023-02-23 | C99: بيتر ميكس | D99: 380 | E99: 31 | F99: =Table8[[#This Row],[الكميه بالمتر المكعب]]*Table8[[#This Row],[محتوى الاسمنت (كجم/م3)]]/1000 -> 11.78 | G99: =SUMIF(Table9[اسم المحطة],Table8[[#This Row],[اسم المحطه]],Table13[2022/11/01]) -> 520 | H99: =Table8[[#This Row],[الكميه بالمتر المكعب]]*Table8[[#This Row],[بند العقد]] -> 16120 | I99: =SUMIF($C$3:C99,Table8[[#This Row],[اسم المحطه]],$F$3:F99)-SUMIF(Table9[اسم المحطة],Table8[[#This Row],[اسم المحطه]],Table9[الاسمنت المستلم بالطن]) -> -48.22 | J99: =IF(Table8[[#This Row],[الرصيد بالطن]]=0,"0",IF(Table8[[#This Row],[الرصيد بالطن]]>=0.01,"دائن",IF(Table8[[#This Row],[الرصيد بالطن]]<=-0.01,"مدين"))) -> مدين | K99: دى2 | L99: اعمدة الثالث فاصل 2
A100: 98 | B100: 2023-02-25 | C100: الشركة الهندسية للمشروعات | D100: 380 | E100: 110 | F100: =Table8[[#This Row],[الكميه بالمتر المكعب]]*Table8[[#This Row],[محتوى الاسمنت (كجم/م3)]]/1000 -> 41.8 | G100: =SUMIF(Table9[اسم المحطة],Table8[[#This Row],[اسم المحطه]],Table13[2022/11/01]) -> 520 | H100: =Table8[[#This Row],[الكميه بالمتر المكعب]]*Table8[[#This Row],[بند العقد]] -> 57200 | I100: =SUMIF($C$3:C100,Table8[[#This Row],[اسم المحطه]],$F$3:F100)-SUMIF(Table9[اسم المحطة],Table8[[#This Row],[اسم المحطه]],Table9[الاسمنت المستلم بالطن]) -> -1859.16 | J100: =IF(Table8[[#This Row],[الرصيد بالطن]]=0,"0",IF(Table8[[#This Row],[الرصيد بالطن]]>=0.01,"دائن",IF(Table8[[#This Row],[الرصيد بالطن]]<=-0.01,"مدين"))) -> مدين | K100: سى4 | L100: سقف الرابع فاصل 1
A101: 99 | B101: 2023-02-25 | C101: الشركة الهندسية للمشروعات | D101: 380 | E101: 30 | F101: =Table8[[#This Row],[الكميه بالمتر المكعب]]*Table8[[#This Row],[محتوى الاسمنت (كجم/م3)]]/1000 -> 11.4 | G101: =SUMIF(Table9[اسم المحطة],Table8[[#This Row],[اسم المحطه]],Table13[2022/11/01]) -> 520 | H101: =Table8[[#This Row],[الكميه بالمتر المكعب]]*Table8[[#This Row],[بند العقد]] -> 15600 | I101: =SUMIF($C$3:C101,Table8[[#This Row],[اسم المحطه]],$F$3:F101)-SUMIF(Table9[اسم المحطة],Table8[[#This Row],[اسم المحطه]],Table9[الاسمنت المستلم بالطن]) -> -1847.76 | J101: =IF(Table8[[#This Row],[الرصيد بالطن]]=0,"0",IF(Table8[[#This Row],[الرصيد بالطن]]>=0.01,"دائن",IF(Table8[[#This Row],[الرصيد بالطن]]<=-0.01,"مدين"))) -> مدين | K101: سى1 | L101: اعمدة الثانى فاصل 1
A102: 100 | B102: 2023-02-28 | C102: بيتر ميكس | D102: 380 | E102: 107 | F102: =Table8[[#This Row],[الكميه بالمتر المكعب]]*Table8[[#This Row],[محتوى الاسمنت (كجم/م3)]]/1000 -> 40.66 | G102: =SUMIF(Table9[اسم المحطة],Table8[[#This Row],[اسم المحطه]],Table13[2022/11/01]) -> 520 | H102: =Table8[[#This Row],[الكميه بالمتر المكعب]]*Table8[[#This Row],[بند العقد]] -> 55640 | I102: =SUMIF($C$3:C102,Table8[[#This Row],[اسم المحطه]],$F$3:F102)-SUMIF(Table9[اسم المحطة],Table8[[#This Row],[اسم المحطه]],Table9[الاسمنت المستلم بالطن]) -> -7.56 | J102: =IF(Table8[[#This Row],[الرصيد بالطن]]=0,"0",IF(Table8[[#This Row],[الرصيد بالطن]]>=0.01,"دائن",IF(Table8[[#This Row],[الرصيد بالطن]]<=-0.01,"مدين"))) -> مدين | K102: سى2 | L102: سقف الثانى فاصل 1
A103: 101 | B103: 2023-02-28 | C103: بيتر ميكس | D103: 380 | E103: 131 | F103: =Table8[[#This Row],[الكميه بالمتر المكعب]]*Table8[[#This Row],[محتوى الاسمنت (كجم/م3)]]/1000 -> 49.78 | G103: =SUMIF(Table9[اسم المحطة],Table8[[#This Row],[اسم المحطه]],Table13[2022/11/01]) -> 520 | H103: =Table8[[#This Row],[الكميه بالمتر المكعب]]*Table8[[#This Row],[بند العقد]] -> 68120 | I103: =SUMIF($C$3:C103,Table8[[#This Row],[اسم المحطه]],$F$3:F103)-SUMIF(Table9[اسم المحطة],Table8[[#This Row],[اسم المحطه]],Table9[الاسمنت المستلم بالطن]) -> 42.22 | J103: =IF(Table8[[#This Row],[الرصيد بالطن]]=0,"0",IF(Table8[[#This Row],[الرصيد بالطن]]>=0.01,"دائن",IF(Table8[[#This Row],[الرصيد بالطن]]<=-0.01,"مدين"))) -> دائن | K103: اى1 | L103: سقف الارضى فاصل 1
A104: 102 | B104: 2023-02-28 | C104: بيتر ميكس | D104: 380 | E104: 31 | F104: =Table8[[#This Row],[الكميه بالمتر المكعب]]*Table8[[#This Row],[محتوى الاسمنت (كجم/م3)]]/1000 -> 11.78 | G104: =SUMIF(Table9[اسم المحطة],Table8[[#This Row],[اسم المحطه]],Table13[2022/11/01]) -> 520 | H104: =Table8[[#This Row],[الكميه بالمتر المكعب]]*Table8[[#This Row],[بند العقد]] -> 16120 | I104: =SUMIF($C$3:C104,Table8[[#This Row],[اسم المحطه]],$F$3:F104)-SUMIF(Table9[اسم المحطة],Table8[[#This Row],[اسم المحطه]],Table9[الاسمنت المستلم بالطن]) -> 54 | J104: =IF(Table8[[#This Row],[الرصيد بالطن]]=0,"0",IF(Table8[[#This Row],[الرصيد بالطن]]>=0.01,"دائن",IF(Table8[[#This Row],[الرصيد بالطن]]<=-0.01,"مدين"))) -> دائن | K104: اى1 | L104: اعمدة الاول فاصل 2
A105: 103 | B105: 2023-02-28 | C105: بيتر ميكس | D105: 380 | E105: 35 | F105: =Table8[[#This Row],[الكميه بالمتر المكعب]]*Table8[[#This Row],[محتوى الاسمنت (كجم/م3)]]/1000 -> 13.3 | G105: =SUMIF(Table9[اسم المحطة],Table8[[#This Row],[اسم المحطه]],Table13[2022/11/01]) -> 520 | H105: =Table8[[#This Row],[الكميه بالمتر المكعب]]*Table8[[#This Row],[بند العقد]] -> 18200 | I105: =SUMIF($C$3:C105,Table8[[#This Row],[اسم المحطه]],$F$3:F105)-SUMIF(Table9[اسم المحطة],Table8[[#This Row],[اسم المحطه]],Table9[الاسمنت المستلم بالطن]) -> 67.3 | J105: =IF(Table8[[#This Row],[الرصيد بالطن]]=0,"0",IF(Table8[[#This Row],[الرصيد بالطن]]>=0.01,"دائن",IF(Table8[[#This Row],[الرصيد بالطن]]<=-0.01,"مدين"))) -> دائن | K105: سى3 | L105: اعمدة الثالث فاصل 2
A106: 104 | B106: 2023-03-04 | C106: الشركة الهندسية للمشروعات | D106: 380 | E106: 29 | F106: =Table8[[#This Row],[الكميه بالمتر المكعب]]*Table8[[#This Row],[محتوى الاسمنت (كجم/م3)]]/1000 -> 11.02 | G106: =SUMIF(Table9[اسم المحطة],Table8[[#This Row],[اسم المحطه]],Table13[2022/11/01]) -> 520 | H106: =Table8[[#This Row],[الكميه بالمتر المكعب]]*Table8[[#This Row],[بند العقد]] -> 15080 | I106: =SUMIF($C$3:C106,Table8[[#This Row],[اسم المحطه]],$F$3:F106)-SUMIF(Table9[اسم المحطة],Table8[[#This Row],[اسم المحطه]],Table9[الاسمنت المستلم بالطن]) -> -1836.74 | J106: =IF(Table8[[#This Row],[الرصيد بالطن]]=0,"0",IF(Table8[[#This Row],[الرصيد بالطن]]>=0.01,"دائن",IF(Table8[[#This Row],[الرصيد بالطن]]<=-0.01,"مدين"))) -> مدين | K106: سى3 | L106: اعمدة الرابع فاصل 1
A107: 105 | B107: 2023-03-04 | C107: الشركة الهندسية للمشروعات | D107: 380 | E107: 8 | F107: =Table8[[#This Row],[الكميه بالمتر المكعب]]*Table8[[#This Row],[محتوى الاسمنت (كجم/م3)]]/1000 -> 3.04 | G107: =SUMIF(Table9[اسم المحطة],Table8[[#This Row],[اسم المحطه]],Table13[2022/11/01]) -> 520 | H107: =Table8[[#This Row],[الكميه بالمتر المكعب]]*Table8[[#This Row],[بند العقد]] -> 4160 | I107: =SUMIF($C$3:C107,Table8[[#This Row],[اسم المحطه]],$F$3:F107)-SUMIF(Table9[اسم المحطة],Table8[[#This Row],[اسم المحطه]],Table9[الاسمنت المستلم بالطن]) -> -1833.7 | J107: =IF(Table8[[#This Row],[الرصيد بالطن]]=0,"0",IF(Table8[[#This Row],[الرصيد بالطن]]>=0.01,"دائن",IF(Table8[[#This Row],[الرصيد بالطن]]<=-0.01,"مدين"))) -> مدين | K107: سى4 | L107: الشخشيخة
A108: 106 | B108: 2023-03-04 | C108: الشركة الهندسية للمشروعات | D108: 380 | E108: 127 | F108: =Table8[[#This Row],[الكميه بالمتر المكعب]]*Table8[[#This Row],[محتوى الاسمنت (كجم/م3)]]/1000 -> 48.26 | G108: =SUMIF(Table9[اسم المحطة],Table8[[#This Row],[اسم المحطه]],Table13[2022/11/01]) -> 520 | H108: =Table8[[#This Row],[الكميه بالمتر المكعب]]*Table8[[#This Row],[بند العقد]] -> 66040 | I108: =SUMIF($C$3:C108,Table8[[#This Row],[اسم المحطه]],$F$3:F108)-SUMIF(Table9[اسم المحطة],Table8[[#This Row],[اسم المحطه]],Table9[الاسمنت المستلم بالطن]) -> -1785.44 | J108: =IF(Table8[[#This Row],[الرصيد بالطن]]=0,"0",IF(Table8[[#This Row],[الرصيد بالطن]]>=0.01,"دائن",IF(Table8[[#This Row],[الرصيد بالطن]]<=-0.01,"مدين"))) -> مدين | K108: اى2 | L108: سقف الارضى فاصل 1
A109: 107 | B109: 2023-03-06 | C109: كابيتال بيلد | D109: 380 | E109: 34 | F109: =Table8[[#This Row],[الكميه بالمتر المكعب]]*Table8[[#This Row],[محتوى الاسمنت (كجم/م3)]]/1000 -> 12.92 | G109: =SUMIF(Table9[اسم المحطة],Table8[[#This Row],[اسم المحطه]],Table13[2022/11/01]) -> 520 | H109: =Table8[[#This Row],[الكميه بالمتر المكعب]]*Table8[[#This Row],[بند العقد]] -> 17680 | I109: =SUMIF($C$3:C109,Table8[[#This Row],[اسم المحطه]],$F$3:F109)-SUMIF(Table9[اسم المحطة],Table8[[#This Row],[اسم المحطه]],Table9[الاسمنت المستلم بالطن]) -> 282.78 | J109: =IF(Table8[[#This Row],[الرصيد بالطن]]=0,"0",IF(Table8[[#This Row],[الرصيد بالطن]]>=0.01,"دائن",IF(Table8[[#This Row],[الرصيد بالطن]]<=-0.01,"مدين"))) -> دائن | K109: سى4 | L109: اعمدة الدور الاخير فاصل 2
A110: 108 | B110: 2023-03-12 | C110: الشركة الهندسية للمشروعات | D110: 380 | E110: 125 | F110: =Table8[[#This Row],[الكميه بالمتر المكعب]]*Table8[[#This Row],[محتوى الاسمنت (كجم/م3)]]/1000 -> 47.5 | G110: =SUMIF(Table9[اسم المحطة],Table8[[#This Row],[اسم المحطه]],Table13[2022/11/01]) -> 520 | H110: =Table8[[#This Row],[الكميه بالمتر المكعب]]*Table8[[#This Row],[بند العقد]] -> 65000 | I110: =SUMIF($C$3:C110,Table8[[#This Row],[اسم المحطه]],$F$3:F110)-SUMIF(Table9[اسم المحطة],Table8[[#This Row],[اسم المحطه]],Table9[الاسمنت المستلم بالطن]) -> -1737.94 | J110: =IF(Table8[[#This Row],[الرصيد بالطن]]=0,"0",IF(Table8[[#This Row],[الرصيد بالطن]]>=0.01,"دائن",IF(Table8[[#This Row],[الرصيد بالطن]]<=-0.01,"مدين"))) -> مدين | K110: سى2 | L110: سقف الثانى فاصل 2
A111: 109 | B111: 2023-03-12 | C111: الشركة الهندسية للمشروعات | D111: 380 | E111: 27 | F111: =Table8[[#This Row],[الكميه بالمتر المكعب]]*Table8[[#This Row],[محتوى الاسمنت (كجم/م3)]]/1000 -> 10.26 | G111: =SUMIF(Table9[اسم المحطة],Table8[[#This Row],[اسم المحطه]],Table13[2022/11/01]) -> 520 | H111: =Table8[[#This Row],[الكميه بالمتر المكعب]]*Table8[[#This Row],[بند العقد]] -> 14040 | I111: =SUMIF($C$3:C111,Table8[[#This Row],[اسم المحطه]],$F$3:F111)-SUMIF(Table9[اسم المحطة],Table8[[#This Row],[اسم المحطه]],Table9[الاسمنت المستلم بالطن]) -> -1727.68 | J111: =IF(Table8[[#This Row],[الرصيد بالطن]]=0,"0",IF(Table8[[#This Row],[الرصيد بالطن]]>=0.01,"دائن",IF(Table8[[#This Row],[الرصيد بالطن]]<=-0.01,"مدين"))) -> مدين | K111: سى2 | L111: اعمدة الثالث فاصل 1
A112: 110 | B112: 2023-03-12 | C112: الشركة الهندسية للمشروعات | D112: 380 | E112: 130 | F112: =Table8[[#This Row],[الكميه بالمتر المكعب]]*Table8[[#This Row],[محتوى الاسمنت (كجم/م3)]]/1000 -> 49.4 | G112: =SUMIF(Table9[اسم المحطة],Table8[[#This Row],[اسم المحطه]],Table13[2022/11/01]) -> 520 | H112: =Table8[[#This Row],[الكميه بالمتر المكعب]]*Table8[[#This Row],[بند العقد]] -> 67600 | I112: =SUMIF($C$3:C112,Table8[[#This Row],[اسم المحطه]],$F$3:F112)-SUMIF(Table9[اسم المحطة],Table8[[#This Row],[اسم المحطه]],Table9[الاسمنت المستلم بالطن]) -> -1678.28 | J112: =IF(Table8[[#This Row],[الرصيد بالطن]]=0,"0",IF(Table8[[#This Row],[الرصيد بالطن]]>=0.01,"دائن",IF(Table8[[#This Row],[الرصيد بالطن]]<=-0.01,"مدين"))) -> مدين | K112: دى2 | L112: سقف الثالث فاصل 1
A113: 111 | B113: 2023-03-12 | C113: الشركة الهندسية للمشروعات | D113: 380 | E113: 33 | F113: =Table8[[#This Row],[الكميه بالمتر المكعب]]*Table8[[#This Row],[محتوى الاسمنت (كجم/م3)]]/1000 -> 12.54 | G113: =SUMIF(Table9[اسم المحطة],Table8[[#This Row],[اسم المحطه]],Table13[2022/11/01]) -> 520 | H113: =Table8[[#This Row],[الكميه بالمتر المكعب]]*Table8[[#This Row],[بند العقد]] -> 17160 | I113: =SUMIF($C$3:C113,Table8[[#This Row],[اسم المحطه]],$F$3:F113)-SUMIF(Table9[اسم المحطة],Table8[[#This Row],[اسم المحطه]],Table9[الاسمنت المستلم بالطن]) -> -1665.74 | J113: =IF(Table8[[#This Row],[الرصيد بالطن]]=0,"0",IF(Table8[[#This Row],[الرصيد بالطن]]>=0.01,"دائن",IF(Table8[[#This Row],[الرصيد بالطن]]<=-0.01,"مدين"))) -> مدين | K113: اى1 | L113: اعمدة الاول فاصل 1
A114: 112 | B114: 2023-03-25 | C114: كابيتال بيلد | D114: 380 | E114: 37 | F114: =Table8[[#This Row],[الكميه بالمتر المكعب]]*Table8[[#This Row],[محتوى الاسمنت (كجم/م3)]]/1000 -> 14.06 | G114: =SUMIF(Table9[اسم المحطة],Table8[[#This Row],[اسم المحطه]],Table13[2022/11/01]) -> 520 | H114: =Table8[[#This Row],[الكميه بالمتر المكعب]]*Table8[[#This Row],[بند العقد]] -> 19240 | I114: =SUMIF($C$3:C114,Table8[[#This Row],[اسم المحطه]],$F$3:F114)-SUMIF(Table9[اسم المحطة],Table8[[#This Row],[اسم المحطه]],Table9[الاسمنت المستلم بالطن]) -> 296.84 | J114: =IF(Table8[[#This Row],[الرصيد بالطن]]=0,"0",IF(Table8[[#This Row],[الرصيد بالطن]]>=0.01,"دائن",IF(Table8[[#This Row],[الرصيد بالطن]]<=-0.01,"مدين"))) -> دائن | K114: دى1 | L114: اعمدة الاول فاصل 1
A115: 113 | B115: 2023-03-25 | C115: الشركة الهندسية للمشروعات | D115: 380 | E115: 127 | F115: =Table8[[#This Row],[الكميه بالمتر المكعب]]*Table8[[#This Row],[محتوى الاسمنت (كجم/م3)]]/1000 -> 48.26 | G115: =SUMIF(Table9[اسم المحطة],Table8[[#This Row],[اسم المحطه]],Table13[2022/11/01]) -> 520 | H115: =Table8[[#This Row],[الكميه بالمتر المكعب]]*Table8[[#This Row],[بند العقد]] -> 66040 | I115: =SUMIF($C$3:C115,Table8[[#This Row],[اسم المحطه]],$F$3:F115)-SUMIF(Table9[اسم المحطة],Table8[[#This Row],[اسم المحطه]],Table9[الاسمنت المستلم بالطن]) -> -1617.48 | J115: =IF(Table8[[#This Row],[الرصيد بالطن]]=0,"0",IF(Table8[[#This Row],[الرصيد بالطن]]>=0.01,"دائن",IF(Table8[[#This Row],[الرصيد بالطن]]<=-0.01,"مدين"))) -> مدين | K115: سى4 | L115: سقف الرابع فاصل 2
A116: 114 | B116: 2023-03-25 | C116: الشركة الهندسية للمشروعات | D116: 380 | E116: 32 | F116: =Table8[[#This Row],[الكميه بالمتر المكعب]]*Table8[[#This Row],[محتوى الاسمنت (كجم/م3)]]/1000 -> 12.16 | G116: =SUMIF(Table9[اسم المحطة],Table8[[#This Row],[اسم المحطه]],Table13[2022/11/01]) -> 520 | H116: =Table8[[#This Row],[الكميه بالمتر المكعب]]*Table8[[#This Row],[بند العقد]] -> 16640 | I116: =SUMIF($C$3:C116,Table8[[#This Row],[اسم المحطه]],$F$3:F116)-SUMIF(Table9[اسم المحطة],Table8[[#This Row],[اسم المحطه]],Table9[الاسمنت المستلم بالطن]) -> -1605.32 | J116: =IF(Table8[[#This Row],[الرصيد بالطن]]=0,"0",IF(Table8[[#This Row],[الرصيد بالطن]]>=0.01,"دائن",IF(Table8[[#This Row],[الرصيد بالطن]]<=-0.01,"مدين"))) -> مدين | K116: اى2 | L116: اعمدة الاول فاصل 1
A117: 115 | B117: 2023-03-25 | C117: الشركة الهندسية للمشروعات | D117: 380 | E117: 32 | F117: =Table8[[#This Row],[الكميه بالمتر المكعب]]*Table8[[#This Row],[محتوى الاسمنت (كجم/م3)]]/1000 -> 12.16 | G117: =SUMIF(Table9[اسم المحطة],Table8[[#This Row],[اسم المحطه]],Table13[2022/11/01]) -> 520 | H117: =Table8[[#This Row],[الكميه بالمتر المكعب]]*Table8[[#This Row],[بند العقد]] -> 16640 | I117: =SUMIF($C$3:C117,Table8[[#This Row],[اسم المحطه]],$F$3:F117)-SUMIF(Table9[اسم المحطة],Table8[[#This Row],[اسم المحطه]],Table9[الاسمنت المستلم بالطن]) -> -1593.16 | J117: =IF(Table8[[#This Row],[الرصيد بالطن]]=0,"0",IF(Table8[[#This Row],[الرصيد بالطن]]>=0.01,"دائن",IF(Table8[[#This Row],[الرصيد بالطن]]<=-0.01,"مدين"))) -> مدين | K117: سى2 | L117: اعمدة الثالث فاصل 2
A118: 116 | B118: 2023-03-27 | C118: كابيتال بيلد | D118: 380 | E118: 113 | F118: =Table8[[#This Row],[الكميه بالمتر المكعب]]*Table8[[#This Row],[محتوى الاسمنت (كجم/م3)]]/1000 -> 42.94 | G118: =SUMIF(Table9[اسم المحطة],Table8[[#This Row],[اسم المحطه]],Table13[2022/11/01]) -> 520 | H118: =Table8[[#This Row],[الكميه بالمتر المكعب]]*Table8[[#This Row],[بند العقد]] -> 58760 | I118: =SUMIF($C$3:C118,Table8[[#This Row],[اسم المحطه]],$F$3:F118)-SUMIF(Table9[اسم المحطة],Table8[[#This Row],[اسم المحطه]],Table9[الاسمنت المستلم بالطن]) -> 339.78 | J118: =IF(Table8[[#This Row],[الرصيد بالطن]]=0,"0",IF(Table8[[#This Row],[الرصيد بالطن]]>=0.01,"دائن",IF(Table8[[#This Row],[الرصيد بالطن]]<=-0.01,"مدين"))) -> دائن | K118: دى1 | L118: سقف الاول فاصل 2
A119: 117 | B119: 2023-04-12 | C119: الشركة الهندسية للمشروعات | D119: 380 | E119: 105 | F119: =Table8[[#This Row],[الكميه بالمتر المكعب]]*Table8[[#This Row],[محتوى الاسمنت (كجم/م3)]]/1000 -> 39.9 | G119: =SUMIF(Table9[اسم المحطة],Table8[[#This Row],[اسم المحطه]],Table13[2022/11/01]) -> 520 | H119: =Table8[[#This Row],[الكميه بالمتر المكعب]]*Table8[[#This Row],[بند العقد]] -> 54600 | I119: =SUMIF($C$3:C119,Table8[[#This Row],[اسم المحطه]],$F$3:F119)-SUMIF(Table9[اسم المحطة],Table8[[#This Row],[اسم المحطه]],Table9[الاسمنت المستلم بالطن]) -> -1553.26 | J119: =IF(Table8[[#This Row],[الرصيد بالطن]]=0,"0",IF(Table8[[#This Row],[الرصيد بالطن]]>=0.01,"دائن",IF(Table8[[#This Row],[الرصيد بالطن]]<=-0.01,"مدين"))) -> مدين | K119: سى3 | L119: سقف الرابع فاصل 1
A120: 118 | B120: 2023-04-12 | C120: الشركة الهندسية للمشروعات | D120: 380 | E120: 130 | F120: =Table8[[#This Row],[الكميه بالمتر المكعب]]*Table8[[#This Row],[محتوى الاسمنت (كجم/م3)]]/1000 -> 49.4 | G120: =SUMIF(Table9[اسم المحطة],Table8[[#This Row],[اسم المحطه]],Table13[2022/11/01]) -> 520 | H120: =Table8[[#This Row],[الكميه بالمتر المكعب]]*Table8[[#This Row],[بند العقد]] -> 67600 | I120: =SUMIF($C$3:C120,Table8[[#This Row],[اسم المحطه]],$F$3:F120)-SUMIF(Table9[اسم المحطة],Table8[[#This Row],[اسم المحطه]],Table9[الاسمنت المستلم بالطن]) -> -1503.86 | J120: =IF(Table8[[#This Row],[الرصيد بالطن]]=0,"0",IF(Table8[[#This Row],[الرصيد بالطن]]>=0.01,"دائن",IF(Table8[[#This Row],[الرصيد بالطن]]<=-0.01,"مدين"))) -> مدين | K120: سى3 | L120: سقف الثالث فاصل 2
A121: 119 | B121: 2023-04-13 | C121: الشركة الهندسية للمشروعات | D121: 380 | E121: 117 | F121: =Table8[[#This Row],[الكميه بالمتر المكعب]]*Table8[[#This Row],[محتوى الاسمنت (كجم/م3)]]/1000 -> 44.46 | G121: =SUMIF(Table9[اسم المحطة],Table8[[#This Row],[اسم المحطه]],Table13[2022/11/01]) -> 520 | H121: =Table8[[#This Row],[الكميه بالمتر المكعب]]*Table8[[#This Row],[بند العقد]] -> 60840 | I121: =SUMIF($C$3:C121,Table8[[#This Row],[اسم المحطه]],$F$3:F121)-SUMIF(Table9[اسم المحطة],Table8[[#This Row],[اسم المحطه]],Table9[الاسمنت المستلم بالطن]) -> -1459.4 | J121: =IF(Table8[[#This Row],[الرصيد بالطن]]=0,"0",IF(Table8[[#This Row],[الرصيد بالطن]]>=0.01,"دائن",IF(Table8[[#This Row],[الرصيد بالطن]]<=-0.01,"مدين"))) -> مدين | K121: دى2 | L121: سقف الثالث فاصل 2
A122: 120 | B122: 2023-04-13 | C122: الشركة الهندسية للمشروعات | D122: 380 | E122: 104 | F122: =Table8[[#This Row],[الكميه بالمتر المكعب]]*Table8[[#This Row],[محتوى الاسمنت (كجم/م3)]]/1000 -> 39.52 | G122: =SUMIF(Table9[اسم المحطة],Table8[[#This Row],[اسم المحطه]],Table13[2022/11/01]) -> 520 | H122: =Table8[[#This Row],[الكميه بالمتر المكعب]]*Table8[[#This Row],[بند العقد]] -> 54080 | I122: =SUMIF($C$3:C122,Table8[[#This Row],[اسم المحطه]],$F$3:F122)-SUMIF(Table9[اسم المحطة],Table8[[#This Row],[اسم المحطه]],Table9[الاسمنت المستلم بالطن]) -> -1419.88 | J122: =IF(Table8[[#This Row],[الرصيد بالطن]]=0,"0",IF(Table8[[#This Row],[الرصيد بالطن]]>=0.01,"دائن",IF(Table8[[#This Row],[الرصيد بالطن]]<=-0.01,"مدين"))) -> مدين | K122: سى2 | L122: سقف الثالث فاصل 1
A123: 121 | B123: 2023-04-17 | C123: الشركة الهندسية للمشروعات | D123: 380 | E123: 128 | F123: =Table8[[#This Row],[الكميه بالمتر المكعب]]*Table8[[#This Row],[محتوى الاسمنت (كجم/م3)]]/1000 -> 48.64 | G123: =SUMIF(Table9[اسم المحطة],Table8[[#This Row],[اسم المحطه]],Table13[2022/11/01]) -> 520 | H123: =Table8[[#This Row],[الكميه بالمتر المكعب]]*Table8[[#This Row],[بند العقد]] -> 66560 | I123: =SUMIF($C$3:C123,Table8[[#This Row],[اسم المحطه]],$F$3:F123)-SUMIF(Table9[اسم المحطة],Table8[[#This Row],[اسم المحطه]],Table9[الاسمنت المستلم بالطن]) -> -1371.24 | J123: =IF(Table8[[#This Row],[الرصيد بالطن]]=0,"0",IF(Table8[[#This Row],[الرصيد بالطن]]>=0.01,"دائن",IF(Table8[[#This Row],[الرصيد بالطن]]<=-0.01,"مدين"))) -> مدين | K123: سى1 | L123: سقف الاول فاصل 2
A124: 122 | B124: 2023-04-17 | C124: الشركة الهندسية للمشروعات | D124: 380 | E124: 128 | F124: =Table8[[#This Row],[الكميه بالمتر المكعب]]*Table8[[#This Row],[محتوى الاسمنت (كجم/م3)]]/1000 -> 48.64 | G124: =SUMIF(Table9[اسم المحطة],Table8[[#This Row],[اسم المحطه]],Table13[2022/11/01]) -> 520 | H124: =Table8[[#This Row],[الكميه بالمتر المكعب]]*Table8[[#This Row],[بند العقد]] -> 66560 | I124: =SUMIF($C$3:C124,Table8[[#This Row],[اسم المحطه]],$F$3:F124)-SUMIF(Table9[اسم المحطة],Table8[[#This Row],[اسم المحطه]],Table9[الاسمنت المستلم بالطن]) -> -1322.6 | J124: =IF(Table8[[#This Row],[الرصيد بالطن]]=0,"0",IF(Table8[[#This Row],[الرصيد بالطن]]>=0.01,"دائن",IF(Table8[[#This Row],[الرصيد بالطن]]<=-0.01,"مدين"))) -> مدين | K124: اى1 | L124: سقف الاول فاصل 1
A125: 123 | B125: 2023-04-17 | C125: الشركة الهندسية للمشروعات | D125: 380 | E125: 118 | F125: =Table8[[#This Row],[الكميه بالمتر المكعب]]*Table8[[#This Row],[محتوى الاسمنت (كجم/م3)]]/1000 -> 44.84 | G125: =SUMIF(Table9[اسم المحطة],Table8[[#This Row],[اسم المحطه]],Table13[2022/11/01]) -> 520 | H125: =Table8[[#This Row],[الكميه بالمتر المكعب]]*Table8[[#This Row],[بند العقد]] -> 61360 | I125: =SUMIF($C$3:C125,Table8[[#This Row],[اسم المحطه]],$F$3:F125)-SUMIF(Table9[اسم المحطة],Table8[[#This Row],[اسم المحطه]],Table9[الاسمنت المستلم بالطن]) -> -1277.76 | J125: =IF(Table8[[#This Row],[الرصيد بالطن]]=0,"0",IF(Table8[[#This Row],[الرصيد بالطن]]>=0.01,"دائن",IF(Table8[[#This Row],[الرصيد بالطن]]<=-0.01,"مدين"))) -> مدين | K125: اى1 | L125: سقف الاول فاصل 2
A126: 124 | B126: 2023-05-30 | C126: الشركة الهندسية للمشروعات | D126: 380 | E126: 109 | F126: =Table8[[#This Row],[الكميه بالمتر المكعب]]*Table8[[#This Row],[محتوى الاسمنت (كجم/م3)]]/1000 -> 41.42 | G126: =SUMIF(Table9[اسم المحطة],Table8[[#This Row],[اسم المحطه]],Table13[2023/05/23]) -> 600 | H126: =Table8[[#This Row],[الكميه بالمتر المكعب]]*Table8[[#This Row],[بند العقد]] -> 65400 | I126: =SUMIF($C$3:C126,Table8[[#This Row],[اسم المحطه]],$F$3:F126)-SUMIF(Table9[اسم المحطة],Table8[[#This Row],[اسم المحطه]],Table9[الاسمنت المستلم بالطن]) -> -1236.34 | J126: =IF(Table8[[#This Row],[الرصيد بالطن]]=0,"0",IF(Table8[[#This Row],[الرصيد بالطن]]>=0.01,"دائن",IF(Table8[[#This Row],[الرصيد بالطن]]<=-0.01,"مدين"))) -> مدين | K126: سى1 | L126: سقف الثالث ف1
A127: 125 | B127: 2023-05-31 | C127: الشركة الهندسية للمشروعات | D127: 380 | E127: 30 | F127: =Table8[[#This Row],[الكميه بالمتر المكعب]]*Table8[[#This Row],[محتوى الاسمنت (كجم/م3)]]/1000 -> 11.4 | G127: =SUMIF(Table9[اسم المحطة],Table8[[#This Row],[اسم المحطه]],Table13[2023/05/23]) -> 600 | H127: =Table8[[#This Row],[الكميه بالمتر المكعب]]*Table8[[#This Row],[بند العقد]] -> 18000 | I127: =SUMIF($C$3:C127,Table8[[#This Row],[اسم المحطه]],$F$3:F127)-SUMIF(Table9[اسم المحطة],Table8[[#This Row],[اسم المحطه]],Table9[الاسمنت المستلم بالطن]) -> -1224.94 | J127: =IF(Table8[[#This Row],[الرصيد بالطن]]=0,"0",IF(Table8[[#This Row],[الرصيد بالطن]]>=0.01,"دائن",IF(Table8[[#This Row],[الرصيد بالطن]]<=-0.01,"مدين"))) -> مدين | K127: دى2 | L127: اعمدة الرابع فاصل 1
A128: 126 | B128: 2023-06-03 | C128: الشركة الهندسية للمشروعات | D128: 380 | E128: 33.5 | F128: =Table8[[#This Row],[الكميه بالمتر المكعب]]*Table8[[#This Row],[محتوى الاسمنت (كجم/م3)]]/1000 -> 12.73 | G128: =SUMIF(Table9[اسم المحطة],Table8[[#This Row],[اسم المحطه]],Table13[2023/05/23]) -> 600 | H128: =Table8[[#This Row],[الكميه بالمتر المكعب]]*Table8[[#This Row],[بند العقد]] -> 20100 | I128: =SUMIF($C$3:C128,Table8[[#This Row],[اسم المحطه]],$F$3:F128)-SUMIF(Table9[اسم المحطة],Table8[[#This Row],[اسم المحطه]],Table9[الاسمنت المستلم بالطن]) -> -1212.21 | J128: =IF(Table8[[#This Row],[الرصيد بالطن]]=0,"0",IF(Table8[[#This Row],[الرصيد بالطن]]>=0.01,"دائن",IF(Table8[[#This Row],[الرصيد بالطن]]<=-0.01,"مدين"))) -> مدين | K128: سى3 | L128: اعمدة الرابع فاصل 2
A129: 127 | B129: 2023-06-03 | C129: الشركة الهندسية للمشروعات | D129: 380 | E129: 33.5 | F129: =Table8[[#This Row],[الكميه بالمتر المكعب]]*Table8[[#This Row],[محتوى الاسمنت (كجم/م3)]]/1000 -> 12.73 | G129: =SUMIF(Table9[اسم المحطة],Table8[[#This Row],[اسم المحطه]],Table13[2023/05/23]) -> 600 | H129: =Table8[[#This Row],[الكميه بالمتر المكعب]]*Table8[[#This Row],[بند العقد]] -> 20100 | I129: =SUMIF($C$3:C129,Table8[[#This Row],[اسم المحطه]],$F$3:F129)-SUMIF(Table9[اسم المحطة],Table8[[#This Row],[اسم المحطه]],Table9[الاسمنت المستلم بالطن]) -> -1199.48 | J129: =IF(Table8[[#This Row],[الرصيد بالطن]]=0,"0",IF(Table8[[#This Row],[الرصيد بالطن]]>=0.01,"دائن",IF(Table8[[#This Row],[الرصيد بالطن]]<=-0.01,"مدين"))) -> مدين | K129: سى1 | L129: اعمدة الثانى فاصل 2
A130: 128 | B130: 2023-06-04 | C130: الشركة الهندسية للمشروعات | D130: 380 | E130: 31.5 | F130: =Table8[[#This Row],[الكميه بالمتر المكعب]]*Table8[[#This Row],[محتوى الاسمنت (كجم/م3)]]/1000 -> 11.97 | G130: =SUMIF(Table9[اسم المحطة],Table8[[#This Row],[اسم المحطه]],Table13[2023/05/23]) -> 600 | H130: =Table8[[#This Row],[الكميه بالمتر المكعب]]*Table8[[#This Row],[بند العقد]] -> 18900 | I130: =SUMIF($C$3:C130,Table8[[#This Row],[اسم المحطه]],$F$3:F130)-SUMIF(Table9[اسم المحطة],Table8[[#This Row],[اسم المحطه]],Table9[الاسمنت المستلم بالطن]) -> -1187.51 | J130: =IF(Table8[[#This Row],[الرصيد بالطن]]=0,"0",IF(Table8[[#This Row],[الرصيد بالطن]]>=0.01,"دائن",IF(Table8[[#This Row],[الرصيد بالطن]]<=-0.01,"مدين"))) -> مدين | K130: اى1 | L130: اعمدة الثانى فاصل 1
A131: =ROW()-2 -> 129 | B131: 2023-06-04 | C131: الشركة الهندسية للمشروعات | D131: 380 | E131: 28.5 | F131: =Table8[[#This Row],[الكميه بالمتر المكعب]]*Table8[[#This Row],[محتوى الاسمنت (كجم/م3)]]/1000 -> 10.83 | G131: =SUMIF(Table9[اسم المحطة],Table8[[#This Row],[اسم المحطه]],Table13[2023/05/23]) -> 600 | H131: =Table8[[#This Row],[الكميه بالمتر المكعب]]*Table8[[#This Row],[بند العقد]] -> 17100 | I131: =SUMIF($C$3:C131,Table8[[#This Row],[اسم المحطه]],$F$3:F131)-SUMIF(Table9[اسم المحطة],Table8[[#This Row],[اسم المحطه]],Table9[الاسمنت المستلم بالطن]) -> -1176.68 | J131: =IF(Table8[[#This Row],[الرصيد بالطن]]=0,"0",IF(Table8[[#This Row],[الرصيد بالطن]]>=0.01,"دائن",IF(Table8[[#This Row],[الرصيد بالطن]]<=-0.01,"مدين"))) -> مدين | K131: دى1 | L131: اعمدة الثانى فاصل 1
A132: 130 | B132: 2023-06-05 | C132: الشركة الهندسية للمشروعات | D132: 380 | E132: 126 | F132: =Table8[[#This Row],[الكميه بالمتر المكعب]]*Table8[[#This Row],[محتوى الاسمنت (كجم/م3)]]/1000 -> 47.88 | G132: =SUMIF(Table9[اسم المحطة],Table8[[#This Row],[اسم المحطه]],Table13[2023/05/23]) -> 600 | H132: =Table8[[#This Row],[الكميه بالمتر المكعب]]*Table8[[#This Row],[بند العقد]] -> 75600 | I132: =SUMIF($C$3:C132,Table8[[#This Row],[اسم المحطه]],$F$3:F132)-SUMIF(Table9[اسم المحطة],Table8[[#This Row],[اسم المحطه]],Table9[الاسمنت المستلم بالطن]) -> -1128.8 | J132: =IF(Table8[[#This Row],[الرصيد بالطن]]=0,"0",IF(Table8[[#This Row],[الرصيد بالطن]]>=0.01,"دائن",IF(Table8[[#This Row],[الرصيد بالطن]]<=-0.01,"مدين"))) -> مدين | K132: اى2 | L132: سقف الثانى فاصل 1
A133: 131 | B133: 2023-06-08 | C133: الشركة الهندسية للمشروعات | D133: 380 | E133: 120 | F133: =Table8[[#This Row],[الكميه بالمتر المكعب]]*Table8[[#This Row],[محتوى الاسمنت (كجم/م3)]]/1000 -> 45.6 | G133: =SUMIF(Table9[اسم المحطة],Table8[[#This Row],[اسم المحطه]],Table13[2023/05/23]) -> 600 | H133: =Table8[[#This Row],[الكميه بالمتر المكعب]]*Table8[[#This Row],[بند العقد]] -> 72000 | I133: =SUMIF($C$3:C133,Table8[[#This Row],[اسم المحطه]],$F$3:F133)-SUMIF(Table9[اسم المحطة],Table8[[#This Row],[اسم المحطه]],Table9[الاسمنت المستلم بالطن]) -> -1083.2 | J133: =IF(Table8[[#This Row],[الرصيد بالطن]]=0,"0",IF(Table8[[#This Row],[الرصيد بالطن]]>=0.01,"دائن",IF(Table8[[#This Row],[الرصيد بالطن]]<=-0.01,"مدين"))) -> مدين | K133: اى2 | L133: سقف الاول فاصل 2
A134: 132 | B134: 2023-06-10 | C134: الشركة الهندسية للمشروعات | D134: 380 | E134: 132 | F134: =Table8[[#This Row],[الكميه بالمتر المكعب]]*Table8[[#This Row],[محتوى الاسمنت (كجم/م3)]]/1000 -> 50.16 | G134: =SUMIF(Table9[اسم المحطة],Table8[[#This Row],[اسم المحطه]],Table13[2023/05/23]) -> 600 | H134: =Table8[[#This Row],[الكميه بالمتر المكعب]]*Table8[[#This Row],[بند العقد]] -> 79200 | I134: =SUMIF($C$3:C134,Table8[[#This Row],[اسم المحطه]],$F$3:F134)-SUMIF(Table9[اسم المحطة],Table8[[#This Row],[اسم المحطه]],Table9[الاسمنت المستلم بالطن]) -> -1033.04 | J134: =IF(Table8[[#This Row],[الرصيد بالطن]]=0,"0",IF(Table8[[#This Row],[الرصيد بالطن]]>=0.01,"دائن",IF(Table8[[#This Row],[الرصيد بالطن]]<=-0.01,"مدين"))) -> مدين | K134: دى1 | L134: سقف الاول فاصل 2
A135: 133 | B135: 2023-06-10 | C135: الشركة الهندسية للمشروعات | D135: 380 | E135: 29 | F135: =Table8[[#This Row],[الكميه بالمتر المكعب]]*Table8[[#This Row],[محتوى الاسمنت (كجم/م3)]]/1000 -> 11.02 | G135: =SUMIF(Table9[اسم المحطة],Table8[[#This Row],[اسم المحطه]],Table13[2023/05/23]) -> 600 | H135: =Table8[[#This Row],[الكميه بالمتر المكعب]]*Table8[[#This Row],[بند العقد]] -> 17400 | I135: =SUMIF($C$3:C135,Table8[[#This Row],[اسم المحطه]],$F$3:F135)-SUMIF(Table9[اسم المحطة],Table8[[#This Row],[اسم المحطه]],Table9[الاسمنت المستلم بالطن]) -> -1022.02 | J135: =IF(Table8[[#This Row],[الرصيد بالطن]]=0,"0",IF(Table8[[#This Row],[الرصيد بالطن]]>=0.01,"دائن",IF(Table8[[#This Row],[الرصيد بالطن]]<=-0.01,"مدين"))) -> مدين | K135: سى1 | L135: اعمدة الثالث فاصل 1
A136: 134 | B136: 2023-06-11 | C136: الشركة الهندسية للمشروعات | D136: 380 | E136: 30 | F136: =Table8[[#This Row],[الكميه بالمتر المكعب]]*Table8[[#This Row],[محتوى الاسمنت (كجم/م3)]]/1000 -> 11.4 | G136: =SUMIF(Table9[اسم المحطة],Table8[[#This Row],[اسم المحطه]],Table13[2023/05/23]) -> 600 | H136: =Table8[[#This Row],[الكميه بالمتر المكعب]]*Table8[[#This Row],[بند العقد]] -> 18000 | I136: =SUMIF($C$3:C136,Table8[[#This Row],[اسم المحطه]],$F$3:F136)-SUMIF(Table9[اسم المحطة],Table8[[#This Row],[اسم المحطه]],Table9[الاسمنت المستلم بالطن]) -> -1010.62 | J136: =IF(Table8[[#This Row],[الرصيد بالطن]]=0,"0",IF(Table8[[#This Row],[الرصيد بالطن]]>=0.01,"دائن",IF(Table8[[#This Row],[الرصيد بالطن]]<=-0.01,"مدين"))) -> مدين | K136: اى1 | L136: اعمدة الثانى فاصل 1
A137: 135 | B137: 2023-06-12 | C137: الشركة الهندسية للمشروعات | D137: 380 | E137: 26 | F137: =Table8[[#This Row],[الكميه بالمتر المكعب]]*Table8[[#This Row],[محتوى الاسمنت (كجم/م3)]]/1000 -> 9.88 | G137: =SUMIF(Table9[اسم المحطة],Table8[[#This Row],[اسم المحطه]],Table13[2023/05/23]) -> 600 | H137: =Table8[[#This Row],[الكميه بالمتر المكعب]]*Table8[[#This Row],[بند العقد]] -> 15600 | I137: =SUMIF($C$3:C137,Table8[[#This Row],[اسم المحطه]],$F$3:F137)-SUMIF(Table9[اسم المحطة],Table8[[#This Row],[اسم المحطه]],Table9[الاسمنت المستلم بالطن]) -> -1000.74 | J137: =IF(Table8[[#This Row],[الرصيد بالطن]]=0,"0",IF(Table8[[#This Row],[الرصيد بالطن]]>=0.01,"دائن",IF(Table8[[#This Row],[الرصيد بالطن]]<=-0.01,"مدين"))) -> مدين | K137: اى2 | L137: اعمدة الثانى فاصل 1
A138: 136 | B138: 2023-06-12 | C138: الشركة الهندسية للمشروعات | D138: 380 | E138: 128 | F138: =Table8[[#This Row],[الكميه بالمتر المكعب]]*Table8[[#This Row],[محتوى الاسمنت (كجم/م3)]]/1000 -> 48.64 | G138: =SUMIF(Table9[اسم المحطة],Table8[[#This Row],[اسم المحطه]],Table13[2023/05/23]) -> 600 | H138: =Table8[[#This Row],[الكميه بالمتر المكعب]]*Table8[[#This Row],[بند العقد]] -> 76800 | I138: =SUMIF($C$3:C138,Table8[[#This Row],[اسم المحطه]],$F$3:F138)-SUMIF(Table9[اسم المحطة],Table8[[#This Row],[اسم المحطه]],Table9[الاسمنت المستلم بالطن]) -> -952.1 | J138: =IF(Table8[[#This Row],[الرصيد بالطن]]=0,"0",IF(Table8[[#This Row],[الرصيد بالطن]]>=0.01,"دائن",IF(Table8[[#This Row],[الرصيد بالطن]]<=-0.01,"مدين"))) -> مدين | K138: سى2 | L138: سقف الثالث فاصل 2
A139: 137 | B139: 2023-06-13 | C139: الشركة الهندسية للمشروعات | D139: 380 | E139: 31 | F139: =Table8[[#This Row],[الكميه بالمتر المكعب]]*Table8[[#This Row],[محتوى الاسمنت (كجم/م3)]]/1000 -> 11.78 | G139: =SUMIF(Table9[اسم المحطة],Table8[[#This Row],[اسم المحطه]],Table13[2023/05/23]) -> 600 | H139: =Table8[[#This Row],[الكميه بالمتر المكعب]]*Table8[[#This Row],[بند العقد]] -> 18600 | I139: =SUMIF($C$3:C139,Table8[[#This Row],[اسم المحطه]],$F$3:F139)-SUMIF(Table9[اسم المحطة],Table8[[#This Row],[اسم المحطه]],Table9[الاسمنت المستلم بالطن]) -> -940.32 | J139: =IF(Table8[[#This Row],[الرصيد بالطن]]=0,"0",IF(Table8[[#This Row],[الرصيد بالطن]]>=0.01,"دائن",IF(Table8[[#This Row],[الرصيد بالطن]]<=-0.01,"مدين"))) -> مدين | K139: اى2 | L139: اعمدة الثانى فاصل 2
A140: 138 | B140: 2023-06-13 | C140: الشركة الهندسية للمشروعات | D140: 380 | E140: 126 | F140: =Table8[[#This Row],[الكميه بالمتر المكعب]]*Table8[[#This Row],[محتوى الاسمنت (كجم/م3)]]/1000 -> 47.88 | G140: =SUMIF(Table9[اسم المحطة],Table8[[#This Row],[اسم المحطه]],Table13[2023/05/23]) -> 600 | H140: =Table8[[#This Row],[الكميه بالمتر المكعب]]*Table8[[#This Row],[بند العقد]] -> 75600 | I140: =SUMIF($C$3:C140,Table8[[#This Row],[اسم المحطه]],$F$3:F140)-SUMIF(Table9[اسم المحطة],Table8[[#This Row],[اسم المحطه]],Table9[الاسمنت المستلم بالطن]) -> -892.44 | J140: =IF(Table8[[#This Row],[الرصيد بالطن]]=0,"0",IF(Table8[[#This Row],[الرصيد بالطن]]>=0.01,"دائن",IF(Table8[[#This Row],[الرصيد بالطن]]<=-0.01,"مدين"))) -> مدين | K140: سى3 | L140: سقف الرابع فاصل 2
A141: 139 | B141: 2023-06-15 | C141: الشركة الهندسية للمشروعات | D141: 380 | E141: 130 | F141: =Table8[[#This Row],[الكميه بالمتر المكعب]]*Table8[[#This Row],[محتوى الاسمنت (كجم/م3)]]/1000 -> 49.4 | G141: =SUMIF(Table9[اسم المحطة],Table8[[#This Row],[اسم المحطه]],Table13[2023/05/23]) -> 600 | H141: =Table8[[#This Row],[الكميه بالمتر المكعب]]*Table8[[#This Row],[بند العقد]] -> 78000 | I141: =SUMIF($C$3:C141,Table8[[#This Row],[اسم المحطه]],$F$3:F141)-SUMIF(Table9[اسم المحطة],Table8[[#This Row],[اسم المحطه]],Table9[الاسمنت المستلم بالطن]) -> -843.04 | J141: =IF(Table8[[#This Row],[الرصيد بالطن]]=0,"0",IF(Table8[[#This Row],[الرصيد بالطن]]>=0.01,"دائن",IF(Table8[[#This Row],[الرصيد بالطن]]<=-0.01,"مدين"))) -> مدين | K141: دى2 | L141: سقف الرابع فاصل 1
A142: 140 | B142: 2023-06-17 | C142: الشركة الهندسية للمشروعات | D142: 380 | E142: 116 | F142: =Table8[[#This Row],[الكميه بالمتر المكعب]]*Table8[[#This Row],[محتوى الاسمنت (كجم/م3)]]/1000 -> 44.08 | G142: =SUMIF(Table9[اسم المحطة],Table8[[#This Row],[اسم المحطه]],Table13[2023/05/23]) -> 600 | H142: =Table8[[#This Row],[الكميه بالمتر المكعب]]*Table8[[#This Row],[بند العقد]] -> 69600 | I142: =SUMIF($C$3:C142,Table8[[#This Row],[اسم المحطه]],$F$3:F142)-SUMIF(Table9[اسم المحطة],Table8[[#This Row],[اسم المحطه]],Table9[الاسمنت المستلم بالطن]) -> -798.96 | J142: =IF(Table8[[#This Row],[الرصيد بالطن]]=0,"0",IF(Table8[[#This Row],[الرصيد بالطن]]>=0.01,"دائن",IF(Table8[[#This Row],[الرصيد بالطن]]<=-0.01,"مدين"))) -> مدين | K142: دى1 | L142: سقف الثانى فاصل 1
A143: 141 | B143: 2023-06-17 | C143: الشركة الهندسية للمشروعات | D143: 380 | E143: 28 | F143: =Table8[[#This Row],[الكميه بالمتر المكعب]]*Table8[[#This Row],[محتوى الاسمنت (كجم/م3)]]/1000 -> 10.64 | G143: =SUMIF(Table9[اسم المحطة],Table8[[#This Row],[اسم المحطه]],Table13[2023/05/23]) -> 600 | H143: =Table8[[#This Row],[الكميه بالمتر المكعب]]*Table8[[#This Row],[بند العقد]] -> 16800 | I143: =SUMIF($C$3:C143,Table8[[#This Row],[اسم المحطه]],$F$3:F143)-SUMIF(Table9[اسم المحطة],Table8[[#This Row],[اسم المحطه]],Table9[الاسمنت المستلم بالطن]) -> -788.32 | J143: =IF(Table8[[#This Row],[الرصيد بالطن]]=0,"0",IF(Table8[[#This Row],[الرصيد بالطن]]>=0.01,"دائن",IF(Table8[[#This Row],[الرصيد بالطن]]<=-0.01,"مدين"))) -> مدين | K143: دى2 | L143: اعمدة الرابع فاص 2
A144: 142 | B144: 2023-06-19 | C144: الشركة الهندسية للمشروعات | D144: 380 | E144: 30 | F144: =Table8[[#This Row],[الكميه بالمتر المكعب]]*Table8[[#This Row],[محتوى الاسمنت (كجم/م3)]]/1000 -> 11.4 | G144: =SUMIF(Table9[اسم المحطة],Table8[[#This Row],[اسم المحطه]],Table13[2023/05/23]) -> 600 | H144: =Table8[[#This Row],[الكميه بالمتر المكعب]]*Table8[[#This Row],[بند العقد]] -> 18000 | I144: =SUMIF($C$3:C144,Table8[[#This Row],[اسم المحطه]],$F$3:F144)-SUMIF(Table9[اسم المحطة],Table8[[#This Row],[اسم المحطه]],Table9[الاسمنت المستلم بالطن]) -> -776.92 | J144: =IF(Table8[[#This Row],[الرصيد بالطن]]=0,"0",IF(Table8[[#This Row],[الرصيد بالطن]]>=0.01,"دائن",IF(Table8[[#This Row],[الرصيد بالطن]]<=-0.01,"مدين"))) -> مدين | K144: دى1 | L144: اعمدة الثانى فاصل 1
A145: 143 | B145: 2023-06-19 | C145: الشركة الهندسية للمشروعات | D145: 380 | E145: 128 | F145: =Table8[[#This Row],[الكميه بالمتر المكعب]]*Table8[[#This Row],[محتوى الاسمنت (كجم/م3)]]/1000 -> 48.64 | G145: =SUMIF(Table9[اسم المحطة],Table8[[#This Row],[اسم المحطه]],Table13[2023/05/23]) -> 600 | H145: =Table8[[#This Row],[الكميه بالمتر المكعب]]*Table8[[#This Row],[بند العقد]] -> 76800 | I145: =SUMIF($C$3:C145,Table8[[#This Row],[اسم المحطه]],$F$3:F145)-SUMIF(Table9[اسم المحطة],Table8[[#This Row],[اسم المحطه]],Table9[الاسمنت المستلم بالطن]) -> -728.28 | J145: =IF(Table8[[#This Row],[الرصيد بالطن]]=0,"0",IF(Table8[[#This Row],[الرصيد بالطن]]>=0.01,"دائن",IF(Table8[[#This Row],[الرصيد بالطن]]<=-0.01,"مدين"))) -> مدين | K145: اى1 | L145: سقف الثانى فاصل 1
A146: 144 | B146: 2023-06-20 | C146: الشركة الهندسية للمشروعات | D146: 380 | E146: 132 | F146: =Table8[[#This Row],[الكميه بالمتر المكعب]]*Table8[[#This Row],[محتوى الاسمنت (كجم/م3)]]/1000 -> 50.16 | G146: =SUMIF(Table9[اسم المحطة],Table8[[#This Row],[اسم المحطه]],Table13[2023/05/23]) -> 600 | H146: =Table8[[#This Row],[الكميه بالمتر المكعب]]*Table8[[#This Row],[بند العقد]] -> 79200 | I146: =SUMIF($C$3:C146,Table8[[#This Row],[اسم المحطه]],$F$3:F146)-SUMIF(Table9[اسم المحطة],Table8[[#This Row],[اسم المحطه]],Table9[الاسمنت المستلم بالطن]) -> -678.12 | J146: =IF(Table8[[#This Row],[الرصيد بالطن]]=0,"0",IF(Table8[[#This Row],[الرصيد بالطن]]>=0.01,"دائن",IF(Table8[[#This Row],[الرصيد بالطن]]<=-0.01,"مدين"))) -> مدين | K146: سى1 | L146: سقف الثانى فاصل 2
A147: 145 | B147: 2023-06-20 | C147: الشركة الهندسية للمشروعات | D147: 380 | E147: 123 | F147: =Table8[[#This Row],[الكميه بالمتر المكعب]]*Table8[[#This Row],[محتوى الاسمنت (كجم/م3)]]/1000 -> 46.74 | G147: =SUMIF(Table9[اسم المحطة],Table8[[#This Row],[اسم المحطه]],Table13[2023/05/23]) -> 600 | H147: =Table8[[#This Row],[الكميه بالمتر المكعب]]*Table8[[#This Row],[بند العقد]] -> 73800 | I147: =SUMIF($C$3:C147,Table8[[#This Row],[اسم المحطه]],$F$3:F147)-SUMIF(Table9[اسم المحطة],Table8[[#This Row],[اسم المحطه]],Table9[الاسمنت المستلم بالطن]) -> -631.38 | J147: =IF(Table8[[#This Row],[الرصيد بالطن]]=0,"0",IF(Table8[[#This Row],[الرصيد بالطن]]>=0.01,"دائن",IF(Table8[[#This Row],[الرصيد بالطن]]<=-0.01,"مدين"))) -> مدين | K147: اى2 | L147: سقف الثانى فاصل 1
A148: 146 | B148: 2023-06-22 | C148: الشركة الهندسية للمشروعات | D148: 380 | E148: 8 | F148: =Table8[[#This Row],[الكميه بالمتر المكعب]]*Table8[[#This Row],[محتوى الاسمنت (كجم/م3)]]/1000 -> 3.04 | G148: =SUMIF(Table9[اسم المحطة],Table8[[#This Row],[اسم المحطه]],Table13[2023/05/23]) -> 600 | H148: =Table8[[#This Row],[الكميه بالمتر المكعب]]*Table8[[#This Row],[بند العقد]] -> 4800 | I148: =SUMIF($C$3:C148,Table8[[#This Row],[اسم المحطه]],$F$3:F148)-SUMIF(Table9[اسم المحطة],Table8[[#This Row],[اسم المحطه]],Table9[الاسمنت المستلم بالطن]) -> -628.34 | J148: =IF(Table8[[#This Row],[الرصيد بالطن]]=0,"0",IF(Table8[[#This Row],[الرصيد بالطن]]>=0.01,"دائن",IF(Table8[[#This Row],[الرصيد بالطن]]<=-0.01,"مدين"))) -> مدين | K148: دى2 | L148: الشخشيخة
A149: 147 | B149: 2023-06-22 | C149: الشركة الهندسية للمشروعات | D149: 380 | E149: 29 | F149: =Table8[[#This Row],[الكميه بالمتر المكعب]]*Table8[[#This Row],[محتوى الاسمنت (كجم/م3)]]/1000 -> 11.02 | G149: =SUMIF(Table9[اسم المحطة],Table8[[#This Row],[اسم المحطه]],Table13[2023/05/23]) -> 600 | H149: =Table8[[#This Row],[الكميه بالمتر المكعب]]*Table8[[#This Row],[بند العقد]] -> 17400 | I149: =SUMIF($C$3:C149,Table8[[#This Row],[اسم المحطه]],$F$3:F149)-SUMIF(Table9[اسم المحطة],Table8[[#This Row],[اسم المحطه]],Table9[الاسمنت المستلم بالطن]) -> -617.32 | J149: =IF(Table8[[#This Row],[الرصيد بالطن]]=0,"0",IF(Table8[[#This Row],[الرصيد بالطن]]>=0.01,"دائن",IF(Table8[[#This Row],[الرصيد بالطن]]<=-0.01,"مدين"))) -> مدين | K149: دى1 | L149: اعمدة الثالث فاصل 2
A150: 148 | B150: 2023-06-22 | C150: الشركة الهندسية للمشروعات | D150: 380 | E150: 124 | F150: =Table8[[#This Row],[الكميه بالمتر المكعب]]*Table8[[#This Row],[محتوى الاسمنت (كجم/م3)]]/1000 -> 47.12 | G150: =SUMIF(Table9[اسم المحطة],Table8[[#This Row],[اسم المحطه]],Table13[2023/05/23]) -> 600 | H150: =Table8[[#This Row],[الكميه بالمتر المكعب]]*Table8[[#This Row],[بند العقد]] -> 74400 | I150: =SUMIF($C$3:C150,Table8[[#This Row],[اسم المحطه]],$F$3:F150)-SUMIF(Table9[اسم المحطة],Table8[[#This Row],[اسم المحطه]],Table9[الاسمنت المستلم بالطن]) -> -570.2 | J150: =IF(Table8[[#This Row],[الرصيد بالطن]]=0,"0",IF(Table8[[#This Row],[الرصيد بالطن]]>=0.01,"دائن",IF(Table8[[#This Row],[الرصيد بالطن]]<=-0.01,"مدين"))) -> مدين | K150: اى2 | L150: سقف الثانى فاصل 2
A151: 149 | B151: 2023-06-22 | C151: الشركة الهندسية للمشروعات | D151: 380 | E151: 59 | F151: =Table8[[#This Row],[الكميه بالمتر المكعب]]*Table8[[#This Row],[محتوى الاسمنت (كجم/م3)]]/1000 -> 22.42 | G151: =SUMIF(Table9[اسم المحطة],Table8[[#This Row],[اسم المحطه]],Table13[2023/05/23]) -> 600 | H151: =Table8[[#This Row],[الكميه بالمتر المكعب]]*Table8[[#This Row],[بند العقد]] -> 35400 | I151: =SUMIF($C$3:C151,Table8[[#This Row],[اسم المحطه]],$F$3:F151)-SUMIF(Table9[اسم المحطة],Table8[[#This Row],[اسم المحطه]],Table9[الاسمنت المستلم بالطن]) -> -547.78 | J151: =IF(Table8[[#This Row],[الرصيد بالطن]]=0,"0",IF(Table8[[#This Row],[الرصيد بالطن]]>=0.01,"دائن",IF(Table8[[#This Row],[الرصيد بالطن]]<=-0.01,"مدين"))) -> مدين | K151: سى2 | L151: اعمدة الرابع كله
A152: 150 | B152: 2023-06-22 | C152: الشركة الهندسية للمشروعات | D152: 380 | E152: 15 | F152: =Table8[[#This Row],[الكميه بالمتر المكعب]]*Table8[[#This Row],[محتوى الاسمنت (كجم/م3)]]/1000 -> 5.7 | G152: =SUMIF(Table9[اسم المحطة],Table8[[#This Row],[اسم المحطه]],Table13[2023/05/23]) -> 600 | H152: =Table8[[#This Row],[الكميه بالمتر المكعب]]*Table8[[#This Row],[بند العقد]] -> 9000 | I152: =SUMIF($C$3:C152,Table8[[#This Row],[اسم المحطه]],$F$3:F152)-SUMIF(Table9[اسم المحطة],Table8[[#This Row],[اسم المحطه]],Table9[الاسمنت المستلم بالطن]) -> -542.08 | J152: =IF(Table8[[#This Row],[الرصيد بالطن]]=0,"0",IF(Table8[[#This Row],[الرصيد بالطن]]>=0.01,"دائن",IF(Table8[[#This Row],[الرصيد بالطن]]<=-0.01,"مدين"))) -> مدين | K152: سى3 | L152: الشخشيخة
A153: 151 | B153: 2023-06-25 | C153: الشركة الهندسية للمشروعات | D153: 380 | E153: 34 | F153: =Table8[[#This Row],[الكميه بالمتر المكعب]]*Table8[[#This Row],[محتوى الاسمنت (كجم/م3)]]/1000 -> 12.92 | G153: =SUMIF(Table9[اسم المحطة],Table8[[#This Row],[اسم المحطه]],Table13[2023/05/23]) -> 600 | H153: =Table8[[#This Row],[الكميه بالمتر المكعب]]*Table8[[#This Row],[بند العقد]] -> 20400 | I153: =SUMIF($C$3:C153,Table8[[#This Row],[اسم المحطه]],$F$3:F153)-SUMIF(Table9[اسم المحطة],Table8[[#This Row],[اسم المحطه]],Table9[الاسمنت المستلم بالطن]) -> -529.16 | J153: =IF(Table8[[#This Row],[الرصيد بالطن]]=0,"0",IF(Table8[[#This Row],[الرصيد بالطن]]>=0.01,"دائن",IF(Table8[[#This Row],[الرصيد بالطن]]<=-0.01,"مدين"))) -> مدين | K153: اى2 | L153: اعمدة الثالث فاصل 1
A154: 152 | B154: 2023-06-25 | C154: الشركة الهندسية للمشروعات | D154: 380 | E154: 10 | F154: =Table8[[#This Row],[الكميه بالمتر المكعب]]*Table8[[#This Row],[محتوى الاسمنت (كجم/م3)]]/1000 -> 3.8 | G154: =SUMIF(Table9[اسم المحطة],Table8[[#This Row],[اسم المحطه]],Table13[2023/05/23]) -> 600 | H154: =Table8[[#This Row],[الكميه بالمتر المكعب]]*Table8[[#This Row],[بند العقد]] -> 6000 | I154: =SUMIF($C$3:C154,Table8[[#This Row],[اسم المحطه]],$F$3:F154)-SUMIF(Table9[اسم المحطة],Table8[[#This Row],[اسم المحطه]],Table9[الاسمنت المستلم بالطن]) -> -525.36 | J154: =IF(Table8[[#This Row],[الرصيد بالطن]]=0,"0",IF(Table8[[#This Row],[الرصيد بالطن]]>=0.01,"دائن",IF(Table8[[#This Row],[الرصيد بالطن]]<=-0.01,"مدين"))) -> مدين | K154: سى4 | L154: الشخشيخة
A155: 153 | B155: 2023-07-10 | C155: الشركة الهندسية للمشروعات | D155: 380 | E155: 30 | F155: =Table8[[#This Row],[الكميه بالمتر المكعب]]*Table8[[#This Row],[محتوى الاسمنت (كجم/م3)]]/1000 -> 11.4 | G155: =SUMIF(Table9[اسم المحطة],Table8[[#This Row],[اسم المحطه]],Table13[2023/05/23]) -> 600 | H155: =Table8[[#This Row],[الكميه بالمتر المكعب]]*Table8[[#This Row],[بند العقد]] -> 18000 | I155: =SUMIF($C$3:C155,Table8[[#This Row],[اسم المحطه]],$F$3:F155)-SUMIF(Table9[اسم المحطة],Table8[[#This Row],[اسم المحطه]],Table9[الاسمنت المستلم بالطن]) -> -513.96 | J155: =IF(Table8[[#This Row],[الرصيد بالطن]]=0,"0",IF(Table8[[#This Row],[الرصيد بالطن]]>=0.01,"دائن",IF(Table8[[#This Row],[الرصيد بالطن]]<=-0.01,"مدين"))) -> مدين | K155: اى2 | L155: اعمدة الثالث فاصل 2
A156: 154 | B156: 2023-07-11 | C156: الشركة الهندسية للمشروعات | D156: 380 | E156: 34 | F156: =Table8[[#This Row],[الكميه بالمتر المكعب]]*Table8[[#This Row],[محتوى الاسمنت (كجم/م3)]]/1000 -> 12.92 | G156: =SUMIF(Table9[اسم المحطة],Table8[[#This Row],[اسم المحطه]],Table13[2023/05/23]) -> 600 | H156: =Table8[[#This Row],[الكميه بالمتر المكعب]]*Table8[[#This Row],[بند العقد]] -> 20400 | I156: =SUMIF($C$3:C156,Table8[[#This Row],[اسم المحطه]],$F$3:F156)-SUMIF(Table9[اسم المحطة],Table8[[#This Row],[اسم المحطه]],Table9[الاسمنت المستلم بالطن]) -> -501.04 | J156: =IF(Table8[[#This Row],[الرصيد بالطن]]=0,"0",IF(Table8[[#This Row],[الرصيد بالطن]]>=0.01,"دائن",IF(Table8[[#This Row],[الرصيد بالطن]]<=-0.01,"مدين"))) -> مدين | K156: سى1 | L156: اعمدة الثالث فاصل 2
A157: 155 | B157: 2023-07-12 | C157: الشركة الهندسية للمشروعات | D157: 380 | E157: 113 | F157: =Table8[[#This Row],[الكميه بالمتر المكعب]]*Table8[[#This Row],[محتوى الاسمنت (كجم/م3)]]/1000 -> 42.94 | G157: =SUMIF(Table9[اسم المحطة],Table8[[#This Row],[اسم المحطه]],Table13[2023/05/23]) -> 600 | H157: =Table8[[#This Row],[الكميه بالمتر المكعب]]*Table8[[#This Row],[بند العقد]] -> 67800 | I157: =SUMIF($C$3:C157,Table8[[#This Row],[اسم المحطه]],$F$3:F157)-SUMIF(Table9[اسم المحطة],Table8[[#This Row],[اسم المحطه]],Table9[الاسمنت المستلم بالطن]) -> -458.1 | J157: =IF(Table8[[#This Row],[الرصيد بالطن]]=0,"0",IF(Table8[[#This Row],[الرصيد بالطن]]>=0.01,"دائن",IF(Table8[[#This Row],[الرصيد بالطن]]<=-0.01,"مدين"))) -> مدين | K157: اى1 | L157: سقف الثانى فاصل 2
A158: 156 | B158: 2023-07-12 | C158: الشركة الهندسية للمشروعات | D158: 380 | E158: 129 | F158: =Table8[[#This Row],[الكميه بالمتر المكعب]]*Table8[[#This Row],[محتوى الاسمنت (كجم/م3)]]/1000 -> 49.02 | G158: =SUMIF(Table9[اسم المحطة],Table8[[#This Row],[اسم المحطه]],Table13[2023/05/23]) -> 600 | H158: =Table8[[#This Row],[الكميه بالمتر المكعب]]*Table8[[#This Row],[بند العقد]] -> 77400 | I158: =SUMIF($C$3:C158,Table8[[#This Row],[اسم المحطه]],$F$3:F158)-SUMIF(Table9[اسم المحطة],Table8[[#This Row],[اسم المحطه]],Table9[الاسمنت المستلم بالطن]) -> -409.08 | J158: =IF(Table8[[#This Row],[الرصيد بالطن]]=0,"0",IF(Table8[[#This Row],[الرصيد بالطن]]>=0.01,"دائن",IF(Table8[[#This Row],[الرصيد بالطن]]<=-0.01,"مدين"))) -> مدين | K158: دى1 | L158: سقف الثانى فاصل 1
A159: 157 | B159: 2023-07-15 | C159: الشركة الهندسية للمشروعات | D159: 380 | E159: 120 | F159: =Table8[[#This Row],[الكميه بالمتر المكعب]]*Table8[[#This Row],[محتوى الاسمنت (كجم/م3)]]/1000 -> 45.6 | G159: =SUMIF(Table9[اسم المحطة],Table8[[#This Row],[اسم المحطه]],Table13[2023/05/23]) -> 600 | H159: =Table8[[#This Row],[الكميه بالمتر المكعب]]*Table8[[#This Row],[بند العقد]] -> 72000 | I159: =SUMIF($C$3:C159,Table8[[#This Row],[اسم المحطه]],$F$3:F159)-SUMIF(Table9[اسم المحطة],Table8[[#This Row],[اسم المحطه]],Table9[الاسمنت المستلم بالطن]) -> -363.48 | J159: =IF(Table8[[#This Row],[الرصيد بالطن]]=0,"0",IF(Table8[[#This Row],[الرصيد بالطن]]>=0.01,"دائن",IF(Table8[[#This Row],[الرصيد بالطن]]<=-0.01,"مدين"))) -> مدين | K159: دى2 | L159: سقف الرابع فاصل 2
A160: 158 | B160: 2023-07-17 | C160: الشركة الهندسية للمشروعات | D160: 380 | E160: 125 | F160: =Table8[[#This Row],[الكميه بالمتر المكعب]]*Table8[[#This Row],[محتوى الاسمنت (كجم/م3)]]/1000 -> 47.5 | G160: =SUMIF(Table9[اسم المحطة],Table8[[#This Row],[اسم المحطه]],Table13[2023/05/23]) -> 600 | H160: =Table8[[#This Row],[الكميه بالمتر المكعب]]*Table8[[#This Row],[بند العقد]] -> 75000 | I160: =SUMIF($C$3:C160,Table8[[#This Row],[اسم المحطه]],$F$3:F160)-SUMIF(Table9[اسم المحطة],Table8[[#This Row],[اسم المحطه]],Table9[الاسمنت المستلم بالطن]) -> -315.98 | J160: =IF(Table8[[#This Row],[الرصيد بالطن]]=0,"0",IF(Table8[[#This Row],[الرصيد بالطن]]>=0.01,"دائن",IF(Table8[[#This Row],[الرصيد بالطن]]<=-0.01,"مدين"))) -> مدين | K160: اى2 | L160: سقف الثالث فاصل 1
A161: 159 | B161: 2023-07-18 | C161: الشركة الهندسية للمشروعات | D161: 380 | E161: 29 | F161: =Table8[[#This Row],[الكميه بالمتر المكعب]]*Table8[[#This Row],[محتوى الاسمنت (كجم/م3)]]/1000 -> 11.02 | G161: =SUMIF(Table9[اسم المحطة],Table8[[#This Row],[اسم المحطه]],Table13[2023/05/23]) -> 600 | H161: =Table8[[#This Row],[الكميه بالمتر المكعب]]*Table8[[#This Row],[بند العقد]] -> 17400 | I161: =SUMIF($C$3:C161,Table8[[#This Row],[اسم المحطه]],$F$3:F161)-SUMIF(Table9[اسم المحطة],Table8[[#This Row],[اسم المحطه]],Table9[الاسمنت المستلم بالطن]) -> -304.96 | J161: =IF(Table8[[#This Row],[الرصيد بالطن]]=0,"0",IF(Table8[[#This Row],[الرصيد بالطن]]>=0.01,"دائن",IF(Table8[[#This Row],[الرصيد بالطن]]<=-0.01,"مدين"))) -> مدين | K161: دى1 | L161: اعمدة الثالث فاصل 1
A162: 160 | B162: 2023-07-18 | C162: الشركة الهندسية للمشروعات | D162: 380 | E162: 114 | F162: =Table8[[#This Row],[الكميه بالمتر المكعب]]*Table8[[#This Row],[محتوى الاسمنت (كجم/م3)]]/1000 -> 43.32 | G162: =SUMIF(Table9[اسم المحطة],Table8[[#This Row],[اسم المحطه]],Table13[2023/05/23]) -> 600 | H162: =Table8[[#This Row],[الكميه بالمتر المكعب]]*Table8[[#This Row],[بند العقد]] -> 68400 | I162: =SUMIF($C$3:C162,Table8[[#This Row],[اسم المحطه]],$F$3:F162)-SUMIF(Table9[اسم المحطة],Table8[[#This Row],[اسم المحطه]],Table9[الاسمنت المستلم بالطن]) -> -261.64 | J162: =IF(Table8[[#This Row],[الرصيد بالطن]]=0,"0",IF(Table8[[#This Row],[الرصيد بالطن]]>=0.01,"دائن",IF(Table8[[#This Row],[الرصيد بالطن]]<=-0.01,"مدين"))) -> مدين | K162: اى2 | L162: سقف الثالث فاصل 2
A163: 161 | B163: 2023-07-18 | C163: الشركة الهندسية للمشروعات | D163: 380 | E163: 8 | F163: =Table8[[#This Row],[الكميه بالمتر المكعب]]*Table8[[#This Row],[محتوى الاسمنت (كجم/م3)]]/1000 -> 3.04 | G163: =SUMIF(Table9[اسم المحطة],Table8[[#This Row],[اسم المحطه]],Table13[2023/05/23]) -> 600 | H163: =Table8[[#This Row],[الكميه بالمتر المكعب]]*Table8[[#This Row],[بند العقد]] -> 4800 | I163: =SUMIF($C$3:C163,Table8[[#This Row],[اسم المحطه]],$F$3:F163)-SUMIF(Table9[اسم المحطة],Table8[[#This Row],[اسم المحطه]],Table9[الاسمنت المستلم بالطن]) -> -258.6 | J163: =IF(Table8[[#This Row],[الرصيد بالطن]]=0,"0",IF(Table8[[#This Row],[الرصيد بالطن]]>=0.01,"دائن",IF(Table8[[#This Row],[الرصيد بالطن]]<=-0.01,"مدين"))) -> مدين | K163: دى2 | L163: الشخشيخة
A164: 162 | B164: 2023-07-22 | C164: الشركة الهندسية للمشروعات | D164: 380 | E164: 32 | F164: =Table8[[#This Row],[الكميه بالمتر المكعب]]*Table8[[#This Row],[محتوى الاسمنت (كجم/م3)]]/1000 -> 12.16 | G164: =SUMIF(Table9[اسم المحطة],Table8[[#This Row],[اسم المحطه]],Table13[2023/05/23]) -> 600 | H164: =Table8[[#This Row],[الكميه بالمتر المكعب]]*Table8[[#This Row],[بند العقد]] -> 19200 | I164: =SUMIF($C$3:C164,Table8[[#This Row],[اسم المحطه]],$F$3:F164)-SUMIF(Table9[اسم المحطة],Table8[[#This Row],[اسم المحطه]],Table9[الاسمنت المستلم بالطن]) -> -246.44 | J164: =IF(Table8[[#This Row],[الرصيد بالطن]]=0,"0",IF(Table8[[#This Row],[الرصيد بالطن]]>=0.01,"دائن",IF(Table8[[#This Row],[الرصيد بالطن]]<=-0.01,"مدين"))) -> مدين | K164: اى1 | L164: اعمدة الثالث فاصل 1
A165: 163 | B165: 2023-07-22 | C165: الشركة الهندسية للمشروعات | D165: 380 | E165: 117 | F165: =Table8[[#This Row],[الكميه بالمتر المكعب]]*Table8[[#This Row],[محتوى الاسمنت (كجم/م3)]]/1000 -> 44.46 | G165: =SUMIF(Table9[اسم المحطة],Table8[[#This Row],[اسم المحطه]],Table13[2023/05/23]) -> 600 | H165: =Table8[[#This Row],[الكميه بالمتر المكعب]]*Table8[[#This Row],[بند العقد]] -> 70200 | I165: =SUMIF($C$3:C165,Table8[[#This Row],[اسم المحطه]],$F$3:F165)-SUMIF(Table9[اسم المحطة],Table8[[#This Row],[اسم المحطه]],Table9[الاسمنت المستلم بالطن]) -> -201.98 | J165: =IF(Table8[[#This Row],[الرصيد بالطن]]=0,"0",IF(Table8[[#This Row],[الرصيد بالطن]]>=0.01,"دائن",IF(Table8[[#This Row],[الرصيد بالطن]]<=-0.01,"مدين"))) -> مدين | K165: دى1 | L165: سقف الثالث فاصل 2
A166: 164 | B166: 2023-07-24 | C166: الشركة الهندسية للمشروعات | D166: 380 | E166: 225 | F166: =Table8[[#This Row],[الكميه بالمتر المكعب]]*Table8[[#This Row],[محتوى الاسمنت (كجم/م3)]]/1000 -> 85.5 | G166: =SUMIF(Table9[اسم المحطة],Table8[[#This Row],[اسم المحطه]],Table13[2023/05/23]) -> 600 | H166: =Table8[[#This Row],[الكميه بالمتر المكعب]]*Table8[[#This Row],[بند العقد]] -> 135000 | I166: =SUMIF($C$3:C166,Table8[[#This Row],[اسم المحطه]],$F$3:F166)-SUMIF(Table9[اسم المحطة],Table8[[#This Row],[اسم المحطه]],Table9[الاسمنت المستلم بالطن]) -> -116.48 | J166: =IF(Table8[[#This Row],[الرصيد بالطن]]=0,"0",IF(Table8[[#This Row],[الرصيد بالطن]]>=0.01,"دائن",IF(Table8[[#This Row],[الرصيد بالطن]]<=-0.01,"مدين"))) -> مدين | K166: سى2 | L166: سقف الرابع كامل
A167: 165 | B167: 2023-07-24 | C167: الشركة الهندسية للمشروعات | D167: 380 | E167: 29 | F167: =Table8[[#This Row],[الكميه بالمتر المكعب]]*Table8[[#This Row],[محتوى الاسمنت (كجم/م3)]]/1000 -> 11.02 | G167: =SUMIF(Table9[اسم المحطة],Table8[[#This Row],[اسم المحطه]],Table13[2023/05/23]) -> 600 | H167: =Table8[[#This Row],[الكميه بالمتر المكعب]]*Table8[[#This Row],[بند العقد]] -> 17400 | I167: =SUMIF($C$3:C167,Table8[[#This Row],[اسم المحطه]],$F$3:F167)-SUMIF(Table9[اسم المحطة],Table8[[#This Row],[اسم المحطه]],Table9[الاسمنت المستلم بالطن]) -> -105.46 | J167: =IF(Table8[[#This Row],[الرصيد بالطن]]=0,"0",IF(Table8[[#This Row],[الرصيد بالطن]]>=0.01,"دائن",IF(Table8[[#This Row],[الرصيد بالطن]]<=-0.01,"مدين"))) -> مدين | K167: اى1 | L167: اعمدة الثانى فاصل 2
A168: 166 | B168: 2023-07-24 | C168: الشركة الهندسية للمشروعات | D168: 250 | E168: 6 | F168: =Table8[[#This Row],[الكميه بالمتر المكعب]]*Table8[[#This Row],[محتوى الاسمنت (كجم/م3)]]/1000 -> 1.5 | G168: =SUMIF(Table9[اسم المحطة],Table8[[#This Row],[اسم المحطه]],Table13[2023/05/23]) -> 600 | H168: =Table8[[#This Row],[الكميه بالمتر المكعب]]*Table8[[#This Row],[بند العقد]] -> 3600 | I168: =SUMIF($C$3:C168,Table8[[#This Row],[اسم المحطه]],$F$3:F168)-SUMIF(Table9[اسم المحطة],Table8[[#This Row],[اسم المحطه]],Table9[الاسمنت المستلم بالطن]) -> -103.96 | J168: =IF(Table8[[#This Row],[الرصيد بالطن]]=0,"0",IF(Table8[[#This Row],[الرصيد بالطن]]>=0.01,"دائن",IF(Table8[[#This Row],[الرصيد بالطن]]<=-0.01,"مدين"))) -> مدين | K168: عادية | L168: صب قواعد خرسانة للموقع
A169: 167 | B169: 2023-07-29 | C169: الشركة الهندسية للمشروعات | D169: 380 | E169: 32 | F169: =Table8[[#This Row],[الكميه بالمتر المكعب]]*Table8[[#This Row],[محتوى الاسمنت (كجم/م3)]]/1000 -> 12.16 | G169: =SUMIF(Table9[اسم المحطة],Table8[[#This Row],[اسم المحطه]],Table13[2023/05/23]) -> 600 | H169: =Table8[[#This Row],[الكميه بالمتر المكعب]]*Table8[[#This Row],[بند العقد]] -> 19200 | I169: =SUMIF($C$3:C169,Table8[[#This Row],[اسم المحطه]],$F$3:F169)-SUMIF(Table9[اسم المحطة],Table8[[#This Row],[اسم المحطه]],Table9[الاسمنت المستلم بالطن]) -> -91.8 | J169: =IF(Table8[[#This Row],[الرصيد بالطن]]=0,"0",IF(Table8[[#This Row],[الرصيد بالطن]]>=0.01,"دائن",IF(Table8[[#This Row],[الرصيد بالطن]]<=-0.01,"مدين"))) -> مدين | K169: دى1 | L169: اعمدة الرابع فاصل 2
A170: 168 | B170: 2023-07-29 | C170: الشركة الهندسية للمشروعات | D170: 380 | E170: 130 | F170: =Table8[[#This Row],[الكميه بالمتر المكعب]]*Table8[[#This Row],[محتوى الاسمنت (كجم/م3)]]/1000 -> 49.4 | G170: =SUMIF(Table9[اسم المحطة],Table8[[#This Row],[اسم المحطه]],Table13[2023/05/23]) -> 600 | H170: =Table8[[#This Row],[الكميه بالمتر المكعب]]*Table8[[#This Row],[بند العقد]] -> 78000 | I170: =SUMIF($C$3:C170,Table8[[#This Row],[اسم المحطه]],$F$3:F170)-SUMIF(Table9[اسم المحطة],Table8[[#This Row],[اسم المحطه]],Table9[الاسمنت المستلم بالطن]) -> -42.4 | J170: =IF(Table8[[#This Row],[الرصيد بالطن]]=0,"0",IF(Table8[[#This Row],[الرصيد بالطن]]>=0.01,"دائن",IF(Table8[[#This Row],[الرصيد بالطن]]<=-0.01,"مدين"))) -> مدين | K170: دى1 | L170: سقف الثالث فاصل 1
A171: 169 | B171: 2023-08-06 | C171: الشركة الهندسية للمشروعات | D171: 380 | E171: 27 | F171: =Table8[[#This Row],[الكميه بالمتر المكعب]]*Table8[[#This Row],[محتوى الاسمنت (كجم/م3)]]/1000 -> 10.26 | G171: =SUMIF(Table9[اسم المحطة],Table8[[#This Row],[اسم المحطه]],Table13[2023/05/23]) -> 600 | H171: =Table8[[#This Row],[الكميه بالمتر المكعب]]*Table8[[#This Row],[بند العقد]] -> 16200 | I171: =SUMIF($C$3:C171,Table8[[#This Row],[اسم المحطه]],$F$3:F171)-SUMIF(Table9[اسم المحطة],Table8[[#This Row],[اسم المحطه]],Table9[الاسمنت المستلم بالطن]) -> -32.14 | J171: =IF(Table8[[#This Row],[الرصيد بالطن]]=0,"0",IF(Table8[[#This Row],[الرصيد بالطن]]>=0.01,"دائن",IF(Table8[[#This Row],[الرصيد بالطن]]<=-0.01,"مدين"))) -> مدين | K171: اى2 | L171: اعمدة الرابع فاصل 1
A172: 170 | B172: 2023-08-07 | C172: الشركة الهندسية للمشروعات | D172: 380 | E172: 33 | F172: =Table8[[#This Row],[الكميه بالمتر المكعب]]*Table8[[#This Row],[محتوى الاسمنت (كجم/م3)]]/1000 -> 12.54 | G172: =SUMIF(Table9[اسم المحطة],Table8[[#This Row],[اسم المحطه]],Table13[2023/05/23]) -> 600 | H172: =Table8[[#This Row],[الكميه بالمتر المكعب]]*Table8[[#This Row],[بند العقد]] -> 19800 | I172: =SUMIF($C$3:C172,Table8[[#This Row],[اسم المحطه]],$F$3:F172)-SUMIF(Table9[اسم المحطة],Table8[[#This Row],[اسم المحطه]],Table9[الاسمنت المستلم بالطن]) -> -19.6 | J172: =IF(Table8[[#This Row],[الرصيد بالطن]]=0,"0",IF(Table8[[#This Row],[الرصيد بالطن]]>=0.01,"دائن",IF(Table8[[#This Row],[الرصيد بالطن]]<=-0.01,"مدين"))) -> مدين | K172: اى2 | L172: اعمدة الرابع فاصل 1
A173: 171 | B173: 2023-08-07 | C173: الشركة الهندسية للمشروعات | D173: 380 | E173: 33 | F173: =Table8[[#This Row],[الكميه بالمتر المكعب]]*Table8[[#This Row],[محتوى الاسمنت (كجم/م3)]]/1000 -> 12.54 | G173: =SUMIF(Table9[اسم المحطة],Table8[[#This Row],[اسم المحطه]],Table13[2023/05/23]) -> 600 | H173: =Table8[[#This Row],[الكميه بالمتر المكعب]]*Table8[[#This Row],[بند العقد]] -> 19800 | I173: =SUMIF($C$3:C173,Table8[[#This Row],[اسم المحطه]],$F$3:F173)-SUMIF(Table9[اسم المحطة],Table8[[#This Row],[اسم المحطه]],Table9[الاسمنت المستلم بالطن]) -> -7.06 | J173: =IF(Table8[[#This Row],[الرصيد بالطن]]=0,"0",IF(Table8[[#This Row],[الرصيد بالطن]]>=0.01,"دائن",IF(Table8[[#This Row],[الرصيد بالطن]]<=-0.01,"مدين"))) -> مدين | K173: دى1 | L173: اعمدة الرابع فاصل 2
A174: 172 | B174: 2023-08-07 | C174: الشركة الهندسية للمشروعات | D174: 380 | E174: 17 | F174: =Table8[[#This Row],[الكميه بالمتر المكعب]]*Table8[[#This Row],[محتوى الاسمنت (كجم/م3)]]/1000 -> 6.46 | G174: =SUMIF(Table9[اسم المحطة],Table8[[#This Row],[اسم المحطه]],Table13[2023/05/23]) -> 600 | H174: =Table8[[#This Row],[الكميه بالمتر المكعب]]*Table8[[#This Row],[بند العقد]] -> 10200 | I174: =SUMIF($C$3:C174,Table8[[#This Row],[اسم المحطه]],$F$3:F174)-SUMIF(Table9[اسم المحطة],Table8[[#This Row],[اسم المحطه]],Table9[الاسمنت المستلم بالطن]) -> -0.6 | J174: =IF(Table8[[#This Row],[الرصيد بالطن]]=0,"0",IF(Table8[[#This Row],[الرصيد بالطن]]>=0.01,"دائن",IF(Table8[[#This Row],[الرصيد بالطن]]<=-0.01,"مدين"))) -> مدين | K174: سى2 | L174: 2 شخشيخة
A175: 173 | B175: 2023-08-10 | C175: الشركة الهندسية للمشروعات | D175: 380 | E175: 118 | F175: =Table8[[#This Row],[الكميه بالمتر المكعب]]*Table8[[#This Row],[محتوى الاسمنت (كجم/م3)]]/1000 -> 44.84 | G175: =SUMIF(Table9[اسم المحطة],Table8[[#This Row],[اسم المحطه]],Table13[2023/05/23]) -> 600 | H175: =Table8[[#This Row],[الكميه بالمتر المكعب]]*Table8[[#This Row],[بند العقد]] -> 70800 | I175: =SUMIF($C$3:C175,Table8[[#This Row],[اسم المحطه]],$F$3:F175)-SUMIF(Table9[اسم المحطة],Table8[[#This Row],[اسم المحطه]],Table9[الاسمنت المستلم بالطن]) -> 44.24 | J175: =IF(Table8[[#This Row],[الرصيد بالطن]]=0,"0",IF(Table8[[#This Row],[الرصيد بالطن]]>=0.01,"دائن",IF(Table8[[#This Row],[الرصيد بالطن]]<=-0.01,"مدين"))) -> دائن | K175: دى1 | L175: سقف الرابع فاصل 1
A176: 174 | B176: 2023-08-15 | C176: الشركة الهندسية للمشروعات | D176: 380 | E176: 112 | F176: =Table8[[#This Row],[الكميه بالمتر المكعب]]*Table8[[#This Row],[محتوى الاسمنت (كجم/م3)]]/1000 -> 42.56 | G176: =SUMIF(Table9[اسم المحطة],Table8[[#This Row],[اسم المحطه]],Table13[2023/05/23]) -> 600 | H176: =Table8[[#This Row],[الكميه بالمتر المكعب]]*Table8[[#This Row],[بند العقد]] -> 67200 | I176: =SUMIF($C$3:C176,Table8[[#This Row],[اسم المحطه]],$F$3:F176)-SUMIF(Table9[اسم المحطة],Table8[[#This Row],[اسم المحطه]],Table9[الاسمنت المستلم بالطن]) -> 86.8 | J176: =IF(Table8[[#This Row],[الرصيد بالطن]]=0,"0",IF(Table8[[#This Row],[الرصيد بالطن]]>=0.01,"دائن",IF(Table8[[#This Row],[الرصيد بالطن]]<=-0.01,"مدين"))) -> دائن | K176: سى1 | L176: سقف الثالث فاصل 1
A177: 175 | B177: 2023-08-21 | C177: الشركة الهندسية للمشروعات | D177: 380 | E177: 129 | F177: =Table8[[#This Row],[الكميه بالمتر المكعب]]*Table8[[#This Row],[محتوى الاسمنت (كجم/م3)]]/1000 -> 49.02 | G177: =SUMIF(Table9[اسم المحطة],Table8[[#This Row],[اسم المحطه]],Table13[2023/05/23]) -> 600 | H177: =Table8[[#This Row],[الكميه بالمتر المكعب]]*Table8[[#This Row],[بند العقد]] -> 77400 | I177: =SUMIF($C$3:C177,Table8[[#This Row],[اسم المحطه]],$F$3:F177)-SUMIF(Table9[اسم المحطة],Table8[[#This Row],[اسم المحطه]],Table9[الاسمنت المستلم بالطن]) -> 135.82 | J177: =IF(Table8[[#This Row],[الرصيد بالطن]]=0,"0",IF(Table8[[#This Row],[الرصيد بالطن]]>=0.01,"دائن",IF(Table8[[#This Row],[الرصيد بالطن]]<=-0.01,"مدين"))) -> دائن | K177: دى1 | L177: سقف الرابع فاصل 1
A178: 176 | B178: 2023-08-22 | C178: الشركة الهندسية للمشروعات | D178: 380 | E178: 128 | F178: =Table8[[#This Row],[الكميه بالمتر المكعب]]*Table8[[#This Row],[محتوى الاسمنت (كجم/م3)]]/1000 -> 48.64 | G178: =SUMIF(Table9[اسم المحطة],Table8[[#This Row],[اسم المحطه]],Table13[2023/05/23]) -> 600 | H178: =Table8[[#This Row],[الكميه بالمتر المكعب]]*Table8[[#This Row],[بند العقد]] -> 76800 | I178: =SUMIF($C$3:C178,Table8[[#This Row],[اسم المحطه]],$F$3:F178)-SUMIF(Table9[اسم المحطة],Table8[[#This Row],[اسم المحطه]],Table9[الاسمنت المستلم بالطن]) -> 184.46 | J178: =IF(Table8[[#This Row],[الرصيد بالطن]]=0,"0",IF(Table8[[#This Row],[الرصيد بالطن]]>=0.01,"دائن",IF(Table8[[#This Row],[الرصيد بالطن]]<=-0.01,"مدين"))) -> دائن | K178: اى2 | L178: سقف الرابع فاصل 1
A179: 177 | B179: 2023-08-22 | C179: الشركة الهندسية للمشروعات | D179: 380 | E179: 8 | F179: =Table8[[#This Row],[الكميه بالمتر المكعب]]*Table8[[#This Row],[محتوى الاسمنت (كجم/م3)]]/1000 -> 3.04 | G179: =SUMIF(Table9[اسم المحطة],Table8[[#This Row],[اسم المحطه]],Table13[2023/05/23]) -> 600 | H179: =Table8[[#This Row],[الكميه بالمتر المكعب]]*Table8[[#This Row],[بند العقد]] -> 4800 | I179: =SUMIF($C$3:C179,Table8[[#This Row],[اسم المحطه]],$F$3:F179)-SUMIF(Table9[اسم المحطة],Table8[[#This Row],[اسم المحطه]],Table9[الاسمنت المستلم بالطن]) -> 187.5 | J179: =IF(Table8[[#This Row],[الرصيد بالطن]]=0,"0",IF(Table8[[#This Row],[الرصيد بالطن]]>=0.01,"دائن",IF(Table8[[#This Row],[الرصيد بالطن]]<=-0.01,"مدين"))) -> دائن | K179: دى1 | L179: الشخشيخة
A180: 178 | B180: 2023-08-24 | C180: الشركة الهندسية للمشروعات | D180: 380 | E180: 128 | F180: =Table8[[#This Row],[الكميه بالمتر المكعب]]*Table8[[#This Row],[محتوى الاسمنت (كجم/م3)]]/1000 -> 48.64 | G180: =SUMIF(Table9[اسم المحطة],Table8[[#This Row],[اسم المحطه]],Table13[2023/05/23]) -> 600 | H180: =Table8[[#This Row],[الكميه بالمتر المكعب]]*Table8[[#This Row],[بند العقد]] -> 76800 | I180: =SUMIF($C$3:C180,Table8[[#This Row],[اسم المحطه]],$F$3:F180)-SUMIF(Table9[اسم المحطة],Table8[[#This Row],[اسم المحطه]],Table9[الاسمنت المستلم بالطن]) -> 236.14 | J180: =IF(Table8[[#This Row],[الرصيد بالطن]]=0,"0",IF(Table8[[#This Row],[الرصيد بالطن]]>=0.01,"دائن",IF(Table8[[#This Row],[الرصيد بالطن]]<=-0.01,"مدين"))) -> دائن | K180: اى1 | L180: سقف الثالث فاصل 1
A181: 179 | B181: 2023-08-27 | C181: الشركة الهندسية للمشروعات | D181: 380 | E181: 119 | F181: =Table8[[#This Row],[الكميه بالمتر المكعب]]*Table8[[#This Row],[محتوى الاسمنت (كجم/م3)]]/1000 -> 45.22 | G181: =SUMIF(Table9[اسم المحطة],Table8[[#This Row],[اسم المحطه]],Table13[2023/05/23]) -> 600 | H181: =Table8[[#This Row],[الكميه بالمتر المكعب]]*Table8[[#This Row],[بند العقد]] -> 71400 | I181: =SUMIF($C$3:C181,Table8[[#This Row],[اسم المحطه]],$F$3:F181)-SUMIF(Table9[اسم المحطة],Table8[[#This Row],[اسم المحطه]],Table9[الاسمنت المستلم بالطن]) -> 281.36 | J181: =IF(Table8[[#This Row],[الرصيد بالطن]]=0,"0",IF(Table8[[#This Row],[الرصيد بالطن]]>=0.01,"دائن",IF(Table8[[#This Row],[الرصيد بالطن]]<=-0.01,"مدين"))) -> دائن | K181: اى2 | L181: سقف الرابع فاصل 2
A182: 180 | B182: 2023-08-27 | C182: الشركة الهندسية للمشروعات | D182: 380 | E182: 11 | F182: =Table8[[#This Row],[الكميه بالمتر المكعب]]*Table8[[#This Row],[محتوى الاسمنت (كجم/م3)]]/1000 -> 4.18 | G182: =SUMIF(Table9[اسم المحطة],Table8[[#This Row],[اسم المحطه]],Table13[2023/05/23]) -> 600 | H182: =Table8[[#This Row],[الكميه بالمتر المكعب]]*Table8[[#This Row],[بند العقد]] -> 6600 | I182: =SUMIF($C$3:C182,Table8[[#This Row],[اسم المحطه]],$F$3:F182)-SUMIF(Table9[اسم المحطة],Table8[[#This Row],[اسم المحطه]],Table9[الاسمنت المستلم بالطن]) -> 285.54 | J182: =IF(Table8[[#This Row],[الرصيد بالطن]]=0,"0",IF(Table8[[#This Row],[الرصيد بالطن]]>=0.01,"دائن",IF(Table8[[#This Row],[الرصيد بالطن]]<=-0.01,"مدين"))) -> دائن | K182: دى1 | L182: الشخشيخة
A183: 181 | F183: =Table8[[#This Row],[الكميه بالمتر المكعب]]*Table8[[#This Row],[محتوى الاسمنت (كجم/م3)]]/1000 -> 0 | G183: =SUMIF(Table9[اسم المحطة],Table8[[#This Row],[اسم المحطه]],Table13[2023/05/23]) -> 0 | H183: =Table8[[#This Row],[الكميه بالمتر المكعب]]*Table8[[#This Row],[بند العقد]] -> 0 | I183: =SUMIF($C$3:C183,Table8[[#This Row],[اسم المحطه]],$F$3:F183)-SUMIF(Table9[اسم المحطة],Table8[[#This Row],[اسم المحطه]],Table9[الاسمنت المستلم بالطن]) -> 0 | J183: =IF(Table8[[#This Row],[الرصيد بالطن]]=0,"0",IF(Table8[[#This Row],[الرصيد بالطن]]>=0.01,"دائن",IF(Table8[[#This Row],[الرصيد بالطن]]<=-0.01,"مدين"))) -> 0
A184: 182 | F184: =Table8[[#This Row],[الكميه بالمتر المكعب]]*Table8[[#This Row],[محتوى الاسمنت (كجم/م3)]]/1000 -> 0 | G184: =SUMIF(Table9[اسم المحطة],Table8[[#This Row],[اسم المحطه]],Table13[2023/05/23]) -> 0 | H184: =Table8[[#This Row],[الكميه بالمتر المكعب]]*Table8[[#This Row],[بند العقد]] -> 0 | I184: =SUMIF($C$3:C184,Table8[[#This Row],[اسم المحطه]],$F$3:F184)-SUMIF(Table9[اسم المحطة],Table8[[#This Row],[اسم المحطه]],Table9[الاسمنت المستلم بالطن]) -> 0 | J184: =IF(Table8[[#This Row],[الرصيد بالطن]]=0,"0",IF(Table8[[#This Row],[الرصيد بالطن]]>=0.01,"دائن",IF(Table8[[#This Row],[الرصيد بالطن]]<=-0.01,"مدين"))) -> 0
A185: 183 | F185: =Table8[[#This Row],[الكميه بالمتر المكعب]]*Table8[[#This Row],[محتوى الاسمنت (كجم/م3)]]/1000 -> 0 | G185: =SUMIF(Table9[اسم المحطة],Table8[[#This Row],[اسم المحطه]],Table13[2023/05/23]) -> 0 | H185: =Table8[[#This Row],[الكميه بالمتر المكعب]]*Table8[[#This Row],[بند العقد]] -> 0 | I185: =SUMIF($C$3:C185,Table8[[#This Row],[اسم المحطه]],$F$3:F185)-SUMIF(Table9[اسم المحطة],Table8[[#This Row],[اسم المحطه]],Table9[الاسمنت المستلم بالطن]) -> 0 | J185: =IF(Table8[[#This Row],[الرصيد بالطن]]=0,"0",IF(Table8[[#This Row],[الرصيد بالطن]]>=0.01,"دائن",IF(Table8[[#This Row],[الرصيد بالطن]]<=-0.01,"مدين"))) -> 0
A186: 184 | F186: =Table8[[#This Row],[الكميه بالمتر المكعب]]*Table8[[#This Row],[محتوى الاسمنت (كجم/م3)]]/1000 -> 0 | G186: =SUMIF(Table9[اسم المحطة],Table8[[#This Row],[اسم المحطه]],Table13[2023/05/23]) -> 0 | H186: =Table8[[#This Row],[الكميه بالمتر المكعب]]*Table8[[#This Row],[بند العقد]] -> 0 | I186: =SUMIF($C$3:C186,Table8[[#This Row],[اسم المحطه]],$F$3:F186)-SUMIF(Table9[اسم المحطة],Table8[[#This Row],[اسم المحطه]],Table9[الاسمنت المستلم بالطن]) -> 0 | J186: =IF(Table8[[#This Row],[الرصيد بالطن]]=0,"0",IF(Table8[[#This Row],[الرصيد بالطن]]>=0.01,"دائن",IF(Table8[[#This Row],[الرصيد بالطن]]<=-0.01,"مدين"))) -> 0
A187: 185 | F187: =Table8[[#This Row],[الكميه بالمتر المكعب]]*Table8[[#This Row],[محتوى الاسمنت (كجم/م3)]]/1000 -> 0 | G187: =SUMIF(Table9[اسم المحطة],Table8[[#This Row],[اسم المحطه]],Table13[2023/05/23]) -> 0 | H187: =Table8[[#This Row],[الكميه بالمتر المكعب]]*Table8[[#This Row],[بند العقد]] -> 0 | I187: =SUMIF($C$3:C187,Table8[[#This Row],[اسم المحطه]],$F$3:F187)-SUMIF(Table9[اسم المحطة],Table8[[#This Row],[اسم المحطه]],Table9[الاسمنت المستلم بالطن]) -> 0 | J187: =IF(Table8[[#This Row],[الرصيد بالطن]]=0,"0",IF(Table8[[#This Row],[الرصيد بالطن]]>=0.01,"دائن",IF(Table8[[#This Row],[الرصيد بالطن]]<=-0.01,"مدين"))) -> 0
A188: 186 | F188: =Table8[[#This Row],[الكميه بالمتر المكعب]]*Table8[[#This Row],[محتوى الاسمنت (كجم/م3)]]/1000 -> 0 | G188: =SUMIF(Table9[اسم المحطة],Table8[[#This Row],[اسم المحطه]],Table13[2023/05/23]) -> 0 | H188: =Table8[[#This Row],[الكميه بالمتر المكعب]]*Table8[[#This Row],[بند العقد]] -> 0 | I188: =SUMIF($C$3:C188,Table8[[#This Row],[اسم المحطه]],$F$3:F188)-SUMIF(Table9[اسم المحطة],Table8[[#This Row],[اسم المحطه]],Table9[الاسمنت المستلم بالطن]) -> 0 | J188: =IF(Table8[[#This Row],[الرصيد بالطن]]=0,"0",IF(Table8[[#This Row],[الرصيد بالطن]]>=0.01,"دائن",IF(Table8[[#This Row],[الرصيد بالطن]]<=-0.01,"مدين"))) -> 0
A189: 187 | F189: =Table8[[#This Row],[الكميه بالمتر المكعب]]*Table8[[#This Row],[محتوى الاسمنت (كجم/م3)]]/1000 -> 0 | G189: =SUMIF(Table9[اسم المحطة],Table8[[#This Row],[اسم المحطه]],Table13[2023/05/23]) -> 0 | H189: =Table8[[#This Row],[الكميه بالمتر المكعب]]*Table8[[#This Row],[بند العقد]] -> 0 | I189: =SUMIF($C$3:C189,Table8[[#This Row],[اسم المحطه]],$F$3:F189)-SUMIF(Table9[اسم المحطة],Table8[[#This Row],[اسم المحطه]],Table9[الاسمنت المستلم بالطن]) -> 0 | J189: =IF(Table8[[#This Row],[الرصيد بالطن]]=0,"0",IF(Table8[[#This Row],[الرصيد بالطن]]>=0.01,"دائن",IF(Table8[[#This Row],[الرصيد بالطن]]<=-0.01,"مدين"))) -> 0
A190: 188 | F190: =Table8[[#This Row],[الكميه بالمتر المكعب]]*Table8[[#This Row],[محتوى الاسمنت (كجم/م3)]]/1000 -> 0 | G190: =SUMIF(Table9[اسم المحطة],Table8[[#This Row],[اسم المحطه]],Table13[2023/05/23]) -> 0 | H190: =Table8[[#This Row],[الكميه بالمتر المكعب]]*Table8[[#This Row],[بند العقد]] -> 0 | I190: =SUMIF($C$3:C190,Table8[[#This Row],[اسم المحطه]],$F$3:F190)-SUMIF(Table9[اسم المحطة],Table8[[#This Row],[اسم المحطه]],Table9[الاسمنت المستلم بالطن]) -> 0 | J190: =IF(Table8[[#This Row],[الرصيد بالطن]]=0,"0",IF(Table8[[#This Row],[الرصيد بالطن]]>=0.01,"دائن",IF(Table8[[#This Row],[الرصيد بالطن]]<=-0.01,"مدين"))) -> 0
A191: 189 | F191: =Table8[[#This Row],[الكميه بالمتر المكعب]]*Table8[[#This Row],[محتوى الاسمنت (كجم/م3)]]/1000 -> 0 | G191: =SUMIF(Table9[اسم المحطة],Table8[[#This Row],[اسم المحطه]],Table13[2023/05/23]) -> 0 | H191: =Table8[[#This Row],[الكميه بالمتر المكعب]]*Table8[[#This Row],[بند العقد]] -> 0 | I191: =SUMIF($C$3:C191,Table8[[#This Row],[اسم المحطه]],$F$3:F191)-SUMIF(Table9[اسم المحطة],Table8[[#This Row],[اسم المحطه]],Table9[الاسمنت المستلم بالطن]) -> 0 | J191: =IF(Table8[[#This Row],[الرصيد بالطن]]=0,"0",IF(Table8[[#This Row],[الرصيد بالطن]]>=0.01,"دائن",IF(Table8[[#This Row],[الرصيد بالطن]]<=-0.01,"مدين"))) -> 0
A192: 190 | F192: =Table8[[#This Row],[الكميه بالمتر المكعب]]*Table8[[#This Row],[محتوى الاسمنت (كجم/م3)]]/1000 -> 0 | G192: =SUMIF(Table9[اسم المحطة],Table8[[#This Row],[اسم المحطه]],Table13[2023/05/23]) -> 0 | H192: =Table8[[#This Row],[الكميه بالمتر المكعب]]*Table8[[#This Row],[بند العقد]] -> 0 | I192: =SUMIF($C$3:C192,Table8[[#This Row],[اسم المحطه]],$F$3:F192)-SUMIF(Table9[اسم المحطة],Table8[[#This Row],[اسم المحطه]],Table9[الاسمنت المستلم بالطن]) -> 0 | J192: =IF(Table8[[#This Row],[الرصيد بالطن]]=0,"0",IF(Table8[[#This Row],[الرصيد بالطن]]>=0.01,"دائن",IF(Table8[[#This Row],[الرصيد بالطن]]<=-0.01,"مدين"))) -> 0
A193: 191 | F193: =Table8[[#This Row],[الكميه بالمتر المكعب]]*Table8[[#This Row],[محتوى الاسمنت (كجم/م3)]]/1000 -> 0 | G193: =SUMIF(Table9[اسم المحطة],Table8[[#This Row],[اسم المحطه]],Table13[2023/05/23]) -> 0 | H193: =Table8[[#This Row],[الكميه بالمتر المكعب]]*Table8[[#This Row],[بند العقد]] -> 0 | I193: =SUMIF($C$3:C193,Table8[[#This Row],[اسم المحطه]],$F$3:F193)-SUMIF(Table9[اسم المحطة],Table8[[#This Row],[اسم المحطه]],Table9[الاسمنت المستلم بالطن]) -> 0 | J193: =IF(Table8[[#This Row],[الرصيد بالطن]]=0,"0",IF(Table8[[#This Row],[الرصيد بالطن]]>=0.01,"دائن",IF(Table8[[#This Row],[الرصيد بالطن]]<=-0.01,"مدين"))) -> 0
